Workbook

Sheet Home
B1: =uxb_works!$B$92 -> Engineering Index: 2019 | C1: =uxb_works!$B$92 -> Engineering Index: 2019 | BA1: 0 | BB1: 0

Sheet Contents
C1: =uxb_works!B92 -> Engineering Index: 2019 | BA1: 0 | BB1: 1 | BC1: 1 | BD1: 2
C10: Table of Contents
D12: =uxb_works!C94 -> RESULTS | F12: =uxb_works!B94 -> MAP | H12: An interactive heat map of scores
F13: =uxb_works!B95 -> SUMMARY | H13: Shows the category scores and rankings for all countries
F14: =uxb_works!B96 -> INDICATOR RANKING | H14: Offers a more detailed description of the scoring for each indicator
F15: =uxb_works!B104 -> COUNTRY PROFILE | H15: Top level overview of countries quartile positioning
F16: =uxb_works!B97 -> SCORECARD | H16: Offers a more detailed country view in context with any group
F17: =uxb_works!B98 -> COUNTRY COMPARE | H17: Allows comparisons for up to four countries through spider charts and bar charts
F18: =uxb_works!B99 -> GROUP COMPARE | H18: Allows comparisons of group averages by indicator
D20: =uxb_works!C95 -> INSIGHTS & ANALYTICS | F20: =uxb_works!B100 -> SCATTER | H20: Displays scatter plots between indicators
F21: =uxb_works!B101 -> CORRELATIONS | H21: Provides correlation analysis between indicators
D23: =uxb_works!C96 -> SCORES & METHODOLOGY | F23: =uxb_works!B102 -> SCORES | H23: Table of normalised scores for each indicator and country
F24: =uxb_works!B103 -> METHODOLOGY | H24: Index methodology

Sheet Map
A1: =uxb_works!$B$92 -> Engineering Index: 2019 | AZ1: 1 | BA1: 1 | BB1: 0 | BC1: 2 | BE1: 1 | BF1: 2
BB2: 2 | BC2: 0
A6: =uxb_works!$C$5 -> The active weight profile has been changed from its default setting
A8: =uxb_works!D67 -> <no filter> -I- No. of countries in this group: 99
A11: =uxb_works!$G$21 -> CATEGORY
B12: =iIndiRank!$F$2 -> 1) KNOWLEDGE | AF12: =A12 -> 0 | AG12: =B12 -> 1) KNOWLEDGE
B28: =IF(uxb_works!$B$6=1,"SELECT COUNTRY","SELECTED COUNTRY") -> SELECT COUNTRY
B29: =iMap_Rank!C9 -> Click on map or select from the country highlight drop down box
B43: =uxb_works!J19 -> 0
B44: =iMap_Rank!AZ17 -> 1 | E44: =iMap_Rank!BA17 -> 2 | H44: =iMap_Rank!BB17 -> 3 | I44: =H44 -> 3 | K44: =iMap_Rank!BC17 -> 4 | L44: =K44 -> 4 | N44: =iMap_Rank!BD17 -> 0 | O44: =N44 -> 0
A45: =MAX(A46,D46,G46,J46,M46) -> 25 | B45: =iMap_Rank!BF14 -> RANK | E45: =iMap_Rank!BI14 -> RANK | H45: =iMap_Rank!BL14 -> RANK | K45: =iMap_Rank!BO14 -> RANK | N45: =iMap_Rank!BR14 -> Countries with insufficient or missing
A46: =MAX(COUNTIF(A47:A100,"<>0"),1) -> 25 | B46: =iMap_Rank!BF15 -> Fourth Quartile | D46: =MAX(COUNTIF(D47:D100,"<>0"),1) -> 25 | E46: =iMap_Rank!BI15 -> Third Quartile | G46: =MAX(COUNTIF(G47:G100,"<>0"),1) -> 24 | H46: =iMap_Rank!BL15 -> Second Quartile | J46: =MAX(COUNTIF(J47:J100,"<>0"),1) -> 25 | K46: =iMap_Rank!BO15 -> First Quartile | M46: =MAX(COUNTIF(M47:M100,"<>0"),1) -> 1 | N46: =iMap_Rank!BR15 -> data for this indicator or category | Z46: =B46 -> Fourth Quartile | AA46: =E46 -> Third Quartile | AB46: =H46 -> Second Quartile | AC46: =K46 -> First Quartile | AD46: =N46 -> data for this indicator or category
A47: =iMap_Rank!BE19 -> 1 | B47: =iMap_Rank!BF19 -> Georgia | C47: =iMap_Rank!BG19 -> 3.1 | D47: =iMap_Rank!BH19 -> 1 | E47: =iMap_Rank!BI19 -> Algeria | F47: =iMap_Rank!BJ19 -> 6.6 | G47: =iMap_Rank!BK19 -> 1 | H47: =iMap_Rank!BL19 -> Turkey | I47: =iMap_Rank!BM19 -> 14.3 | J47: =iMap_Rank!BN19 -> 1 | K47: =iMap_Rank!BO19 -> United States | L47: =iMap_Rank!BP19 -> 71.3 | M47: =iMap_Rank!BQ19 -> 0 | N47: =iMap_Rank!BR19 -> 
A48: =iMap_Rank!BE20 -> 1 | B48: =iMap_Rank!BF20 -> Ecuador | C48: =iMap_Rank!BG20 -> 3.1 | D48: =iMap_Rank!BH20 -> 1 | E48: =iMap_Rank!BI20 -> Jordan | F48: =iMap_Rank!BJ20 -> 6.5 | G48: =iMap_Rank!BK20 -> 1 | H48: =iMap_Rank!BL20 -> Iceland | I48: =iMap_Rank!BM20 -> 14.1 | J48: =iMap_Rank!BN20 -> 1 | K48: =iMap_Rank!BO20 -> China | L48: =iMap_Rank!BP20 -> 61.5 | M48: =iMap_Rank!BQ20 -> 0 | N48: =iMap_Rank!BR20 -> 
A49: =iMap_Rank!BE21 -> 1 | B49: =iMap_Rank!BF21 -> Kuwait | C49: =iMap_Rank!BG21 -> 3.1 | D49: =iMap_Rank!BH21 -> 1 | E49: =iMap_Rank!BI21 -> Argentina | F49: =iMap_Rank!BJ21 -> 6.5 | G49: =iMap_Rank!BK21 -> 1 | H49: =iMap_Rank!BL21 -> Portugal | I49: =iMap_Rank!BM21 -> 14.1 | J49: =iMap_Rank!BN21 -> 1 | K49: =iMap_Rank!BO21 -> Japan | L49: =iMap_Rank!BP21 -> 47 | M49: =iMap_Rank!BQ21 -> 0 | N49: =iMap_Rank!BR21 -> 
A50: =iMap_Rank!BE22 -> 1 | B50: =iMap_Rank!BF22 -> Oman | C50: =iMap_Rank!BG22 -> 3 | D50: =iMap_Rank!BH22 -> 1 | E50: =iMap_Rank!BI22 -> Chile | F50: =iMap_Rank!BJ22 -> 6.4 | G50: =iMap_Rank!BK22 -> 1 | H50: =iMap_Rank!BL22 -> Malaysia | I50: =iMap_Rank!BM22 -> 13.9 | J50: =iMap_Rank!BN22 -> 1 | K50: =iMap_Rank!BO22 -> Republic of Korea | L50: =iMap_Rank!BP22 -> 42.5 | M50: =iMap_Rank!BQ22 -> 0 | N50: =iMap_Rank!BR22 -> 
A51: =iMap_Rank!BE23 -> 1 | B51: =iMap_Rank!BF23 -> Ghana | C51: =iMap_Rank!BG23 -> 2.6 | D51: =iMap_Rank!BH23 -> 1 | E51: =iMap_Rank!BI23 -> Romania | F51: =iMap_Rank!BJ23 -> 6.3 | G51: =iMap_Rank!BK23 -> 1 | H51: =iMap_Rank!BL23 -> Slovenia | I51: =iMap_Rank!BM23 -> 13.8 | J51: =iMap_Rank!BN23 -> 1 | K51: =iMap_Rank!BO23 -> Germany | L51: =iMap_Rank!BP23 -> 34.6 | M51: =iMap_Rank!BQ23 -> 0 | N51: =iMap_Rank!BR23 -> 
A52: =iMap_Rank!BE24 -> 1 | B52: =iMap_Rank!BF24 -> Philippines | C52: =iMap_Rank!BG24 -> 2.4 | D52: =iMap_Rank!BH24 -> 1 | E52: =iMap_Rank!BI24 -> Tunisia | F52: =iMap_Rank!BJ24 -> 6 | G52: =iMap_Rank!BK24 -> 1 | H52: =iMap_Rank!BL24 -> Greece | I52: =iMap_Rank!BM24 -> 12.8 | J52: =iMap_Rank!BN24 -> 1 | K52: =iMap_Rank!BO24 -> United Kingdom | L52: =iMap_Rank!BP24 -> 31.8 | M52: =iMap_Rank!BQ24 -> 0 | N52: =iMap_Rank!BR24 -> 
A53: =iMap_Rank!BE25 -> 1 | B53: =iMap_Rank!BF25 -> Azerbaijan | C53: =iMap_Rank!BG25 -> 2.3 | D53: =iMap_Rank!BH25 -> 1 | E53: =iMap_Rank!BI25 -> Cyprus | F53: =iMap_Rank!BJ25 -> 5.9 | G53: =iMap_Rank!BK25 -> 1 | H53: =iMap_Rank!BL25 -> New Zealand | I53: =iMap_Rank!BM25 -> 12.1 | J53: =iMap_Rank!BN25 -> 1 | K53: =iMap_Rank!BO25 -> Switzerland | L53: =iMap_Rank!BP25 -> 28.1 | M53: =iMap_Rank!BQ25 -> 0 | N53: =iMap_Rank!BR25 -> 
A54: =iMap_Rank!BE26 -> 1 | B54: =iMap_Rank!BF26 -> Mauritius | C54: =iMap_Rank!BG26 -> 2.3 | D54: =iMap_Rank!BH26 -> 1 | E54: =iMap_Rank!BI26 -> Ukraine | F54: =iMap_Rank!BJ26 -> 5.6 | G54: =iMap_Rank!BK26 -> 1 | H54: =iMap_Rank!BL26 -> Ireland | I54: =iMap_Rank!BM26 -> 12.1 | J54: =iMap_Rank!BN26 -> 1 | K54: =iMap_Rank!BO26 -> France | L54: =iMap_Rank!BP26 -> 28.1 | M54: =iMap_Rank!BQ26 -> 0 | N54: =iMap_Rank!BR26 -> 
A55: =iMap_Rank!BE27 -> 1 | B55: =iMap_Rank!BF27 -> Nepal | C55: =iMap_Rank!BG27 -> 2.3 | D55: =iMap_Rank!BH27 -> 1 | E55: =iMap_Rank!BI27 -> Lebanon | F55: =iMap_Rank!BJ27 -> 5.4 | G55: =iMap_Rank!BK27 -> 1 | H55: =iMap_Rank!BL27 -> Hungary | I55: =iMap_Rank!BM27 -> 11.7 | J55: =iMap_Rank!BN27 -> 1 | K55: =iMap_Rank!BO27 -> Sweden | L55: =iMap_Rank!BP27 -> 27.3 | M55: =iMap_Rank!BQ27 -> 0 | N55: =iMap_Rank!BR27 -> 
A56: =iMap_Rank!BE28 -> 1 | B56: =iMap_Rank!BF28 -> Benin | C56: =iMap_Rank!BG28 -> 2.2 | D56: =iMap_Rank!BH28 -> 1 | E56: =iMap_Rank!BI28 -> Viet Nam | F56: =iMap_Rank!BJ28 -> 5 | G56: =iMap_Rank!BK28 -> 1 | H56: =iMap_Rank!BL28 -> Poland | I56: =iMap_Rank!BM28 -> 11.3 | J56: =iMap_Rank!BN28 -> 1 | K56: =iMap_Rank!BO28 -> Denmark | L56: =iMap_Rank!BP28 -> 24.7 | M56: =iMap_Rank!BQ28 -> 0 | N56: =iMap_Rank!BR28 -> 
A57: =iMap_Rank!BE29 -> 1 | B57: =iMap_Rank!BF29 -> Mozambique | C57: =iMap_Rank!BG29 -> 2.1 | D57: =iMap_Rank!BH29 -> 1 | E57: =iMap_Rank!BI29 -> Qatar | F57: =iMap_Rank!BJ29 -> 5 | G57: =iMap_Rank!BK29 -> 1 | H57: =iMap_Rank!BL29 -> Iran | I57: =iMap_Rank!BM29 -> 10.4 | J57: =iMap_Rank!BN29 -> 1 | K57: =iMap_Rank!BO29 -> Australia | L57: =iMap_Rank!BP29 -> 24.4 | M57: =iMap_Rank!BQ29 -> 0 | N57: =iMap_Rank!BR29 -> 
A58: =iMap_Rank!BE30 -> 1 | B58: =iMap_Rank!BF30 -> Bosnia and Herzegovina | C58: =iMap_Rank!BG30 -> 2 | D58: =iMap_Rank!BH30 -> 1 | E58: =iMap_Rank!BI30 -> Morocco | F58: =iMap_Rank!BJ30 -> 4.6 | G58: =iMap_Rank!BK30 -> 1 | H58: =iMap_Rank!BL30 -> Thailand | I58: =iMap_Rank!BM30 -> 9.9 | J58: =iMap_Rank!BN30 -> 1 | K58: =iMap_Rank!BO30 -> Canada | L58: =iMap_Rank!BP30 -> 24.3 | M58: =iMap_Rank!BQ30 -> 0 | N58: =iMap_Rank!BR30 -> 
A59: =iMap_Rank!BE31 -> 1 | B59: =iMap_Rank!BF31 -> Sri Lanka | C59: =iMap_Rank!BG31 -> 1.9 | D59: =iMap_Rank!BH31 -> 1 | E59: =iMap_Rank!BI31 -> Colombia | F59: =iMap_Rank!BJ31 -> 4.4 | G59: =iMap_Rank!BK31 -> 1 | H59: =iMap_Rank!BL31 -> South Africa | I59: =iMap_Rank!BM31 -> 9.4 | J59: =iMap_Rank!BN31 -> 1 | K59: =iMap_Rank!BO31 -> Austria | L59: =iMap_Rank!BP31 -> 24 | M59: =iMap_Rank!BQ31 -> 0 | N59: =iMap_Rank!BR31 -> 
A60: =iMap_Rank!BE32 -> 1 | B60: =iMap_Rank!BF32 -> Laos | C60: =iMap_Rank!BG32 -> 1.8 | D60: =iMap_Rank!BH32 -> 1 | E60: =iMap_Rank!BI32 -> Latvia | F60: =iMap_Rank!BJ32 -> 4.2 | G60: =iMap_Rank!BK32 -> 1 | H60: =iMap_Rank!BL32 -> Egypt | I60: =iMap_Rank!BM32 -> 9.3 | J60: =iMap_Rank!BN32 -> 1 | K60: =iMap_Rank!BO32 -> Belgium | L60: =iMap_Rank!BP32 -> 23.2 | M60: =iMap_Rank!BQ32 -> 0 | N60: =iMap_Rank!BR32 -> 
A61: =iMap_Rank!BE33 -> 1 | B61: =iMap_Rank!BF33 -> Rwanda | C61: =iMap_Rank!BG33 -> 1.8 | D61: =iMap_Rank!BH33 -> 1 | E61: =iMap_Rank!BI33 -> Ethiopia | F61: =iMap_Rank!BJ33 -> 4 | G61: =iMap_Rank!BK33 -> 1 | H61: =iMap_Rank!BL33 -> Estonia | I61: =iMap_Rank!BM33 -> 9.3 | J61: =iMap_Rank!BN33 -> 1 | K61: =iMap_Rank!BO33 -> Italy | L61: =iMap_Rank!BP33 -> 23.2 | M61: =iMap_Rank!BQ33 -> 0 | N61: =iMap_Rank!BR33 -> 
A62: =iMap_Rank!BE34 -> 1 | B62: =iMap_Rank!BF34 -> Burundi | C62: =iMap_Rank!BG34 -> 1.7 | D62: =iMap_Rank!BH34 -> 1 | E62: =iMap_Rank!BI34 -> Indonesia | F62: =iMap_Rank!BJ34 -> 3.8 | G62: =iMap_Rank!BK34 -> 1 | H62: =iMap_Rank!BL34 -> Saudi Arabia | I62: =iMap_Rank!BM34 -> 9.2 | J62: =iMap_Rank!BN34 -> 1 | K62: =iMap_Rank!BO34 -> Finland | L62: =iMap_Rank!BP34 -> 21.4 | M62: =iMap_Rank!BQ34 -> 0 | N62: =iMap_Rank!BR34 -> 
A63: =iMap_Rank!BE35 -> 1 | B63: =iMap_Rank!BF35 -> Kazakhstan | C63: =iMap_Rank!BG35 -> 1.7 | D63: =iMap_Rank!BH35 -> 1 | E63: =iMap_Rank!BI35 -> Malta | F63: =iMap_Rank!BJ35 -> 3.8 | G63: =iMap_Rank!BK35 -> 1 | H63: =iMap_Rank!BL35 -> Luxembourg | I63: =iMap_Rank!BM35 -> 8.9 | J63: =iMap_Rank!BN35 -> 1 | K63: =iMap_Rank!BO35 -> Netherlands | L63: =iMap_Rank!BP35 -> 21.1 | M63: =iMap_Rank!BQ35 -> 0 | N63: =iMap_Rank!BR35 -> 
A64: =iMap_Rank!BE36 -> 1 | B64: =iMap_Rank!BF36 -> Peru | C64: =iMap_Rank!BG36 -> 1.7 | D64: =iMap_Rank!BH36 -> 1 | E64: =iMap_Rank!BI36 -> Albania | F64: =iMap_Rank!BJ36 -> 3.7 | G64: =iMap_Rank!BK36 -> 1 | H64: =iMap_Rank!BL36 -> Mexico | I64: =iMap_Rank!BM36 -> 8.8 | J64: =iMap_Rank!BN36 -> 1 | K64: =iMap_Rank!BO36 -> Singapore | L64: =iMap_Rank!BP36 -> 21.1 | M64: =iMap_Rank!BQ36 -> 0 | N64: =iMap_Rank!BR36 -> 
A65: =iMap_Rank!BE37 -> 1 | B65: =iMap_Rank!BF37 -> Bahrain | C65: =iMap_Rank!BG37 -> 1.6 | D65: =iMap_Rank!BH37 -> 1 | E65: =iMap_Rank!BI37 -> Bangladesh | F65: =iMap_Rank!BJ37 -> 3.6 | G65: =iMap_Rank!BK37 -> 1 | H65: =iMap_Rank!BL37 -> UAE | I65: =iMap_Rank!BM37 -> 8.4 | J65: =iMap_Rank!BN37 -> 1 | K65: =iMap_Rank!BO37 -> Spain | L65: =iMap_Rank!BP37 -> 20.9 | M65: =iMap_Rank!BQ37 -> 0 | N65: =iMap_Rank!BR37 -> 
A66: =iMap_Rank!BE38 -> 1 | B66: =iMap_Rank!BF38 -> Mongolia | C66: =iMap_Rank!BG38 -> 1.3 | D66: =iMap_Rank!BH38 -> 1 | E66: =iMap_Rank!BI38 -> Nigeria | F66: =iMap_Rank!BJ38 -> 3.6 | G66: =iMap_Rank!BK38 -> 1 | H66: =iMap_Rank!BL38 -> Serbia | I66: =iMap_Rank!BM38 -> 7.9 | J66: =iMap_Rank!BN38 -> 1 | K66: =iMap_Rank!BO38 -> India | L66: =iMap_Rank!BP38 -> 18.1 | M66: =iMap_Rank!BQ38 -> 0 | N66: =iMap_Rank!BR38 -> 
A67: =iMap_Rank!BE39 -> 1 | B67: =iMap_Rank!BF39 -> El Salvador | C67: =iMap_Rank!BG39 -> 1 | D67: =iMap_Rank!BH39 -> 1 | E67: =iMap_Rank!BI39 -> Dominican Republic | F67: =iMap_Rank!BJ39 -> 3.5 | G67: =iMap_Rank!BK39 -> 1 | H67: =iMap_Rank!BL39 -> Slovakia | I67: =iMap_Rank!BM39 -> 7.8 | J67: =iMap_Rank!BN39 -> 1 | K67: =iMap_Rank!BO39 -> Brazil | L67: =iMap_Rank!BP39 -> 17.5 | M67: =iMap_Rank!BQ39 -> 0 | N67: =iMap_Rank!BR39 -> 
A68: =iMap_Rank!BE40 -> 1 | B68: =iMap_Rank!BF40 -> Panama | C68: =iMap_Rank!BG40 -> 0.6 | D68: =iMap_Rank!BH40 -> 1 | E68: =iMap_Rank!BI40 -> Guyana | F68: =iMap_Rank!BJ40 -> 3.4 | G68: =iMap_Rank!BK40 -> 1 | H68: =iMap_Rank!BL40 -> Croatia | I68: =iMap_Rank!BM40 -> 7.6 | J68: =iMap_Rank!BN40 -> 1 | K68: =iMap_Rank!BO40 -> Hong Kong | L68: =iMap_Rank!BP40 -> 17.4 | M68: =iMap_Rank!BQ40 -> 0 | N68: =iMap_Rank!BR40 -> 
A69: =iMap_Rank!BE41 -> 1 | B69: =iMap_Rank!BF41 -> Myanmar | C69: =iMap_Rank!BG41 -> 0.4 | D69: =iMap_Rank!BH41 -> 1 | E69: =iMap_Rank!BI41 -> Armenia | F69: =iMap_Rank!BJ41 -> 3.2 | G69: =iMap_Rank!BK41 -> 1 | H69: =iMap_Rank!BL41 -> Lithuania | I69: =iMap_Rank!BM41 -> 7.2 | J69: =iMap_Rank!BN41 -> 1 | K69: =iMap_Rank!BO41 -> Norway | L69: =iMap_Rank!BP41 -> 16.9 | M69: =iMap_Rank!BQ41 -> 0 | N69: =iMap_Rank!BR41 -> 
A70: =iMap_Rank!BE42 -> 1 | B70: =iMap_Rank!BF42 -> Madagascar | C70: =iMap_Rank!BG42 -> 0.1 | D70: =iMap_Rank!BH42 -> 1 | E70: =iMap_Rank!BI42 -> Costa Rica | F70: =iMap_Rank!BJ42 -> 3.2 | G70: =iMap_Rank!BK42 -> 1 | H70: =iMap_Rank!BL42 -> Bulgaria | I70: =iMap_Rank!BM42 -> 6.8 | J70: =iMap_Rank!BN42 -> 1 | K70: =iMap_Rank!BO42 -> Russian Federation | L70: =iMap_Rank!BP42 -> 16.7 | M70: =iMap_Rank!BQ42 -> 0 | N70: =iMap_Rank!BR42 -> 
A71: =iMap_Rank!BE43 -> 1 | B71: =iMap_Rank!BF43 -> Honduras | C71: =iMap_Rank!BG43 -> 0.1 | D71: =iMap_Rank!BH43 -> 1 | E71: =iMap_Rank!BI43 -> Uruguay | F71: =iMap_Rank!BJ43 -> 3.2 | G71: =iMap_Rank!BK43 -> 0 | H71: =iMap_Rank!BL43 ->  | I71: =iMap_Rank!BM43 ->  | J71: =iMap_Rank!BN43 -> 1 | K71: =iMap_Rank!BO43 -> Czech Republic | L71: =iMap_Rank!BP43 -> 15.4 | M71: =iMap_Rank!BQ43 -> 0 | N71: =iMap_Rank!BR43 -> 
A72: =iMap_Rank!BE44 -> 0 | B72: =iMap_Rank!BF44 ->  | C72: =iMap_Rank!BG44 ->  | D72: =iMap_Rank!BH44 -> 0 | E72: =iMap_Rank!BI44 ->  | F72: =iMap_Rank!BJ44 ->  | G72: =iMap_Rank!BK44 -> 0 | H72: =iMap_Rank!BL44 ->  | I72: =iMap_Rank!BM44 ->  | J72: =iMap_Rank!BN44 -> 0 | K72: =iMap_Rank!BO44 ->  | L72: =iMap_Rank!BP44 ->  | M72: =iMap_Rank!BQ44 -> 0 | N72: =iMap_Rank!BR44 -> 
A73: =iMap_Rank!BE45 -> 0 | B73: =iMap_Rank!BF45 ->  | C73: =iMap_Rank!BG45 ->  | D73: =iMap_Rank!BH45 -> 0 | E73: =iMap_Rank!BI45 ->  | F73: =iMap_Rank!BJ45 ->  | G73: =iMap_Rank!BK45 -> 0 | H73: =iMap_Rank!BL45 ->  | I73: =iMap_Rank!BM45 ->  | J73: =iMap_Rank!BN45 -> 0 | K73: =iMap_Rank!BO45 ->  | L73: =iMap_Rank!BP45 ->  | M73: =iMap_Rank!BQ45 -> 0 | N73: =iMap_Rank!BR45 -> 
A74: =iMap_Rank!BE46 -> 0 | B74: =iMap_Rank!BF46 ->  | C74: =iMap_Rank!BG46 ->  | D74: =iMap_Rank!BH46 -> 0 | E74: =iMap_Rank!BI46 ->  | F74: =iMap_Rank!BJ46 ->  | G74: =iMap_Rank!BK46 -> 0 | H74: =iMap_Rank!BL46 ->  | I74: =iMap_Rank!BM46 ->  | J74: =iMap_Rank!BN46 -> 0 | K74: =iMap_Rank!BO46 ->  | L74: =iMap_Rank!BP46 ->  | M74: =iMap_Rank!BQ46 -> 0 | N74: =iMap_Rank!BR46 -> 
A75: =iMap_Rank!BE47 -> 0 | B75: =iMap_Rank!BF47 ->  | C75: =iMap_Rank!BG47 ->  | D75: =iMap_Rank!BH47 -> 0 | E75: =iMap_Rank!BI47 ->  | F75: =iMap_Rank!BJ47 ->  | G75: =iMap_Rank!BK47 -> 0 | H75: =iMap_Rank!BL47 ->  | I75: =iMap_Rank!BM47 ->  | J75: =iMap_Rank!BN47 -> 0 | K75: =iMap_Rank!BO47 ->  | L75: =iMap_Rank!BP47 ->  | M75: =iMap_Rank!BQ47 -> 0 | N75: =iMap_Rank!BR47 -> 
A76: =iMap_Rank!BE48 -> 0 | B76: =iMap_Rank!BF48 ->  | C76: =iMap_Rank!BG48 ->  | D76: =iMap_Rank!BH48 -> 0 | E76: =iMap_Rank!BI48 ->  | F76: =iMap_Rank!BJ48 ->  | G76: =iMap_Rank!BK48 -> 0 | H76: =iMap_Rank!BL48 ->  | I76: =iMap_Rank!BM48 ->  | J76: =iMap_Rank!BN48 -> 0 | K76: =iMap_Rank!BO48 ->  | L76: =iMap_Rank!BP48 ->  | M76: =iMap_Rank!BQ48 -> 0 | N76: =iMap_Rank!BR48 -> 
A77: =iMap_Rank!BE49 -> 0 | B77: =iMap_Rank!BF49 ->  | C77: =iMap_Rank!BG49 ->  | D77: =iMap_Rank!BH49 -> 0 | E77: =iMap_Rank!BI49 ->  | F77: =iMap_Rank!BJ49 ->  | G77: =iMap_Rank!BK49 -> 0 | H77: =iMap_Rank!BL49 ->  | I77: =iMap_Rank!BM49 ->  | J77: =iMap_Rank!BN49 -> 0 | K77: =iMap_Rank!BO49 ->  | L77: =iMap_Rank!BP49 ->  | M77: =iMap_Rank!BQ49 -> 0 | N77: =iMap_Rank!BR49 -> 
A78: =iMap_Rank!BE50 -> 0 | B78: =iMap_Rank!BF50 ->  | C78: =iMap_Rank!BG50 ->  | D78: =iMap_Rank!BH50 -> 0 | E78: =iMap_Rank!BI50 ->  | F78: =iMap_Rank!BJ50 ->  | G78: =iMap_Rank!BK50 -> 0 | H78: =iMap_Rank!BL50 ->  | I78: =iMap_Rank!BM50 ->  | J78: =iMap_Rank!BN50 -> 0 | K78: =iMap_Rank!BO50 ->  | L78: =iMap_Rank!BP50 ->  | M78: =iMap_Rank!BQ50 -> 0 | N78: =iMap_Rank!BR50 -> 
A79: =iMap_Rank!BE51 -> 0 | B79: =iMap_Rank!BF51 ->  | C79: =iMap_Rank!BG51 ->  | D79: =iMap_Rank!BH51 -> 0 | E79: =iMap_Rank!BI51 ->  | F79: =iMap_Rank!BJ51 ->  | G79: =iMap_Rank!BK51 -> 0 | H79: =iMap_Rank!BL51 ->  | I79: =iMap_Rank!BM51 ->  | J79: =iMap_Rank!BN51 -> 0 | K79: =iMap_Rank!BO51 ->  | L79: =iMap_Rank!BP51 ->  | M79: =iMap_Rank!BQ51 -> 0 | N79: =iMap_Rank!BR51 -> 
A80: =iMap_Rank!BE52 -> 0 | B80: =iMap_Rank!BF52 ->  | C80: =iMap_Rank!BG52 ->  | D80: =iMap_Rank!BH52 -> 0 | E80: =iMap_Rank!BI52 ->  | F80: =iMap_Rank!BJ52 ->  | G80: =iMap_Rank!BK52 -> 0 | H80: =iMap_Rank!BL52 ->  | I80: =iMap_Rank!BM52 ->  | J80: =iMap_Rank!BN52 -> 0 | K80: =iMap_Rank!BO52 ->  | L80: =iMap_Rank!BP52 ->  | M80: =iMap_Rank!BQ52 -> 0 | N80: =iMap_Rank!BR52 -> 
A81: =iMap_Rank!BE53 -> 0 | B81: =iMap_Rank!BF53 ->  | C81: =iMap_Rank!BG53 ->  | D81: =iMap_Rank!BH53 -> 0 | E81: =iMap_Rank!BI53 ->  | F81: =iMap_Rank!BJ53 ->  | G81: =iMap_Rank!BK53 -> 0 | H81: =iMap_Rank!BL53 ->  | I81: =iMap_Rank!BM53 ->  | J81: =iMap_Rank!BN53 -> 0 | K81: =iMap_Rank!BO53 ->  | L81: =iMap_Rank!BP53 ->  | M81: =iMap_Rank!BQ53 -> 0 | N81: =iMap_Rank!BR53 -> 
A82: =iMap_Rank!BE54 -> 0 | B82: =iMap_Rank!BF54 ->  | C82: =iMap_Rank!BG54 ->  | D82: =iMap_Rank!BH54 -> 0 | E82: =iMap_Rank!BI54 ->  | F82: =iMap_Rank!BJ54 ->  | G82: =iMap_Rank!BK54 -> 0 | H82: =iMap_Rank!BL54 ->  | I82: =iMap_Rank!BM54 ->  | J82: =iMap_Rank!BN54 -> 0 | K82: =iMap_Rank!BO54 ->  | L82: =iMap_Rank!BP54 ->  | M82: =iMap_Rank!BQ54 -> 0 | N82: =iMap_Rank!BR54 -> 
A83: =iMap_Rank!BE55 -> 0 | B83: =iMap_Rank!BF55 ->  | C83: =iMap_Rank!BG55 ->  | D83: =iMap_Rank!BH55 -> 0 | E83: =iMap_Rank!BI55 ->  | F83: =iMap_Rank!BJ55 ->  | G83: =iMap_Rank!BK55 -> 0 | H83: =iMap_Rank!BL55 ->  | I83: =iMap_Rank!BM55 ->  | J83: =iMap_Rank!BN55 -> 0 | K83: =iMap_Rank!BO55 ->  | L83: =iMap_Rank!BP55 ->  | M83: =iMap_Rank!BQ55 -> 0 | N83: =iMap_Rank!BR55 -> 
A84: =iMap_Rank!BE56 -> 0 | B84: =iMap_Rank!BF56 ->  | C84: =iMap_Rank!BG56 ->  | D84: =iMap_Rank!BH56 -> 0 | E84: =iMap_Rank!BI56 ->  | F84: =iMap_Rank!BJ56 ->  | G84: =iMap_Rank!BK56 -> 0 | H84: =iMap_Rank!BL56 ->  | I84: =iMap_Rank!BM56 ->  | J84: =iMap_Rank!BN56 -> 0 | K84: =iMap_Rank!BO56 ->  | L84: =iMap_Rank!BP56 ->  | M84: =iMap_Rank!BQ56 -> 0 | N84: =iMap_Rank!BR56 -> 
A85: =iMap_Rank!BE57 -> 0 | B85: =iMap_Rank!BF57 ->  | C85: =iMap_Rank!BG57 ->  | D85: =iMap_Rank!BH57 -> 0 | E85: =iMap_Rank!BI57 ->  | F85: =iMap_Rank!BJ57 ->  | G85: =iMap_Rank!BK57 -> 0 | H85: =iMap_Rank!BL57 ->  | I85: =iMap_Rank!BM57 ->  | J85: =iMap_Rank!BN57 -> 0 | K85: =iMap_Rank!BO57 ->  | L85: =iMap_Rank!BP57 ->  | M85: =iMap_Rank!BQ57 -> 0 | N85: =iMap_Rank!BR57 -> 
A86: =iMap_Rank!BE58 -> 0 | B86: =iMap_Rank!BF58 ->  | C86: =iMap_Rank!BG58 ->  | D86: =iMap_Rank!BH58 -> 0 | E86: =iMap_Rank!BI58 ->  | F86: =iMap_Rank!BJ58 ->  | G86: =iMap_Rank!BK58 -> 0 | H86: =iMap_Rank!BL58 ->  | I86: =iMap_Rank!BM58 ->  | J86: =iMap_Rank!BN58 -> 0 | K86: =iMap_Rank!BO58 ->  | L86: =iMap_Rank!BP58 ->  | M86: =iMap_Rank!BQ58 -> 0 | N86: =iMap_Rank!BR58 -> 
A87: =iMap_Rank!BE59 -> 0 | B87: =iMap_Rank!BF59 ->  | C87: =iMap_Rank!BG59 ->  | D87: =iMap_Rank!BH59 -> 0 | E87: =iMap_Rank!BI59 ->  | F87: =iMap_Rank!BJ59 ->  | G87: =iMap_Rank!BK59 -> 0 | H87: =iMap_Rank!BL59 ->  | I87: =iMap_Rank!BM59 ->  | J87: =iMap_Rank!BN59 -> 0 | K87: =iMap_Rank!BO59 ->  | L87: =iMap_Rank!BP59 ->  | M87: =iMap_Rank!BQ59 -> 0 | N87: =iMap_Rank!BR59 -> 
A88: =iMap_Rank!BE60 -> 0 | B88: =iMap_Rank!BF60 ->  | C88: =iMap_Rank!BG60 ->  | D88: =iMap_Rank!BH60 -> 0 | E88: =iMap_Rank!BI60 ->  | F88: =iMap_Rank!BJ60 ->  | G88: =iMap_Rank!BK60 -> 0 | H88: =iMap_Rank!BL60 ->  | I88: =iMap_Rank!BM60 ->  | J88: =iMap_Rank!BN60 -> 0 | K88: =iMap_Rank!BO60 ->  | L88: =iMap_Rank!BP60 ->  | M88: =iMap_Rank!BQ60 -> 0 | N88: =iMap_Rank!BR60 -> 
A89: =iMap_Rank!BE61 -> 0 | B89: =iMap_Rank!BF61 ->  | C89: =iMap_Rank!BG61 ->  | D89: =iMap_Rank!BH61 -> 0 | E89: =iMap_Rank!BI61 ->  | F89: =iMap_Rank!BJ61 ->  | G89: =iMap_Rank!BK61 -> 0 | H89: =iMap_Rank!BL61 ->  | I89: =iMap_Rank!BM61 ->  | J89: =iMap_Rank!BN61 -> 0 | K89: =iMap_Rank!BO61 ->  | L89: =iMap_Rank!BP61 ->  | M89: =iMap_Rank!BQ61 -> 0 | N89: =iMap_Rank!BR61 -> 
A90: =iMap_Rank!BE62 -> 0 | B90: =iMap_Rank!BF62 ->  | C90: =iMap_Rank!BG62 ->  | D90: =iMap_Rank!BH62 -> 0 | E90: =iMap_Rank!BI62 ->  | F90: =iMap_Rank!BJ62 ->  | G90: =iMap_Rank!BK62 -> 0 | H90: =iMap_Rank!BL62 ->  | I90: =iMap_Rank!BM62 ->  | J90: =iMap_Rank!BN62 -> 0 | K90: =iMap_Rank!BO62 ->  | L90: =iMap_Rank!BP62 ->  | M90: =iMap_Rank!BQ62 -> 0 | N90: =iMap_Rank!BR62 -> 
A91: =iMap_Rank!BE63 -> 0 | B91: =iMap_Rank!BF63 ->  | C91: =iMap_Rank!BG63 ->  | D91: =iMap_Rank!BH63 -> 0 | E91: =iMap_Rank!BI63 ->  | F91: =iMap_Rank!BJ63 ->  | G91: =iMap_Rank!BK63 -> 0 | H91: =iMap_Rank!BL63 ->  | I91: =iMap_Rank!BM63 ->  | J91: =iMap_Rank!BN63 -> 0 | K91: =iMap_Rank!BO63 ->  | L91: =iMap_Rank!BP63 ->  | M91: =iMap_Rank!BQ63 -> 0 | N91: =iMap_Rank!BR63 -> 
A92: =iMap_Rank!BE64 -> 0 | B92: =iMap_Rank!BF64 ->  | C92: =iMap_Rank!BG64 ->  | D92: =iMap_Rank!BH64 -> 0 | E92: =iMap_Rank!BI64 ->  | F92: =iMap_Rank!BJ64 ->  | G92: =iMap_Rank!BK64 -> 0 | H92: =iMap_Rank!BL64 ->  | I92: =iMap_Rank!BM64 ->  | J92: =iMap_Rank!BN64 -> 0 | K92: =iMap_Rank!BO64 ->  | L92: =iMap_Rank!BP64 ->  | M92: =iMap_Rank!BQ64 -> 0 | N92: =iMap_Rank!BR64 -> 
A93: =iMap_Rank!BE65 -> 0 | B93: =iMap_Rank!BF65 ->  | C93: =iMap_Rank!BG65 ->  | D93: =iMap_Rank!BH65 -> 0 | E93: =iMap_Rank!BI65 ->  | F93: =iMap_Rank!BJ65 ->  | G93: =iMap_Rank!BK65 -> 0 | H93: =iMap_Rank!BL65 ->  | I93: =iMap_Rank!BM65 ->  | J93: =iMap_Rank!BN65 -> 0 | K93: =iMap_Rank!BO65 ->  | L93: =iMap_Rank!BP65 ->  | M93: =iMap_Rank!BQ65 -> 0 | N93: =iMap_Rank!BR65 -> 
A94: =iMap_Rank!BE66 -> 0 | B94: =iMap_Rank!BF66 ->  | C94: =iMap_Rank!BG66 ->  | D94: =iMap_Rank!BH66 -> 0 | E94: =iMap_Rank!BI66 ->  | F94: =iMap_Rank!BJ66 ->  | G94: =iMap_Rank!BK66 -> 0 | H94: =iMap_Rank!BL66 ->  | I94: =iMap_Rank!BM66 ->  | J94: =iMap_Rank!BN66 -> 0 | K94: =iMap_Rank!BO66 ->  | L94: =iMap_Rank!BP66 ->  | M94: =iMap_Rank!BQ66 -> 0 | N94: =iMap_Rank!BR66 -> 
A95: =iMap_Rank!BE67 -> 0 | B95: =iMap_Rank!BF67 ->  | C95: =iMap_Rank!BG67 ->  | D95: =iMap_Rank!BH67 -> 0 | E95: =iMap_Rank!BI67 ->  | F95: =iMap_Rank!BJ67 ->  | G95: =iMap_Rank!BK67 -> 0 | H95: =iMap_Rank!BL67 ->  | I95: =iMap_Rank!BM67 ->  | J95: =iMap_Rank!BN67 -> 0 | K95: =iMap_Rank!BO67 ->  | L95: =iMap_Rank!BP67 ->  | M95: =iMap_Rank!BQ67 -> 0 | N95: =iMap_Rank!BR67 -> 
A96: =iMap_Rank!BE68 -> 0 | B96: =iMap_Rank!BF68 ->  | C96: =iMap_Rank!BG68 ->  | D96: =iMap_Rank!BH68 -> 0 | E96: =iMap_Rank!BI68 ->  | F96: =iMap_Rank!BJ68 ->  | G96: =iMap_Rank!BK68 -> 0 | H96: =iMap_Rank!BL68 ->  | I96: =iMap_Rank!BM68 ->  | J96: =iMap_Rank!BN68 -> 0 | K96: =iMap_Rank!BO68 ->  | L96: =iMap_Rank!BP68 ->  | M96: =iMap_Rank!BQ68 -> 0 | N96: =iMap_Rank!BR68 -> 
A97: =iMap_Rank!BE69 -> 0 | B97: =iMap_Rank!BF69 ->  | C97: =iMap_Rank!BG69 ->  | D97: =iMap_Rank!BH69 -> 0 | E97: =iMap_Rank!BI69 ->  | F97: =iMap_Rank!BJ69 ->  | G97: =iMap_Rank!BK69 -> 0 | H97: =iMap_Rank!BL69 ->  | I97: =iMap_Rank!BM69 ->  | J97: =iMap_Rank!BN69 -> 0 | K97: =iMap_Rank!BO69 ->  | L97: =iMap_Rank!BP69 ->  | M97: =iMap_Rank!BQ69 -> 0 | N97: =iMap_Rank!BR69 -> 
A98: =iMap_Rank!BE70 -> 0 | B98: =iMap_Rank!BF70 ->  | C98: =iMap_Rank!BG70 ->  | D98: =iMap_Rank!BH70 -> 0 | E98: =iMap_Rank!BI70 ->  | F98: =iMap_Rank!BJ70 ->  | G98: =iMap_Rank!BK70 -> 0 | H98: =iMap_Rank!BL70 ->  | I98: =iMap_Rank!BM70 ->  | J98: =iMap_Rank!BN70 -> 0 | K98: =iMap_Rank!BO70 ->  | L98: =iMap_Rank!BP70 ->  | M98: =iMap_Rank!BQ70 -> 0 | N98: =iMap_Rank!BR70 -> 
A99: =iMap_Rank!BE71 -> 0 | B99: =iMap_Rank!BF71 ->  | C99: =iMap_Rank!BG71 ->  | D99: =iMap_Rank!BH71 -> 0 | E99: =iMap_Rank!BI71 ->  | F99: =iMap_Rank!BJ71 ->  | G99: =iMap_Rank!BK71 -> 0 | H99: =iMap_Rank!BL71 ->  | I99: =iMap_Rank!BM71 ->  | J99: =iMap_Rank!BN71 -> 0 | K99: =iMap_Rank!BO71 ->  | L99: =iMap_Rank!BP71 ->  | M99: =iMap_Rank!BQ71 -> 0 | N99: =iMap_Rank!BR71 -> 
A100: =iMap_Rank!BE72 -> 0 | B100: =iMap_Rank!BF72 ->  | C100: =iMap_Rank!BG72 ->  | D100: =iMap_Rank!BH72 -> 0 | E100: =iMap_Rank!BI72 ->  | F100: =iMap_Rank!BJ72 ->  | G100: =iMap_Rank!BK72 -> 0 | H100: =iMap_Rank!BL72 ->  | I100: =iMap_Rank!BM72 ->  | J100: =iMap_Rank!BN72 -> 0 | K100: =iMap_Rank!BO72 ->  | L100: =iMap_Rank!BP72 ->  | M100: =iMap_Rank!BQ72 -> 0 | N100: =iMap_Rank!BR72 -> 
A101: =iMap_Rank!BE73 -> 0 | B101: =iMap_Rank!BF73 ->  | C101: =iMap_Rank!BG73 ->  | D101: =iMap_Rank!BH73 -> 0 | E101: =iMap_Rank!BI73 ->  | F101: =iMap_Rank!BJ73 ->  | G101: =iMap_Rank!BK73 -> 0 | H101: =iMap_Rank!BL73 ->  | I101: =iMap_Rank!BM73 ->  | J101: =iMap_Rank!BN73 -> 0 | K101: =iMap_Rank!BO73 ->  | L101: =iMap_Rank!BP73 ->  | M101: =iMap_Rank!BQ73 -> 0 | N101: =iMap_Rank!BR73 -> 
A102: =iMap_Rank!BE74 -> 0 | B102: =iMap_Rank!BF74 ->  | C102: =iMap_Rank!BG74 ->  | D102: =iMap_Rank!BH74 -> 0 | E102: =iMap_Rank!BI74 ->  | F102: =iMap_Rank!BJ74 ->  | G102: =iMap_Rank!BK74 -> 0 | H102: =iMap_Rank!BL74 ->  | I102: =iMap_Rank!BM74 ->  | J102: =iMap_Rank!BN74 -> 0 | K102: =iMap_Rank!BO74 ->  | L102: =iMap_Rank!BP74 ->  | M102: =iMap_Rank!BQ74 -> 0 | N102: =iMap_Rank!BR74 -> 
A103: =iMap_Rank!BE75 -> 0 | B103: =iMap_Rank!BF75 ->  | C103: =iMap_Rank!BG75 ->  | D103: =iMap_Rank!BH75 -> 0 | E103: =iMap_Rank!BI75 ->  | F103: =iMap_Rank!BJ75 ->  | G103: =iMap_Rank!BK75 -> 0 | H103: =iMap_Rank!BL75 ->  | I103: =iMap_Rank!BM75 ->  | J103: =iMap_Rank!BN75 -> 0 | K103: =iMap_Rank!BO75 ->  | L103: =iMap_Rank!BP75 ->  | M103: =iMap_Rank!BQ75 -> 0 | N103: =iMap_Rank!BR75 -> 
A104: =iMap_Rank!BE76 -> 0 | B104: =iMap_Rank!BF76 ->  | C104: =iMap_Rank!BG76 ->  | D104: =iMap_Rank!BH76 -> 0 | E104: =iMap_Rank!BI76 ->  | F104: =iMap_Rank!BJ76 ->  | G104: =iMap_Rank!BK76 -> 0 | H104: =iMap_Rank!BL76 ->  | I104: =iMap_Rank!BM76 ->  | J104: =iMap_Rank!BN76 -> 0 | K104: =iMap_Rank!BO76 ->  | L104: =iMap_Rank!BP76 ->  | M104: =iMap_Rank!BQ76 -> 0 | N104: =iMap_Rank!BR76 -> 

Sheet Summary
A1: =uxb_works!$B$92 -> Engineering Index: 2019 | AQ1: 1 | AR1: 1 | BA1: 1 | BB1: 1
B8: =uxb_works!D67 -> <no filter> -I- No. of countries in this group: 99
C13: =COUNTIF(C15:C114,"<>0") -> 99 | E13: =iSummary!AL6 -> 1) KNOWLEDGE | P13: =iSummary!BF6 -> 2) LABOUR FORCE | AA13: =iSummary!BZ6 -> 3) ENGINEERING INDUSTRY | AL13: =iSummary!CT6 -> 4) INFRASTRUCTURE | AW13: =iSummary!DN6 -> 5) DIGITAL INFRASTRUCTURE | BH13: =iSummary!EH6 -> 6) SAFETY STANDARDS
C15: =iSummary!AK8 -> 1 | D15: =IF(C15=0,0,IF(H15=-100,5,IF(H15<=H$118,1,IF(H15<=H$119,2,IF(H15<=H$120,3,4))))) -> 4 | F15: =iSummary!AL8 -> 1 | G15: =iSummary!AM8 -> United States | H15: =iSummary!AN8 -> 71.3 | I15: =iSummary!AO8 -> 71.3 | N15: =iSummary!BE8 -> 1 | O15: =IF(N15=0,0,IF(S15=-100,5,IF(S15<=S$118,1,IF(S15<=S$119,2,IF(S15<=S$120,3,4))))) -> 4 | Q15: =iSummary!BF8 -> 1 | R15: =iSummary!BG8 -> Singapore | S15: =iSummary!BH8 -> 75.8 | T15: =iSummary!BI8 -> 75.8 | Y15: =iSummary!BY8 -> 1 | Z15: =IF(Y15=0,0,IF(AD15=-100,5,IF(AD15<=AD$118,1,IF(AD15<=AD$119,2,IF(AD15<=AD$120,3,4))))) -> 4 | AB15: =iSummary!BZ8 -> 1 | AC15: =iSummary!CA8 -> Japan | AD15: =iSummary!CB8 -> 62.2 | AE15: =iSummary!CC8 -> 62.2 | AJ15: =iSummary!CS8 -> 1 | AK15: =IF(AJ15=0,0,IF(AO15=-100,5,IF(AO15<=AO$118,1,IF(AO15<=AO$119,2,IF(AO15<=AO$120,3,4))))) -> 4 | AM15: =iSummary!CT8 -> 1 | AN15: =iSummary!CU8 -> Switzerland | AO15: =iSummary!CV8 -> 100 | AP15: =iSummary!CW8 -> 100 | AU15: =iSummary!DM8 -> 1 | AV15: =IF(AU15=0,0,IF(AZ15=-100,5,IF(AZ15<=AZ$118,1,IF(AZ15<=AZ$119,2,IF(AZ15<=AZ$120,3,4))))) -> 4 | AX15: =iSummary!DN8 -> 1 | AY15: =iSummary!DO8 -> Singapore | AZ15: =iSummary!DP8 -> 89.4 | BA15: =iSummary!DQ8 -> 89.4 | BF15: =iSummary!EG8 -> 1 | BG15: =IF(BF15=0,0,IF(BK15=-100,5,IF(BK15<=BK$118,1,IF(BK15<=BK$119,2,IF(BK15<=BK$120,3,4))))) -> 4 | BI15: =iSummary!EH8 -> 1 | BJ15: =iSummary!EI8 -> Singapore | BK15: =iSummary!EJ8 -> 99.9 | BL15: =iSummary!EK8 -> 99.9
C16: =iSummary!AK9 -> 1 | D16: =IF(C16=0,0,IF(H16=-100,5,IF(H16<=H$118,1,IF(H16<=H$119,2,IF(H16<=H$120,3,4))))) -> 4 | F16: =iSummary!AL9 -> 2 | G16: =iSummary!AM9 -> China | H16: =iSummary!AN9 -> 61.5 | I16: =iSummary!AO9 -> 61.5 | N16: =iSummary!BE9 -> 1 | O16: =IF(N16=0,0,IF(S16=-100,5,IF(S16<=S$118,1,IF(S16<=S$119,2,IF(S16<=S$120,3,4))))) -> 4 | Q16: =iSummary!BF9 -> 2 | R16: =iSummary!BG9 -> Finland | S16: =iSummary!BH9 -> 70.2 | T16: =iSummary!BI9 -> 70.2 | Y16: =iSummary!BY9 -> 1 | Z16: =IF(Y16=0,0,IF(AD16=-100,5,IF(AD16<=AD$118,1,IF(AD16<=AD$119,2,IF(AD16<=AD$120,3,4))))) -> 4 | AB16: =iSummary!BZ9 -> 2 | AC16: =iSummary!CA9 -> Germany | AD16: =iSummary!CB9 -> 58.6 | AE16: =iSummary!CC9 -> 58.6 | AJ16: =iSummary!CS9 -> 1 | AK16: =IF(AJ16=0,0,IF(AO16=-100,5,IF(AO16<=AO$118,1,IF(AO16<=AO$119,2,IF(AO16<=AO$120,3,4))))) -> 4 | AM16: =iSummary!CT9 -> 2 | AN16: =iSummary!CU9 -> Finland | AO16: =iSummary!CV9 -> 98.3 | AP16: =iSummary!CW9 -> 98.3 | AU16: =iSummary!DM9 -> 1 | AV16: =IF(AU16=0,0,IF(AZ16=-100,5,IF(AZ16<=AZ$118,1,IF(AZ16<=AZ$119,2,IF(AZ16<=AZ$120,3,4))))) -> 4 | AX16: =iSummary!DN9 -> 2 | AY16: =iSummary!DO9 -> Denmark | AZ16: =iSummary!DP9 -> 79.2 | BA16: =iSummary!DQ9 -> 79.2 | BF16: =iSummary!EG9 -> 1 | BG16: =IF(BF16=0,0,IF(BK16=-100,5,IF(BK16<=BK$118,1,IF(BK16<=BK$119,2,IF(BK16<=BK$120,3,4))))) -> 4 | BI16: =iSummary!EH9 -> 2 | BJ16: =iSummary!EI9 -> Bahrain | BK16: =iSummary!EJ9 -> 96.6 | BL16: =iSummary!EK9 -> 96.6
C17: =iSummary!AK10 -> 1 | D17: 4 | F17: =iSummary!AL10 -> 3 | G17: =iSummary!AM10 -> Japan | H17: =iSummary!AN10 -> 47 | I17: =iSummary!AO10 -> 47 | N17: =iSummary!BE10 -> 1 | O17: 4 | Q17: =iSummary!BF10 -> 3 | R17: =iSummary!BG10 -> Germany | S17: =iSummary!BH10 -> 65.6 | T17: =iSummary!BI10 -> 65.6 | Y17: =iSummary!BY10 -> 1 | Z17: 4 | AB17: =iSummary!BZ10 -> 3 | AC17: =iSummary!CA10 -> Singapore | AD17: =iSummary!CB10 -> 58.2 | AE17: =iSummary!CC10 -> 58.2 | AJ17: =iSummary!CS10 -> 1 | AK17: 4 | AM17: =iSummary!CT10 -> 3 | AN17: =iSummary!CU10 -> France | AO17: =iSummary!CV10 -> 98.2 | AP17: =iSummary!CW10 -> 98.2 | AU17: =iSummary!DM10 -> 1 | AV17: 4 | AX17: =iSummary!DN10 -> 3 | AY17: =iSummary!DO10 -> Netherlands | AZ17: =iSummary!DP10 -> 76.6 | BA17: =iSummary!DQ10 -> 76.6 | BF17: =iSummary!EG10 -> 1 | BG17: 4 | BI17: =iSummary!EH10 -> 3 | BJ17: =iSummary!EI10 -> Australia | BK17: =iSummary!EJ10 -> 96.4 | BL17: =iSummary!EK10 -> 96.4
C18: =iSummary!AK11 -> 1 | D18: 4 | F18: =iSummary!AL11 -> 4 | G18: =iSummary!AM11 -> Republic of Korea | H18: =iSummary!AN11 -> 42.5 | I18: =iSummary!AO11 -> 42.5 | N18: =iSummary!BE11 -> 1 | O18: 4 | Q18: =iSummary!BF11 -> =4 | R18: =iSummary!BG11 -> Hong Kong | S18: =iSummary!BH11 -> 64.5 | T18: =iSummary!BI11 -> 64.5 | Y18: =iSummary!BY11 -> 1 | Z18: 4 | AB18: =iSummary!BZ11 -> 4 | AC18: =iSummary!CA11 -> China | AD18: =iSummary!CB11 -> 57.2 | AE18: =iSummary!CC11 -> 57.2 | AJ18: =iSummary!CS11 -> 1 | AK18: 4 | AM18: =iSummary!CT11 -> 4 | AN18: =iSummary!CU11 -> Denmark | AO18: =iSummary!CV11 -> 97.5 | AP18: =iSummary!CW11 -> 97.5 | AU18: =iSummary!DM11 -> 1 | AV18: 4 | AX18: =iSummary!DN11 -> 4 | AY18: =iSummary!DO11 -> Switzerland | AZ18: =iSummary!DP11 -> 68.9 | BA18: =iSummary!DQ11 -> 68.9 | BF18: =iSummary!EG11 -> 1 | BG18: 4 | BI18: =iSummary!EH11 -> 4 | BJ18: =iSummary!EI11 -> Ireland | BK18: =iSummary!EJ11 -> 96.2 | BL18: =iSummary!EK11 -> 96.2
C19: =iSummary!AK12 -> 1 | D19: 4 | F19: =iSummary!AL12 -> 5 | G19: =iSummary!AM12 -> Germany | H19: =iSummary!AN12 -> 34.6 | I19: =iSummary!AO12 -> 34.6 | N19: =iSummary!BE12 -> 1 | O19: 4 | Q19: =iSummary!BF12 -> =4 | R19: =iSummary!BG12 -> Portugal | S19: =iSummary!BH12 -> 64.5 | T19: =iSummary!BI12 -> 64.5 | Y19: =iSummary!BY12 -> 1 | Z19: 4 | AB19: =iSummary!BZ12 -> 5 | AC19: =iSummary!CA12 -> Republic of Korea | AD19: =iSummary!CB12 -> 55.4 | AE19: =iSummary!CC12 -> 55.4 | AJ19: =iSummary!CS12 -> 1 | AK19: 4 | AM19: =iSummary!CT12 -> 5 | AN19: =iSummary!CU12 -> Sweden | AO19: =iSummary!CV12 -> 96.9 | AP19: =iSummary!CW12 -> 96.9 | AU19: =iSummary!DM12 -> 1 | AV19: 4 | AX19: =iSummary!DN12 -> 5 | AY19: =iSummary!DO12 -> United States | AZ19: =iSummary!DP12 -> 64.7 | BA19: =iSummary!DQ12 -> 64.7 | BF19: =iSummary!EG12 -> 1 | BG19: 4 | BI19: =iSummary!EH12 -> 5 | BJ19: =iSummary!EI12 -> Netherlands | BK19: =iSummary!EJ12 -> 95.7 | BL19: =iSummary!EK12 -> 95.7
C20: =iSummary!AK13 -> 1 | D20: 4 | F20: =iSummary!AL13 -> 6 | G20: =iSummary!AM13 -> United Kingdom | H20: =iSummary!AN13 -> 31.8 | I20: =iSummary!AO13 -> 31.8 | N20: =iSummary!BE13 -> 1 | O20: 4 | Q20: =iSummary!BF13 -> 6 | R20: =iSummary!BG13 -> Republic of Korea | S20: =iSummary!BH13 -> 64 | T20: =iSummary!BI13 -> 64 | Y20: =iSummary!BY13 -> 1 | Z20: 4 | AB20: =iSummary!BZ13 -> =6 | AC20: =iSummary!CA13 -> Iran | AD20: =iSummary!CB13 -> 49.2 | AE20: =iSummary!CC13 -> 49.2 | AJ20: =iSummary!CS13 -> 1 | AK20: 4 | AM20: =iSummary!CT13 -> 6 | AN20: =iSummary!CU13 -> Singapore | AO20: =iSummary!CV13 -> 94.3 | AP20: =iSummary!CW13 -> 94.3 | AU20: =iSummary!DM13 -> 1 | AV20: 4 | AX20: =iSummary!DN13 -> 6 | AY20: =iSummary!DO13 -> Hong Kong | AZ20: =iSummary!DP13 -> 62.5 | BA20: =iSummary!DQ13 -> 62.5 | BF20: =iSummary!EG13 -> 1 | BG20: 4 | BI20: =iSummary!EH13 -> 6 | BJ20: =iSummary!EI13 -> Iceland | BK20: =iSummary!EJ13 -> 95.6 | BL20: =iSummary!EK13 -> 95.6
C21: =iSummary!AK14 -> 1 | D21: 4 | F21: =iSummary!AL14 -> =7 | G21: =iSummary!AM14 -> France | H21: =iSummary!AN14 -> 28.1 | I21: =iSummary!AO14 -> 28.1 | N21: =iSummary!BE14 -> 1 | O21: 4 | Q21: =iSummary!BF14 -> 7 | R21: =iSummary!BG14 -> China | S21: =iSummary!BH14 -> 63.4 | T21: =iSummary!BI14 -> 63.4 | Y21: =iSummary!BY14 -> 1 | Z21: 4 | AB21: =iSummary!BZ14 -> =6 | AC21: =iSummary!CA14 -> Switzerland | AD21: =iSummary!CB14 -> 49.2 | AE21: =iSummary!CC14 -> 49.2 | AJ21: =iSummary!CS14 -> 1 | AK21: 4 | AM21: =iSummary!CT14 -> 7 | AN21: =iSummary!CU14 -> United States | AO21: =iSummary!CV14 -> 92.6 | AP21: =iSummary!CW14 -> 92.6 | AU21: =iSummary!DM14 -> 1 | AV21: 4 | AX21: =iSummary!DN14 -> 7 | AY21: =iSummary!DO14 -> Luxembourg | AZ21: =iSummary!DP14 -> 62.4 | BA21: =iSummary!DQ14 -> 62.4 | BF21: =iSummary!EG14 -> 1 | BG21: 4 | BI21: =iSummary!EH14 -> 7 | BJ21: =iSummary!EI14 -> Kuwait | BK21: =iSummary!EJ14 -> 95.5 | BL21: =iSummary!EK14 -> 95.5
C22: =iSummary!AK15 -> 1 | D22: 4 | F22: =iSummary!AL15 -> =7 | G22: =iSummary!AM15 -> Switzerland | H22: =iSummary!AN15 -> 28.1 | I22: =iSummary!AO15 -> 28.1 | N22: =iSummary!BE15 -> 1 | O22: 4 | Q22: =iSummary!BF15 -> 8 | R22: =iSummary!BG15 -> Japan | S22: =iSummary!BH15 -> 62.8 | T22: =iSummary!BI15 -> 62.8 | Y22: =iSummary!BY15 -> 1 | Z22: 4 | AB22: =iSummary!BZ15 -> 8 | AC22: =iSummary!CA15 -> United States | AD22: =iSummary!CB15 -> 47.4 | AE22: =iSummary!CC15 -> 47.4 | AJ22: =iSummary!CS15 -> 1 | AK22: 4 | AM22: =iSummary!CT15 -> 8 | AN22: =iSummary!CU15 -> Canada | AO22: =iSummary!CV15 -> 90.7 | AP22: =iSummary!CW15 -> 90.7 | AU22: =iSummary!DM15 -> 1 | AV22: 4 | AX22: =iSummary!DN15 -> 8 | AY22: =iSummary!DO15 -> Germany | AZ22: =iSummary!DP15 -> 59 | BA22: =iSummary!DQ15 -> 59 | BF22: =iSummary!EG15 -> 1 | BG22: 4 | BI22: =iSummary!EH15 -> 8 | BJ22: =iSummary!EI15 -> Honduras | BK22: =iSummary!EJ15 -> 95.3 | BL22: =iSummary!EK15 -> 95.3
C23: =iSummary!AK16 -> 1 | D23: 4 | F23: =iSummary!AL16 -> 9 | G23: =iSummary!AM16 -> Sweden | H23: =iSummary!AN16 -> 27.3 | I23: =iSummary!AO16 -> 27.3 | N23: =iSummary!BE16 -> 1 | O23: 4 | Q23: =iSummary!BF16 -> 9 | R23: =iSummary!BG16 -> Estonia | S23: =iSummary!BH16 -> 62.2 | T23: =iSummary!BI16 -> 62.2 | Y23: =iSummary!BY16 -> 1 | Z23: 4 | AB23: =iSummary!BZ16 -> 9 | AC23: =iSummary!CA16 -> Qatar | AD23: =iSummary!CB16 -> 45.7 | AE23: =iSummary!CC16 -> 45.7 | AJ23: =iSummary!CS16 -> 1 | AK23: 4 | AM23: =iSummary!CT16 -> 9 | AN23: =iSummary!CU16 -> Norway | AO23: =iSummary!CV16 -> 90.6 | AP23: =iSummary!CW16 -> 90.6 | AU23: =iSummary!DM16 -> 1 | AV23: 4 | AX23: =iSummary!DN16 -> 9 | AY23: =iSummary!DO16 -> Republic of Korea | AZ23: =iSummary!DP16 -> 58.1 | BA23: =iSummary!DQ16 -> 58.1 | BF23: =iSummary!EG16 -> 1 | BG23: 4 | BI23: =iSummary!EH16 -> 9 | BJ23: =iSummary!EI16 -> United Kingdom | BK23: =iSummary!EJ16 -> 94.8 | BL23: =iSummary!EK16 -> 94.8
C24: =iSummary!AK17 -> 1 | D24: 4 | F24: =iSummary!AL17 -> 10 | G24: =iSummary!AM17 -> Denmark | H24: =iSummary!AN17 -> 24.7 | I24: =iSummary!AO17 -> 24.7 | N24: =iSummary!BE17 -> 1 | O24: 4 | Q24: =iSummary!BF17 -> =10 | R24: =iSummary!BG17 -> Sweden | S24: =iSummary!BH17 -> 62 | T24: =iSummary!BI17 -> 62 | Y24: =iSummary!BY17 -> 1 | Z24: 4 | AB24: =iSummary!BZ17 -> 10 | AC24: =iSummary!CA17 -> Hungary | AD24: =iSummary!CB17 -> 44.8 | AE24: =iSummary!CC17 -> 44.8 | AJ24: =iSummary!CS17 -> 1 | AK24: 4 | AM24: =iSummary!CT17 -> 10 | AN24: =iSummary!CU17 -> Hong Kong | AO24: =iSummary!CV17 -> 89.1 | AP24: =iSummary!CW17 -> 89.1 | AU24: =iSummary!DM17 -> 1 | AV24: 4 | AX24: =iSummary!DN17 -> 10 | AY24: =iSummary!DO17 -> Iceland | AZ24: =iSummary!DP17 -> 57.4 | BA24: =iSummary!DQ17 -> 57.4 | BF24: =iSummary!EG17 -> 1 | BG24: 4 | BI24: =iSummary!EH17 -> 10 | BJ24: =iSummary!EI17 -> New Zealand | BK24: =iSummary!EJ17 -> 94.6 | BL24: =iSummary!EK17 -> 94.6
C25: =iSummary!AK18 -> 1 | D25: 4 | F25: =iSummary!AL18 -> 11 | G25: =iSummary!AM18 -> Australia | H25: =iSummary!AN18 -> 24.4 | I25: =iSummary!AO18 -> 24.4 | N25: =iSummary!BE18 -> 1 | O25: 4 | Q25: =iSummary!BF18 -> =10 | R25: =iSummary!BG18 -> Viet Nam | S25: =iSummary!BH18 -> 62 | T25: =iSummary!BI18 -> 62 | Y25: =iSummary!BY18 -> 1 | Z25: 4 | AB25: =iSummary!BZ18 -> 11 | AC25: =iSummary!CA18 -> Sweden | AD25: =iSummary!CB18 -> 43.4 | AE25: =iSummary!CC18 -> 43.4 | AJ25: =iSummary!CS18 -> 1 | AK25: 4 | AM25: =iSummary!CT18 -> 11 | AN25: =iSummary!CU18 -> Netherlands | AO25: =iSummary!CV18 -> 88.7 | AP25: =iSummary!CW18 -> 88.7 | AU25: =iSummary!DM18 -> 1 | AV25: 4 | AX25: =iSummary!DN18 -> 11 | AY25: =iSummary!DO18 -> Sweden | AZ25: =iSummary!DP18 -> 55.8 | BA25: =iSummary!DQ18 -> 55.8 | BF25: =iSummary!EG18 -> 1 | BG25: 4 | BI25: =iSummary!EH18 -> 11 | BJ25: =iSummary!EI18 -> Denmark | BK25: =iSummary!EJ18 -> 94.5 | BL25: =iSummary!EK18 -> 94.5
C26: =iSummary!AK19 -> 1 | D26: 4 | F26: =iSummary!AL19 -> 12 | G26: =iSummary!AM19 -> Canada | H26: =iSummary!AN19 -> 24.3 | I26: =iSummary!AO19 -> 24.3 | N26: =iSummary!BE19 -> 1 | O26: 4 | Q26: =iSummary!BF19 -> 12 | R26: =iSummary!BG19 -> Canada | S26: =iSummary!BH19 -> 61.9 | T26: =iSummary!BI19 -> 61.9 | Y26: =iSummary!BY19 -> 1 | Z26: 4 | AB26: =iSummary!BZ19 -> 12 | AC26: =iSummary!CA19 -> Slovenia | AD26: =iSummary!CB19 -> 43.3 | AE26: =iSummary!CC19 -> 43.3 | AJ26: =iSummary!CS19 -> 1 | AK26: 4 | AM26: =iSummary!CT19 -> 12 | AN26: =iSummary!CU19 -> Japan | AO26: =iSummary!CV19 -> 88.6 | AP26: =iSummary!CW19 -> 88.6 | AU26: =iSummary!DM19 -> 1 | AV26: 4 | AX26: =iSummary!DN19 -> 12 | AY26: =iSummary!DO19 -> Estonia | AZ26: =iSummary!DP19 -> 53.5 | BA26: =iSummary!DQ19 -> 53.5 | BF26: =iSummary!EG19 -> 1 | BG26: 4 | BI26: =iSummary!EH19 -> 12 | BJ26: =iSummary!EI19 -> Sweden | BK26: =iSummary!EJ19 -> 94.1 | BL26: =iSummary!EK19 -> 94.1
C27: =iSummary!AK20 -> 1 | D27: 4 | F27: =iSummary!AL20 -> 13 | G27: =iSummary!AM20 -> Austria | H27: =iSummary!AN20 -> 24 | I27: =iSummary!AO20 -> 24 | N27: =iSummary!BE20 -> 1 | O27: 4 | Q27: =iSummary!BF20 -> 13 | R27: =iSummary!BG20 -> Poland | S27: =iSummary!BH20 -> 61.6 | T27: =iSummary!BI20 -> 61.6 | Y27: =iSummary!BY20 -> 1 | Z27: 4 | AB27: =iSummary!BZ20 -> 13 | AC27: =iSummary!CA20 -> France | AD27: =iSummary!CB20 -> 42.3 | AE27: =iSummary!CC20 -> 42.3 | AJ27: =iSummary!CS20 -> 1 | AK27: 4 | AM27: =iSummary!CT20 -> 13 | AN27: =iSummary!CU20 -> Austria | AO27: =iSummary!CV20 -> 87.6 | AP27: =iSummary!CW20 -> 87.6 | AU27: =iSummary!DM20 -> 1 | AV27: 4 | AX27: =iSummary!DN20 -> 13 | AY27: =iSummary!DO20 -> Norway | AZ27: =iSummary!DP20 -> 53.1 | BA27: =iSummary!DQ20 -> 53.1 | BF27: =iSummary!EG20 -> 1 | BG27: 4 | BI27: =iSummary!EH20 -> 13 | BJ27: =iSummary!EI20 -> Malta | BK27: =iSummary!EJ20 -> 93.6 | BL27: =iSummary!EK20 -> 93.6
C28: =iSummary!AK21 -> 1 | D28: 4 | F28: =iSummary!AL21 -> =14 | G28: =iSummary!AM21 -> Belgium | H28: =iSummary!AN21 -> 23.2 | I28: =iSummary!AO21 -> 23.2 | N28: =iSummary!BE21 -> 1 | O28: 4 | Q28: =iSummary!BF21 -> 14 | R28: =iSummary!BG21 -> Russian Federation | S28: =iSummary!BH21 -> 61 | T28: =iSummary!BI21 -> 61 | Y28: =iSummary!BY21 -> 1 | Z28: 4 | AB28: =iSummary!BZ21 -> 14 | AC28: =iSummary!CA21 -> Czech Republic | AD28: =iSummary!CB21 -> 42.2 | AE28: =iSummary!CC21 -> 42.2 | AJ28: =iSummary!CS21 -> 1 | AK28: 4 | AM28: =iSummary!CT21 -> 14 | AN28: =iSummary!CU21 -> Germany | AO28: =iSummary!CV21 -> 87.2 | AP28: =iSummary!CW21 -> 87.2 | AU28: =iSummary!DM21 -> 1 | AV28: 4 | AX28: =iSummary!DN21 -> 14 | AY28: =iSummary!DO21 -> Ireland | AZ28: =iSummary!DP21 -> 52.8 | BA28: =iSummary!DQ21 -> 52.8 | BF28: =iSummary!EG21 -> 1 | BG28: 4 | BI28: =iSummary!EH21 -> 14 | BJ28: =iSummary!EI21 -> Spain | BK28: =iSummary!EJ21 -> 93.5 | BL28: =iSummary!EK21 -> 93.5
C29: =iSummary!AK22 -> 1 | D29: 4 | F29: =iSummary!AL22 -> =14 | G29: =iSummary!AM22 -> Italy | H29: =iSummary!AN22 -> 23.2 | I29: =iSummary!AO22 -> 23.2 | N29: =iSummary!BE22 -> 1 | O29: 4 | Q29: =iSummary!BF22 -> 15 | R29: =iSummary!BG22 -> Switzerland | S29: =iSummary!BH22 -> 59.7 | T29: =iSummary!BI22 -> 59.7 | Y29: =iSummary!BY22 -> 1 | Z29: 4 | AB29: =iSummary!BZ22 -> 15 | AC29: =iSummary!CA22 -> Viet Nam | AD29: =iSummary!CB22 -> 41.3 | AE29: =iSummary!CC22 -> 41.3 | AJ29: =iSummary!CS22 -> 1 | AK29: 4 | AM29: =iSummary!CT22 -> 15 | AN29: =iSummary!CU22 -> Belgium | AO29: =iSummary!CV22 -> 84.6 | AP29: =iSummary!CW22 -> 84.6 | AU29: =iSummary!DM22 -> 1 | AV29: 4 | AX29: =iSummary!DN22 -> 15 | AY29: =iSummary!DO22 -> France | AZ29: =iSummary!DP22 -> 51.7 | BA29: =iSummary!DQ22 -> 51.7 | BF29: =iSummary!EG22 -> 1 | BG29: 4 | BI29: =iSummary!EH22 -> 15 | BJ29: =iSummary!EI22 -> Canada | BK29: =iSummary!EJ22 -> 93.1 | BL29: =iSummary!EK22 -> 93.1
C30: =iSummary!AK23 -> 1 | D30: 4 | F30: =iSummary!AL23 -> 16 | G30: =iSummary!AM23 -> Finland | H30: =iSummary!AN23 -> 21.4 | I30: =iSummary!AO23 -> 21.4 | N30: =iSummary!BE23 -> 1 | O30: 4 | Q30: =iSummary!BF23 -> 16 | R30: =iSummary!BG23 -> Malaysia | S30: =iSummary!BH23 -> 59.1 | T30: =iSummary!BI23 -> 59.1 | Y30: =iSummary!BY23 -> 1 | Z30: 4 | AB30: =iSummary!BZ23 -> 16 | AC30: =iSummary!CA23 -> Finland | AD30: =iSummary!CB23 -> 41.2 | AE30: =iSummary!CC23 -> 41.2 | AJ30: =iSummary!CS23 -> 1 | AK30: 4 | AM30: =iSummary!CT23 -> 16 | AN30: =iSummary!CU23 -> Australia | AO30: =iSummary!CV23 -> 84.1 | AP30: =iSummary!CW23 -> 84.1 | AU30: =iSummary!DM23 -> 1 | AV30: 4 | AX30: =iSummary!DN23 -> 16 | AY30: =iSummary!DO23 -> Malta | AZ30: =iSummary!DP23 -> 51.1 | BA30: =iSummary!DQ23 -> 51.1 | BF30: =iSummary!EG23 -> 1 | BG30: 4 | BI30: =iSummary!EH23 -> =16 | BJ30: =iSummary!EI23 -> Luxembourg | BK30: =iSummary!EJ23 -> 93 | BL30: =iSummary!EK23 -> 93
C31: =iSummary!AK24 -> 1 | D31: 4 | F31: =iSummary!AL24 -> =17 | G31: =iSummary!AM24 -> Netherlands | H31: =iSummary!AN24 -> 21.1 | I31: =iSummary!AO24 -> 21.1 | N31: =iSummary!BE24 -> 1 | O31: 3 | Q31: =iSummary!BF24 -> 17 | R31: =iSummary!BG24 -> Austria | S31: =iSummary!BH24 -> 58.7 | T31: =iSummary!BI24 -> 58.7 | Y31: =iSummary!BY24 -> 1 | Z31: 4 | AB31: =iSummary!BZ24 -> 17 | AC31: =iSummary!CA24 -> Netherlands | AD31: =iSummary!CB24 -> 41 | AE31: =iSummary!CC24 -> 41 | AJ31: =iSummary!CS24 -> 1 | AK31: 4 | AM31: =iSummary!CT24 -> 17 | AN31: =iSummary!CU24 -> Spain | AO31: =iSummary!CV24 -> 81.6 | AP31: =iSummary!CW24 -> 81.6 | AU31: =iSummary!DM24 -> 1 | AV31: 4 | AX31: =iSummary!DN24 -> 17 | AY31: =iSummary!DO24 -> Canada | AZ31: =iSummary!DP24 -> 51 | BA31: =iSummary!DQ24 -> 51 | BF31: =iSummary!EG24 -> 1 | BG31: 4 | BI31: =iSummary!EH24 -> =16 | BJ31: =iSummary!EI24 -> Norway | BK31: =iSummary!EJ24 -> 93 | BL31: =iSummary!EK24 -> 93
C32: =iSummary!AK25 -> 1 | D32: 4 | F32: =iSummary!AL25 -> =17 | G32: =iSummary!AM25 -> Singapore | H32: =iSummary!AN25 -> 21.1 | I32: =iSummary!AO25 -> 21.1 | N32: =iSummary!BE25 -> 1 | O32: 3 | Q32: =iSummary!BF25 -> 18 | R32: =iSummary!BG25 -> Norway | S32: =iSummary!BH25 -> 58 | T32: =iSummary!BI25 -> 58 | Y32: =iSummary!BY25 -> 1 | Z32: 4 | AB32: =iSummary!BZ25 -> 18 | AC32: =iSummary!CA25 -> Ireland | AD32: =iSummary!CB25 -> 40.6 | AE32: =iSummary!CC25 -> 40.6 | AJ32: =iSummary!CS25 -> 1 | AK32: 4 | AM32: =iSummary!CT25 -> 18 | AN32: =iSummary!CU25 -> Ireland | AO32: =iSummary!CV25 -> 78.1 | AP32: =iSummary!CW25 -> 78.1 | AU32: =iSummary!DM25 -> 1 | AV32: 4 | AX32: =iSummary!DN25 -> 18 | AY32: =iSummary!DO25 -> Japan | AZ32: =iSummary!DP25 -> 50.4 | BA32: =iSummary!DQ25 -> 50.4 | BF32: =iSummary!EG25 -> 1 | BG32: 4 | BI32: =iSummary!EH25 -> =16 | BJ32: =iSummary!EI25 -> Slovenia | BK32: =iSummary!EJ25 -> 93 | BL32: =iSummary!EK25 -> 93
C33: =iSummary!AK26 -> 1 | D33: 4 | F33: =iSummary!AL26 -> 19 | G33: =iSummary!AM26 -> Spain | H33: =iSummary!AN26 -> 20.9 | I33: =iSummary!AO26 -> 20.9 | N33: =iSummary!BE26 -> 1 | O33: 3 | Q33: =iSummary!BF26 -> 19 | R33: =iSummary!BG26 -> Iceland | S33: =iSummary!BH26 -> 57.4 | T33: =iSummary!BI26 -> 57.4 | Y33: =iSummary!BY26 -> 1 | Z33: 4 | AB33: =iSummary!BZ26 -> 19 | AC33: =iSummary!CA26 -> Mexico | AD33: =iSummary!CB26 -> 40.1 | AE33: =iSummary!CC26 -> 40.1 | AJ33: =iSummary!CS26 -> 1 | AK33: 4 | AM33: =iSummary!CT26 -> 19 | AN33: =iSummary!CU26 -> Luxembourg | AO33: =iSummary!CV26 -> 77.8 | AP33: =iSummary!CW26 -> 77.8 | AU33: =iSummary!DM26 -> 1 | AV33: 4 | AX33: =iSummary!DN26 -> 19 | AY33: =iSummary!DO26 -> Spain | AZ33: =iSummary!DP26 -> 50 | BA33: =iSummary!DQ26 -> 50 | BF33: =iSummary!EG26 -> 1 | BG33: 4 | BI33: =iSummary!EH26 -> =19 | BJ33: =iSummary!EI26 -> Colombia | BK33: =iSummary!EJ26 -> 92.9 | BL33: =iSummary!EK26 -> 92.9
C34: =iSummary!AK27 -> 1 | D34: 4 | F34: =iSummary!AL27 -> 20 | G34: =iSummary!AM27 -> India | H34: =iSummary!AN27 -> 18.1 | I34: =iSummary!AO27 -> 18.1 | N34: =iSummary!BE27 -> 1 | O34: 3 | Q34: =iSummary!BF27 -> 20 | R34: =iSummary!BG27 -> Greece | S34: =iSummary!BH27 -> 57 | T34: =iSummary!BI27 -> 57 | Y34: =iSummary!BY27 -> 1 | Z34: 4 | AB34: =iSummary!BZ27 -> 20 | AC34: =iSummary!CA27 -> United Kingdom | AD34: =iSummary!CB27 -> 39.9 | AE34: =iSummary!CC27 -> 39.9 | AJ34: =iSummary!CS27 -> 1 | AK34: 4 | AM34: =iSummary!CT27 -> 20 | AN34: =iSummary!CU27 -> Iceland | AO34: =iSummary!CV27 -> 77.7 | AP34: =iSummary!CW27 -> 77.7 | AU34: =iSummary!DM27 -> 1 | AV34: 4 | AX34: =iSummary!DN27 -> 20 | AY34: =iSummary!DO27 -> Finland | AZ34: =iSummary!DP27 -> 49.2 | BA34: =iSummary!DQ27 -> 49.2 | BF34: =iSummary!EG27 -> 1 | BG34: 4 | BI34: =iSummary!EH27 -> =19 | BJ34: =iSummary!EI27 -> Mauritius | BK34: =iSummary!EJ27 -> 92.9 | BL34: =iSummary!EK27 -> 92.9
C35: =iSummary!AK28 -> 1 | D35: 4 | F35: =iSummary!AL28 -> 21 | G35: =iSummary!AM28 -> Brazil | H35: =iSummary!AN28 -> 17.5 | I35: =iSummary!AO28 -> 17.5 | N35: =iSummary!BE28 -> 1 | O35: 3 | Q35: =iSummary!BF28 -> 21 | R35: =iSummary!BG28 -> France | S35: =iSummary!BH28 -> 56.6 | T35: =iSummary!BI28 -> 56.6 | Y35: =iSummary!BY28 -> 1 | Z35: 4 | AB35: =iSummary!BZ28 -> 21 | AC35: =iSummary!CA28 -> Austria | AD35: =iSummary!CB28 -> 39.2 | AE35: =iSummary!CC28 -> 39.2 | AJ35: =iSummary!CS28 -> 1 | AK35: 4 | AM35: =iSummary!CT28 -> 21 | AN35: =iSummary!CU28 -> Republic of Korea | AO35: =iSummary!CV28 -> 77 | AP35: =iSummary!CW28 -> 77 | AU35: =iSummary!DM28 -> 1 | AV35: 4 | AX35: =iSummary!DN28 -> 21 | AY35: =iSummary!DO28 -> Hungary | AZ35: =iSummary!DP28 -> 49.1 | BA35: =iSummary!DQ28 -> 49.1 | BF35: =iSummary!EG28 -> 1 | BG35: 4 | BI35: =iSummary!EH28 -> 21 | BJ35: =iSummary!EI28 -> Hungary | BK35: =iSummary!EJ28 -> 92.8 | BL35: =iSummary!EK28 -> 92.8
C36: =iSummary!AK29 -> 1 | D36: 4 | F36: =iSummary!AL29 -> 22 | G36: =iSummary!AM29 -> Hong Kong | H36: =iSummary!AN29 -> 17.4 | I36: =iSummary!AO29 -> 17.4 | N36: =iSummary!BE29 -> 1 | O36: 3 | Q36: =iSummary!BF29 -> 22 | R36: =iSummary!BG29 -> Italy | S36: =iSummary!BH29 -> 56.5 | T36: =iSummary!BI29 -> 56.5 | Y36: =iSummary!BY29 -> 1 | Z36: 4 | AB36: =iSummary!BZ29 -> 22 | AC36: =iSummary!CA29 -> Hong Kong | AD36: =iSummary!CB29 -> 38.6 | AE36: =iSummary!CC29 -> 38.6 | AJ36: =iSummary!CS29 -> 1 | AK36: 4 | AM36: =iSummary!CT29 -> 22 | AN36: =iSummary!CU29 -> Estonia | AO36: =iSummary!CV29 -> 76.2 | AP36: =iSummary!CW29 -> 76.2 | AU36: =iSummary!DM29 -> 1 | AV36: 4 | AX36: =iSummary!DN29 -> 22 | AY36: =iSummary!DO29 -> Lithuania | AZ36: =iSummary!DP29 -> 48.6 | BA36: =iSummary!DQ29 -> 48.6 | BF36: =iSummary!EG29 -> 1 | BG36: 4 | BI36: =iSummary!EH29 -> 22 | BJ36: =iSummary!EI29 -> Germany | BK36: =iSummary!EJ29 -> 92.5 | BL36: =iSummary!EK29 -> 92.5
C37: =iSummary!AK30 -> 1 | D37: 4 | F37: =iSummary!AL30 -> 23 | G37: =iSummary!AM30 -> Norway | H37: =iSummary!AN30 -> 16.9 | I37: =iSummary!AO30 -> 16.9 | N37: =iSummary!BE30 -> 1 | O37: 3 | Q37: =iSummary!BF30 -> 23 | R37: =iSummary!BG30 -> Slovenia | S37: =iSummary!BH30 -> 56.2 | T37: =iSummary!BI30 -> 56.2 | Y37: =iSummary!BY30 -> 1 | Z37: 4 | AB37: =iSummary!BZ30 -> =23 | AC37: =iSummary!CA30 -> India | AD37: =iSummary!CB30 -> 38.5 | AE37: =iSummary!CC30 -> 38.5 | AJ37: =iSummary!CS30 -> 1 | AK37: 4 | AM37: =iSummary!CT30 -> 23 | AN37: =iSummary!CU30 -> Oman | AO37: =iSummary!CV30 -> 75.6 | AP37: =iSummary!CW30 -> 75.6 | AU37: =iSummary!DM30 -> 1 | AV37: 4 | AX37: =iSummary!DN30 -> =23 | AY37: =iSummary!DO30 -> Portugal | AZ37: =iSummary!DP30 -> 47.5 | BA37: =iSummary!DQ30 -> 47.5 | BF37: =iSummary!EG30 -> 1 | BG37: 3 | BI37: =iSummary!EH30 -> =23 | BJ37: =iSummary!EI30 -> Croatia | BK37: =iSummary!EJ30 -> 92.2 | BL37: =iSummary!EK30 -> 92.2
C38: =iSummary!AK31 -> 1 | D38: 4 | F38: =iSummary!AL31 -> 24 | G38: =iSummary!AM31 -> Russian Federation | H38: =iSummary!AN31 -> 16.7 | I38: =iSummary!AO31 -> 16.7 | N38: =iSummary!BE31 -> 1 | O38: 3 | Q38: =iSummary!BF31 -> =24 | R38: =iSummary!BG31 -> Denmark | S38: =iSummary!BH31 -> 55.8 | T38: =iSummary!BI31 -> 55.8 | Y38: =iSummary!BY31 -> 1 | Z38: 4 | AB38: =iSummary!BZ31 -> =23 | AC38: =iSummary!CA31 -> Slovakia | AD38: =iSummary!CB31 -> 38.5 | AE38: =iSummary!CC31 -> 38.5 | AJ38: =iSummary!CS31 -> 1 | AK38: 3 | AM38: =iSummary!CT31 -> =24 | AN38: =iSummary!CU31 -> Panama | AO38: =iSummary!CV31 -> 75 | AP38: =iSummary!CW31 -> 75 | AU38: =iSummary!DM31 -> 1 | AV38: 4 | AX38: =iSummary!DN31 -> =23 | AY38: =iSummary!DO31 -> Romania | AZ38: =iSummary!DP31 -> 47.5 | BA38: =iSummary!DQ31 -> 47.5 | BF38: =iSummary!EG31 -> 1 | BG38: 3 | BI38: =iSummary!EH31 -> =23 | BJ38: =iSummary!EI31 -> Greece | BK38: =iSummary!EJ31 -> 92.2 | BL38: =iSummary!EK31 -> 92.2
C39: =iSummary!AK32 -> 1 | D39: 4 | F39: =iSummary!AL32 -> 25 | G39: =iSummary!AM32 -> Czech Republic | H39: =iSummary!AN32 -> 15.4 | I39: =iSummary!AO32 -> 15.4 | N39: =iSummary!BE32 -> 1 | O39: 3 | Q39: =iSummary!BF32 -> =24 | R39: =iSummary!BG32 -> Netherlands | S39: =iSummary!BH32 -> 55.8 | T39: =iSummary!BI32 -> 55.8 | Y39: =iSummary!BY32 -> 1 | Z39: 4 | AB39: =iSummary!BZ32 -> 25 | AC39: =iSummary!CA32 -> Philippines | AD39: =iSummary!CB32 -> 37.6 | AE39: =iSummary!CC32 -> 37.6 | AJ39: =iSummary!CS32 -> 1 | AK39: 3 | AM39: =iSummary!CT32 -> =24 | AN39: =iSummary!CU32 -> United Kingdom | AO39: =iSummary!CV32 -> 75 | AP39: =iSummary!CW32 -> 75 | AU39: =iSummary!DM32 -> 1 | AV39: 4 | AX39: =iSummary!DN32 -> 25 | AY39: =iSummary!DO32 -> New Zealand | AZ39: =iSummary!DP32 -> 45.2 | BA39: =iSummary!DQ32 -> 45.2 | BF39: =iSummary!EG32 -> 1 | BG39: 3 | BI39: =iSummary!EH32 -> 25 | BJ39: =iSummary!EI32 -> Costa Rica | BK39: =iSummary!EJ32 -> 92.1 | BL39: =iSummary!EK32 -> 92.1
C40: =iSummary!AK33 -> 1 | D40: 3 | F40: =iSummary!AL33 -> 26 | G40: =iSummary!AM33 -> Turkey | H40: =iSummary!AN33 -> 14.3 | I40: =iSummary!AO33 -> 14.3 | N40: =iSummary!BE33 -> 1 | O40: 3 | Q40: =iSummary!BF33 -> 26 | R40: =iSummary!BG33 -> Spain | S40: =iSummary!BH33 -> 55.3 | T40: =iSummary!BI33 -> 55.3 | Y40: =iSummary!BY33 -> 1 | Z40: 3 | AB40: =iSummary!BZ33 -> 26 | AC40: =iSummary!CA33 -> Denmark | AD40: =iSummary!CB33 -> 37.4 | AE40: =iSummary!CC33 -> 37.4 | AJ40: =iSummary!CS33 -> 1 | AK40: 3 | AM40: =iSummary!CT33 -> 26 | AN40: =iSummary!CU33 -> New Zealand | AO40: =iSummary!CV33 -> 74.3 | AP40: =iSummary!CW33 -> 74.3 | AU40: =iSummary!DM33 -> 1 | AV40: 3 | AX40: =iSummary!DN33 -> =26 | AY40: =iSummary!DO33 -> Czech Republic | AZ40: =iSummary!DP33 -> 44.9 | BA40: =iSummary!DQ33 -> 44.9 | BF40: =iSummary!EG33 -> 1 | BG40: 3 | BI40: =iSummary!EH33 -> 26 | BJ40: =iSummary!EI33 -> Portugal | BK40: =iSummary!EJ33 -> 91.9 | BL40: =iSummary!EK33 -> 91.9
C41: =iSummary!AK34 -> 1 | D41: 3 | F41: =iSummary!AL34 -> =27 | G41: =iSummary!AM34 -> Iceland | H41: =iSummary!AN34 -> 14.1 | I41: =iSummary!AO34 -> 14.1 | N41: =iSummary!BE34 -> 1 | O41: 3 | Q41: =iSummary!BF34 -> 27 | R41: =iSummary!BG34 -> New Zealand | S41: =iSummary!BH34 -> 55.1 | T41: =iSummary!BI34 -> 55.1 | Y41: =iSummary!BY34 -> 1 | Z41: 3 | AB41: =iSummary!BZ34 -> 27 | AC41: =iSummary!CA34 -> Morocco | AD41: =iSummary!CB34 -> 36.6 | AE41: =iSummary!CC34 -> 36.6 | AJ41: =iSummary!CS34 -> 1 | AK41: 3 | AM41: =iSummary!CT34 -> 27 | AN41: =iSummary!CU34 -> Slovenia | AO41: =iSummary!CV34 -> 73.8 | AP41: =iSummary!CW34 -> 73.8 | AU41: =iSummary!DM34 -> 1 | AV41: 3 | AX41: =iSummary!DN34 -> =26 | AY41: =iSummary!DO34 -> United Kingdom | AZ41: =iSummary!DP34 -> 44.9 | BA41: =iSummary!DQ34 -> 44.9 | BF41: =iSummary!EG34 -> 1 | BG41: 3 | BI41: =iSummary!EH34 -> 27 | BJ41: =iSummary!EI34 -> Italy | BK41: =iSummary!EJ34 -> 91.8 | BL41: =iSummary!EK34 -> 91.8
C42: =iSummary!AK35 -> 1 | D42: 3 | F42: =iSummary!AL35 -> =27 | G42: =iSummary!AM35 -> Portugal | H42: =iSummary!AN35 -> 14.1 | I42: =iSummary!AO35 -> 14.1 | N42: =iSummary!BE35 -> 1 | O42: 3 | Q42: =iSummary!BF35 -> 28 | R42: =iSummary!BG35 -> Belgium | S42: =iSummary!BH35 -> 55 | T42: =iSummary!BI35 -> 55 | Y42: =iSummary!BY35 -> 1 | Z42: 3 | AB42: =iSummary!BZ35 -> 28 | AC42: =iSummary!CA35 -> Norway | AD42: =iSummary!CB35 -> 36.5 | AE42: =iSummary!CC35 -> 36.5 | AJ42: =iSummary!CS35 -> 1 | AK42: 3 | AM42: =iSummary!CT35 -> 28 | AN42: =iSummary!CU35 -> Malta | AO42: =iSummary!CV35 -> 73.4 | AP42: =iSummary!CW35 -> 73.4 | AU42: =iSummary!DM35 -> 1 | AV42: 3 | AX42: =iSummary!DN35 -> 28 | AY42: =iSummary!DO35 -> Slovenia | AZ42: =iSummary!DP35 -> 44.6 | BA42: =iSummary!DQ35 -> 44.6 | BF42: =iSummary!EG35 -> 1 | BG42: 3 | BI42: =iSummary!EH35 -> 28 | BJ42: =iSummary!EI35 -> Switzerland | BK42: =iSummary!EJ35 -> 91.7 | BL42: =iSummary!EK35 -> 91.7
C43: =iSummary!AK36 -> 1 | D43: 3 | F43: =iSummary!AL36 -> 29 | G43: =iSummary!AM36 -> Malaysia | H43: =iSummary!AN36 -> 13.9 | I43: =iSummary!AO36 -> 13.9 | N43: =iSummary!BE36 -> 1 | O43: 3 | Q43: =iSummary!BF36 -> 29 | R43: =iSummary!BG36 -> United Kingdom | S43: =iSummary!BH36 -> 54.6 | T43: =iSummary!BI36 -> 54.6 | Y43: =iSummary!BY36 -> 1 | Z43: 3 | AB43: =iSummary!BZ36 -> 29 | AC43: =iSummary!CA36 -> Italy | AD43: =iSummary!CB36 -> 36.2 | AE43: =iSummary!CC36 -> 36.2 | AJ43: =iSummary!CS36 -> 1 | AK43: 3 | AM43: =iSummary!CT36 -> 29 | AN43: =iSummary!CU36 -> Uruguay | AO43: =iSummary!CV36 -> 71.7 | AP43: =iSummary!CW36 -> 71.7 | AU43: =iSummary!DM36 -> 1 | AV43: 3 | AX43: =iSummary!DN36 -> =29 | AY43: =iSummary!DO36 -> Austria | AZ43: =iSummary!DP36 -> 44 | BA43: =iSummary!DQ36 -> 44 | BF43: =iSummary!EG36 -> 1 | BG43: 3 | BI43: =iSummary!EH36 -> 29 | BJ43: =iSummary!EI36 -> Tunisia | BK43: =iSummary!EJ36 -> 91.6 | BL43: =iSummary!EK36 -> 91.6
C44: =iSummary!AK37 -> 1 | D44: 3 | F44: =iSummary!AL37 -> 30 | G44: =iSummary!AM37 -> Slovenia | H44: =iSummary!AN37 -> 13.8 | I44: =iSummary!AO37 -> 13.8 | N44: =iSummary!BE37 -> 1 | O44: 3 | Q44: =iSummary!BF37 -> 30 | R44: =iSummary!BG37 -> United States | S44: =iSummary!BH37 -> 53.7 | T44: =iSummary!BI37 -> 53.7 | Y44: =iSummary!BY37 -> 1 | Z44: 3 | AB44: =iSummary!BZ37 -> 30 | AC44: =iSummary!CA37 -> Belgium | AD44: =iSummary!CB37 -> 35.9 | AE44: =iSummary!CC37 -> 35.9 | AJ44: =iSummary!CS37 -> 1 | AK44: 3 | AM44: =iSummary!CT37 -> 30 | AN44: =iSummary!CU37 -> Chile | AO44: =iSummary!CV37 -> 69.2 | AP44: =iSummary!CW37 -> 69.2 | AU44: =iSummary!DM37 -> 1 | AV44: 3 | AX44: =iSummary!DN37 -> =29 | AY44: =iSummary!DO37 -> Belgium | AZ44: =iSummary!DP37 -> 44 | BA44: =iSummary!DQ37 -> 44 | BF44: =iSummary!EG37 -> 1 | BG44: 3 | BI44: =iSummary!EH37 -> 30 | BJ44: =iSummary!EI37 -> Cyprus | BK44: =iSummary!EJ37 -> 91.3 | BL44: =iSummary!EK37 -> 91.3
C45: =iSummary!AK38 -> 1 | D45: 3 | F45: =iSummary!AL38 -> 31 | G45: =iSummary!AM38 -> Greece | H45: =iSummary!AN38 -> 12.8 | I45: =iSummary!AO38 -> 12.8 | N45: =iSummary!BE38 -> 1 | O45: 3 | Q45: =iSummary!BF38 -> =31 | R45: =iSummary!BG38 -> Australia | S45: =iSummary!BH38 -> 53.6 | T45: =iSummary!BI38 -> 53.6 | Y45: =iSummary!BY38 -> 1 | Z45: 3 | AB45: =iSummary!BZ38 -> 31 | AC45: =iSummary!CA38 -> Poland | AD45: =iSummary!CB38 -> 35.2 | AE45: =iSummary!CC38 -> 35.2 | AJ45: =iSummary!CS38 -> 1 | AK45: 3 | AM45: =iSummary!CT38 -> 31 | AN45: =iSummary!CU38 -> Czech Republic | AO45: =iSummary!CV38 -> 68.9 | AP45: =iSummary!CW38 -> 68.9 | AU45: =iSummary!DM38 -> 1 | AV45: 3 | AX45: =iSummary!DN38 -> 31 | AY45: =iSummary!DO38 -> Latvia | AZ45: =iSummary!DP38 -> 41.2 | BA45: =iSummary!DQ38 -> 41.2 | BF45: =iSummary!EG38 -> 1 | BG45: 3 | BI45: =iSummary!EH38 -> 31 | BJ45: =iSummary!EI38 -> Czech Republic | BK45: =iSummary!EJ38 -> 91.2 | BL45: =iSummary!EK38 -> 91.2
C46: =iSummary!AK39 -> 1 | D46: 3 | F46: =iSummary!AL39 -> =32 | G46: =iSummary!AM39 -> Ireland | H46: =iSummary!AN39 -> 12.1 | I46: =iSummary!AO39 -> 12.1 | N46: =iSummary!BE39 -> 1 | O46: 3 | Q46: =iSummary!BF39 -> =31 | R46: =iSummary!BG39 -> Czech Republic | S46: =iSummary!BH39 -> 53.6 | T46: =iSummary!BI39 -> 53.6 | Y46: =iSummary!BY39 -> 1 | Z46: 3 | AB46: =iSummary!BZ39 -> 32 | AC46: =iSummary!CA39 -> Malaysia | AD46: =iSummary!CB39 -> 34.8 | AE46: =iSummary!CC39 -> 34.8 | AJ46: =iSummary!CS39 -> 1 | AK46: 3 | AM46: =iSummary!CT39 -> 32 | AN46: =iSummary!CU39 -> Greece | AO46: =iSummary!CV39 -> 68.1 | AP46: =iSummary!CW39 -> 68.1 | AU46: =iSummary!DM39 -> 1 | AV46: 3 | AX46: =iSummary!DN39 -> 32 | AY46: =iSummary!DO39 -> UAE | AZ46: =iSummary!DP39 -> 41 | BA46: =iSummary!DQ39 -> 41 | BF46: =iSummary!EG39 -> 1 | BG46: 3 | BI46: =iSummary!EH39 -> 32 | BJ46: =iSummary!EI39 -> Panama | BK46: =iSummary!EJ39 -> 90.8 | BL46: =iSummary!EK39 -> 90.8
C47: =iSummary!AK40 -> 1 | D47: 3 | F47: =iSummary!AL40 -> =32 | G47: =iSummary!AM40 -> New Zealand | H47: =iSummary!AN40 -> 12.1 | I47: =iSummary!AO40 -> 12.1 | N47: =iSummary!BE40 -> 1 | O47: 2 | Q47: =iSummary!BF40 -> 33 | R47: =iSummary!BG40 -> Ireland | S47: =iSummary!BH40 -> 53.3 | T47: =iSummary!BI40 -> 53.3 | Y47: =iSummary!BY40 -> 1 | Z47: 3 | AB47: =iSummary!BZ40 -> 33 | AC47: =iSummary!CA40 -> Romania | AD47: =iSummary!CB40 -> 32.8 | AE47: =iSummary!CC40 -> 32.8 | AJ47: =iSummary!CS40 -> 1 | AK47: 3 | AM47: =iSummary!CT40 -> 33 | AN47: =iSummary!CU40 -> Latvia | AO47: =iSummary!CV40 -> 67.8 | AP47: =iSummary!CW40 -> 67.8 | AU47: =iSummary!DM40 -> 1 | AV47: 3 | AX47: =iSummary!DN40 -> 33 | AY47: =iSummary!DO40 -> Chile | AZ47: =iSummary!DP40 -> 40.6 | BA47: =iSummary!DQ40 -> 40.6 | BF47: =iSummary!EG40 -> 1 | BG47: 3 | BI47: =iSummary!EH40 -> 33 | BJ47: =iSummary!EI40 -> Albania | BK47: =iSummary!EJ40 -> 90.7 | BL47: =iSummary!EK40 -> 90.7
C48: =iSummary!AK41 -> 1 | D48: 3 | F48: =iSummary!AL41 -> 34 | G48: =iSummary!AM41 -> Hungary | H48: =iSummary!AN41 -> 11.7 | I48: =iSummary!AO41 -> 11.7 | N48: =iSummary!BE41 -> 1 | O48: 2 | Q48: =iSummary!BF41 -> 34 | R48: =iSummary!BG41 -> UAE | S48: =iSummary!BH41 -> 53.1 | T48: =iSummary!BI41 -> 53.1 | Y48: =iSummary!BY41 -> 1 | Z48: 3 | AB48: =iSummary!BZ41 -> 34 | AC48: =iSummary!CA41 -> Thailand | AD48: =iSummary!CB41 -> 32.3 | AE48: =iSummary!CC41 -> 32.3 | AJ48: =iSummary!CS41 -> 1 | AK48: 3 | AM48: =iSummary!CT41 -> 34 | AN48: =iSummary!CU41 -> Portugal | AO48: =iSummary!CV41 -> 67.1 | AP48: =iSummary!CW41 -> 67.1 | AU48: =iSummary!DM41 -> 1 | AV48: 3 | AX48: =iSummary!DN41 -> 34 | AY48: =iSummary!DO41 -> Australia | AZ48: =iSummary!DP41 -> 39.9 | BA48: =iSummary!DQ41 -> 39.9 | BF48: =iSummary!EG41 -> 1 | BG48: 3 | BI48: =iSummary!EH41 -> 34 | BJ48: =iSummary!EI41 -> El Salvador | BK48: =iSummary!EJ41 -> 90.6 | BL48: =iSummary!EK41 -> 90.6
C49: =iSummary!AK42 -> 1 | D49: 3 | F49: =iSummary!AL42 -> 35 | G49: =iSummary!AM42 -> Poland | H49: =iSummary!AN42 -> 11.3 | I49: =iSummary!AO42 -> 11.3 | N49: =iSummary!BE42 -> 1 | O49: 2 | Q49: =iSummary!BF42 -> 35 | R49: =iSummary!BG42 -> Lithuania | S49: =iSummary!BH42 -> 51.9 | T49: =iSummary!BI42 -> 51.9 | Y49: =iSummary!BY42 -> 1 | Z49: 3 | AB49: =iSummary!BZ42 -> =35 | AC49: =iSummary!CA42 -> Colombia | AD49: =iSummary!CB42 -> 32.2 | AE49: =iSummary!CC42 -> 32.2 | AJ49: =iSummary!CS42 -> 1 | AK49: 3 | AM49: =iSummary!CT42 -> 35 | AN49: =iSummary!CU42 -> Qatar | AO49: =iSummary!CV42 -> 65.7 | AP49: =iSummary!CW42 -> 65.7 | AU49: =iSummary!DM42 -> 1 | AV49: 3 | AX49: =iSummary!DN42 -> =35 | AY49: =iSummary!DO42 -> Italy | AZ49: =iSummary!DP42 -> 39.8 | BA49: =iSummary!DQ42 -> 39.8 | BF49: =iSummary!EG42 -> 1 | BG49: 3 | BI49: =iSummary!EH42 -> 35 | BJ49: =iSummary!EI42 -> Republic of Korea | BK49: =iSummary!EJ42 -> 90.5 | BL49: =iSummary!EK42 -> 90.5
C50: =iSummary!AK43 -> 1 | D50: 3 | F50: =iSummary!AL43 -> 36 | G50: =iSummary!AM43 -> Iran | H50: =iSummary!AN43 -> 10.4 | I50: =iSummary!AO43 -> 10.4 | N50: =iSummary!BE43 -> 1 | O50: 2 | Q50: =iSummary!BF43 -> 36 | R50: =iSummary!BG43 -> Kazakhstan | S50: =iSummary!BH43 -> 51.6 | T50: =iSummary!BI43 -> 51.6 | Y50: =iSummary!BY43 -> 1 | Z50: 3 | AB50: =iSummary!BZ43 -> =35 | AC50: =iSummary!CA43 -> Spain | AD50: =iSummary!CB43 -> 32.2 | AE50: =iSummary!CC43 -> 32.2 | AJ50: =iSummary!CS43 -> 1 | AK50: 3 | AM50: =iSummary!CT43 -> 36 | AN50: =iSummary!CU43 -> UAE | AO50: =iSummary!CV43 -> 63.7 | AP50: =iSummary!CW43 -> 63.7 | AU50: =iSummary!DM43 -> 1 | AV50: 3 | AX50: =iSummary!DN43 -> =35 | AY50: =iSummary!DO43 -> Poland | AZ50: =iSummary!DP43 -> 39.8 | BA50: =iSummary!DQ43 -> 39.8 | BF50: =iSummary!EG43 -> 1 | BG50: 3 | BI50: =iSummary!EH43 -> 36 | BJ50: =iSummary!EI43 -> Philippines | BK50: =iSummary!EJ43 -> 90.4 | BL50: =iSummary!EK43 -> 90.4
C51: =iSummary!AK44 -> 1 | D51: 3 | F51: =iSummary!AL44 -> 37 | G51: =iSummary!AM44 -> Thailand | H51: =iSummary!AN44 -> 9.9 | I51: =iSummary!AO44 -> 9.9 | N51: =iSummary!BE44 -> 1 | O51: 2 | Q51: =iSummary!BF44 -> 37 | R51: =iSummary!BG44 -> Croatia | S51: =iSummary!BH44 -> 50.1 | T51: =iSummary!BI44 -> 50.1 | Y51: =iSummary!BY44 -> 1 | Z51: 3 | AB51: =iSummary!BZ44 -> 37 | AC51: =iSummary!CA44 -> Croatia | AD51: =iSummary!CB44 -> 31.8 | AE51: =iSummary!CC44 -> 31.8 | AJ51: =iSummary!CS44 -> 1 | AK51: 3 | AM51: =iSummary!CT44 -> 37 | AN51: =iSummary!CU44 -> Hungary | AO51: =iSummary!CV44 -> 63.6 | AP51: =iSummary!CW44 -> 63.6 | AU51: =iSummary!DM44 -> 1 | AV51: 3 | AX51: =iSummary!DN44 -> =37 | AY51: =iSummary!DO44 -> Malaysia | AZ51: =iSummary!DP44 -> 36.6 | BA51: =iSummary!DQ44 -> 36.6 | BF51: =iSummary!EG44 -> 1 | BG51: 3 | BI51: =iSummary!EH44 -> =37 | BJ51: =iSummary!EI44 -> Austria | BK51: =iSummary!EJ44 -> 90.2 | BL51: =iSummary!EK44 -> 90.2
C52: =iSummary!AK45 -> 1 | D52: 3 | F52: =iSummary!AL45 -> 38 | G52: =iSummary!AM45 -> South Africa | H52: =iSummary!AN45 -> 9.4 | I52: =iSummary!AO45 -> 9.4 | N52: =iSummary!BE45 -> 1 | O52: 2 | Q52: =iSummary!BF45 -> 38 | R52: =iSummary!BG45 -> Qatar | S52: =iSummary!BH45 -> 49.8 | T52: =iSummary!BI45 -> 49.8 | Y52: =iSummary!BY45 -> 1 | Z52: 3 | AB52: =iSummary!BZ45 -> 38 | AC52: =iSummary!CA45 -> Peru | AD52: =iSummary!CB45 -> 31.3 | AE52: =iSummary!CC45 -> 31.3 | AJ52: =iSummary!CS45 -> 1 | AK52: 3 | AM52: =iSummary!CT45 -> 38 | AN52: =iSummary!CU45 -> Italy | AO52: =iSummary!CV45 -> 62.9 | AP52: =iSummary!CW45 -> 62.9 | AU52: =iSummary!DM45 -> 1 | AV52: 3 | AX52: =iSummary!DN45 -> =37 | AY52: =iSummary!DO45 -> Slovakia | AZ52: =iSummary!DP45 -> 36.6 | BA52: =iSummary!DQ45 -> 36.6 | BF52: =iSummary!EG45 -> 1 | BG52: 3 | BI52: =iSummary!EH45 -> =37 | BJ52: =iSummary!EI45 -> Japan | BK52: =iSummary!EJ45 -> 90.2 | BL52: =iSummary!EK45 -> 90.2
C53: =iSummary!AK46 -> 1 | D53: 3 | F53: =iSummary!AL46 -> =39 | G53: =iSummary!AM46 -> Egypt | H53: =iSummary!AN46 -> 9.3 | I53: =iSummary!AO46 -> 9.3 | N53: =iSummary!BE46 -> 1 | O53: 2 | Q53: =iSummary!BF46 -> 39 | R53: =iSummary!BG46 -> Hungary | S53: =iSummary!BH46 -> 48.4 | T53: =iSummary!BI46 -> 48.4 | Y53: =iSummary!BY46 -> 1 | Z53: 3 | AB53: =iSummary!BZ46 -> 39 | AC53: =iSummary!CA46 -> Canada | AD53: =iSummary!CB46 -> 31 | AE53: =iSummary!CC46 -> 31 | AJ53: =iSummary!CS46 -> 1 | AK53: 3 | AM53: =iSummary!CT46 -> 39 | AN53: =iSummary!CU46 -> Slovakia | AO53: =iSummary!CV46 -> 62.8 | AP53: =iSummary!CW46 -> 62.8 | AU53: =iSummary!DM46 -> 1 | AV53: 3 | AX53: =iSummary!DN46 -> 39 | AY53: =iSummary!DO46 -> Bulgaria | AZ53: =iSummary!DP46 -> 36.3 | BA53: =iSummary!DQ46 -> 36.3 | BF53: =iSummary!EG46 -> 1 | BG53: 3 | BI53: =iSummary!EH46 -> 39 | BJ53: =iSummary!EI46 -> Hong Kong | BK53: =iSummary!EJ46 -> 90.1 | BL53: =iSummary!EK46 -> 90.1
C54: =iSummary!AK47 -> 1 | D54: 3 | F54: =iSummary!AL47 -> =39 | G54: =iSummary!AM47 -> Estonia | H54: =iSummary!AN47 -> 9.3 | I54: =iSummary!AO47 -> 9.3 | N54: =iSummary!BE47 -> 1 | O54: 2 | Q54: =iSummary!BF47 -> 40 | R54: =iSummary!BG47 -> Romania | S54: =iSummary!BH47 -> 47.8 | T54: =iSummary!BI47 -> 47.8 | Y54: =iSummary!BY47 -> 1 | Z54: 3 | AB54: =iSummary!BZ47 -> 40 | AC54: =iSummary!CA47 -> Estonia | AD54: =iSummary!CB47 -> 30.3 | AE54: =iSummary!CC47 -> 30.3 | AJ54: =iSummary!CS47 -> 1 | AK54: 3 | AM54: =iSummary!CT47 -> 40 | AN54: =iSummary!CU47 -> South Africa | AO54: =iSummary!CV47 -> 62.2 | AP54: =iSummary!CW47 -> 62.2 | AU54: =iSummary!DM47 -> 1 | AV54: 3 | AX54: =iSummary!DN47 -> 40 | AY54: =iSummary!DO47 -> Russian Federation | AZ54: =iSummary!DP47 -> 36.1 | BA54: =iSummary!DQ47 -> 36.1 | BF54: =iSummary!EG47 -> 1 | BG54: 3 | BI54: =iSummary!EH47 -> 40 | BJ54: =iSummary!EI47 -> Lebanon | BK54: =iSummary!EJ47 -> 90 | BL54: =iSummary!EK47 -> 90
C55: =iSummary!AK48 -> 1 | D55: 3 | F55: =iSummary!AL48 -> 41 | G55: =iSummary!AM48 -> Saudi Arabia | H55: =iSummary!AN48 -> 9.2 | I55: =iSummary!AO48 -> 9.2 | N55: =iSummary!BE48 -> 1 | O55: 2 | Q55: =iSummary!BF48 -> 41 | R55: =iSummary!BG48 -> Argentina | S55: =iSummary!BH48 -> 47.2 | T55: =iSummary!BI48 -> 47.2 | Y55: =iSummary!BY48 -> 1 | Z55: 3 | AB55: =iSummary!BZ48 -> 41 | AC55: =iSummary!CA48 -> Russian Federation | AD55: =iSummary!CB48 -> 28.6 | AE55: =iSummary!CC48 -> 28.6 | AJ55: =iSummary!CS48 -> 1 | AK55: 3 | AM55: =iSummary!CT48 -> 41 | AN55: =iSummary!CU48 -> Malaysia | AO55: =iSummary!CV48 -> 61 | AP55: =iSummary!CW48 -> 61 | AU55: =iSummary!DM48 -> 1 | AV55: 3 | AX55: =iSummary!DN48 -> 41 | AY55: =iSummary!DO48 -> Qatar | AZ55: =iSummary!DP48 -> 35.9 | BA55: =iSummary!DQ48 -> 35.9 | BF55: =iSummary!EG48 -> 1 | BG55: 3 | BI55: =iSummary!EH48 -> 41 | BJ55: =iSummary!EI48 -> Turkey | BK55: =iSummary!EJ48 -> 89.8 | BL55: =iSummary!EK48 -> 89.8
C56: =iSummary!AK49 -> 1 | D56: 3 | F56: =iSummary!AL49 -> 42 | G56: =iSummary!AM49 -> Luxembourg | H56: =iSummary!AN49 -> 8.9 | I56: =iSummary!AO49 -> 8.9 | N56: =iSummary!BE49 -> 1 | O56: 2 | Q56: =iSummary!BF49 -> 42 | R56: =iSummary!BG49 -> Latvia | S56: =iSummary!BH49 -> 46.7 | T56: =iSummary!BI49 -> 46.7 | Y56: =iSummary!BY49 -> 1 | Z56: 3 | AB56: =iSummary!BZ49 -> 42 | AC56: =iSummary!CA49 -> Ukraine | AD56: =iSummary!CB49 -> 28.5 | AE56: =iSummary!CC49 -> 28.5 | AJ56: =iSummary!CS49 -> 1 | AK56: 3 | AM56: =iSummary!CT49 -> 42 | AN56: =iSummary!CU49 -> Azerbaijan | AO56: =iSummary!CV49 -> 60 | AP56: =iSummary!CW49 -> 60 | AU56: =iSummary!DM49 -> 1 | AV56: 3 | AX56: =iSummary!DN49 -> 42 | AY56: =iSummary!DO49 -> Bahrain | AZ56: =iSummary!DP49 -> 35.2 | BA56: =iSummary!DQ49 -> 35.2 | BF56: =iSummary!EG49 -> 1 | BG56: 3 | BI56: =iSummary!EH49 -> 42 | BJ56: =iSummary!EI49 -> Egypt | BK56: =iSummary!EJ49 -> 89.7 | BL56: =iSummary!EK49 -> 89.7
C57: =iSummary!AK50 -> 1 | D57: 3 | F57: =iSummary!AL50 -> 43 | G57: =iSummary!AM50 -> Mexico | H57: =iSummary!AN50 -> 8.8 | I57: =iSummary!AO50 -> 8.8 | N57: =iSummary!BE50 -> 1 | O57: 2 | Q57: =iSummary!BF50 -> 43 | R57: =iSummary!BG50 -> Chile | S57: =iSummary!BH50 -> 45.7 | T57: =iSummary!BI50 -> 45.7 | Y57: =iSummary!BY50 -> 1 | Z57: 3 | AB57: =iSummary!BZ50 -> 43 | AC57: =iSummary!CA50 -> Saudi Arabia | AD57: =iSummary!CB50 -> 28.3 | AE57: =iSummary!CC50 -> 28.3 | AJ57: =iSummary!CS50 -> 1 | AK57: 3 | AM57: =iSummary!CT50 -> 43 | AN57: =iSummary!CU50 -> Lithuania | AO57: =iSummary!CV50 -> 59.9 | AP57: =iSummary!CW50 -> 59.9 | AU57: =iSummary!DM50 -> 1 | AV57: 3 | AX57: =iSummary!DN50 -> 43 | AY57: =iSummary!DO50 -> Uruguay | AZ57: =iSummary!DP50 -> 34.1 | BA57: =iSummary!DQ50 -> 34.1 | BF57: =iSummary!EG50 -> 1 | BG57: 3 | BI57: =iSummary!EH50 -> 43 | BJ57: =iSummary!EI50 -> Serbia | BK57: =iSummary!EJ50 -> 89.1 | BL57: =iSummary!EK50 -> 89.1
C58: =iSummary!AK51 -> 1 | D58: 3 | F58: =iSummary!AL51 -> 44 | G58: =iSummary!AM51 -> UAE | H58: =iSummary!AN51 -> 8.4 | I58: =iSummary!AO51 -> 8.4 | N58: =iSummary!BE51 -> 1 | O58: 2 | Q58: =iSummary!BF51 -> 44 | R58: =iSummary!BG51 -> Mexico | S58: =iSummary!BH51 -> 45.3 | T58: =iSummary!BI51 -> 45.3 | Y58: =iSummary!BY51 -> 1 | Z58: 3 | AB58: =iSummary!BZ51 -> 44 | AC58: =iSummary!CA51 -> Brazil | AD58: =iSummary!CB51 -> 28.2 | AE58: =iSummary!CC51 -> 28.2 | AJ58: =iSummary!CS51 -> 1 | AK58: 3 | AM58: =iSummary!CT51 -> 44 | AN58: =iSummary!CU51 -> Saudi Arabia | AO58: =iSummary!CV51 -> 59.8 | AP58: =iSummary!CW51 -> 59.8 | AU58: =iSummary!DM51 -> 1 | AV58: 3 | AX58: =iSummary!DN51 -> 44 | AY58: =iSummary!DO51 -> China | AZ58: =iSummary!DP51 -> 33.5 | BA58: =iSummary!DQ51 -> 33.5 | BF58: =iSummary!EG51 -> 1 | BG58: 3 | BI58: =iSummary!EH51 -> =44 | BJ58: =iSummary!EI51 -> Chile | BK58: =iSummary!EJ51 -> 88.8 | BL58: =iSummary!EK51 -> 88.8
C59: =iSummary!AK52 -> 1 | D59: 3 | F59: =iSummary!AL52 -> 45 | G59: =iSummary!AM52 -> Serbia | H59: =iSummary!AN52 -> 7.9 | I59: =iSummary!AO52 -> 7.9 | N59: =iSummary!BE52 -> 1 | O59: 2 | Q59: =iSummary!BF52 -> 45 | R59: =iSummary!BG52 -> Cyprus | S59: =iSummary!BH52 -> 45.2 | T59: =iSummary!BI52 -> 45.2 | Y59: =iSummary!BY52 -> 1 | Z59: 3 | AB59: =iSummary!BZ52 -> 45 | AC59: =iSummary!CA52 -> Serbia | AD59: =iSummary!CB52 -> 27.8 | AE59: =iSummary!CC52 -> 27.8 | AJ59: =iSummary!CS52 -> 1 | AK59: 3 | AM59: =iSummary!CT52 -> =45 | AN59: =iSummary!CU52 -> Croatia | AO59: =iSummary!CV52 -> 59.2 | AP59: =iSummary!CW52 -> 59.2 | AU59: =iSummary!DM52 -> 1 | AV59: 3 | AX59: =iSummary!DN52 -> 45 | AY59: =iSummary!DO52 -> Thailand | AZ59: =iSummary!DP52 -> 33.3 | BA59: =iSummary!DQ52 -> 33.3 | BF59: =iSummary!EG52 -> 1 | BG59: 3 | BI59: =iSummary!EH52 -> =44 | BJ59: =iSummary!EI52 -> Slovakia | BK59: =iSummary!EJ52 -> 88.8 | BL59: =iSummary!EK52 -> 88.8
C60: =iSummary!AK53 -> 1 | D60: 3 | F60: =iSummary!AL53 -> 46 | G60: =iSummary!AM53 -> Slovakia | H60: =iSummary!AN53 -> 7.8 | I60: =iSummary!AO53 -> 7.8 | N60: =iSummary!BE53 -> 1 | O60: 2 | Q60: =iSummary!BF53 -> 46 | R60: =iSummary!BG53 -> Slovakia | S60: =iSummary!BH53 -> 44.7 | T60: =iSummary!BI53 -> 44.7 | Y60: =iSummary!BY53 -> 1 | Z60: 3 | AB60: =iSummary!BZ53 -> 46 | AC60: =iSummary!CA53 -> Latvia | AD60: =iSummary!CB53 -> 27.2 | AE60: =iSummary!CC53 -> 27.2 | AJ60: =iSummary!CS53 -> 1 | AK60: 3 | AM60: =iSummary!CT53 -> =45 | AN60: =iSummary!CU53 -> Cyprus | AO60: =iSummary!CV53 -> 59.2 | AP60: =iSummary!CW53 -> 59.2 | AU60: =iSummary!DM53 -> 1 | AV60: 3 | AX60: =iSummary!DN53 -> 46 | AY60: =iSummary!DO53 -> Serbia | AZ60: =iSummary!DP53 -> 32.8 | BA60: =iSummary!DQ53 -> 32.8 | BF60: =iSummary!EG53 -> 1 | BG60: 3 | BI60: =iSummary!EH53 -> 46 | BJ60: =iSummary!EI53 -> Indonesia | BK60: =iSummary!EJ53 -> 88.6 | BL60: =iSummary!EK53 -> 88.6
C61: =iSummary!AK54 -> 1 | D61: 3 | F61: =iSummary!AL54 -> 47 | G61: =iSummary!AM54 -> Croatia | H61: =iSummary!AN54 -> 7.6 | I61: =iSummary!AO54 -> 7.6 | N61: =iSummary!BE54 -> 1 | O61: 2 | Q61: =iSummary!BF54 -> 47 | R61: =iSummary!BG54 -> Jordan | S61: =iSummary!BH54 -> 44.4 | T61: =iSummary!BI54 -> 44.4 | Y61: =iSummary!BY54 -> 1 | Z61: 3 | AB61: =iSummary!BZ54 -> 47 | AC61: =iSummary!CA54 -> Australia | AD61: =iSummary!CB54 -> 26.9 | AE61: =iSummary!CC54 -> 26.9 | AJ61: =iSummary!CS54 -> 1 | AK61: 2 | AM61: =iSummary!CT54 -> 47 | AN61: =iSummary!CU54 -> Poland | AO61: =iSummary!CV54 -> 57.8 | AP61: =iSummary!CW54 -> 57.8 | AU61: =iSummary!DM54 -> 1 | AV61: 3 | AX61: =iSummary!DN54 -> 47 | AY61: =iSummary!DO54 -> Croatia | AZ61: =iSummary!DP54 -> 31.8 | BA61: =iSummary!DQ54 -> 31.8 | BF61: =iSummary!EG54 -> 1 | BG61: 2 | BI61: =iSummary!EH54 -> 47 | BJ61: =iSummary!EI54 -> Bulgaria | BK61: =iSummary!EJ54 -> 88.5 | BL61: =iSummary!EK54 -> 88.5
C62: =iSummary!AK55 -> 1 | D62: 3 | F62: =iSummary!AL55 -> 48 | G62: =iSummary!AM55 -> Lithuania | H62: =iSummary!AN55 -> 7.2 | I62: =iSummary!AO55 -> 7.2 | N62: =iSummary!BE55 -> 1 | O62: 2 | Q62: =iSummary!BF55 -> 48 | R62: =iSummary!BG55 -> Malta | S62: =iSummary!BH55 -> 43.9 | T62: =iSummary!BI55 -> 43.9 | Y62: =iSummary!BY55 -> 1 | Z62: 3 | AB62: =iSummary!BZ55 -> 48 | AC62: =iSummary!CA55 -> Bulgaria | AD62: =iSummary!CB55 -> 26.7 | AE62: =iSummary!CC55 -> 26.7 | AJ62: =iSummary!CS55 -> 1 | AK62: 2 | AM62: =iSummary!CT55 -> 48 | AN62: =iSummary!CU55 -> Tunisia | AO62: =iSummary!CV55 -> 56.1 | AP62: =iSummary!CW55 -> 56.1 | AU62: =iSummary!DM55 -> 1 | AV62: 3 | AX62: =iSummary!DN55 -> 48 | AY62: =iSummary!DO55 -> Panama | AZ62: =iSummary!DP55 -> 31.1 | BA62: =iSummary!DQ55 -> 31.1 | BF62: =iSummary!EG55 -> 1 | BG62: 2 | BI62: =iSummary!EH55 -> 48 | BJ62: =iSummary!EI55 -> Mexico | BK62: =iSummary!EJ55 -> 88.4 | BL62: =iSummary!EK55 -> 88.4
C63: =iSummary!AK56 -> 1 | D63: 3 | F63: =iSummary!AL56 -> 49 | G63: =iSummary!AM56 -> Bulgaria | H63: =iSummary!AN56 -> 6.8 | I63: =iSummary!AO56 -> 6.8 | N63: =iSummary!BE56 -> 1 | O63: 1 | Q63: =iSummary!BF56 -> 49 | R63: =iSummary!BG56 -> Luxembourg | S63: =iSummary!BH56 -> 43.4 | T63: =iSummary!BI56 -> 43.4 | Y63: =iSummary!BY56 -> 1 | Z63: 2 | AB63: =iSummary!BZ56 -> =49 | AC63: =iSummary!CA56 -> Lithuania | AD63: =iSummary!CB56 -> 26 | AE63: =iSummary!CC56 -> 26 | AJ63: =iSummary!CS56 -> 1 | AK63: 2 | AM63: =iSummary!CT56 -> 49 | AN63: =iSummary!CU56 -> Kuwait | AO63: =iSummary!CV56 -> 52.4 | AP63: =iSummary!CW56 -> 52.4 | AU63: =iSummary!DM56 -> 1 | AV63: 3 | AX63: =iSummary!DN56 -> 49 | AY63: =iSummary!DO56 -> Brazil | AZ63: =iSummary!DP56 -> 29.5 | BA63: =iSummary!DQ56 -> 29.5 | BF63: =iSummary!EG56 -> 1 | BG63: 2 | BI63: =iSummary!EH56 -> 49 | BJ63: =iSummary!EI56 -> Sri Lanka | BK63: =iSummary!EJ56 -> 88.3 | BL63: =iSummary!EK56 -> 88.3
C64: =iSummary!AK57 -> 1 | D64: 2 | F64: =iSummary!AL57 -> 50 | G64: =iSummary!AM57 -> Algeria | H64: =iSummary!AN57 -> 6.6 | I64: =iSummary!AO57 -> 6.6 | N64: =iSummary!BE57 -> 1 | O64: 1 | Q64: =iSummary!BF57 -> 50 | R64: =iSummary!BG57 -> Tunisia | S64: =iSummary!BH57 -> 43.3 | T64: =iSummary!BI57 -> 43.3 | Y64: =iSummary!BY57 -> 1 | Z64: 2 | AB64: =iSummary!BZ57 -> =49 | AC64: =iSummary!CA57 -> South Africa | AD64: =iSummary!CB57 -> 26 | AE64: =iSummary!CC57 -> 26 | AJ64: =iSummary!CS57 -> 1 | AK64: 2 | AM64: =iSummary!CT57 -> 50 | AN64: =iSummary!CU57 -> Mexico | AO64: =iSummary!CV57 -> 52.2 | AP64: =iSummary!CW57 -> 52.2 | AU64: =iSummary!DM57 -> 1 | AV64: 2 | AX64: =iSummary!DN57 -> 50 | AY64: =iSummary!DO57 -> Kazakhstan | AZ64: =iSummary!DP57 -> 28.9 | BA64: =iSummary!DQ57 -> 28.9 | BF64: =iSummary!EG57 -> 1 | BG64: 2 | BI64: =iSummary!EH57 -> 50 | BJ64: =iSummary!EI57 -> Poland | BK64: =iSummary!EJ57 -> 87.7 | BL64: =iSummary!EK57 -> 87.7
C65: =iSummary!AK58 -> 1 | D65: 2 | F65: =iSummary!AL58 -> =51 | G65: =iSummary!AM58 -> Argentina | H65: =iSummary!AN58 -> 6.5 | I65: =iSummary!AO58 -> 6.5 | N65: =iSummary!BE58 -> 1 | O65: 1 | Q65: =iSummary!BF58 -> 51 | R65: =iSummary!BG58 -> Bulgaria | S65: =iSummary!BH58 -> 42.3 | T65: =iSummary!BI58 -> 42.3 | Y65: =iSummary!BY58 -> 1 | Z65: 2 | AB65: =iSummary!BZ58 -> =51 | AC65: =iSummary!CA58 -> Bahrain | AD65: =iSummary!CB58 -> 25.8 | AE65: =iSummary!CC58 -> 25.8 | AJ65: =iSummary!CS58 -> 1 | AK65: 2 | AM65: =iSummary!CT58 -> 51 | AN65: =iSummary!CU58 -> Egypt | AO65: =iSummary!CV58 -> 52.1 | AP65: =iSummary!CW58 -> 52.1 | AU65: =iSummary!DM58 -> 1 | AV65: 2 | AX65: =iSummary!DN58 -> 51 | AY65: =iSummary!DO58 -> Cyprus | AZ65: =iSummary!DP58 -> 28.6 | BA65: =iSummary!DQ58 -> 28.6 | BF65: =iSummary!EG58 -> 1 | BG65: 2 | BI65: =iSummary!EH58 -> 51 | BJ65: =iSummary!EI58 -> Belgium | BK65: =iSummary!EJ58 -> 87.2 | BL65: =iSummary!EK58 -> 87.2
C66: =iSummary!AK59 -> 1 | D66: 2 | F66: =iSummary!AL59 -> =51 | G66: =iSummary!AM59 -> Jordan | H66: =iSummary!AN59 -> 6.5 | I66: =iSummary!AO59 -> 6.5 | N66: =iSummary!BE59 -> 1 | O66: 1 | Q66: =iSummary!BF59 -> 52 | R66: =iSummary!BG59 -> Lebanon | S66: =iSummary!BH59 -> 41.9 | T66: =iSummary!BI59 -> 41.9 | Y66: =iSummary!BY59 -> 1 | Z66: 2 | AB66: =iSummary!BZ59 -> =51 | AC66: =iSummary!CA59 -> Egypt | AD66: =iSummary!CB59 -> 25.8 | AE66: =iSummary!CC59 -> 25.8 | AJ66: =iSummary!CS59 -> 1 | AK66: 2 | AM66: =iSummary!CT59 -> 52 | AN66: =iSummary!CU59 -> Russian Federation | AO66: =iSummary!CV59 -> 52 | AP66: =iSummary!CW59 -> 52 | AU66: =iSummary!DM59 -> 1 | AV66: 2 | AX66: =iSummary!DN59 -> =52 | AY66: =iSummary!DO59 -> Argentina | AZ66: =iSummary!DP59 -> 28.4 | BA66: =iSummary!DQ59 -> 28.4 | BF66: =iSummary!EG59 -> 1 | BG66: 2 | BI66: =iSummary!EH59 -> 52 | BJ66: =iSummary!EI59 -> Finland | BK66: =iSummary!EJ59 -> 86.1 | BL66: =iSummary!EK59 -> 86.1
C67: =iSummary!AK60 -> 1 | D67: 2 | F67: =iSummary!AL60 -> 53 | G67: =iSummary!AM60 -> Chile | H67: =iSummary!AN60 -> 6.4 | I67: =iSummary!AO60 -> 6.4 | N67: =iSummary!BE60 -> 1 | O67: 1 | Q67: =iSummary!BF60 -> 53 | R67: =iSummary!BG60 -> Turkey | S67: =iSummary!BH60 -> 41.8 | T67: =iSummary!BI60 -> 41.8 | Y67: =iSummary!BY60 -> 1 | Z67: 2 | AB67: =iSummary!BZ60 -> 53 | AC67: =iSummary!CA60 -> Turkey | AD67: =iSummary!CB60 -> 25.5 | AE67: =iSummary!CC60 -> 25.5 | AJ67: =iSummary!CS60 -> 1 | AK67: 2 | AM67: =iSummary!CT60 -> 53 | AN67: =iSummary!CU60 -> Kazakhstan | AO67: =iSummary!CV60 -> 51.8 | AP67: =iSummary!CW60 -> 51.8 | AU67: =iSummary!DM60 -> 1 | AV67: 2 | AX67: =iSummary!DN60 -> =52 | AY67: =iSummary!DO60 -> Saudi Arabia | AZ67: =iSummary!DP60 -> 28.4 | BA67: =iSummary!DQ60 -> 28.4 | BF67: =iSummary!EG60 -> 1 | BG67: 2 | BI67: =iSummary!EH60 -> 53 | BJ67: =iSummary!EI60 -> Bosnia and Herzegovina | BK67: =iSummary!EJ60 -> 86 | BL67: =iSummary!EK60 -> 86
C68: =iSummary!AK61 -> 1 | D68: 2 | F68: =iSummary!AL61 -> 54 | G68: =iSummary!AM61 -> Romania | H68: =iSummary!AN61 -> 6.3 | I68: =iSummary!AO61 -> 6.3 | N68: =iSummary!BE61 -> 1 | O68: 1 | Q68: =iSummary!BF61 -> 54 | R68: =iSummary!BG61 -> Colombia | S68: =iSummary!BH61 -> 41.4 | T68: =iSummary!BI61 -> 41.4 | Y68: =iSummary!BY61 -> 1 | Z68: 2 | AB68: =iSummary!BZ61 -> 54 | AC68: =iSummary!CA61 -> Iceland | AD68: =iSummary!CB61 -> 25.3 | AE68: =iSummary!CC61 -> 25.3 | AJ68: =iSummary!CS61 -> 1 | AK68: 2 | AM68: =iSummary!CT61 -> 54 | AN68: =iSummary!CU61 -> Bulgaria | AO68: =iSummary!CV61 -> 51.7 | AP68: =iSummary!CW61 -> 51.7 | AU68: =iSummary!DM61 -> 1 | AV68: 2 | AX68: =iSummary!DN61 -> 54 | AY68: =iSummary!DO61 -> South Africa | AZ68: =iSummary!DP61 -> 27.6 | BA68: =iSummary!DQ61 -> 27.6 | BF68: =iSummary!EG61 -> 1 | BG68: 2 | BI68: =iSummary!EH61 -> =54 | BJ68: =iSummary!EI61 -> France | BK68: =iSummary!EJ61 -> 85.4 | BL68: =iSummary!EK61 -> 85.4
C69: =iSummary!AK62 -> 1 | D69: 2 | F69: =iSummary!AL62 -> 55 | G69: =iSummary!AM62 -> Tunisia | H69: =iSummary!AN62 -> 6 | I69: =iSummary!AO62 -> 6 | N69: =iSummary!BE62 -> 1 | O69: 1 | Q69: =iSummary!BF62 -> =55 | R69: =iSummary!BG62 -> Costa Rica | S69: =iSummary!BH62 -> 40.2 | T69: =iSummary!BI62 -> 40.2 | Y69: =iSummary!BY62 -> 1 | Z69: 2 | AB69: =iSummary!BZ62 -> 55 | AC69: =iSummary!CA62 -> Luxembourg | AD69: =iSummary!CB62 -> 25 | AE69: =iSummary!CC62 -> 25 | AJ69: =iSummary!CS62 -> 1 | AK69: 2 | AM69: =iSummary!CT62 -> 55 | AN69: =iSummary!CU62 -> Dominican Republic | AO69: =iSummary!CV62 -> 50.7 | AP69: =iSummary!CW62 -> 50.7 | AU69: =iSummary!DM62 -> 1 | AV69: 2 | AX69: =iSummary!DN62 -> 55 | AY69: =iSummary!DO62 -> Costa Rica | AZ69: =iSummary!DP62 -> 26.2 | BA69: =iSummary!DQ62 -> 26.2 | BF69: =iSummary!EG62 -> 1 | BG69: 2 | BI69: =iSummary!EH62 -> =54 | BJ69: =iSummary!EI62 -> Malaysia | BK69: =iSummary!EJ62 -> 85.4 | BL69: =iSummary!EK62 -> 85.4
C70: =iSummary!AK63 -> 1 | D70: 2 | F70: =iSummary!AL63 -> 56 | G70: =iSummary!AM63 -> Cyprus | H70: =iSummary!AN63 -> 5.9 | I70: =iSummary!AO63 -> 5.9 | N70: =iSummary!BE63 -> 1 | O70: 1 | Q70: =iSummary!BF63 -> =55 | R70: =iSummary!BG63 -> Thailand | S70: =iSummary!BH63 -> 40.2 | T70: =iSummary!BI63 -> 40.2 | Y70: =iSummary!BY63 -> 1 | Z70: 2 | AB70: =iSummary!BZ63 -> 56 | AC70: =iSummary!CA63 -> Argentina | AD70: =iSummary!CB63 -> 24.9 | AE70: =iSummary!CC63 -> 24.9 | AJ70: =iSummary!CS63 -> 1 | AK70: 2 | AM70: =iSummary!CT63 -> 56 | AN70: =iSummary!CU63 -> Bahrain | AO70: =iSummary!CV63 -> 50.6 | AP70: =iSummary!CW63 -> 50.6 | AU70: =iSummary!DM63 -> 1 | AV70: 2 | AX70: =iSummary!DN63 -> 56 | AY70: =iSummary!DO63 -> Mauritius | AZ70: =iSummary!DP63 -> 25.2 | BA70: =iSummary!DQ63 -> 25.2 | BF70: =iSummary!EG63 -> 1 | BG70: 2 | BI70: =iSummary!EH63 -> 56 | BJ70: =iSummary!EI63 -> Saudi Arabia | BK70: =iSummary!EJ63 -> 85.1 | BL70: =iSummary!EK63 -> 85.1
C71: =iSummary!AK64 -> 1 | D71: 2 | F71: =iSummary!AL64 -> 57 | G71: =iSummary!AM64 -> Ukraine | H71: =iSummary!AN64 -> 5.6 | I71: =iSummary!AO64 -> 5.6 | N71: =iSummary!BE64 -> 1 | O71: 1 | Q71: =iSummary!BF64 -> =55 | R71: =iSummary!BG64 -> Uruguay | S71: =iSummary!BH64 -> 40.2 | T71: =iSummary!BI64 -> 40.2 | Y71: =iSummary!BY64 -> 1 | Z71: 2 | AB71: =iSummary!BZ64 -> =57 | AC71: =iSummary!CA64 -> Cyprus | AD71: =iSummary!CB64 -> 24.8 | AE71: =iSummary!CC64 -> 24.8 | AJ71: =iSummary!CS64 -> 1 | AK71: 2 | AM71: =iSummary!CT64 -> 57 | AN71: =iSummary!CU64 -> Turkey | AO71: =iSummary!CV64 -> 50 | AP71: =iSummary!CW64 -> 50 | AU71: =iSummary!DM64 -> 1 | AV71: 2 | AX71: =iSummary!DN64 -> =57 | AY71: =iSummary!DO64 -> Turkey | AZ71: =iSummary!DP64 -> 25.1 | BA71: =iSummary!DQ64 -> 25.1 | BF71: =iSummary!EG64 -> 1 | BG71: 2 | BI71: =iSummary!EH64 -> 57 | BJ71: =iSummary!EI64 -> Oman | BK71: =iSummary!EJ64 -> 85 | BL71: =iSummary!EK64 -> 85
C72: =iSummary!AK65 -> 1 | D72: 2 | F72: =iSummary!AL65 -> 58 | G72: =iSummary!AM65 -> Lebanon | H72: =iSummary!AN65 -> 5.4 | I72: =iSummary!AO65 -> 5.4 | N72: =iSummary!BE65 -> 1 | O72: 1 | Q72: =iSummary!BF65 -> 58 | R72: =iSummary!BG65 -> Albania | S72: =iSummary!BH65 -> 36.1 | T72: =iSummary!BI65 -> 36.1 | Y72: =iSummary!BY65 -> 1 | Z72: 2 | AB72: =iSummary!BZ65 -> =57 | AC72: =iSummary!CA65 -> Portugal | AD72: =iSummary!CB65 -> 24.8 | AE72: =iSummary!CC65 -> 24.8 | AJ72: =iSummary!CS65 -> 1 | AK72: 2 | AM72: =iSummary!CT65 -> =58 | AN72: =iSummary!CU65 -> Argentina | AO72: =iSummary!CV65 -> 49.8 | AP72: =iSummary!CW65 -> 49.8 | AU72: =iSummary!DM65 -> 1 | AV72: 2 | AX72: =iSummary!DN65 -> =57 | AY72: =iSummary!DO65 -> Ukraine | AZ72: =iSummary!DP65 -> 25.1 | BA72: =iSummary!DQ65 -> 25.1 | BF72: =iSummary!EG65 -> 1 | BG72: 2 | BI72: =iSummary!EH65 -> 58 | BJ72: =iSummary!EI65 -> Romania | BK72: =iSummary!EJ65 -> 84.6 | BL72: =iSummary!EK65 -> 84.6
C73: =iSummary!AK66 -> 1 | D73: 2 | F73: =iSummary!AL66 -> =59 | G73: =iSummary!AM66 -> Qatar | H73: =iSummary!AN66 -> 5 | I73: =iSummary!AO66 -> 5 | N73: =iSummary!BE66 -> 1 | O73: 1 | Q73: =iSummary!BF66 -> 59 | R73: =iSummary!BG66 -> Algeria | S73: =iSummary!BH66 -> 35.8 | T73: =iSummary!BI66 -> 35.8 | Y73: =iSummary!BY66 -> 1 | Z73: 2 | AB73: =iSummary!BZ66 -> 59 | AC73: =iSummary!CA66 -> Malta | AD73: =iSummary!CB66 -> 24.3 | AE73: =iSummary!CC66 -> 24.3 | AJ73: =iSummary!CS66 -> 1 | AK73: 2 | AM73: =iSummary!CT66 -> =58 | AN73: =iSummary!CU66 -> Mauritius | AO73: =iSummary!CV66 -> 49.8 | AP73: =iSummary!CW66 -> 49.8 | AU73: =iSummary!DM66 -> 1 | AV73: 2 | AX73: =iSummary!DN66 -> 59 | AY73: =iSummary!DO66 -> Kuwait | AZ73: =iSummary!DP66 -> 24.9 | BA73: =iSummary!DQ66 -> 24.9 | BF73: =iSummary!EG66 -> 1 | BG73: 2 | BI73: =iSummary!EH66 -> 59 | BJ73: =iSummary!EI66 -> United States | BK73: =iSummary!EJ66 -> 84.3 | BL73: =iSummary!EK66 -> 84.3
C74: =iSummary!AK67 -> 1 | D74: 2 | F74: =iSummary!AL67 -> =59 | G74: =iSummary!AM67 -> Viet Nam | H74: =iSummary!AN67 -> 5 | I74: =iSummary!AO67 -> 5 | N74: =iSummary!BE67 -> 1 | O74: 1 | Q74: =iSummary!BF67 -> 60 | R74: =iSummary!BG67 -> Brazil | S74: =iSummary!BH67 -> 34 | T74: =iSummary!BI67 -> 34 | Y74: =iSummary!BY67 -> 1 | Z74: 2 | AB74: =iSummary!BZ67 -> 60 | AC74: =iSummary!CA67 -> Oman | AD74: =iSummary!CB67 -> 23.8 | AE74: =iSummary!CC67 -> 23.8 | AJ74: =iSummary!CS67 -> 1 | AK74: 2 | AM74: =iSummary!CT67 -> 60 | AN74: =iSummary!CU67 -> Armenia | AO74: =iSummary!CV67 -> 49.2 | AP74: =iSummary!CW67 -> 49.2 | AU74: =iSummary!DM67 -> 1 | AV74: 2 | AX74: =iSummary!DN67 -> 60 | AY74: =iSummary!DO67 -> Oman | AZ74: =iSummary!DP67 -> 24.8 | BA74: =iSummary!DQ67 -> 24.8 | BF74: =iSummary!EG67 -> 1 | BG74: 2 | BI74: =iSummary!EH67 -> 60 | BJ74: =iSummary!EI67 -> Estonia | BK74: =iSummary!EJ67 -> 84 | BL74: =iSummary!EK67 -> 84
C75: =iSummary!AK68 -> 1 | D75: 2 | F75: =iSummary!AL68 -> 61 | G75: =iSummary!AM68 -> Morocco | H75: =iSummary!AN68 -> 4.6 | I75: =iSummary!AO68 -> 4.6 | N75: =iSummary!BE68 -> 1 | O75: 1 | Q75: =iSummary!BF68 -> 61 | R75: =iSummary!BG68 -> Peru | S75: =iSummary!BH68 -> 33.4 | T75: =iSummary!BI68 -> 33.4 | Y75: =iSummary!BY68 -> 1 | Z75: 2 | AB75: =iSummary!BZ68 -> 61 | AC75: =iSummary!CA68 -> Indonesia | AD75: =iSummary!CB68 -> 23.4 | AE75: =iSummary!CC68 -> 23.4 | AJ75: =iSummary!CS68 -> 1 | AK75: 2 | AM75: =iSummary!CT68 -> 61 | AN75: =iSummary!CU68 -> Albania | AO75: =iSummary!CV68 -> 49.1 | AP75: =iSummary!CW68 -> 49.1 | AU75: =iSummary!DM68 -> 1 | AV75: 2 | AX75: =iSummary!DN68 -> 61 | AY75: =iSummary!DO68 -> Greece | AZ75: =iSummary!DP68 -> 24.5 | BA75: =iSummary!DQ68 -> 24.5 | BF75: =iSummary!EG68 -> 1 | BG75: 2 | BI75: =iSummary!EH68 -> =61 | BJ75: =iSummary!EI68 -> Dominican Republic | BK75: =iSummary!EJ68 -> 83.7 | BL75: =iSummary!EK68 -> 83.7
C76: =iSummary!AK69 -> 1 | D76: 2 | F76: =iSummary!AL69 -> 62 | G76: =iSummary!AM69 -> Colombia | H76: =iSummary!AN69 -> 4.4 | I76: =iSummary!AO69 -> 4.4 | N76: =iSummary!BE69 -> 1 | O76: 1 | Q76: =iSummary!BF69 -> 62 | R76: =iSummary!BG69 -> Indonesia | S76: =iSummary!BH69 -> 32.4 | T76: =iSummary!BI69 -> 32.4 | Y76: =iSummary!BY69 -> 1 | Z76: 2 | AB76: =iSummary!BZ69 -> =62 | AC76: =iSummary!CA69 -> Kazakhstan | AD76: =iSummary!CB69 -> 23.1 | AE76: =iSummary!CC69 -> 23.1 | AJ76: =iSummary!CS69 -> 1 | AK76: 2 | AM76: =iSummary!CT69 -> 62 | AN76: =iSummary!CU69 -> Morocco | AO76: =iSummary!CV69 -> 49 | AP76: =iSummary!CW69 -> 49 | AU76: =iSummary!DM69 -> 1 | AV76: 2 | AX76: =iSummary!DN69 -> 62 | AY76: =iSummary!DO69 -> Albania | AZ76: =iSummary!DP69 -> 24.3 | BA76: =iSummary!DQ69 -> 24.3 | BF76: =iSummary!EG69 -> 1 | BG76: 2 | BI76: =iSummary!EH69 -> =61 | BJ76: =iSummary!EI69 -> Jordan | BK76: =iSummary!EJ69 -> 83.7 | BL76: =iSummary!EK69 -> 83.7
C77: =iSummary!AK70 -> 1 | D77: 2 | F77: =iSummary!AL70 -> 63 | G77: =iSummary!AM70 -> Latvia | H77: =iSummary!AN70 -> 4.2 | I77: =iSummary!AO70 -> 4.2 | N77: =iSummary!BE70 -> 1 | O77: 1 | Q77: =iSummary!BF70 -> 63 | R77: =iSummary!BG70 -> Georgia | S77: =iSummary!BH70 -> 24.2 | T77: =iSummary!BI70 -> 24.2 | Y77: =iSummary!BY70 -> 1 | Z77: 2 | AB77: =iSummary!BZ70 -> =62 | AC77: =iSummary!CA70 -> New Zealand | AD77: =iSummary!CB70 -> 23.1 | AE77: =iSummary!CC70 -> 23.1 | AJ77: =iSummary!CS70 -> 1 | AK77: 2 | AM77: =iSummary!CT70 -> 63 | AN77: =iSummary!CU70 -> China | AO77: =iSummary!CV70 -> 48.6 | AP77: =iSummary!CW70 -> 48.6 | AU77: =iSummary!DM70 -> 1 | AV77: 2 | AX77: =iSummary!DN70 -> 63 | AY77: =iSummary!DO70 -> Colombia | AZ77: =iSummary!DP70 -> 24.1 | BA77: =iSummary!DQ70 -> 24.1 | BF77: =iSummary!EG70 -> 1 | BG77: 2 | BI77: =iSummary!EH70 -> 63 | BJ77: =iSummary!EI70 -> Armenia | BK77: =iSummary!EJ70 -> 83.6 | BL77: =iSummary!EK70 -> 83.6
C78: =iSummary!AK71 -> 1 | D78: 2 | F78: =iSummary!AL71 -> 64 | G78: =iSummary!AM71 -> Ethiopia | H78: =iSummary!AN71 -> 4 | I78: =iSummary!AO71 -> 4 | N78: =iSummary!BE71 -> 1 | O78: 1 | Q78: =iSummary!BF71 -> 64 | R78: =iSummary!BG71 -> Dominican Republic | S78: =iSummary!BH71 -> 19.6 | T78: =iSummary!BI71 -> 19.6 | Y78: =iSummary!BY71 -> 1 | Z78: 2 | AB78: =iSummary!BZ71 -> 64 | AC78: =iSummary!CA71 -> Bosnia and Herzegovina | AD78: =iSummary!CB71 -> 22.8 | AE78: =iSummary!CC71 -> 22.8 | AJ78: =iSummary!CS71 -> 1 | AK78: 2 | AM78: =iSummary!CT71 -> 64 | AN78: =iSummary!CU71 -> Georgia | AO78: =iSummary!CV71 -> 48.1 | AP78: =iSummary!CW71 -> 48.1 | AU78: =iSummary!DM71 -> 1 | AV78: 2 | AX78: =iSummary!DN71 -> 64 | AY78: =iSummary!DO71 -> Armenia | AZ78: =iSummary!DP71 -> 23.9 | BA78: =iSummary!DQ71 -> 23.9 | BF78: =iSummary!EG71 -> 1 | BG78: 2 | BI78: =iSummary!EH71 -> 64 | BJ78: =iSummary!EI71 -> Brazil | BK78: =iSummary!EJ71 -> 83.3 | BL78: =iSummary!EK71 -> 83.3
C79: =iSummary!AK72 -> 1 | D79: 2 | F79: =iSummary!AL72 -> =65 | G79: =iSummary!AM72 -> Indonesia | H79: =iSummary!AN72 -> 3.8 | I79: =iSummary!AO72 -> 3.8 | N79: =iSummary!BE72 -> 1 | O79: 5 | Q79: =iSummary!BF72 -> n/a | R79: =iSummary!BG72 -> Armenia | S79: =iSummary!BH72 -> -100 | T79: =iSummary!BI72 -> -100 | Y79: =iSummary!BY72 -> 1 | Z79: 2 | AB79: =iSummary!BZ72 -> 65 | AC79: =iSummary!CA72 -> Greece | AD79: =iSummary!CB72 -> 22.5 | AE79: =iSummary!CC72 -> 22.5 | AJ79: =iSummary!CS72 -> 1 | AK79: 2 | AM79: =iSummary!CT72 -> 65 | AN79: =iSummary!CU72 -> Thailand | AO79: =iSummary!CV72 -> 47.4 | AP79: =iSummary!CW72 -> 47.4 | AU79: =iSummary!DM72 -> 1 | AV79: 2 | AX79: =iSummary!DN72 -> 65 | AY79: =iSummary!DO72 -> Mexico | AZ79: =iSummary!DP72 -> 23.7 | BA79: =iSummary!DQ72 -> 23.7 | BF79: =iSummary!EG72 -> 1 | BG79: 2 | BI79: =iSummary!EH72 -> 65 | BJ79: =iSummary!EI72 -> Qatar | BK79: =iSummary!EJ72 -> 83 | BL79: =iSummary!EK72 -> 83
C80: =iSummary!AK73 -> 1 | D80: =IF(C80=0,0,IF(H80=-100,5,IF(H80<=H$118,1,IF(H80<=H$119,2,IF(H80<=H$120,3,4))))) -> 2 | F80: =iSummary!AL73 -> =65 | G80: =iSummary!AM73 -> Malta | H80: =iSummary!AN73 -> 3.8 | I80: =iSummary!AO73 -> 3.8 | N80: =iSummary!BE73 -> 1 | O80: =IF(N80=0,0,IF(S80=-100,5,IF(S80<=S$118,1,IF(S80<=S$119,2,IF(S80<=S$120,3,4))))) -> 5 | Q80: =iSummary!BF73 -> n/a | R80: =iSummary!BG73 -> Azerbaijan | S80: =iSummary!BH73 -> -100 | T80: =iSummary!BI73 -> -100 | Y80: =iSummary!BY73 -> 1 | Z80: =IF(Y80=0,0,IF(AD80=-100,5,IF(AD80<=AD$118,1,IF(AD80<=AD$119,2,IF(AD80<=AD$120,3,4))))) -> 2 | AB80: =iSummary!BZ73 -> 66 | AC80: =iSummary!CA73 -> Kuwait | AD80: =iSummary!CB73 -> 22.4 | AE80: =iSummary!CC73 -> 22.4 | AJ80: =iSummary!CS73 -> 1 | AK80: =IF(AJ80=0,0,IF(AO80=-100,5,IF(AO80<=AO$118,1,IF(AO80<=AO$119,2,IF(AO80<=AO$120,3,4))))) -> 2 | AM80: =iSummary!CT73 -> 66 | AN80: =iSummary!CU73 -> Iran | AO80: =iSummary!CV73 -> 46.9 | AP80: =iSummary!CW73 -> 46.9 | AU80: =iSummary!DM73 -> 1 | AV80: =IF(AU80=0,0,IF(AZ80=-100,5,IF(AZ80<=AZ$118,1,IF(AZ80<=AZ$119,2,IF(AZ80<=AZ$120,3,4))))) -> 2 | AX80: =iSummary!DN73 -> 66 | AY80: =iSummary!DO73 -> Bosnia and Herzegovina | AZ80: =iSummary!DP73 -> 23.6 | BA80: =iSummary!DQ73 -> 23.6 | BF80: =iSummary!EG73 -> 1 | BG80: =IF(BF80=0,0,IF(BK80=-100,5,IF(BK80<=BK$118,1,IF(BK80<=BK$119,2,IF(BK80<=BK$120,3,4))))) -> 2 | BI80: =iSummary!EH73 -> 66 | BJ80: =iSummary!EI73 -> Peru | BK80: =iSummary!EJ73 -> 82.9 | BL80: =iSummary!EK73 -> 82.9
C81: =iSummary!AK74 -> 1 | D81: 2 | F81: =iSummary!AL74 -> 67 | G81: =iSummary!AM74 -> Albania | H81: =iSummary!AN74 -> 3.7 | I81: =iSummary!AO74 -> 3.7 | N81: =iSummary!BE74 -> 1 | O81: 5 | Q81: =iSummary!BF74 -> n/a | R81: =iSummary!BG74 -> Bahrain | S81: =iSummary!BH74 -> -100 | T81: =iSummary!BI74 -> -100 | Y81: =iSummary!BY74 -> 1 | Z81: 2 | AB81: =iSummary!BZ74 -> 67 | AC81: =iSummary!CA74 -> Lebanon | AD81: =iSummary!CB74 -> 21.6 | AE81: =iSummary!CC74 -> 21.6 | AJ81: =iSummary!CS74 -> 1 | AK81: 2 | AM81: =iSummary!CT74 -> 67 | AN81: =iSummary!CU74 -> Sri Lanka | AO81: =iSummary!CV74 -> 46.7 | AP81: =iSummary!CW74 -> 46.7 | AU81: =iSummary!DM74 -> 1 | AV81: 2 | AX81: =iSummary!DN74 -> 67 | AY81: =iSummary!DO74 -> Georgia | AZ81: =iSummary!DP74 -> 23 | BA81: =iSummary!DQ74 -> 23 | BF81: =iSummary!EG74 -> 1 | BG81: 2 | BI81: =iSummary!EH74 -> 67 | BJ81: =iSummary!EI74 -> Viet Nam | BK81: =iSummary!EJ74 -> 81.8 | BL81: =iSummary!EK74 -> 81.8
C82: =iSummary!AK75 -> 1 | D82: 2 | F82: =iSummary!AL75 -> =68 | G82: =iSummary!AM75 -> Bangladesh | H82: =iSummary!AN75 -> 3.6 | I82: =iSummary!AO75 -> 3.6 | N82: =iSummary!BE75 -> 1 | O82: 5 | Q82: =iSummary!BF75 -> n/a | R82: =iSummary!BG75 -> Bangladesh | S82: =iSummary!BH75 -> -100 | T82: =iSummary!BI75 -> -100 | Y82: =iSummary!BY75 -> 1 | Z82: 2 | AB82: =iSummary!BZ75 -> 68 | AC82: =iSummary!CA75 -> Laos | AD82: =iSummary!CB75 -> 21 | AE82: =iSummary!CC75 -> 21 | AJ82: =iSummary!CS75 -> 1 | AK82: 2 | AM82: =iSummary!CT75 -> 68 | AN82: =iSummary!CU75 -> Bosnia and Herzegovina | AO82: =iSummary!CV75 -> 46.6 | AP82: =iSummary!CW75 -> 46.6 | AU82: =iSummary!DM75 -> 1 | AV82: 2 | AX82: =iSummary!DN75 -> 68 | AY82: =iSummary!DO75 -> Jordan | AZ82: =iSummary!DP75 -> 22.4 | BA82: =iSummary!DQ75 -> 22.4 | BF82: =iSummary!EG75 -> 1 | BG82: 2 | BI82: =iSummary!EH75 -> 68 | BJ82: =iSummary!EI75 -> Argentina | BK82: =iSummary!EJ75 -> 80.7 | BL82: =iSummary!EK75 -> 80.7
C83: =iSummary!AK76 -> 1 | D83: 2 | F83: =iSummary!AL76 -> =68 | G83: =iSummary!AM76 -> Nigeria | H83: =iSummary!AN76 -> 3.6 | I83: =iSummary!AO76 -> 3.6 | N83: =iSummary!BE76 -> 1 | O83: 5 | Q83: =iSummary!BF76 -> n/a | R83: =iSummary!BG76 -> Benin | S83: =iSummary!BH76 -> -100 | T83: =iSummary!BI76 -> -100 | Y83: =iSummary!BY76 -> 1 | Z83: 2 | AB83: =iSummary!BZ76 -> 69 | AC83: =iSummary!CA76 -> Costa Rica | AD83: =iSummary!CB76 -> 19.7 | AE83: =iSummary!CC76 -> 19.7 | AJ83: =iSummary!CS76 -> 1 | AK83: 2 | AM83: =iSummary!CT76 -> 69 | AN83: =iSummary!CU76 -> Romania | AO83: =iSummary!CV76 -> 45 | AP83: =iSummary!CW76 -> 45 | AU83: =iSummary!DM76 -> 1 | AV83: 2 | AX83: =iSummary!DN76 -> 69 | AY83: =iSummary!DO76 -> Peru | AZ83: =iSummary!DP76 -> 21.3 | BA83: =iSummary!DQ76 -> 21.3 | BF83: =iSummary!EG76 -> 1 | BG83: 2 | BI83: =iSummary!EH76 -> 69 | BJ83: =iSummary!EI76 -> Algeria | BK83: =iSummary!EJ76 -> 80.6 | BL83: =iSummary!EK76 -> 80.6
C84: =iSummary!AK77 -> 1 | D84: 2 | F84: =iSummary!AL77 -> 70 | G84: =iSummary!AM77 -> Dominican Republic | H84: =iSummary!AN77 -> 3.5 | I84: =iSummary!AO77 -> 3.5 | N84: =iSummary!BE77 -> 1 | O84: 5 | Q84: =iSummary!BF77 -> n/a | R84: =iSummary!BG77 -> Bosnia and Herzegovina | S84: =iSummary!BH77 -> -100 | T84: =iSummary!BI77 -> -100 | Y84: =iSummary!BY77 -> 1 | Z84: 2 | AB84: =iSummary!BZ77 -> 70 | AC84: =iSummary!CA77 -> Guyana | AD84: =iSummary!CB77 -> 19.2 | AE84: =iSummary!CC77 -> 19.2 | AJ84: =iSummary!CS77 -> 1 | AK84: 1 | AM84: =iSummary!CT77 -> 70 | AN84: =iSummary!CU77 -> Colombia | AO84: =iSummary!CV77 -> 44.4 | AP84: =iSummary!CW77 -> 44.4 | AU84: =iSummary!DM77 -> 1 | AV84: 2 | AX84: =iSummary!DN77 -> =70 | AY84: =iSummary!DO77 -> Azerbaijan | AZ84: =iSummary!DP77 -> 20.8 | BA84: =iSummary!DQ77 -> 20.8 | BF84: =iSummary!EG77 -> 1 | BG84: 1 | BI84: =iSummary!EH77 -> =70 | BJ84: =iSummary!EI77 -> China | BK84: =iSummary!EJ77 -> 80.3 | BL84: =iSummary!EK77 -> 80.3
C85: =iSummary!AK78 -> 1 | D85: 2 | F85: =iSummary!AL78 -> 71 | G85: =iSummary!AM78 -> Guyana | H85: =iSummary!AN78 -> 3.4 | I85: =iSummary!AO78 -> 3.4 | N85: =iSummary!BE78 -> 1 | O85: 5 | Q85: =iSummary!BF78 -> n/a | R85: =iSummary!BG78 -> Burundi | S85: =iSummary!BH78 -> -100 | T85: =iSummary!BI78 -> -100 | Y85: =iSummary!BY78 -> 1 | Z85: 2 | AB85: =iSummary!BZ78 -> 71 | AC85: =iSummary!CA78 -> Jordan | AD85: =iSummary!CB78 -> 19 | AE85: =iSummary!CC78 -> 19 | AJ85: =iSummary!CS78 -> 1 | AK85: 1 | AM85: =iSummary!CT78 -> 71 | AN85: =iSummary!CU78 -> Costa Rica | AO85: =iSummary!CV78 -> 44.3 | AP85: =iSummary!CW78 -> 44.3 | AU85: =iSummary!DM78 -> 1 | AV85: 2 | AX85: =iSummary!DN78 -> =70 | AY85: =iSummary!DO78 -> Ecuador | AZ85: =iSummary!DP78 -> 20.8 | BA85: =iSummary!DQ78 -> 20.8 | BF85: =iSummary!EG78 -> 1 | BG85: 1 | BI85: =iSummary!EH78 -> =70 | BJ85: =iSummary!EI78 -> Uruguay | BK85: =iSummary!EJ78 -> 80.3 | BL85: =iSummary!EK78 -> 80.3
C86: =iSummary!AK79 -> 1 | D86: 2 | F86: =iSummary!AL79 -> =72 | G86: =iSummary!AM79 -> Armenia | H86: =iSummary!AN79 -> 3.2 | I86: =iSummary!AO79 -> 3.2 | N86: =iSummary!BE79 -> 1 | O86: 5 | Q86: =iSummary!BF79 -> n/a | R86: =iSummary!BG79 -> Ecuador | S86: =iSummary!BH79 -> -100 | T86: =iSummary!BI79 -> -100 | Y86: =iSummary!BY79 -> 1 | Z86: 2 | AB86: =iSummary!BZ79 -> 72 | AC86: =iSummary!CA79 -> Armenia | AD86: =iSummary!CB79 -> 18.9 | AE86: =iSummary!CC79 -> 18.9 | AJ86: =iSummary!CS79 -> 1 | AK86: 1 | AM86: =iSummary!CT79 -> 72 | AN86: =iSummary!CU79 -> Ecuador | AO86: =iSummary!CV79 -> 43.6 | AP86: =iSummary!CW79 -> 43.6 | AU86: =iSummary!DM79 -> 1 | AV86: 2 | AX86: =iSummary!DN79 -> 72 | AY86: =iSummary!DO79 -> Mongolia | AZ86: =iSummary!DP79 -> 20.7 | BA86: =iSummary!DQ79 -> 20.7 | BF86: =iSummary!EG79 -> 1 | BG86: 1 | BI86: =iSummary!EH79 -> 72 | BJ86: =iSummary!EI79 -> Morocco | BK86: =iSummary!EJ79 -> 79.5 | BL86: =iSummary!EK79 -> 79.5
C87: =iSummary!AK80 -> 1 | D87: 2 | F87: =iSummary!AL80 -> =72 | G87: =iSummary!AM80 -> Costa Rica | H87: =iSummary!AN80 -> 3.2 | I87: =iSummary!AO80 -> 3.2 | N87: =iSummary!BE80 -> 1 | O87: 5 | Q87: =iSummary!BF80 -> n/a | R87: =iSummary!BG80 -> Egypt | S87: =iSummary!BH80 -> -100 | T87: =iSummary!BI80 -> -100 | Y87: =iSummary!BY80 -> 1 | Z87: 2 | AB87: =iSummary!BZ80 -> 73 | AC87: =iSummary!CA80 -> Uruguay | AD87: =iSummary!CB80 -> 18.2 | AE87: =iSummary!CC80 -> 18.2 | AJ87: =iSummary!CS80 -> 1 | AK87: 1 | AM87: =iSummary!CT80 -> 73 | AN87: =iSummary!CU80 -> Lebanon | AO87: =iSummary!CV80 -> 43.3 | AP87: =iSummary!CW80 -> 43.3 | AU87: =iSummary!DM80 -> 1 | AV87: 2 | AX87: =iSummary!DN80 -> 73 | AY87: =iSummary!DO80 -> Viet Nam | AZ87: =iSummary!DP80 -> 20.5 | BA87: =iSummary!DQ80 -> 20.5 | BF87: =iSummary!EG80 -> 1 | BG87: 1 | BI87: =iSummary!EH80 -> 73 | BJ87: =iSummary!EI80 -> Azerbaijan | BK87: =iSummary!EJ80 -> 78.2 | BL87: =iSummary!EK80 -> 78.2
C88: =iSummary!AK81 -> 1 | D88: 2 | F88: =iSummary!AL81 -> =72 | G88: =iSummary!AM81 -> Uruguay | H88: =iSummary!AN81 -> 3.2 | I88: =iSummary!AO81 -> 3.2 | N88: =iSummary!BE81 -> 1 | O88: 5 | Q88: =iSummary!BF81 -> n/a | R88: =iSummary!BG81 -> El Salvador | S88: =iSummary!BH81 -> -100 | T88: =iSummary!BI81 -> -100 | Y88: =iSummary!BY81 -> 1 | Z88: 2 | AB88: =iSummary!BZ81 -> 74 | AC88: =iSummary!CA81 -> Tunisia | AD88: =iSummary!CB81 -> 17.6 | AE88: =iSummary!CC81 -> 17.6 | AJ88: =iSummary!CS81 -> 1 | AK88: 1 | AM88: =iSummary!CT81 -> 74 | AN88: =iSummary!CU81 -> Jordan | AO88: =iSummary!CV81 -> 42.7 | AP88: =iSummary!CW81 -> 42.7 | AU88: =iSummary!DM81 -> 1 | AV88: 1 | AX88: =iSummary!DN81 -> =74 | AY88: =iSummary!DO81 -> India | AZ88: =iSummary!DP81 -> 19.2 | BA88: =iSummary!DQ81 -> 19.2 | BF88: =iSummary!EG81 -> 1 | BG88: 1 | BI88: =iSummary!EH81 -> 74 | BJ88: =iSummary!EI81 -> UAE | BK88: =iSummary!EJ81 -> 78.1 | BL88: =iSummary!EK81 -> 78.1
C89: =iSummary!AK82 -> 1 | D89: 1 | F89: =iSummary!AL82 -> =75 | G89: =iSummary!AM82 -> Ecuador | H89: =iSummary!AN82 -> 3.1 | I89: =iSummary!AO82 -> 3.1 | N89: =iSummary!BE82 -> 1 | O89: 5 | Q89: =iSummary!BF82 -> n/a | R89: =iSummary!BG82 -> Ethiopia | S89: =iSummary!BH82 -> -100 | T89: =iSummary!BI82 -> -100 | Y89: =iSummary!BY82 -> 1 | Z89: 1 | AB89: =iSummary!BZ82 -> 75 | AC89: =iSummary!CA82 -> Chile | AD89: =iSummary!CB82 -> 17.3 | AE89: =iSummary!CC82 -> 17.3 | AJ89: =iSummary!CS82 -> 1 | AK89: 1 | AM89: =iSummary!CT82 -> 75 | AN89: =iSummary!CU82 -> Indonesia | AO89: =iSummary!CV82 -> 42.4 | AP89: =iSummary!CW82 -> 42.4 | AU89: =iSummary!DM82 -> 1 | AV89: 1 | AX89: =iSummary!DN82 -> =74 | AY89: =iSummary!DO82 -> Morocco | AZ89: =iSummary!DP82 -> 19.2 | BA89: =iSummary!DQ82 -> 19.2 | BF89: =iSummary!EG82 -> 1 | BG89: 1 | BI89: =iSummary!EH82 -> 75 | BJ89: =iSummary!EI82 -> Ecuador | BK89: =iSummary!EJ82 -> 78 | BL89: =iSummary!EK82 -> 78
C90: =iSummary!AK83 -> 1 | D90: 1 | F90: =iSummary!AL83 -> =75 | G90: =iSummary!AM83 -> Georgia | H90: =iSummary!AN83 -> 3.1 | I90: =iSummary!AO83 -> 3.1 | N90: =iSummary!BE83 -> 1 | O90: 5 | Q90: =iSummary!BF83 -> n/a | R90: =iSummary!BG83 -> Ghana | S90: =iSummary!BH83 -> -100 | T90: =iSummary!BI83 -> -100 | Y90: =iSummary!BY83 -> 1 | Z90: 1 | AB90: =iSummary!BZ83 -> 76 | AC90: =iSummary!CA83 -> UAE | AD90: =iSummary!CB83 -> 17 | AE90: =iSummary!CC83 -> 17 | AJ90: =iSummary!CS83 -> 1 | AK90: 1 | AM90: =iSummary!CT83 -> 76 | AN90: =iSummary!CU83 -> Ukraine | AO90: =iSummary!CV83 -> 40.9 | AP90: =iSummary!CW83 -> 40.9 | AU90: =iSummary!DM83 -> 1 | AV90: 1 | AX90: =iSummary!DN83 -> 76 | AY90: =iSummary!DO83 -> Lebanon | AZ90: =iSummary!DP83 -> 18.3 | BA90: =iSummary!DQ83 -> 18.3 | BF90: =iSummary!EG83 -> 1 | BG90: 1 | BI90: =iSummary!EH83 -> 76 | BJ90: =iSummary!EI83 -> Myanmar | BK90: =iSummary!EJ83 -> 77.1 | BL90: =iSummary!EK83 -> 77.1
C91: =iSummary!AK84 -> 1 | D91: 1 | F91: =iSummary!AL84 -> =75 | G91: =iSummary!AM84 -> Kuwait | H91: =iSummary!AN84 -> 3.1 | I91: =iSummary!AO84 -> 3.1 | N91: =iSummary!BE84 -> 1 | O91: 5 | Q91: =iSummary!BF84 -> n/a | R91: =iSummary!BG84 -> Guyana | S91: =iSummary!BH84 -> -100 | T91: =iSummary!BI84 -> -100 | Y91: =iSummary!BY84 -> 1 | Z91: 1 | AB91: =iSummary!BZ84 -> 77 | AC91: =iSummary!CA84 -> Georgia | AD91: =iSummary!CB84 -> 16.9 | AE91: =iSummary!CC84 -> 16.9 | AJ91: =iSummary!CS84 -> 1 | AK91: 1 | AM91: =iSummary!CT84 -> 77 | AN91: =iSummary!CU84 -> Serbia | AO91: =iSummary!CV84 -> 40.5 | AP91: =iSummary!CW84 -> 40.5 | AU91: =iSummary!DM84 -> 1 | AV91: 1 | AX91: =iSummary!DN84 -> 77 | AY91: =iSummary!DO84 -> Tunisia | AZ91: =iSummary!DP84 -> 18.2 | BA91: =iSummary!DQ84 -> 18.2 | BF91: =iSummary!EG84 -> 1 | BG91: 1 | BI91: =iSummary!EH84 -> =77 | BJ91: =iSummary!EI84 -> Latvia | BK91: =iSummary!EJ84 -> 76.2 | BL91: =iSummary!EK84 -> 76.2
C92: =iSummary!AK85 -> 1 | D92: 1 | F92: =iSummary!AL85 -> 78 | G92: =iSummary!AM85 -> Oman | H92: =iSummary!AN85 -> 3 | I92: =iSummary!AO85 -> 3 | N92: =iSummary!BE85 -> 1 | O92: 5 | Q92: =iSummary!BF85 -> n/a | R92: =iSummary!BG85 -> Honduras | S92: =iSummary!BH85 -> -100 | T92: =iSummary!BI85 -> -100 | Y92: =iSummary!BY85 -> 1 | Z92: 1 | AB92: =iSummary!BZ85 -> 78 | AC92: =iSummary!CA85 -> Dominican Republic | AD92: =iSummary!CB85 -> 16.5 | AE92: =iSummary!CC85 -> 16.5 | AJ92: =iSummary!CS85 -> 1 | AK92: 1 | AM92: =iSummary!CT85 -> 78 | AN92: =iSummary!CU85 -> Brazil | AO92: =iSummary!CV85 -> 39.4 | AP92: =iSummary!CW85 -> 39.4 | AU92: =iSummary!DM85 -> 1 | AV92: 1 | AX92: =iSummary!DN85 -> 78 | AY92: =iSummary!DO85 -> Dominican Republic | AZ92: =iSummary!DP85 -> 17 | BA92: =iSummary!DQ85 -> 17 | BF92: =iSummary!EG85 -> 1 | BG92: 1 | BI92: =iSummary!EH85 -> =77 | BJ92: =iSummary!EI85 -> South Africa | BK92: =iSummary!EJ85 -> 76.2 | BL92: =iSummary!EK85 -> 76.2
C93: =iSummary!AK86 -> 1 | D93: 1 | F93: =iSummary!AL86 -> 79 | G93: =iSummary!AM86 -> Ghana | H93: =iSummary!AN86 -> 2.6 | I93: =iSummary!AO86 -> 2.6 | N93: =iSummary!BE86 -> 1 | O93: 5 | Q93: =iSummary!BF86 -> n/a | R93: =iSummary!BG86 -> India | S93: =iSummary!BH86 -> -100 | T93: =iSummary!BI86 -> -100 | Y93: =iSummary!BY86 -> 1 | Z93: 1 | AB93: =iSummary!BZ86 -> 79 | AC93: =iSummary!CA86 -> El Salvador | AD93: =iSummary!CB86 -> 15 | AE93: =iSummary!CC86 -> 15 | AJ93: =iSummary!CS86 -> 1 | AK93: 1 | AM93: =iSummary!CT86 -> 79 | AN93: =iSummary!CU86 -> Peru | AO93: =iSummary!CV86 -> 39.3 | AP93: =iSummary!CW86 -> 39.3 | AU93: =iSummary!DM86 -> 1 | AV93: 1 | AX93: =iSummary!DN86 -> 79 | AY93: =iSummary!DO86 -> Iran | AZ93: =iSummary!DP86 -> 16.6 | BA93: =iSummary!DQ86 -> 16.6 | BF93: =iSummary!EG86 -> 1 | BG93: 1 | BI93: =iSummary!EH86 -> 79 | BJ93: =iSummary!EI86 -> Bangladesh | BK93: =iSummary!EJ86 -> 74.5 | BL93: =iSummary!EK86 -> 74.5
C94: =iSummary!AK87 -> 1 | D94: 1 | F94: =iSummary!AL87 -> 80 | G94: =iSummary!AM87 -> Philippines | H94: =iSummary!AN87 -> 2.4 | I94: =iSummary!AO87 -> 2.4 | N94: =iSummary!BE87 -> 1 | O94: 5 | Q94: =iSummary!BF87 -> n/a | R94: =iSummary!BG87 -> Iran | S94: =iSummary!BH87 -> -100 | T94: =iSummary!BI87 -> -100 | Y94: =iSummary!BY87 -> 1 | Z94: 1 | AB94: =iSummary!BZ87 -> 80 | AC94: =iSummary!CA87 -> Sri Lanka | AD94: =iSummary!CB87 -> 14.8 | AE94: =iSummary!CC87 -> 14.8 | AJ94: =iSummary!CS87 -> 1 | AK94: 1 | AM94: =iSummary!CT87 -> 80 | AN94: =iSummary!CU87 -> Philippines | AO94: =iSummary!CV87 -> 38.9 | AP94: =iSummary!CW87 -> 38.9 | AU94: =iSummary!DM87 -> 1 | AV94: 1 | AX94: =iSummary!DN87 -> 80 | AY94: =iSummary!DO87 -> Sri Lanka | AZ94: =iSummary!DP87 -> 16.5 | BA94: =iSummary!DQ87 -> 16.5 | BF94: =iSummary!EG87 -> 1 | BG94: 1 | BI94: =iSummary!EH87 -> 80 | BJ94: =iSummary!EI87 -> Lithuania | BK94: =iSummary!EJ87 -> 73.7 | BL94: =iSummary!EK87 -> 73.7
C95: =iSummary!AK88 -> 1 | D95: 1 | F95: =iSummary!AL88 -> =81 | G95: =iSummary!AM88 -> Azerbaijan | H95: =iSummary!AN88 -> 2.3 | I95: =iSummary!AO88 -> 2.3 | N95: =iSummary!BE88 -> 1 | O95: 5 | Q95: =iSummary!BF88 -> n/a | R95: =iSummary!BG88 -> Kuwait | S95: =iSummary!BH88 -> -100 | T95: =iSummary!BI88 -> -100 | Y95: =iSummary!BY88 -> 1 | Z95: 1 | AB95: =iSummary!BZ88 -> =81 | AC95: =iSummary!CA88 -> Ecuador | AD95: =iSummary!CB88 -> 14 | AE95: =iSummary!CC88 -> 14 | AJ95: =iSummary!CS88 -> 1 | AK95: 1 | AM95: =iSummary!CT88 -> 81 | AN95: =iSummary!CU88 -> Laos | AO95: =iSummary!CV88 -> 38.6 | AP95: =iSummary!CW88 -> 38.6 | AU95: =iSummary!DM88 -> 1 | AV95: 1 | AX95: =iSummary!DN88 -> =81 | AY95: =iSummary!DO88 -> Egypt | AZ95: =iSummary!DP88 -> 16.4 | BA95: =iSummary!DQ88 -> 16.4 | BF95: =iSummary!EG88 -> 1 | BG95: 1 | BI95: =iSummary!EH88 -> 81 | BJ95: =iSummary!EI88 -> Ghana | BK95: =iSummary!EJ88 -> 73.5 | BL95: =iSummary!EK88 -> 73.5
C96: =iSummary!AK89 -> 1 | D96: 1 | F96: =iSummary!AL89 -> =81 | G96: =iSummary!AM89 -> Mauritius | H96: =iSummary!AN89 -> 2.3 | I96: =iSummary!AO89 -> 2.3 | N96: =iSummary!BE89 -> 1 | O96: 5 | Q96: =iSummary!BF89 -> n/a | R96: =iSummary!BG89 -> Laos | S96: =iSummary!BH89 -> -100 | T96: =iSummary!BI89 -> -100 | Y96: =iSummary!BY89 -> 1 | Z96: 1 | AB96: =iSummary!BZ89 -> =81 | AC96: =iSummary!CA89 -> Rwanda | AD96: =iSummary!CB89 -> 14 | AE96: =iSummary!CC89 -> 14 | AJ96: =iSummary!CS89 -> 1 | AK96: 1 | AM96: =iSummary!CT89 -> 82 | AN96: =iSummary!CU89 -> Ghana | AO96: =iSummary!CV89 -> 38.3 | AP96: =iSummary!CW89 -> 38.3 | AU96: =iSummary!DM89 -> 1 | AV96: 1 | AX96: =iSummary!DN89 -> =81 | AY96: =iSummary!DO89 -> Philippines | AZ96: =iSummary!DP89 -> 16.4 | BA96: =iSummary!DQ89 -> 16.4 | BF96: =iSummary!EG89 -> 1 | BG96: 1 | BI96: =iSummary!EH89 -> 82 | BJ96: =iSummary!EI89 -> India | BK96: =iSummary!EJ89 -> 72.8 | BL96: =iSummary!EK89 -> 72.8
C97: =iSummary!AK90 -> 1 | D97: 1 | F97: =iSummary!AL90 -> =81 | G97: =iSummary!AM90 -> Nepal | H97: =iSummary!AN90 -> 2.3 | I97: =iSummary!AO90 -> 2.3 | N97: =iSummary!BE90 -> 1 | O97: 5 | Q97: =iSummary!BF90 -> n/a | R97: =iSummary!BG90 -> Madagascar | S97: =iSummary!BH90 -> -100 | T97: =iSummary!BI90 -> -100 | Y97: =iSummary!BY90 -> 1 | Z97: 1 | AB97: =iSummary!BZ90 -> 83 | AC97: =iSummary!CA90 -> Panama | AD97: =iSummary!CB90 -> 13.9 | AE97: =iSummary!CC90 -> 13.9 | AJ97: =iSummary!CS90 -> 1 | AK97: 1 | AM97: =iSummary!CT90 -> 83 | AN97: =iSummary!CU90 -> Honduras | AO97: =iSummary!CV90 -> 38 | AP97: =iSummary!CW90 -> 38 | AU97: =iSummary!DM90 -> 1 | AV97: 1 | AX97: =iSummary!DN90 -> 83 | AY97: =iSummary!DO90 -> El Salvador | AZ97: =iSummary!DP90 -> 15.4 | BA97: =iSummary!DQ90 -> 15.4 | BF97: =iSummary!EG90 -> 1 | BG97: 1 | BI97: =iSummary!EH90 -> 83 | BJ97: =iSummary!EI90 -> Kazakhstan | BK97: =iSummary!EJ90 -> 72.3 | BL97: =iSummary!EK90 -> 72.3
C98: =iSummary!AK91 -> 1 | D98: 1 | F98: =iSummary!AL91 -> 84 | G98: =iSummary!AM91 -> Benin | H98: =iSummary!AN91 -> 2.2 | I98: =iSummary!AO91 -> 2.2 | N98: =iSummary!BE91 -> 1 | O98: 5 | Q98: =iSummary!BF91 -> n/a | R98: =iSummary!BG91 -> Mauritius | S98: =iSummary!BH91 -> -100 | T98: =iSummary!BI91 -> -100 | Y98: =iSummary!BY91 -> 1 | Z98: 1 | AB98: =iSummary!BZ91 -> 84 | AC98: =iSummary!CA91 -> Ethiopia | AD98: =iSummary!CB91 -> 13.8 | AE98: =iSummary!CC91 -> 13.8 | AJ98: =iSummary!CS91 -> 1 | AK98: 1 | AM98: =iSummary!CT91 -> 84 | AN98: =iSummary!CU91 -> Mongolia | AO98: =iSummary!CV91 -> 37.1 | AP98: =iSummary!CW91 -> 37.1 | AU98: =iSummary!DM91 -> 1 | AV98: 1 | AX98: =iSummary!DN91 -> =84 | AY98: =iSummary!DO91 -> Ghana | AZ98: =iSummary!DP91 -> 14.7 | BA98: =iSummary!DQ91 -> 14.7 | BF98: =iSummary!EG91 -> 1 | BG98: 1 | BI98: =iSummary!EH91 -> 84 | BJ98: =iSummary!EI91 -> Guyana | BK98: =iSummary!EJ91 -> 71.3 | BL98: =iSummary!EK91 -> 71.3
C99: =iSummary!AK92 -> 1 | D99: 1 | F99: =iSummary!AL92 -> 85 | G99: =iSummary!AM92 -> Mozambique | H99: =iSummary!AN92 -> 2.1 | I99: =iSummary!AO92 -> 2.1 | N99: =iSummary!BE92 -> 1 | O99: 5 | Q99: =iSummary!BF92 -> n/a | R99: =iSummary!BG92 -> Mongolia | S99: =iSummary!BH92 -> -100 | T99: =iSummary!BI92 -> -100 | Y99: =iSummary!BY92 -> 1 | Z99: 1 | AB99: =iSummary!BZ92 -> 85 | AC99: =iSummary!CA92 -> Mauritius | AD99: =iSummary!CB92 -> 13.5 | AE99: =iSummary!CC92 -> 13.5 | AJ99: =iSummary!CS92 -> 1 | AK99: 1 | AM99: =iSummary!CT92 -> 85 | AN99: =iSummary!CU92 -> Guyana | AO99: =iSummary!CV92 -> 36.3 | AP99: =iSummary!CW92 -> 36.3 | AU99: =iSummary!DM92 -> 1 | AV99: 1 | AX99: =iSummary!DN92 -> =84 | AY99: =iSummary!DO92 -> Indonesia | AZ99: =iSummary!DP92 -> 14.7 | BA99: =iSummary!DQ92 -> 14.7 | BF99: =iSummary!EG92 -> 1 | BG99: 1 | BI99: =iSummary!EH92 -> 85 | BJ99: =iSummary!EI92 -> Ukraine | BK99: =iSummary!EJ92 -> 70.2 | BL99: =iSummary!EK92 -> 70.2
C100: =iSummary!AK93 -> 1 | D100: 1 | F100: =iSummary!AL93 -> 86 | G100: =iSummary!AM93 -> Bosnia and Herzegovina | H100: =iSummary!AN93 -> 2 | I100: =iSummary!AO93 -> 2 | N100: =iSummary!BE93 -> 1 | O100: 5 | Q100: =iSummary!BF93 -> n/a | R100: =iSummary!BG93 -> Morocco | S100: =iSummary!BH93 -> -100 | T100: =iSummary!BI93 -> -100 | Y100: =iSummary!BY93 -> 1 | Z100: 1 | AB100: =iSummary!BZ93 -> 86 | AC100: =iSummary!CA93 -> Albania | AD100: =iSummary!CB93 -> 13.1 | AE100: =iSummary!CC93 -> 13.1 | AJ100: =iSummary!CS93 -> 1 | AK100: 1 | AM100: =iSummary!CT93 -> 86 | AN100: =iSummary!CU93 -> Viet Nam | AO100: =iSummary!CV93 -> 35.8 | AP100: =iSummary!CW93 -> 35.8 | AU100: =iSummary!DM93 -> 1 | AV100: 1 | AX100: =iSummary!DN93 -> 86 | AY100: =iSummary!DO93 -> Rwanda | AZ100: =iSummary!DP93 -> 12 | BA100: =iSummary!DQ93 -> 12 | BF100: =iSummary!EG93 -> 1 | BG100: 1 | BI100: =iSummary!EH93 -> 86 | BJ100: =iSummary!EI93 -> Georgia | BK100: =iSummary!EJ93 -> 68.2 | BL100: =iSummary!EK93 -> 68.2
C101: =iSummary!AK94 -> 1 | D101: 1 | F101: =iSummary!AL94 -> 87 | G101: =iSummary!AM94 -> Sri Lanka | H101: =iSummary!AN94 -> 1.9 | I101: =iSummary!AO94 -> 1.9 | N101: =iSummary!BE94 -> 1 | O101: 5 | Q101: =iSummary!BF94 -> n/a | R101: =iSummary!BG94 -> Mozambique | S101: =iSummary!BH94 -> -100 | T101: =iSummary!BI94 -> -100 | Y101: =iSummary!BY94 -> 1 | Z101: 1 | AB101: =iSummary!BZ94 -> 87 | AC101: =iSummary!CA94 -> Algeria | AD101: =iSummary!CB94 -> 12.5 | AE101: =iSummary!CC94 -> 12.5 | AJ101: =iSummary!CS94 -> 1 | AK101: 1 | AM101: =iSummary!CT94 -> 87 | AN101: =iSummary!CU94 -> Algeria | AO101: =iSummary!CV94 -> 35.4 | AP101: =iSummary!CW94 -> 35.4 | AU101: =iSummary!DM94 -> 1 | AV101: 1 | AX101: =iSummary!DN94 -> 87 | AY101: =iSummary!DO94 -> Honduras | AZ101: =iSummary!DP94 -> 11.8 | BA101: =iSummary!DQ94 -> 11.8 | BF101: =iSummary!EG94 -> 1 | BG101: 1 | BI101: =iSummary!EH94 -> 87 | BJ101: =iSummary!EI94 -> Nigeria | BK101: =iSummary!EJ94 -> 66.6 | BL101: =iSummary!EK94 -> 66.6
C102: =iSummary!AK95 -> 1 | D102: 1 | F102: =iSummary!AL95 -> =88 | G102: =iSummary!AM95 -> Laos | H102: =iSummary!AN95 -> 1.8 | I102: =iSummary!AO95 -> 1.8 | N102: =iSummary!BE95 -> 1 | O102: 5 | Q102: =iSummary!BF95 -> n/a | R102: =iSummary!BG95 -> Myanmar | S102: =iSummary!BH95 -> -100 | T102: =iSummary!BI95 -> -100 | Y102: =iSummary!BY95 -> 1 | Z102: 1 | AB102: =iSummary!BZ95 -> 88 | AC102: =iSummary!CA95 -> Azerbaijan | AD102: =iSummary!CB95 -> 11.5 | AE102: =iSummary!CC95 -> 11.5 | AJ102: =iSummary!CS95 -> 1 | AK102: 1 | AM102: =iSummary!CT95 -> 88 | AN102: =iSummary!CU95 -> El Salvador | AO102: =iSummary!CV95 -> 34.9 | AP102: =iSummary!CW95 -> 34.9 | AU102: =iSummary!DM95 -> 1 | AV102: 1 | AX102: =iSummary!DN95 -> 88 | AY102: =iSummary!DO95 -> Nigeria | AZ102: =iSummary!DP95 -> 11.3 | BA102: =iSummary!DQ95 -> 11.3 | BF102: =iSummary!EG95 -> 1 | BG102: 1 | BI102: =iSummary!EH95 -> 88 | BJ102: =iSummary!EI95 -> Iran | BK102: =iSummary!EJ95 -> 66.3 | BL102: =iSummary!EK95 -> 66.3
C103: =iSummary!AK96 -> 1 | D103: 1 | F103: =iSummary!AL96 -> =88 | G103: =iSummary!AM96 -> Rwanda | H103: =iSummary!AN96 -> 1.8 | I103: =iSummary!AO96 -> 1.8 | N103: =iSummary!BE96 -> 1 | O103: 5 | Q103: =iSummary!BF96 -> n/a | R103: =iSummary!BG96 -> Nepal | S103: =iSummary!BH96 -> -100 | T103: =iSummary!BI96 -> -100 | Y103: =iSummary!BY96 -> 1 | Z103: 1 | AB103: =iSummary!BZ96 -> 89 | AC103: =iSummary!CA96 -> Mongolia | AD103: =iSummary!CB96 -> 10.7 | AE103: =iSummary!CC96 -> 10.7 | AJ103: =iSummary!CS96 -> 1 | AK103: 1 | AM103: =iSummary!CT96 -> 89 | AN103: =iSummary!CU96 -> India | AO103: =iSummary!CV96 -> 33.7 | AP103: =iSummary!CW96 -> 33.7 | AU103: =iSummary!DM96 -> 1 | AV103: 1 | AX103: =iSummary!DN96 -> 89 | AY103: =iSummary!DO96 -> Algeria | AZ103: =iSummary!DP96 -> 10.8 | BA103: =iSummary!DQ96 -> 10.8 | BF103: =iSummary!EG96 -> 1 | BG103: 1 | BI103: =iSummary!EH96 -> 89 | BJ103: =iSummary!EI96 -> Russian Federation | BK103: =iSummary!EJ96 -> 63.9 | BL103: =iSummary!EK96 -> 63.9
C104: =iSummary!AK97 -> 1 | D104: 1 | F104: =iSummary!AL97 -> =90 | G104: =iSummary!AM97 -> Burundi | H104: =iSummary!AN97 -> 1.7 | I104: =iSummary!AO97 -> 1.7 | N104: =iSummary!BE97 -> 1 | O104: 5 | Q104: =iSummary!BF97 -> n/a | R104: =iSummary!BG97 -> Nigeria | S104: =iSummary!BH97 -> -100 | T104: =iSummary!BI97 -> -100 | Y104: =iSummary!BY97 -> 1 | Z104: 1 | AB104: =iSummary!BZ97 -> 90 | AC104: =iSummary!CA97 -> Nigeria | AD104: =iSummary!CB97 -> 10.3 | AE104: =iSummary!CC97 -> 10.3 | AJ104: =iSummary!CS97 -> 1 | AK104: 1 | AM104: =iSummary!CT97 -> 90 | AN104: =iSummary!CU97 -> Myanmar | AO104: =iSummary!CV97 -> 27.3 | AP104: =iSummary!CW97 -> 27.3 | AU104: =iSummary!DM97 -> 1 | AV104: 1 | AX104: =iSummary!DN97 -> 90 | AY104: =iSummary!DO97 -> Bangladesh | AZ104: =iSummary!DP97 -> 10.5 | BA104: =iSummary!DQ97 -> 10.5 | BF104: =iSummary!EG97 -> 1 | BG104: 1 | BI104: =iSummary!EH97 -> 90 | BJ104: =iSummary!EI97 -> Mongolia | BK104: =iSummary!EJ97 -> 62.2 | BL104: =iSummary!EK97 -> 62.2
C105: =iSummary!AK98 -> 1 | D105: 1 | F105: =iSummary!AL98 -> =90 | G105: =iSummary!AM98 -> Kazakhstan | H105: =iSummary!AN98 -> 1.7 | I105: =iSummary!AO98 -> 1.7 | N105: =iSummary!BE98 -> 1 | O105: 5 | Q105: =iSummary!BF98 -> n/a | R105: =iSummary!BG98 -> Oman | S105: =iSummary!BH98 -> -100 | T105: =iSummary!BI98 -> -100 | Y105: =iSummary!BY98 -> 1 | Z105: 1 | AB105: =iSummary!BZ98 -> 91 | AC105: =iSummary!CA98 -> Mozambique | AD105: =iSummary!CB98 -> 9.9 | AE105: =iSummary!CC98 -> 9.9 | AJ105: =iSummary!CS98 -> 1 | AK105: 1 | AM105: =iSummary!CT98 -> 91 | AN105: =iSummary!CU98 -> Nigeria | AO105: =iSummary!CV98 -> 22 | AP105: =iSummary!CW98 -> 22 | AU105: =iSummary!DM98 -> 1 | AV105: 1 | AX105: =iSummary!DN98 -> 91 | AY105: =iSummary!DO98 -> Nepal | AZ105: =iSummary!DP98 -> 10.3 | BA105: =iSummary!DQ98 -> 10.3 | BF105: =iSummary!EG98 -> 1 | BG105: 1 | BI105: =iSummary!EH98 -> 91 | BJ105: =iSummary!EI98 -> Laos | BK105: =iSummary!EJ98 -> 60.6 | BL105: =iSummary!EK98 -> 60.6
C106: =iSummary!AK99 -> 1 | D106: 1 | F106: =iSummary!AL99 -> =90 | G106: =iSummary!AM99 -> Peru | H106: =iSummary!AN99 -> 1.7 | I106: =iSummary!AO99 -> 1.7 | N106: =iSummary!BE99 -> 1 | O106: 5 | Q106: =iSummary!BF99 -> n/a | R106: =iSummary!BG99 -> Panama | S106: =iSummary!BH99 -> -100 | T106: =iSummary!BI99 -> -100 | Y106: =iSummary!BY99 -> 1 | Z106: 1 | AB106: =iSummary!BZ99 -> 92 | AC106: =iSummary!CA99 -> Myanmar | AD106: =iSummary!CB99 -> 9.6 | AE106: =iSummary!CC99 -> 9.6 | AJ106: =iSummary!CS99 -> 1 | AK106: 1 | AM106: =iSummary!CT99 -> 92 | AN106: =iSummary!CU99 -> Bangladesh | AO106: =iSummary!CV99 -> 13.8 | AP106: =iSummary!CW99 -> 13.8 | AU106: =iSummary!DM99 -> 1 | AV106: 1 | AX106: =iSummary!DN99 -> 92 | AY106: =iSummary!DO99 -> Guyana | AZ106: =iSummary!DP99 -> 9.6 | BA106: =iSummary!DQ99 -> 9.6 | BF106: =iSummary!EG99 -> 1 | BG106: 1 | BI106: =iSummary!EH99 -> 92 | BJ106: =iSummary!EI99 -> Thailand | BK106: =iSummary!EJ99 -> 29.5 | BL106: =iSummary!EK99 -> 29.5
C107: =iSummary!AK100 -> 1 | D107: 1 | F107: =iSummary!AL100 -> 93 | G107: =iSummary!AM100 -> Bahrain | H107: =iSummary!AN100 -> 1.6 | I107: =iSummary!AO100 -> 1.6 | N107: =iSummary!BE100 -> 1 | O107: 5 | Q107: =iSummary!BF100 -> n/a | R107: =iSummary!BG100 -> Philippines | S107: =iSummary!BH100 -> -100 | T107: =iSummary!BI100 -> -100 | Y107: =iSummary!BY100 -> 1 | Z107: 1 | AB107: =iSummary!BZ100 -> 93 | AC107: =iSummary!CA100 -> Honduras | AD107: =iSummary!CB100 -> 8.9 | AE107: =iSummary!CC100 -> 8.9 | AJ107: =iSummary!CS100 -> 1 | AK107: 5 | AM107: =iSummary!CT100 -> n/a | AN107: =iSummary!CU100 -> Benin | AO107: =iSummary!CV100 -> -100 | AP107: =iSummary!CW100 -> -100 | AU107: =iSummary!DM100 -> 1 | AV107: 1 | AX107: =iSummary!DN100 -> 93 | AY107: =iSummary!DO100 -> Laos | AZ107: =iSummary!DP100 -> 6.2 | BA107: =iSummary!DQ100 -> 6.2 | BF107: =iSummary!EG100 -> 1 | BG107: 5 | BI107: =iSummary!EH100 -> n/a | BJ107: =iSummary!EI100 -> Benin | BK107: =iSummary!EJ100 -> -100 | BL107: =iSummary!EK100 -> -100
C108: =iSummary!AK101 -> 1 | D108: 1 | F108: =iSummary!AL101 -> 94 | G108: =iSummary!AM101 -> Mongolia | H108: =iSummary!AN101 -> 1.3 | I108: =iSummary!AO101 -> 1.3 | N108: =iSummary!BE101 -> 1 | O108: 5 | Q108: =iSummary!BF101 -> n/a | R108: =iSummary!BG101 -> Rwanda | S108: =iSummary!BH101 -> -100 | T108: =iSummary!BI101 -> -100 | Y108: =iSummary!BY101 -> 1 | Z108: 1 | AB108: =iSummary!BZ101 -> 94 | AC108: =iSummary!CA101 -> Benin | AD108: =iSummary!CB101 -> 8 | AE108: =iSummary!CC101 -> 8 | AJ108: =iSummary!CS101 -> 1 | AK108: 5 | AM108: =iSummary!CT101 -> n/a | AN108: =iSummary!CU101 -> Burundi | AO108: =iSummary!CV101 -> -100 | AP108: =iSummary!CW101 -> -100 | AU108: =iSummary!DM101 -> 1 | AV108: 1 | AX108: =iSummary!DN101 -> 94 | AY108: =iSummary!DO101 -> Madagascar | AZ108: =iSummary!DP101 -> 5.5 | BA108: =iSummary!DQ101 -> 5.5 | BF108: =iSummary!EG101 -> 1 | BG108: 5 | BI108: =iSummary!EH101 -> n/a | BJ108: =iSummary!EI101 -> Burundi | BK108: =iSummary!EJ101 -> -100 | BL108: =iSummary!EK101 -> -100
C109: =iSummary!AK102 -> 1 | D109: 1 | F109: =iSummary!AL102 -> 95 | G109: =iSummary!AM102 -> El Salvador | H109: =iSummary!AN102 -> 1 | I109: =iSummary!AO102 -> 1 | N109: =iSummary!BE102 -> 1 | O109: 5 | Q109: =iSummary!BF102 -> n/a | R109: =iSummary!BG102 -> Saudi Arabia | S109: =iSummary!BH102 -> -100 | T109: =iSummary!BI102 -> -100 | Y109: =iSummary!BY102 -> 1 | Z109: 1 | AB109: =iSummary!BZ102 -> 95 | AC109: =iSummary!CA102 -> Ghana | AD109: =iSummary!CB102 -> 7.4 | AE109: =iSummary!CC102 -> 7.4 | AJ109: =iSummary!CS102 -> 1 | AK109: 5 | AM109: =iSummary!CT102 -> n/a | AN109: =iSummary!CU102 -> Ethiopia | AO109: =iSummary!CV102 -> -100 | AP109: =iSummary!CW102 -> -100 | AU109: =iSummary!DM102 -> 1 | AV109: 1 | AX109: =iSummary!DN102 -> 95 | AY109: =iSummary!DO102 -> Ethiopia | AZ109: =iSummary!DP102 -> 4.3 | BA109: =iSummary!DQ102 -> 4.3 | BF109: =iSummary!EG102 -> 1 | BG109: 5 | BI109: =iSummary!EH102 -> n/a | BJ109: =iSummary!EI102 -> Ethiopia | BK109: =iSummary!EJ102 -> -100 | BL109: =iSummary!EK102 -> -100
C110: =iSummary!AK103 -> 1 | D110: 1 | F110: =iSummary!AL103 -> 96 | G110: =iSummary!AM103 -> Panama | H110: =iSummary!AN103 -> 0.6 | I110: =iSummary!AO103 -> 0.6 | N110: =iSummary!BE103 -> 1 | O110: 5 | Q110: =iSummary!BF103 -> n/a | R110: =iSummary!BG103 -> Serbia | S110: =iSummary!BH103 -> -100 | T110: =iSummary!BI103 -> -100 | Y110: =iSummary!BY103 -> 1 | Z110: 1 | AB110: =iSummary!BZ103 -> =96 | AC110: =iSummary!CA103 -> Bangladesh | AD110: =iSummary!CB103 -> 5.8 | AE110: =iSummary!CC103 -> 5.8 | AJ110: =iSummary!CS103 -> 1 | AK110: 5 | AM110: =iSummary!CT103 -> n/a | AN110: =iSummary!CU103 -> Madagascar | AO110: =iSummary!CV103 -> -100 | AP110: =iSummary!CW103 -> -100 | AU110: =iSummary!DM103 -> 1 | AV110: 1 | AX110: =iSummary!DN103 -> 96 | AY110: =iSummary!DO103 -> Myanmar | AZ110: =iSummary!DP103 -> 3.6 | BA110: =iSummary!DQ103 -> 3.6 | BF110: =iSummary!EG103 -> 1 | BG110: 5 | BI110: =iSummary!EH103 -> n/a | BJ110: =iSummary!EI103 -> Madagascar | BK110: =iSummary!EJ103 -> -100 | BL110: =iSummary!EK103 -> -100
C111: =iSummary!AK104 -> 1 | D111: 1 | F111: =iSummary!AL104 -> 97 | G111: =iSummary!AM104 -> Myanmar | H111: =iSummary!AN104 -> 0.4 | I111: =iSummary!AO104 -> 0.4 | N111: =iSummary!BE104 -> 1 | O111: 5 | Q111: =iSummary!BF104 -> n/a | R111: =iSummary!BG104 -> South Africa | S111: =iSummary!BH104 -> -100 | T111: =iSummary!BI104 -> -100 | Y111: =iSummary!BY104 -> 1 | Z111: 1 | AB111: =iSummary!BZ104 -> =96 | AC111: =iSummary!CA104 -> Nepal | AD111: =iSummary!CB104 -> 5.8 | AE111: =iSummary!CC104 -> 5.8 | AJ111: =iSummary!CS104 -> 1 | AK111: 5 | AM111: =iSummary!CT104 -> n/a | AN111: =iSummary!CU104 -> Mozambique | AO111: =iSummary!CV104 -> -100 | AP111: =iSummary!CW104 -> -100 | AU111: =iSummary!DM104 -> 1 | AV111: 1 | AX111: =iSummary!DN104 -> 97 | AY111: =iSummary!DO104 -> Burundi | AZ111: =iSummary!DP104 -> 2.6 | BA111: =iSummary!DQ104 -> 2.6 | BF111: =iSummary!EG104 -> 1 | BG111: 5 | BI111: =iSummary!EH104 -> n/a | BJ111: =iSummary!EI104 -> Mozambique | BK111: =iSummary!EJ104 -> -100 | BL111: =iSummary!EK104 -> -100
C112: =iSummary!AK105 -> 1 | D112: 1 | F112: =iSummary!AL105 -> =98 | G112: =iSummary!AM105 -> Honduras | H112: =iSummary!AN105 -> 0.1 | I112: =iSummary!AO105 -> 0.1 | N112: =iSummary!BE105 -> 1 | O112: 5 | Q112: =iSummary!BF105 -> n/a | R112: =iSummary!BG105 -> Sri Lanka | S112: =iSummary!BH105 -> -100 | T112: =iSummary!BI105 -> -100 | Y112: =iSummary!BY105 -> 1 | Z112: 1 | AB112: =iSummary!BZ105 -> 98 | AC112: =iSummary!CA105 -> Madagascar | AD112: =iSummary!CB105 -> 4.4 | AE112: =iSummary!CC105 -> 4.4 | AJ112: =iSummary!CS105 -> 1 | AK112: 5 | AM112: =iSummary!CT105 -> n/a | AN112: =iSummary!CU105 -> Nepal | AO112: =iSummary!CV105 -> -100 | AP112: =iSummary!CW105 -> -100 | AU112: =iSummary!DM105 -> 1 | AV112: 1 | AX112: =iSummary!DN105 -> 98 | AY112: =iSummary!DO105 -> Mozambique | AZ112: =iSummary!DP105 -> 1.9 | BA112: =iSummary!DQ105 -> 1.9 | BF112: =iSummary!EG105 -> 1 | BG112: 5 | BI112: =iSummary!EH105 -> n/a | BJ112: =iSummary!EI105 -> Nepal | BK112: =iSummary!EJ105 -> -100 | BL112: =iSummary!EK105 -> -100
C113: =iSummary!AK106 -> 1 | D113: 1 | F113: =iSummary!AL106 -> =98 | G113: =iSummary!AM106 -> Madagascar | H113: =iSummary!AN106 -> 0.1 | I113: =iSummary!AO106 -> 0.1 | N113: =iSummary!BE106 -> 1 | O113: 5 | Q113: =iSummary!BF106 -> n/a | R113: =iSummary!BG106 -> Ukraine | S113: =iSummary!BH106 -> -100 | T113: =iSummary!BI106 -> -100 | Y113: =iSummary!BY106 -> 1 | Z113: 1 | AB113: =iSummary!BZ106 -> 99 | AC113: =iSummary!CA106 -> Burundi | AD113: =iSummary!CB106 -> 3.9 | AE113: =iSummary!CC106 -> 3.9 | AJ113: =iSummary!CS106 -> 1 | AK113: 5 | AM113: =iSummary!CT106 -> n/a | AN113: =iSummary!CU106 -> Rwanda | AO113: =iSummary!CV106 -> -100 | AP113: =iSummary!CW106 -> -100 | AU113: =iSummary!DM106 -> 1 | AV113: 1 | AX113: =iSummary!DN106 -> 99 | AY113: =iSummary!DO106 -> Benin | AZ113: =iSummary!DP106 -> 0.3 | BA113: =iSummary!DQ106 -> 0.3 | BF113: =iSummary!EG106 -> 1 | BG113: 5 | BI113: =iSummary!EH106 -> n/a | BJ113: =iSummary!EI106 -> Rwanda | BK113: =iSummary!EJ106 -> -100 | BL113: =iSummary!EK106 -> -100
C114: =iSummary!AK107 -> 0 | D114: 0 | F114: =iSummary!AL107 -> n/a | G114: =iSummary!AM107 ->  | H114: =iSummary!AN107 ->  | I114: =iSummary!AO107 ->  | N114: =iSummary!BE107 -> 0 | O114: 0 | Q114: =iSummary!BF107 -> n/a | R114: =iSummary!BG107 ->  | S114: =iSummary!BH107 ->  | T114: =iSummary!BI107 ->  | Y114: =iSummary!BY107 -> 0 | Z114: 0 | AB114: =iSummary!BZ107 -> n/a | AC114: =iSummary!CA107 ->  | AD114: =iSummary!CB107 ->  | AE114: =iSummary!CC107 ->  | AJ114: =iSummary!CS107 -> 0 | AK114: 0 | AM114: =iSummary!CT107 -> n/a | AN114: =iSummary!CU107 ->  | AO114: =iSummary!CV107 ->  | AP114: =iSummary!CW107 ->  | AU114: =iSummary!DM107 -> 0 | AV114: 0 | AX114: =iSummary!DN107 -> n/a | AY114: =iSummary!DO107 ->  | AZ114: =iSummary!DP107 ->  | BA114: =iSummary!DQ107 ->  | BF114: =iSummary!EG107 -> 0 | BG114: 0 | BI114: =iSummary!EH107 -> n/a | BJ114: =iSummary!EI107 ->  | BK114: =iSummary!EJ107 ->  | BL114: =iSummary!EK107 -> 
G118: 0.25 | H118: =PERCENTILE(OFFSET(Summary!H$15,0,0,Summary!H$123,1),$G118) -> 3.15 | S118: =PERCENTILE(OFFSET(Summary!T$15,0,0,Summary!S$123,1),$G118) -> 43.775 | AD118: =PERCENTILE(OFFSET(Summary!AE$15,0,0,Summary!AD$123,1),$G118) -> 17.45 | AO118: =PERCENTILE(OFFSET(Summary!AP$15,0,0,Summary!AO$123,1),$G118) -> 44.85 | AZ118: =PERCENTILE(OFFSET(Summary!BA$15,0,0,Summary!AZ$123,1),$G118) -> 19.2 | BK118: =PERCENTILE(OFFSET(Summary!BL$15,0,0,Summary!BK$123,1),$G118) -> 80.525
G119: 0.5 | H119: =PERCENTILE(OFFSET(Summary!H$15,0,0,Summary!H$123,1),$G119) -> 6.6 | S119: =PERCENTILE(OFFSET(Summary!T$15,0,0,Summary!S$123,1),$G119) -> 53.45 | AD119: =PERCENTILE(OFFSET(Summary!AE$15,0,0,Summary!AD$123,1),$G119) -> 26 | AO119: =PERCENTILE(OFFSET(Summary!AP$15,0,0,Summary!AO$123,1),$G119) -> 58.5 | AZ119: =PERCENTILE(OFFSET(Summary!BA$15,0,0,Summary!AZ$123,1),$G119) -> 28.9 | BK119: =PERCENTILE(OFFSET(Summary!BL$15,0,0,Summary!BK$123,1),$G119) -> 88.55
G120: 0.75 | H120: =PERCENTILE(OFFSET(Summary!H$15,0,0,Summary!H$123,1),$G120) -> 14.85 | S120: =PERCENTILE(OFFSET(Summary!T$15,0,0,Summary!S$123,1),$G120) -> 58.8 | AD120: =PERCENTILE(OFFSET(Summary!AE$15,0,0,Summary!AD$123,1),$G120) -> 37.5 | AO120: =PERCENTILE(OFFSET(Summary!AP$15,0,0,Summary!AO$123,1),$G120) -> 75.15 | AZ120: =PERCENTILE(OFFSET(Summary!BA$15,0,0,Summary!AZ$123,1),$G120) -> 45.05 | BK120: =PERCENTILE(OFFSET(Summary!BL$15,0,0,Summary!BK$123,1),$G120) -> 92.2
G121: 1 | H121: =PERCENTILE(OFFSET(Summary!H$15,0,0,Summary!H$123,1),$G121) -> 71.3 | S121: =PERCENTILE(OFFSET(Summary!T$15,0,0,Summary!S$123,1),$G121) -> 75.8 | AD121: =PERCENTILE(OFFSET(Summary!AE$15,0,0,Summary!AD$123,1),$G121) -> 62.2 | AO121: =PERCENTILE(OFFSET(Summary!AP$15,0,0,Summary!AO$123,1),$G121) -> 100 | AZ121: =PERCENTILE(OFFSET(Summary!BA$15,0,0,Summary!AZ$123,1),$G121) -> 89.4 | BK121: =PERCENTILE(OFFSET(Summary!BL$15,0,0,Summary!BK$123,1),$G121) -> 99.9
H123: =COUNTIF(H15:H114,">=0")-uxb_works!$C$49 -> 99 | S123: =COUNTIF(S15:S114,">=0") -> 64 | AD123: =COUNTIF(AD15:AD114,">=0") -> 99 | AO123: =COUNTIF(AO15:AO114,">=0") -> 92 | AZ123: =COUNTIF(AZ15:AZ114,">=0") -> 99 | BK123: =COUNTIF(BK15:BK114,">=0") -> 92

Sheet Indicator_Ranking
A1: =uxb_works!$B$92 -> Engineering Index: 2019 | I1: z | Q1: DistChart | Z1: $W$24 | AN1: 1600 | AO1: =INDEX(Indicator_Ranking!AN1:AN10,uxb_works!$J$21) -> 1600 | AP1: =2.2*AO1 -> 3520 | BA1: 1 | BB1: 2
AN2: 1600 | AR2: =iIndiRank!U2 ->  | AT2: =iIndiRank!V2 -> -
AN4: 1600
C6: =uxb_works!$C$5 -> The active weight profile has been changed from its default setting | AN6: 1000
C8: =uxb_works!D67 -> <no filter> -I- No. of countries in this group: 99
C10: =iIndiRank!$G$2 -> CATEGORY | AN10: 1000
C11: =iIndiRank!$F$2 -> 1) KNOWLEDGE | BO11: =C11 -> 1) KNOWLEDGE
C14: Forecast spend on defense equipment Source: Jane's Year: 2025-2027 Scoring Guidance: US$ million | E14: =iIndiRank!AO2 -> 2 | K14: =COUNT(J17:J115) -> 99 | V14: =IF(COUNTIF(V17:V115,"<>0")=0,1,COUNTIF(V17:V115,"<>0")) -> 99 | W14: =iIndiRank!AU1 -> 2 | Y14: =IF(COUNTIF(Y17:Y115,"<>0")=0,1,COUNTIF(Y17:Y115,"<>0")) -> 1 | Z14: =iIndiRank!AX1 -> 1 | AB14: =IF(COUNTIF(AB17:AB115,"<>0")=0,1,COUNTIF(AB17:AB115,"<>0")) -> 1 | AC14: =iIndiRank!BA1 -> 0 | AE14: =IF(COUNTIF(AE17:AE115,"<>0")=0,1,COUNTIF(AE17:AE115,"<>0")) -> 1 | AF14: =iIndiRank!BD1 -> 0 | AH14: =IF(COUNTIF(AH17:AH115,"<>0")=0,1,COUNTIF(AH17:AH115,"<>0")) -> 1 | AI14: =iIndiRank!BG1 -> 0
B15: =SUM(B16:B115) -> 100 | L15: Rank | N15: Country | P15: Score / 100 | Q15: Visualisation | W15: =IF(W14<>0,iIndiRank!AU3,"") -> Ranked List by Score | Z15: =IF(Z14<>0,iIndiRank!AX3,"") -> 0 | AC15: =IF(AC14<>0,iIndiRank!BA3,"") ->  | AF15: =IF(AF14<>0,iIndiRank!BD3,"") ->  | AI15: =IF(AI14<>0,iIndiRank!BG3,"") -> 
B16: =iIndiRank!T2 -> 1 | C16: Description: A measure of a country's contribution to and advancement of knowledge in engineering and technology. The category score is the weighted sum of the following indicator scores: 1.1) H index ranking (# of citations in engineering) (25.0%) 1.2) R&D spending (% GDP) (25.0%) 1.3) Number of universities in top 500 for engineering (25.0%) 1.4) Patent applications, residents (25.0%) Source: EIU Calculation | J16: =IF(uxb_works!$J$21=1,COUNTIF(J17:J115,">0"),MAX(V16,Indicator_Ranking!Y16,Indicator_Ranking!AB16,Indicator_Ranking!AE16,Indicator_Ranking!AH16)) -> 99 | V16: =COUNTIF(V17:V115,">0") -> 99 | Y16: =COUNTIF(Y17:Y115,">0") -> 0 | AB16: =COUNTIF(AB17:AB115,">0") -> 0 | AE16: =COUNTIF(AE17:AE115,">0") -> 0 | AH16: =COUNTIF(AH17:AH115,">0") -> 0 | BA16: =W15 -> Ranked List by Score | BD16: =Z15 -> 0 | BG16: =AC15 ->  | BJ16: =AF15 ->  | BM16: =AI15 -> 
B17: =IF(uxb_works!$J$21=1,1,IF(OR(V17>0,Y17>0,AB17>0,AE17>0,AH17>0),1,0)) -> 1 | J17: =iIndiRank!L6 -> 1 | K17: =IF(J17=0,4,IF(O17=-100,5,IF(O17<=iIndiRank!$BT$6,0,IF(O17<=iIndiRank!BT$7,1,IF(O17<=iIndiRank!$BT$8,2,3))))) -> 3 | M17: =iIndiRank!P6 -> 1 | N17: =iIndiRank!Q6 -> United States | O17: =iIndiRank!T6 -> 71.26174857 | P17: =IF(iIndiRank!R6=-100,"",iIndiRank!R6) -> 71.3 | Q17: =IF(ISNUMBER(P17),REPT("|",P17*0.8),"") -> ||||||||||||||||||||||||||||||||||||||||||||||||||||||||| | V17: =iIndiRank!AT6 -> 1 | W17: =iIndiRank!AU6 -> United States | Y17: =iIndiRank!AW6 -> 0 | Z17: =iIndiRank!AX6 ->  | AB17: =iIndiRank!AZ6 -> 0 | AC17: =iIndiRank!BA6 ->  | AE17: =iIndiRank!BC6 -> 0 | AF17: =iIndiRank!BD6 ->  | AH17: =iIndiRank!BF6 -> 0 | AI17: =iIndiRank!BG6 -> 
B18: =IF(uxb_works!$J$21=1,1,IF(OR(V18>0,Y18>0,AB18>0,AE18>0,AH18>0),1,0)) -> 1 | J18: =iIndiRank!L7 -> 1 | K18: =IF(J18=0,4,IF(O18=-100,5,IF(O18<=iIndiRank!$BT$6,0,IF(O18<=iIndiRank!BT$7,1,IF(O18<=iIndiRank!$BT$8,2,3))))) -> 3 | M18: =iIndiRank!P7 -> 2 | N18: =iIndiRank!Q7 -> China | O18: =iIndiRank!T7 -> 61.5370844 | P18: =IF(iIndiRank!R7=-100,"",iIndiRank!R7) -> 61.5 | Q18: =IF(ISNUMBER(P18),REPT("|",P18*0.8),"") -> ||||||||||||||||||||||||||||||||||||||||||||||||| | V18: =iIndiRank!AT7 -> 1 | W18: =iIndiRank!AU7 -> China | Y18: =iIndiRank!AW7 -> 0 | Z18: =iIndiRank!AX7 ->  | AB18: =iIndiRank!AZ7 -> 0 | AC18: =iIndiRank!BA7 ->  | AE18: =iIndiRank!BC7 -> 0 | AF18: =iIndiRank!BD7 ->  | AH18: =iIndiRank!BF7 -> 0 | AI18: =iIndiRank!BG7 -> 
B19: =IF(uxb_works!$J$21=1,1,IF(OR(V19>0,Y19>0,AB19>0,AE19>0,AH19>0),1,0)) -> 1 | J19: =iIndiRank!L8 -> 1 | K19: =IF(J19=0,4,IF(O19=-100,5,IF(O19<=iIndiRank!$BT$6,0,IF(O19<=iIndiRank!BT$7,1,IF(O19<=iIndiRank!$BT$8,2,3))))) -> 3 | M19: =iIndiRank!P8 -> 3 | N19: =iIndiRank!Q8 -> Japan | O19: =iIndiRank!T8 -> 46.95056867 | P19: =IF(iIndiRank!R8=-100,"",iIndiRank!R8) -> 47 | Q19: ||||||||||||||||||||||||||||||||||||| | V19: =iIndiRank!AT8 -> 1 | W19: =iIndiRank!AU8 -> Japan | Y19: =iIndiRank!AW8 -> 0 | Z19: =iIndiRank!AX8 ->  | AB19: =iIndiRank!AZ8 -> 0 | AC19: =iIndiRank!BA8 ->  | AE19: =iIndiRank!BC8 -> 0 | AF19: =iIndiRank!BD8 ->  | AH19: =iIndiRank!BF8 -> 0 | AI19: =iIndiRank!BG8 -> 
B20: =IF(uxb_works!$J$21=1,1,IF(OR(V20>0,Y20>0,AB20>0,AE20>0,AH20>0),1,0)) -> 1 | J20: =iIndiRank!L9 -> 1 | K20: =IF(J20=0,4,IF(O20=-100,5,IF(O20<=iIndiRank!$BT$6,0,IF(O20<=iIndiRank!BT$7,1,IF(O20<=iIndiRank!$BT$8,2,3))))) -> 3 | M20: =iIndiRank!P9 -> 4 | N20: =iIndiRank!Q9 -> Republic of Korea | O20: =iIndiRank!T9 -> 42.54355728 | P20: =IF(iIndiRank!R9=-100,"",iIndiRank!R9) -> 42.5 | Q20: |||||||||||||||||||||||||||||||||| | V20: =iIndiRank!AT9 -> 1 | W20: =iIndiRank!AU9 -> Republic of Korea | Y20: =iIndiRank!AW9 -> 0 | Z20: =iIndiRank!AX9 ->  | AB20: =iIndiRank!AZ9 -> 0 | AC20: =iIndiRank!BA9 ->  | AE20: =iIndiRank!BC9 -> 0 | AF20: =iIndiRank!BD9 ->  | AH20: =iIndiRank!BF9 -> 0 | AI20: =iIndiRank!BG9 -> 
B21: =IF(uxb_works!$J$21=1,1,IF(OR(V21>0,Y21>0,AB21>0,AE21>0,AH21>0),1,0)) -> 1 | J21: =iIndiRank!L10 -> 1 | K21: =IF(J21=0,4,IF(O21=-100,5,IF(O21<=iIndiRank!$BT$6,0,IF(O21<=iIndiRank!BT$7,1,IF(O21<=iIndiRank!$BT$8,2,3))))) -> 3 | M21: =iIndiRank!P10 -> 5 | N21: =iIndiRank!Q10 -> Germany | O21: =iIndiRank!T10 -> 34.55347142 | P21: =IF(iIndiRank!R10=-100,"",iIndiRank!R10) -> 34.6 | Q21: ||||||||||||||||||||||||||| | V21: =iIndiRank!AT10 -> 1 | W21: =iIndiRank!AU10 -> Germany | Y21: =iIndiRank!AW10 -> 0 | Z21: =iIndiRank!AX10 ->  | AB21: =iIndiRank!AZ10 -> 0 | AC21: =iIndiRank!BA10 ->  | AE21: =iIndiRank!BC10 -> 0 | AF21: =iIndiRank!BD10 ->  | AH21: =iIndiRank!BF10 -> 0 | AI21: =iIndiRank!BG10 -> 
B22: =IF(uxb_works!$J$21=1,1,IF(OR(V22>0,Y22>0,AB22>0,AE22>0,AH22>0),1,0)) -> 1 | J22: =iIndiRank!L11 -> 1 | K22: =IF(J22=0,4,IF(O22=-100,5,IF(O22<=iIndiRank!$BT$6,0,IF(O22<=iIndiRank!BT$7,1,IF(O22<=iIndiRank!$BT$8,2,3))))) -> 3 | M22: =iIndiRank!P11 -> 6 | N22: =iIndiRank!Q11 -> United Kingdom | O22: =iIndiRank!T11 -> 31.75779921 | P22: =IF(iIndiRank!R11=-100,"",iIndiRank!R11) -> 31.8 | Q22: ||||||||||||||||||||||||| | V22: =iIndiRank!AT11 -> 1 | W22: =iIndiRank!AU11 -> United Kingdom | Y22: =iIndiRank!AW11 -> 0 | Z22: =iIndiRank!AX11 ->  | AB22: =iIndiRank!AZ11 -> 0 | AC22: =iIndiRank!BA11 ->  | AE22: =iIndiRank!BC11 -> 0 | AF22: =iIndiRank!BD11 ->  | AH22: =iIndiRank!BF11 -> 0 | AI22: =iIndiRank!BG11 -> 
B23: =IF(uxb_works!$J$21=1,1,IF(OR(V23>0,Y23>0,AB23>0,AE23>0,AH23>0),1,0)) -> 1 | J23: =iIndiRank!L12 -> 1 | K23: =IF(J23=0,4,IF(O23=-100,5,IF(O23<=iIndiRank!$BT$6,0,IF(O23<=iIndiRank!BT$7,1,IF(O23<=iIndiRank!$BT$8,2,3))))) -> 3 | M23: =iIndiRank!P12 -> =7 | N23: =iIndiRank!Q12 -> France | O23: =iIndiRank!T12 -> 28.08831157 | P23: =IF(iIndiRank!R12=-100,"",iIndiRank!R12) -> 28.1 | Q23: |||||||||||||||||||||| | V23: =iIndiRank!AT12 -> 1 | W23: =iIndiRank!AU12 -> France | Y23: =iIndiRank!AW12 -> 0 | Z23: =iIndiRank!AX12 ->  | AB23: =iIndiRank!AZ12 -> 0 | AC23: =iIndiRank!BA12 ->  | AE23: =iIndiRank!BC12 -> 0 | AF23: =iIndiRank!BD12 ->  | AH23: =iIndiRank!BF12 -> 0 | AI23: =iIndiRank!BG12 -> 
B24: =IF(uxb_works!$J$21=1,1,IF(OR(V24>0,Y24>0,AB24>0,AE24>0,AH24>0),1,0)) -> 1 | J24: =iIndiRank!L13 -> 1 | K24: =IF(J24=0,4,IF(O24=-100,5,IF(O24<=iIndiRank!$BT$6,0,IF(O24<=iIndiRank!BT$7,1,IF(O24<=iIndiRank!$BT$8,2,3))))) -> 3 | M24: =iIndiRank!P13 -> =7 | N24: =iIndiRank!Q13 -> Switzerland | O24: =iIndiRank!T13 -> 28.0995789 | P24: =IF(iIndiRank!R13=-100,"",iIndiRank!R13) -> 28.1 | Q24: |||||||||||||||||||||| | V24: =iIndiRank!AT13 -> 1 | W24: =iIndiRank!AU13 -> Switzerland | Y24: =iIndiRank!AW13 -> 0 | Z24: =iIndiRank!AX13 ->  | AB24: =iIndiRank!AZ13 -> 0 | AC24: =iIndiRank!BA13 ->  | AE24: =iIndiRank!BC13 -> 0 | AF24: =iIndiRank!BD13 ->  | AH24: =iIndiRank!BF13 -> 0 | AI24: =iIndiRank!BG13 -> 
B25: =IF(uxb_works!$J$21=1,1,IF(OR(V25>0,Y25>0,AB25>0,AE25>0,AH25>0),1,0)) -> 1 | J25: =iIndiRank!L14 -> 1 | K25: =IF(J25=0,4,IF(O25=-100,5,IF(O25<=iIndiRank!$BT$6,0,IF(O25<=iIndiRank!BT$7,1,IF(O25<=iIndiRank!$BT$8,2,3))))) -> 3 | M25: =iIndiRank!P14 -> 9 | N25: =iIndiRank!Q14 -> Sweden | O25: =iIndiRank!T14 -> 27.31360212 | P25: =IF(iIndiRank!R14=-100,"",iIndiRank!R14) -> 27.3 | Q25: ||||||||||||||||||||| | V25: =iIndiRank!AT14 -> 1 | W25: =iIndiRank!AU14 -> Sweden | Y25: =iIndiRank!AW14 -> 0 | Z25: =iIndiRank!AX14 ->  | AB25: =iIndiRank!AZ14 -> 0 | AC25: =iIndiRank!BA14 ->  | AE25: =iIndiRank!BC14 -> 0 | AF25: =iIndiRank!BD14 ->  | AH25: =iIndiRank!BF14 -> 0 | AI25: =iIndiRank!BG14 -> 
B26: =IF(uxb_works!$J$21=1,1,IF(OR(V26>0,Y26>0,AB26>0,AE26>0,AH26>0),1,0)) -> 1 | J26: =iIndiRank!L15 -> 1 | K26: =IF(J26=0,4,IF(O26=-100,5,IF(O26<=iIndiRank!$BT$6,0,IF(O26<=iIndiRank!BT$7,1,IF(O26<=iIndiRank!$BT$8,2,3))))) -> 3 | M26: =iIndiRank!P15 -> 10 | N26: =iIndiRank!Q15 -> Denmark | O26: =iIndiRank!T15 -> 24.69027989 | P26: =IF(iIndiRank!R15=-100,"",iIndiRank!R15) -> 24.7 | Q26: ||||||||||||||||||| | V26: =iIndiRank!AT15 -> 1 | W26: =iIndiRank!AU15 -> Denmark | Y26: =iIndiRank!AW15 -> 0 | Z26: =iIndiRank!AX15 ->  | AB26: =iIndiRank!AZ15 -> 0 | AC26: =iIndiRank!BA15 ->  | AE26: =iIndiRank!BC15 -> 0 | AF26: =iIndiRank!BD15 ->  | AH26: =iIndiRank!BF15 -> 0 | AI26: =iIndiRank!BG15 -> 
B27: =IF(uxb_works!$J$21=1,1,IF(OR(V27>0,Y27>0,AB27>0,AE27>0,AH27>0),1,0)) -> 1 | J27: =iIndiRank!L16 -> 1 | K27: =IF(J27=0,4,IF(O27=-100,5,IF(O27<=iIndiRank!$BT$6,0,IF(O27<=iIndiRank!BT$7,1,IF(O27<=iIndiRank!$BT$8,2,3))))) -> 3 | M27: =iIndiRank!P16 -> 11 | N27: =iIndiRank!Q16 -> Australia | O27: =iIndiRank!T16 -> 24.39660929 | P27: =IF(iIndiRank!R16=-100,"",iIndiRank!R16) -> 24.4 | Q27: ||||||||||||||||||| | V27: =iIndiRank!AT16 -> 1 | W27: =iIndiRank!AU16 -> Australia | Y27: =iIndiRank!AW16 -> 0 | Z27: =iIndiRank!AX16 ->  | AB27: =iIndiRank!AZ16 -> 0 | AC27: =iIndiRank!BA16 ->  | AE27: =iIndiRank!BC16 -> 0 | AF27: =iIndiRank!BD16 ->  | AH27: =iIndiRank!BF16 -> 0 | AI27: =iIndiRank!BG16 -> 
B28: =IF(uxb_works!$J$21=1,1,IF(OR(V28>0,Y28>0,AB28>0,AE28>0,AH28>0),1,0)) -> 1 | J28: =iIndiRank!L17 -> 1 | K28: =IF(J28=0,4,IF(O28=-100,5,IF(O28<=iIndiRank!$BT$6,0,IF(O28<=iIndiRank!BT$7,1,IF(O28<=iIndiRank!$BT$8,2,3))))) -> 3 | M28: =iIndiRank!P17 -> 12 | N28: =iIndiRank!Q17 -> Canada | O28: =iIndiRank!T17 -> 24.34320875 | P28: =IF(iIndiRank!R17=-100,"",iIndiRank!R17) -> 24.3 | Q28: ||||||||||||||||||| | V28: =iIndiRank!AT17 -> 1 | W28: =iIndiRank!AU17 -> Canada | Y28: =iIndiRank!AW17 -> 0 | Z28: =iIndiRank!AX17 ->  | AB28: =iIndiRank!AZ17 -> 0 | AC28: =iIndiRank!BA17 ->  | AE28: =iIndiRank!BC17 -> 0 | AF28: =iIndiRank!BD17 ->  | AH28: =iIndiRank!BF17 -> 0 | AI28: =iIndiRank!BG17 -> 
B29: =IF(uxb_works!$J$21=1,1,IF(OR(V29>0,Y29>0,AB29>0,AE29>0,AH29>0),1,0)) -> 1 | J29: =iIndiRank!L18 -> 1 | K29: =IF(J29=0,4,IF(O29=-100,5,IF(O29<=iIndiRank!$BT$6,0,IF(O29<=iIndiRank!BT$7,1,IF(O29<=iIndiRank!$BT$8,2,3))))) -> 3 | M29: =iIndiRank!P18 -> 13 | N29: =iIndiRank!Q18 -> Austria | O29: =iIndiRank!T18 -> 23.97332421 | P29: =IF(iIndiRank!R18=-100,"",iIndiRank!R18) -> 24 | Q29: ||||||||||||||||||| | V29: =iIndiRank!AT18 -> 1 | W29: =iIndiRank!AU18 -> Austria | Y29: =iIndiRank!AW18 -> 0 | Z29: =iIndiRank!AX18 ->  | AB29: =iIndiRank!AZ18 -> 0 | AC29: =iIndiRank!BA18 ->  | AE29: =iIndiRank!BC18 -> 0 | AF29: =iIndiRank!BD18 ->  | AH29: =iIndiRank!BF18 -> 0 | AI29: =iIndiRank!BG18 -> 
B30: =IF(uxb_works!$J$21=1,1,IF(OR(V30>0,Y30>0,AB30>0,AE30>0,AH30>0),1,0)) -> 1 | J30: =iIndiRank!L19 -> 1 | K30: =IF(J30=0,4,IF(O30=-100,5,IF(O30<=iIndiRank!$BT$6,0,IF(O30<=iIndiRank!BT$7,1,IF(O30<=iIndiRank!$BT$8,2,3))))) -> 3 | M30: =iIndiRank!P19 -> =14 | N30: =iIndiRank!Q19 -> Belgium | O30: =iIndiRank!T19 -> 23.19156353 | P30: =IF(iIndiRank!R19=-100,"",iIndiRank!R19) -> 23.2 | Q30: |||||||||||||||||| | V30: =iIndiRank!AT19 -> 1 | W30: =iIndiRank!AU19 -> Belgium | Y30: =iIndiRank!AW19 -> 0 | Z30: =iIndiRank!AX19 ->  | AB30: =iIndiRank!AZ19 -> 0 | AC30: =iIndiRank!BA19 ->  | AE30: =iIndiRank!BC19 -> 0 | AF30: =iIndiRank!BD19 ->  | AH30: =iIndiRank!BF19 -> 0 | AI30: =iIndiRank!BG19 -> 
B31: =IF(uxb_works!$J$21=1,1,IF(OR(V31>0,Y31>0,AB31>0,AE31>0,AH31>0),1,0)) -> 1 | J31: =iIndiRank!L20 -> 1 | K31: =IF(J31=0,4,IF(O31=-100,5,IF(O31<=iIndiRank!$BT$6,0,IF(O31<=iIndiRank!BT$7,1,IF(O31<=iIndiRank!$BT$8,2,3))))) -> 3 | M31: =iIndiRank!P20 -> =14 | N31: =iIndiRank!Q20 -> Italy | O31: =iIndiRank!T20 -> 23.1536787 | P31: =IF(iIndiRank!R20=-100,"",iIndiRank!R20) -> 23.2 | Q31: |||||||||||||||||| | V31: =iIndiRank!AT20 -> 1 | W31: =iIndiRank!AU20 -> Italy | Y31: =iIndiRank!AW20 -> 0 | Z31: =iIndiRank!AX20 ->  | AB31: =iIndiRank!AZ20 -> 0 | AC31: =iIndiRank!BA20 ->  | AE31: =iIndiRank!BC20 -> 0 | AF31: =iIndiRank!BD20 ->  | AH31: =iIndiRank!BF20 -> 0 | AI31: =iIndiRank!BG20 -> 
B32: =IF(uxb_works!$J$21=1,1,IF(OR(V32>0,Y32>0,AB32>0,AE32>0,AH32>0),1,0)) -> 1 | J32: =iIndiRank!L21 -> 1 | K32: =IF(J32=0,4,IF(O32=-100,5,IF(O32<=iIndiRank!$BT$6,0,IF(O32<=iIndiRank!BT$7,1,IF(O32<=iIndiRank!$BT$8,2,3))))) -> 3 | M32: =iIndiRank!P21 -> 16 | N32: =iIndiRank!Q21 -> Finland | O32: =iIndiRank!T21 -> 21.35838054 | P32: =IF(iIndiRank!R21=-100,"",iIndiRank!R21) -> 21.4 | Q32: ||||||||||||||||| | V32: =iIndiRank!AT21 -> 1 | W32: =iIndiRank!AU21 -> Finland | Y32: =iIndiRank!AW21 -> 0 | Z32: =iIndiRank!AX21 ->  | AB32: =iIndiRank!AZ21 -> 0 | AC32: =iIndiRank!BA21 ->  | AE32: =iIndiRank!BC21 -> 0 | AF32: =iIndiRank!BD21 ->  | AH32: =iIndiRank!BF21 -> 0 | AI32: =iIndiRank!BG21 -> 
B33: =IF(uxb_works!$J$21=1,1,IF(OR(V33>0,Y33>0,AB33>0,AE33>0,AH33>0),1,0)) -> 1 | J33: =iIndiRank!L22 -> 1 | K33: =IF(J33=0,4,IF(O33=-100,5,IF(O33<=iIndiRank!$BT$6,0,IF(O33<=iIndiRank!BT$7,1,IF(O33<=iIndiRank!$BT$8,2,3))))) -> 3 | M33: =iIndiRank!P22 -> =17 | N33: =iIndiRank!Q22 -> Netherlands | O33: =iIndiRank!T22 -> 21.09582769 | P33: =IF(iIndiRank!R22=-100,"",iIndiRank!R22) -> 21.1 | Q33: |||||||||||||||| | V33: =iIndiRank!AT22 -> 1 | W33: =iIndiRank!AU22 -> Netherlands | Y33: =iIndiRank!AW22 -> 0 | Z33: =iIndiRank!AX22 ->  | AB33: =iIndiRank!AZ22 -> 0 | AC33: =iIndiRank!BA22 ->  | AE33: =iIndiRank!BC22 -> 0 | AF33: =iIndiRank!BD22 ->  | AH33: =iIndiRank!BF22 -> 0 | AI33: =iIndiRank!BG22 -> 
B34: =IF(uxb_works!$J$21=1,1,IF(OR(V34>0,Y34>0,AB34>0,AE34>0,AH34>0),1,0)) -> 1 | J34: =iIndiRank!L23 -> 1 | K34: =IF(J34=0,4,IF(O34=-100,5,IF(O34<=iIndiRank!$BT$6,0,IF(O34<=iIndiRank!BT$7,1,IF(O34<=iIndiRank!$BT$8,2,3))))) -> 3 | M34: =iIndiRank!P23 -> =17 | N34: =iIndiRank!Q23 -> Singapore | O34: =iIndiRank!T23 -> 21.05736702 | P34: =IF(iIndiRank!R23=-100,"",iIndiRank!R23) -> 21.1 | Q34: |||||||||||||||| | V34: =iIndiRank!AT23 -> 1 | W34: =iIndiRank!AU23 -> Singapore | Y34: =iIndiRank!AW23 -> 0 | Z34: =iIndiRank!AX23 ->  | AB34: =iIndiRank!AZ23 -> 0 | AC34: =iIndiRank!BA23 ->  | AE34: =iIndiRank!BC23 -> 0 | AF34: =iIndiRank!BD23 ->  | AH34: =iIndiRank!BF23 -> 0 | AI34: =iIndiRank!BG23 -> 
B35: =IF(uxb_works!$J$21=1,1,IF(OR(V35>0,Y35>0,AB35>0,AE35>0,AH35>0),1,0)) -> 1 | J35: =iIndiRank!L24 -> 1 | K35: =IF(J35=0,4,IF(O35=-100,5,IF(O35<=iIndiRank!$BT$6,0,IF(O35<=iIndiRank!BT$7,1,IF(O35<=iIndiRank!$BT$8,2,3))))) -> 3 | M35: =iIndiRank!P24 -> 19 | N35: =iIndiRank!Q24 -> Spain | O35: =iIndiRank!T24 -> 20.89153707 | P35: =IF(iIndiRank!R24=-100,"",iIndiRank!R24) -> 20.9 | Q35: |||||||||||||||| | V35: =iIndiRank!AT24 -> 1 | W35: =iIndiRank!AU24 -> Spain | Y35: =iIndiRank!AW24 -> 0 | Z35: =iIndiRank!AX24 ->  | AB35: =iIndiRank!AZ24 -> 0 | AC35: =iIndiRank!BA24 ->  | AE35: =iIndiRank!BC24 -> 0 | AF35: =iIndiRank!BD24 ->  | AH35: =iIndiRank!BF24 -> 0 | AI35: =iIndiRank!BG24 -> 
B36: =IF(uxb_works!$J$21=1,1,IF(OR(V36>0,Y36>0,AB36>0,AE36>0,AH36>0),1,0)) -> 1 | J36: =iIndiRank!L25 -> 1 | K36: =IF(J36=0,4,IF(O36=-100,5,IF(O36<=iIndiRank!$BT$6,0,IF(O36<=iIndiRank!BT$7,1,IF(O36<=iIndiRank!$BT$8,2,3))))) -> 3 | M36: =iIndiRank!P25 -> 20 | N36: =iIndiRank!Q25 -> India | O36: =iIndiRank!T25 -> 18.09074057 | P36: =IF(iIndiRank!R25=-100,"",iIndiRank!R25) -> 18.1 | Q36: |||||||||||||| | V36: =iIndiRank!AT25 -> 1 | W36: =iIndiRank!AU25 -> India | Y36: =iIndiRank!AW25 -> 0 | Z36: =iIndiRank!AX25 ->  | AB36: =iIndiRank!AZ25 -> 0 | AC36: =iIndiRank!BA25 ->  | AE36: =iIndiRank!BC25 -> 0 | AF36: =iIndiRank!BD25 ->  | AH36: =iIndiRank!BF25 -> 0 | AI36: =iIndiRank!BG25 -> 
B37: =IF(uxb_works!$J$21=1,1,IF(OR(V37>0,Y37>0,AB37>0,AE37>0,AH37>0),1,0)) -> 1 | J37: =iIndiRank!L26 -> 1 | K37: =IF(J37=0,4,IF(O37=-100,5,IF(O37<=iIndiRank!$BT$6,0,IF(O37<=iIndiRank!BT$7,1,IF(O37<=iIndiRank!$BT$8,2,3))))) -> 3 | M37: =iIndiRank!P26 -> 21 | N37: =iIndiRank!Q26 -> Brazil | O37: =iIndiRank!T26 -> 17.52133085 | P37: =IF(iIndiRank!R26=-100,"",iIndiRank!R26) -> 17.5 | Q37: |||||||||||||| | V37: =iIndiRank!AT26 -> 1 | W37: =iIndiRank!AU26 -> Brazil | Y37: =iIndiRank!AW26 -> 0 | Z37: =iIndiRank!AX26 ->  | AB37: =iIndiRank!AZ26 -> 0 | AC37: =iIndiRank!BA26 ->  | AE37: =iIndiRank!BC26 -> 0 | AF37: =iIndiRank!BD26 ->  | AH37: =iIndiRank!BF26 -> 0 | AI37: =iIndiRank!BG26 -> 
B38: =IF(uxb_works!$J$21=1,1,IF(OR(V38>0,Y38>0,AB38>0,AE38>0,AH38>0),1,0)) -> 1 | J38: =iIndiRank!L27 -> 1 | K38: =IF(J38=0,4,IF(O38=-100,5,IF(O38<=iIndiRank!$BT$6,0,IF(O38<=iIndiRank!BT$7,1,IF(O38<=iIndiRank!$BT$8,2,3))))) -> 3 | M38: =iIndiRank!P27 -> 22 | N38: =iIndiRank!Q27 -> Hong Kong | O38: =iIndiRank!T27 -> 17.38305826 | P38: =IF(iIndiRank!R27=-100,"",iIndiRank!R27) -> 17.4 | Q38: ||||||||||||| | V38: =iIndiRank!AT27 -> 1 | W38: =iIndiRank!AU27 -> Hong Kong | Y38: =iIndiRank!AW27 -> 0 | Z38: =iIndiRank!AX27 ->  | AB38: =iIndiRank!AZ27 -> 0 | AC38: =iIndiRank!BA27 ->  | AE38: =iIndiRank!BC27 -> 0 | AF38: =iIndiRank!BD27 ->  | AH38: =iIndiRank!BF27 -> 0 | AI38: =iIndiRank!BG27 -> 
B39: =IF(uxb_works!$J$21=1,1,IF(OR(V39>0,Y39>0,AB39>0,AE39>0,AH39>0),1,0)) -> 1 | J39: =iIndiRank!L28 -> 1 | K39: =IF(J39=0,4,IF(O39=-100,5,IF(O39<=iIndiRank!$BT$6,0,IF(O39<=iIndiRank!BT$7,1,IF(O39<=iIndiRank!$BT$8,2,3))))) -> 3 | M39: =iIndiRank!P28 -> 23 | N39: =iIndiRank!Q28 -> Norway | O39: =iIndiRank!T28 -> 16.93606445 | P39: =IF(iIndiRank!R28=-100,"",iIndiRank!R28) -> 16.9 | Q39: ||||||||||||| | V39: =iIndiRank!AT28 -> 1 | W39: =iIndiRank!AU28 -> Norway | Y39: =iIndiRank!AW28 -> 0 | Z39: =iIndiRank!AX28 ->  | AB39: =iIndiRank!AZ28 -> 0 | AC39: =iIndiRank!BA28 ->  | AE39: =iIndiRank!BC28 -> 0 | AF39: =iIndiRank!BD28 ->  | AH39: =iIndiRank!BF28 -> 0 | AI39: =iIndiRank!BG28 -> 
B40: =IF(uxb_works!$J$21=1,1,IF(OR(V40>0,Y40>0,AB40>0,AE40>0,AH40>0),1,0)) -> 1 | J40: =iIndiRank!L29 -> 1 | K40: =IF(J40=0,4,IF(O40=-100,5,IF(O40<=iIndiRank!$BT$6,0,IF(O40<=iIndiRank!BT$7,1,IF(O40<=iIndiRank!$BT$8,2,3))))) -> 3 | M40: =iIndiRank!P29 -> 24 | N40: =iIndiRank!Q29 -> Russian Federation | O40: =iIndiRank!T29 -> 16.65737249 | P40: =IF(iIndiRank!R29=-100,"",iIndiRank!R29) -> 16.7 | Q40: ||||||||||||| | V40: =iIndiRank!AT29 -> 1 | W40: =iIndiRank!AU29 -> Russian Federation | Y40: =iIndiRank!AW29 -> 0 | Z40: =iIndiRank!AX29 ->  | AB40: =iIndiRank!AZ29 -> 0 | AC40: =iIndiRank!BA29 ->  | AE40: =iIndiRank!BC29 -> 0 | AF40: =iIndiRank!BD29 ->  | AH40: =iIndiRank!BF29 -> 0 | AI40: =iIndiRank!BG29 -> 
B41: =IF(uxb_works!$J$21=1,1,IF(OR(V41>0,Y41>0,AB41>0,AE41>0,AH41>0),1,0)) -> 1 | J41: =iIndiRank!L30 -> 1 | K41: =IF(J41=0,4,IF(O41=-100,5,IF(O41<=iIndiRank!$BT$6,0,IF(O41<=iIndiRank!BT$7,1,IF(O41<=iIndiRank!$BT$8,2,3))))) -> 3 | M41: =iIndiRank!P30 -> 25 | N41: =iIndiRank!Q30 -> Czech Republic | O41: =iIndiRank!T30 -> 15.44022116 | P41: =IF(iIndiRank!R30=-100,"",iIndiRank!R30) -> 15.4 | Q41: |||||||||||| | V41: =iIndiRank!AT30 -> 1 | W41: =iIndiRank!AU30 -> Czech Republic | Y41: =iIndiRank!AW30 -> 0 | Z41: =iIndiRank!AX30 ->  | AB41: =iIndiRank!AZ30 -> 0 | AC41: =iIndiRank!BA30 ->  | AE41: =iIndiRank!BC30 -> 0 | AF41: =iIndiRank!BD30 ->  | AH41: =iIndiRank!BF30 -> 0 | AI41: =iIndiRank!BG30 -> 
B42: =IF(uxb_works!$J$21=1,1,IF(OR(V42>0,Y42>0,AB42>0,AE42>0,AH42>0),1,0)) -> 1 | J42: =iIndiRank!L31 -> 1 | K42: =IF(J42=0,4,IF(O42=-100,5,IF(O42<=iIndiRank!$BT$6,0,IF(O42<=iIndiRank!BT$7,1,IF(O42<=iIndiRank!$BT$8,2,3))))) -> 2 | M42: =iIndiRank!P31 -> 26 | N42: =iIndiRank!Q31 -> Turkey | O42: =iIndiRank!T31 -> 14.28872799 | P42: =IF(iIndiRank!R31=-100,"",iIndiRank!R31) -> 14.3 | Q42: ||||||||||| | V42: =iIndiRank!AT31 -> 1 | W42: =iIndiRank!AU31 -> Turkey | Y42: =iIndiRank!AW31 -> 0 | Z42: =iIndiRank!AX31 ->  | AB42: =iIndiRank!AZ31 -> 0 | AC42: =iIndiRank!BA31 ->  | AE42: =iIndiRank!BC31 -> 0 | AF42: =iIndiRank!BD31 ->  | AH42: =iIndiRank!BF31 -> 0 | AI42: =iIndiRank!BG31 -> 
B43: =IF(uxb_works!$J$21=1,1,IF(OR(V43>0,Y43>0,AB43>0,AE43>0,AH43>0),1,0)) -> 1 | J43: =iIndiRank!L32 -> 1 | K43: =IF(J43=0,4,IF(O43=-100,5,IF(O43<=iIndiRank!$BT$6,0,IF(O43<=iIndiRank!BT$7,1,IF(O43<=iIndiRank!$BT$8,2,3))))) -> 2 | M43: =iIndiRank!P32 -> =27 | N43: =iIndiRank!Q32 -> Iceland | O43: =iIndiRank!T32 -> 14.10881107 | P43: =IF(iIndiRank!R32=-100,"",iIndiRank!R32) -> 14.1 | Q43: ||||||||||| | V43: =iIndiRank!AT32 -> 1 | W43: =iIndiRank!AU32 -> Iceland | Y43: =iIndiRank!AW32 -> 0 | Z43: =iIndiRank!AX32 ->  | AB43: =iIndiRank!AZ32 -> 0 | AC43: =iIndiRank!BA32 ->  | AE43: =iIndiRank!BC32 -> 0 | AF43: =iIndiRank!BD32 ->  | AH43: =iIndiRank!BF32 -> 0 | AI43: =iIndiRank!BG32 -> 
B44: =IF(uxb_works!$J$21=1,1,IF(OR(V44>0,Y44>0,AB44>0,AE44>0,AH44>0),1,0)) -> 1 | J44: =iIndiRank!L33 -> 1 | K44: =IF(J44=0,4,IF(O44=-100,5,IF(O44<=iIndiRank!$BT$6,0,IF(O44<=iIndiRank!BT$7,1,IF(O44<=iIndiRank!$BT$8,2,3))))) -> 2 | M44: =iIndiRank!P33 -> =27 | N44: =iIndiRank!Q33 -> Portugal | O44: =iIndiRank!T33 -> 14.08678943 | P44: =IF(iIndiRank!R33=-100,"",iIndiRank!R33) -> 14.1 | Q44: ||||||||||| | V44: =iIndiRank!AT33 -> 1 | W44: =iIndiRank!AU33 -> Portugal | Y44: =iIndiRank!AW33 -> 0 | Z44: =iIndiRank!AX33 ->  | AB44: =iIndiRank!AZ33 -> 0 | AC44: =iIndiRank!BA33 ->  | AE44: =iIndiRank!BC33 -> 0 | AF44: =iIndiRank!BD33 ->  | AH44: =iIndiRank!BF33 -> 0 | AI44: =iIndiRank!BG33 -> 
B45: =IF(uxb_works!$J$21=1,1,IF(OR(V45>0,Y45>0,AB45>0,AE45>0,AH45>0),1,0)) -> 1 | J45: =iIndiRank!L34 -> 1 | K45: =IF(J45=0,4,IF(O45=-100,5,IF(O45<=iIndiRank!$BT$6,0,IF(O45<=iIndiRank!BT$7,1,IF(O45<=iIndiRank!$BT$8,2,3))))) -> 2 | M45: =iIndiRank!P34 -> 29 | N45: =iIndiRank!Q34 -> Malaysia | O45: =iIndiRank!T34 -> 13.91896745 | P45: =IF(iIndiRank!R34=-100,"",iIndiRank!R34) -> 13.9 | Q45: ||||||||||| | V45: =iIndiRank!AT34 -> 1 | W45: =iIndiRank!AU34 -> Malaysia | Y45: =iIndiRank!AW34 -> 0 | Z45: =iIndiRank!AX34 ->  | AB45: =iIndiRank!AZ34 -> 0 | AC45: =iIndiRank!BA34 ->  | AE45: =iIndiRank!BC34 -> 0 | AF45: =iIndiRank!BD34 ->  | AH45: =iIndiRank!BF34 -> 0 | AI45: =iIndiRank!BG34 -> 
B46: =IF(uxb_works!$J$21=1,1,IF(OR(V46>0,Y46>0,AB46>0,AE46>0,AH46>0),1,0)) -> 1 | J46: =iIndiRank!L35 -> 1 | K46: =IF(J46=0,4,IF(O46=-100,5,IF(O46<=iIndiRank!$BT$6,0,IF(O46<=iIndiRank!BT$7,1,IF(O46<=iIndiRank!$BT$8,2,3))))) -> 2 | M46: =iIndiRank!P35 -> 30 | N46: =iIndiRank!Q35 -> Slovenia | O46: =iIndiRank!T35 -> 13.82654655 | P46: =IF(iIndiRank!R35=-100,"",iIndiRank!R35) -> 13.8 | Q46: ||||||||||| | V46: =iIndiRank!AT35 -> 1 | W46: =iIndiRank!AU35 -> Slovenia | Y46: =iIndiRank!AW35 -> 0 | Z46: =iIndiRank!AX35 ->  | AB46: =iIndiRank!AZ35 -> 0 | AC46: =iIndiRank!BA35 ->  | AE46: =iIndiRank!BC35 -> 0 | AF46: =iIndiRank!BD35 ->  | AH46: =iIndiRank!BF35 -> 0 | AI46: =iIndiRank!BG35 -> 
B47: =IF(uxb_works!$J$21=1,1,IF(OR(V47>0,Y47>0,AB47>0,AE47>0,AH47>0),1,0)) -> 1 | J47: =iIndiRank!L36 -> 1 | K47: =IF(J47=0,4,IF(O47=-100,5,IF(O47<=iIndiRank!$BT$6,0,IF(O47<=iIndiRank!BT$7,1,IF(O47<=iIndiRank!$BT$8,2,3))))) -> 2 | M47: =iIndiRank!P36 -> 31 | N47: =iIndiRank!Q36 -> Greece | O47: =iIndiRank!T36 -> 12.84587041 | P47: =IF(iIndiRank!R36=-100,"",iIndiRank!R36) -> 12.8 | Q47: |||||||||| | V47: =iIndiRank!AT36 -> 1 | W47: =iIndiRank!AU36 -> Greece | Y47: =iIndiRank!AW36 -> 0 | Z47: =iIndiRank!AX36 ->  | AB47: =iIndiRank!AZ36 -> 0 | AC47: =iIndiRank!BA36 ->  | AE47: =iIndiRank!BC36 -> 0 | AF47: =iIndiRank!BD36 ->  | AH47: =iIndiRank!BF36 -> 0 | AI47: =iIndiRank!BG36 -> 
B48: =IF(uxb_works!$J$21=1,1,IF(OR(V48>0,Y48>0,AB48>0,AE48>0,AH48>0),1,0)) -> 1 | J48: =iIndiRank!L37 -> 1 | K48: =IF(J48=0,4,IF(O48=-100,5,IF(O48<=iIndiRank!$BT$6,0,IF(O48<=iIndiRank!BT$7,1,IF(O48<=iIndiRank!$BT$8,2,3))))) -> 2 | M48: =iIndiRank!P37 -> =32 | N48: =iIndiRank!Q37 -> Ireland | O48: =iIndiRank!T37 -> 12.05491808 | P48: =IF(iIndiRank!R37=-100,"",iIndiRank!R37) -> 12.1 | Q48: ||||||||| | V48: =iIndiRank!AT37 -> 1 | W48: =iIndiRank!AU37 -> Ireland | Y48: =iIndiRank!AW37 -> 0 | Z48: =iIndiRank!AX37 ->  | AB48: =iIndiRank!AZ37 -> 0 | AC48: =iIndiRank!BA37 ->  | AE48: =iIndiRank!BC37 -> 0 | AF48: =iIndiRank!BD37 ->  | AH48: =iIndiRank!BF37 -> 0 | AI48: =iIndiRank!BG37 -> 
B49: =IF(uxb_works!$J$21=1,1,IF(OR(V49>0,Y49>0,AB49>0,AE49>0,AH49>0),1,0)) -> 1 | J49: =iIndiRank!L38 -> 1 | K49: =IF(J49=0,4,IF(O49=-100,5,IF(O49<=iIndiRank!$BT$6,0,IF(O49<=iIndiRank!BT$7,1,IF(O49<=iIndiRank!$BT$8,2,3))))) -> 2 | M49: =iIndiRank!P38 -> =32 | N49: =iIndiRank!Q38 -> New Zealand | O49: =iIndiRank!T38 -> 12.08669417 | P49: =IF(iIndiRank!R38=-100,"",iIndiRank!R38) -> 12.1 | Q49: ||||||||| | V49: =iIndiRank!AT38 -> 1 | W49: =iIndiRank!AU38 -> New Zealand | Y49: =iIndiRank!AW38 -> 0 | Z49: =iIndiRank!AX38 ->  | AB49: =iIndiRank!AZ38 -> 0 | AC49: =iIndiRank!BA38 ->  | AE49: =iIndiRank!BC38 -> 0 | AF49: =iIndiRank!BD38 ->  | AH49: =iIndiRank!BF38 -> 0 | AI49: =iIndiRank!BG38 -> 
B50: =IF(uxb_works!$J$21=1,1,IF(OR(V50>0,Y50>0,AB50>0,AE50>0,AH50>0),1,0)) -> 1 | J50: =iIndiRank!L39 -> 1 | K50: =IF(J50=0,4,IF(O50=-100,5,IF(O50<=iIndiRank!$BT$6,0,IF(O50<=iIndiRank!BT$7,1,IF(O50<=iIndiRank!$BT$8,2,3))))) -> 2 | M50: =iIndiRank!P39 -> 34 | N50: =iIndiRank!Q39 -> Hungary | O50: =iIndiRank!T39 -> 11.66487706 | P50: =IF(iIndiRank!R39=-100,"",iIndiRank!R39) -> 11.7 | Q50: ||||||||| | V50: =iIndiRank!AT39 -> 1 | W50: =iIndiRank!AU39 -> Hungary | Y50: =iIndiRank!AW39 -> 0 | Z50: =iIndiRank!AX39 ->  | AB50: =iIndiRank!AZ39 -> 0 | AC50: =iIndiRank!BA39 ->  | AE50: =iIndiRank!BC39 -> 0 | AF50: =iIndiRank!BD39 ->  | AH50: =iIndiRank!BF39 -> 0 | AI50: =iIndiRank!BG39 -> 
B51: =IF(uxb_works!$J$21=1,1,IF(OR(V51>0,Y51>0,AB51>0,AE51>0,AH51>0),1,0)) -> 1 | J51: =iIndiRank!L40 -> 1 | K51: =IF(J51=0,4,IF(O51=-100,5,IF(O51<=iIndiRank!$BT$6,0,IF(O51<=iIndiRank!BT$7,1,IF(O51<=iIndiRank!$BT$8,2,3))))) -> 2 | M51: =iIndiRank!P40 -> 35 | N51: =iIndiRank!Q40 -> Poland | O51: =iIndiRank!T40 -> 11.34636394 | P51: =IF(iIndiRank!R40=-100,"",iIndiRank!R40) -> 11.3 | Q51: ||||||||| | V51: =iIndiRank!AT40 -> 1 | W51: =iIndiRank!AU40 -> Poland | Y51: =iIndiRank!AW40 -> 0 | Z51: =iIndiRank!AX40 ->  | AB51: =iIndiRank!AZ40 -> 0 | AC51: =iIndiRank!BA40 ->  | AE51: =iIndiRank!BC40 -> 0 | AF51: =iIndiRank!BD40 ->  | AH51: =iIndiRank!BF40 -> 0 | AI51: =iIndiRank!BG40 -> 
B52: =IF(uxb_works!$J$21=1,1,IF(OR(V52>0,Y52>0,AB52>0,AE52>0,AH52>0),1,0)) -> 1 | J52: =iIndiRank!L41 -> 1 | K52: =IF(J52=0,4,IF(O52=-100,5,IF(O52<=iIndiRank!$BT$6,0,IF(O52<=iIndiRank!BT$7,1,IF(O52<=iIndiRank!$BT$8,2,3))))) -> 2 | M52: =iIndiRank!P41 -> 36 | N52: =iIndiRank!Q41 -> Iran | O52: =iIndiRank!T41 -> 10.38300531 | P52: =IF(iIndiRank!R41=-100,"",iIndiRank!R41) -> 10.4 | Q52: |||||||| | V52: =iIndiRank!AT41 -> 1 | W52: =iIndiRank!AU41 -> Iran | Y52: =iIndiRank!AW41 -> 0 | Z52: =iIndiRank!AX41 ->  | AB52: =iIndiRank!AZ41 -> 0 | AC52: =iIndiRank!BA41 ->  | AE52: =iIndiRank!BC41 -> 0 | AF52: =iIndiRank!BD41 ->  | AH52: =iIndiRank!BF41 -> 0 | AI52: =iIndiRank!BG41 -> 
B53: =IF(uxb_works!$J$21=1,1,IF(OR(V53>0,Y53>0,AB53>0,AE53>0,AH53>0),1,0)) -> 1 | J53: =iIndiRank!L42 -> 1 | K53: =IF(J53=0,4,IF(O53=-100,5,IF(O53<=iIndiRank!$BT$6,0,IF(O53<=iIndiRank!BT$7,1,IF(O53<=iIndiRank!$BT$8,2,3))))) -> 2 | M53: =iIndiRank!P42 -> 37 | N53: =iIndiRank!Q42 -> Thailand | O53: =iIndiRank!T42 -> 9.867919176 | P53: =IF(iIndiRank!R42=-100,"",iIndiRank!R42) -> 9.9 | Q53: ||||||| | V53: =iIndiRank!AT42 -> 1 | W53: =iIndiRank!AU42 -> Thailand | Y53: =iIndiRank!AW42 -> 0 | Z53: =iIndiRank!AX42 ->  | AB53: =iIndiRank!AZ42 -> 0 | AC53: =iIndiRank!BA42 ->  | AE53: =iIndiRank!BC42 -> 0 | AF53: =iIndiRank!BD42 ->  | AH53: =iIndiRank!BF42 -> 0 | AI53: =iIndiRank!BG42 -> 
B54: =IF(uxb_works!$J$21=1,1,IF(OR(V54>0,Y54>0,AB54>0,AE54>0,AH54>0),1,0)) -> 1 | J54: =iIndiRank!L43 -> 1 | K54: =IF(J54=0,4,IF(O54=-100,5,IF(O54<=iIndiRank!$BT$6,0,IF(O54<=iIndiRank!BT$7,1,IF(O54<=iIndiRank!$BT$8,2,3))))) -> 2 | M54: =iIndiRank!P43 -> 38 | N54: =iIndiRank!Q43 -> South Africa | O54: =iIndiRank!T43 -> 9.368860483 | P54: =IF(iIndiRank!R43=-100,"",iIndiRank!R43) -> 9.4 | Q54: ||||||| | V54: =iIndiRank!AT43 -> 1 | W54: =iIndiRank!AU43 -> South Africa | Y54: =iIndiRank!AW43 -> 0 | Z54: =iIndiRank!AX43 ->  | AB54: =iIndiRank!AZ43 -> 0 | AC54: =iIndiRank!BA43 ->  | AE54: =iIndiRank!BC43 -> 0 | AF54: =iIndiRank!BD43 ->  | AH54: =iIndiRank!BF43 -> 0 | AI54: =iIndiRank!BG43 -> 
B55: =IF(uxb_works!$J$21=1,1,IF(OR(V55>0,Y55>0,AB55>0,AE55>0,AH55>0),1,0)) -> 1 | J55: =iIndiRank!L44 -> 1 | K55: =IF(J55=0,4,IF(O55=-100,5,IF(O55<=iIndiRank!$BT$6,0,IF(O55<=iIndiRank!BT$7,1,IF(O55<=iIndiRank!$BT$8,2,3))))) -> 2 | M55: =iIndiRank!P44 -> =39 | N55: =iIndiRank!Q44 -> Egypt | O55: =iIndiRank!T44 -> 9.287714482 | P55: =IF(iIndiRank!R44=-100,"",iIndiRank!R44) -> 9.3 | Q55: ||||||| | V55: =iIndiRank!AT44 -> 1 | W55: =iIndiRank!AU44 -> Egypt | Y55: =iIndiRank!AW44 -> 0 | Z55: =iIndiRank!AX44 ->  | AB55: =iIndiRank!AZ44 -> 0 | AC55: =iIndiRank!BA44 ->  | AE55: =iIndiRank!BC44 -> 0 | AF55: =iIndiRank!BD44 ->  | AH55: =iIndiRank!BF44 -> 0 | AI55: =iIndiRank!BG44 -> 
B56: =IF(uxb_works!$J$21=1,1,IF(OR(V56>0,Y56>0,AB56>0,AE56>0,AH56>0),1,0)) -> 1 | J56: =iIndiRank!L45 -> 1 | K56: =IF(J56=0,4,IF(O56=-100,5,IF(O56<=iIndiRank!$BT$6,0,IF(O56<=iIndiRank!BT$7,1,IF(O56<=iIndiRank!$BT$8,2,3))))) -> 2 | M56: =iIndiRank!P45 -> =39 | N56: =iIndiRank!Q45 -> Estonia | O56: =iIndiRank!T45 -> 9.263137316 | P56: =IF(iIndiRank!R45=-100,"",iIndiRank!R45) -> 9.3 | Q56: ||||||| | V56: =iIndiRank!AT45 -> 1 | W56: =iIndiRank!AU45 -> Estonia | Y56: =iIndiRank!AW45 -> 0 | Z56: =iIndiRank!AX45 ->  | AB56: =iIndiRank!AZ45 -> 0 | AC56: =iIndiRank!BA45 ->  | AE56: =iIndiRank!BC45 -> 0 | AF56: =iIndiRank!BD45 ->  | AH56: =iIndiRank!BF45 -> 0 | AI56: =iIndiRank!BG45 -> 
B57: =IF(uxb_works!$J$21=1,1,IF(OR(V57>0,Y57>0,AB57>0,AE57>0,AH57>0),1,0)) -> 1 | J57: =iIndiRank!L46 -> 1 | K57: =IF(J57=0,4,IF(O57=-100,5,IF(O57<=iIndiRank!$BT$6,0,IF(O57<=iIndiRank!BT$7,1,IF(O57<=iIndiRank!$BT$8,2,3))))) -> 2 | M57: =iIndiRank!P46 -> 41 | N57: =iIndiRank!Q46 -> Saudi Arabia | O57: =iIndiRank!T46 -> 9.24971282 | P57: =IF(iIndiRank!R46=-100,"",iIndiRank!R46) -> 9.2 | Q57: ||||||| | V57: =iIndiRank!AT46 -> 1 | W57: =iIndiRank!AU46 -> Saudi Arabia | Y57: =iIndiRank!AW46 -> 0 | Z57: =iIndiRank!AX46 ->  | AB57: =iIndiRank!AZ46 -> 0 | AC57: =iIndiRank!BA46 ->  | AE57: =iIndiRank!BC46 -> 0 | AF57: =iIndiRank!BD46 ->  | AH57: =iIndiRank!BF46 -> 0 | AI57: =iIndiRank!BG46 -> 
B58: =IF(uxb_works!$J$21=1,1,IF(OR(V58>0,Y58>0,AB58>0,AE58>0,AH58>0),1,0)) -> 1 | J58: =iIndiRank!L47 -> 1 | K58: =IF(J58=0,4,IF(O58=-100,5,IF(O58<=iIndiRank!$BT$6,0,IF(O58<=iIndiRank!BT$7,1,IF(O58<=iIndiRank!$BT$8,2,3))))) -> 2 | M58: =iIndiRank!P47 -> 42 | N58: =iIndiRank!Q47 -> Luxembourg | O58: =iIndiRank!T47 -> 8.85256021 | P58: =IF(iIndiRank!R47=-100,"",iIndiRank!R47) -> 8.9 | Q58: ||||||| | V58: =iIndiRank!AT47 -> 1 | W58: =iIndiRank!AU47 -> Luxembourg | Y58: =iIndiRank!AW47 -> 0 | Z58: =iIndiRank!AX47 ->  | AB58: =iIndiRank!AZ47 -> 0 | AC58: =iIndiRank!BA47 ->  | AE58: =iIndiRank!BC47 -> 0 | AF58: =iIndiRank!BD47 ->  | AH58: =iIndiRank!BF47 -> 0 | AI58: =iIndiRank!BG47 -> 
B59: =IF(uxb_works!$J$21=1,1,IF(OR(V59>0,Y59>0,AB59>0,AE59>0,AH59>0),1,0)) -> 1 | J59: =iIndiRank!L48 -> 1 | K59: =IF(J59=0,4,IF(O59=-100,5,IF(O59<=iIndiRank!$BT$6,0,IF(O59<=iIndiRank!BT$7,1,IF(O59<=iIndiRank!$BT$8,2,3))))) -> 2 | M59: =iIndiRank!P48 -> 43 | N59: =iIndiRank!Q48 -> Mexico | O59: =iIndiRank!T48 -> 8.801072491 | P59: =IF(iIndiRank!R48=-100,"",iIndiRank!R48) -> 8.8 | Q59: ||||||| | V59: =iIndiRank!AT48 -> 1 | W59: =iIndiRank!AU48 -> Mexico | Y59: =iIndiRank!AW48 -> 0 | Z59: =iIndiRank!AX48 ->  | AB59: =iIndiRank!AZ48 -> 0 | AC59: =iIndiRank!BA48 ->  | AE59: =iIndiRank!BC48 -> 0 | AF59: =iIndiRank!BD48 ->  | AH59: =iIndiRank!BF48 -> 0 | AI59: =iIndiRank!BG48 -> 
B60: =IF(uxb_works!$J$21=1,1,IF(OR(V60>0,Y60>0,AB60>0,AE60>0,AH60>0),1,0)) -> 1 | J60: =iIndiRank!L49 -> 1 | K60: =IF(J60=0,4,IF(O60=-100,5,IF(O60<=iIndiRank!$BT$6,0,IF(O60<=iIndiRank!BT$7,1,IF(O60<=iIndiRank!$BT$8,2,3))))) -> 2 | M60: =iIndiRank!P49 -> 44 | N60: =iIndiRank!Q49 -> UAE | O60: =iIndiRank!T49 -> 8.394331536 | P60: =IF(iIndiRank!R49=-100,"",iIndiRank!R49) -> 8.4 | Q60: |||||| | V60: =iIndiRank!AT49 -> 1 | W60: =iIndiRank!AU49 -> UAE | Y60: =iIndiRank!AW49 -> 0 | Z60: =iIndiRank!AX49 ->  | AB60: =iIndiRank!AZ49 -> 0 | AC60: =iIndiRank!BA49 ->  | AE60: =iIndiRank!BC49 -> 0 | AF60: =iIndiRank!BD49 ->  | AH60: =iIndiRank!BF49 -> 0 | AI60: =iIndiRank!BG49 -> 
B61: =IF(uxb_works!$J$21=1,1,IF(OR(V61>0,Y61>0,AB61>0,AE61>0,AH61>0),1,0)) -> 1 | J61: =iIndiRank!L50 -> 1 | K61: =IF(J61=0,4,IF(O61=-100,5,IF(O61<=iIndiRank!$BT$6,0,IF(O61<=iIndiRank!BT$7,1,IF(O61<=iIndiRank!$BT$8,2,3))))) -> 2 | M61: =iIndiRank!P50 -> 45 | N61: =iIndiRank!Q50 -> Serbia | O61: =iIndiRank!T50 -> 7.943331965 | P61: =IF(iIndiRank!R50=-100,"",iIndiRank!R50) -> 7.9 | Q61: |||||| | V61: =iIndiRank!AT50 -> 1 | W61: =iIndiRank!AU50 -> Serbia | Y61: =iIndiRank!AW50 -> 0 | Z61: =iIndiRank!AX50 ->  | AB61: =iIndiRank!AZ50 -> 0 | AC61: =iIndiRank!BA50 ->  | AE61: =iIndiRank!BC50 -> 0 | AF61: =iIndiRank!BD50 ->  | AH61: =iIndiRank!BF50 -> 0 | AI61: =iIndiRank!BG50 -> 
B62: =IF(uxb_works!$J$21=1,1,IF(OR(V62>0,Y62>0,AB62>0,AE62>0,AH62>0),1,0)) -> 1 | J62: =iIndiRank!L51 -> 1 | K62: =IF(J62=0,4,IF(O62=-100,5,IF(O62<=iIndiRank!$BT$6,0,IF(O62<=iIndiRank!BT$7,1,IF(O62<=iIndiRank!$BT$8,2,3))))) -> 2 | M62: =iIndiRank!P51 -> 46 | N62: =iIndiRank!Q51 -> Slovakia | O62: =iIndiRank!T51 -> 7.764305573 | P62: =IF(iIndiRank!R51=-100,"",iIndiRank!R51) -> 7.8 | Q62: |||||| | V62: =iIndiRank!AT51 -> 1 | W62: =iIndiRank!AU51 -> Slovakia | Y62: =iIndiRank!AW51 -> 0 | Z62: =iIndiRank!AX51 ->  | AB62: =iIndiRank!AZ51 -> 0 | AC62: =iIndiRank!BA51 ->  | AE62: =iIndiRank!BC51 -> 0 | AF62: =iIndiRank!BD51 ->  | AH62: =iIndiRank!BF51 -> 0 | AI62: =iIndiRank!BG51 -> 
B63: =IF(uxb_works!$J$21=1,1,IF(OR(V63>0,Y63>0,AB63>0,AE63>0,AH63>0),1,0)) -> 1 | J63: =iIndiRank!L52 -> 1 | K63: =IF(J63=0,4,IF(O63=-100,5,IF(O63<=iIndiRank!$BT$6,0,IF(O63<=iIndiRank!BT$7,1,IF(O63<=iIndiRank!$BT$8,2,3))))) -> 2 | M63: =iIndiRank!P52 -> 47 | N63: =iIndiRank!Q52 -> Croatia | O63: =iIndiRank!T52 -> 7.571023331 | P63: =IF(iIndiRank!R52=-100,"",iIndiRank!R52) -> 7.6 | Q63: |||||| | V63: =iIndiRank!AT52 -> 1 | W63: =iIndiRank!AU52 -> Croatia | Y63: =iIndiRank!AW52 -> 0 | Z63: =iIndiRank!AX52 ->  | AB63: =iIndiRank!AZ52 -> 0 | AC63: =iIndiRank!BA52 ->  | AE63: =iIndiRank!BC52 -> 0 | AF63: =iIndiRank!BD52 ->  | AH63: =iIndiRank!BF52 -> 0 | AI63: =iIndiRank!BG52 -> 
B64: =IF(uxb_works!$J$21=1,1,IF(OR(V64>0,Y64>0,AB64>0,AE64>0,AH64>0),1,0)) -> 1 | J64: =iIndiRank!L53 -> 1 | K64: =IF(J64=0,4,IF(O64=-100,5,IF(O64<=iIndiRank!$BT$6,0,IF(O64<=iIndiRank!BT$7,1,IF(O64<=iIndiRank!$BT$8,2,3))))) -> 2 | M64: =iIndiRank!P53 -> 48 | N64: =iIndiRank!Q53 -> Lithuania | O64: =iIndiRank!T53 -> 7.171206441 | P64: =IF(iIndiRank!R53=-100,"",iIndiRank!R53) -> 7.2 | Q64: ||||| | V64: =iIndiRank!AT53 -> 1 | W64: =iIndiRank!AU53 -> Lithuania | Y64: =iIndiRank!AW53 -> 0 | Z64: =iIndiRank!AX53 ->  | AB64: =iIndiRank!AZ53 -> 0 | AC64: =iIndiRank!BA53 ->  | AE64: =iIndiRank!BC53 -> 0 | AF64: =iIndiRank!BD53 ->  | AH64: =iIndiRank!BF53 -> 0 | AI64: =iIndiRank!BG53 -> 
B65: =IF(uxb_works!$J$21=1,1,IF(OR(V65>0,Y65>0,AB65>0,AE65>0,AH65>0),1,0)) -> 1 | J65: =iIndiRank!L54 -> 1 | K65: =IF(J65=0,4,IF(O65=-100,5,IF(O65<=iIndiRank!$BT$6,0,IF(O65<=iIndiRank!BT$7,1,IF(O65<=iIndiRank!$BT$8,2,3))))) -> 2 | M65: =iIndiRank!P54 -> 49 | N65: =iIndiRank!Q54 -> Bulgaria | O65: =iIndiRank!T54 -> 6.81537208 | P65: =IF(iIndiRank!R54=-100,"",iIndiRank!R54) -> 6.8 | Q65: ||||| | V65: =iIndiRank!AT54 -> 1 | W65: =iIndiRank!AU54 -> Bulgaria | Y65: =iIndiRank!AW54 -> 0 | Z65: =iIndiRank!AX54 ->  | AB65: =iIndiRank!AZ54 -> 0 | AC65: =iIndiRank!BA54 ->  | AE65: =iIndiRank!BC54 -> 0 | AF65: =iIndiRank!BD54 ->  | AH65: =iIndiRank!BF54 -> 0 | AI65: =iIndiRank!BG54 -> 
B66: =IF(uxb_works!$J$21=1,1,IF(OR(V66>0,Y66>0,AB66>0,AE66>0,AH66>0),1,0)) -> 1 | J66: =iIndiRank!L55 -> 1 | K66: =IF(J66=0,4,IF(O66=-100,5,IF(O66<=iIndiRank!$BT$6,0,IF(O66<=iIndiRank!BT$7,1,IF(O66<=iIndiRank!$BT$8,2,3))))) -> 1 | M66: =iIndiRank!P55 -> 50 | N66: =iIndiRank!Q55 -> Algeria | O66: =iIndiRank!T55 -> 6.63310442 | P66: =IF(iIndiRank!R55=-100,"",iIndiRank!R55) -> 6.6 | Q66: ||||| | V66: =iIndiRank!AT55 -> 1 | W66: =iIndiRank!AU55 -> Algeria | Y66: =iIndiRank!AW55 -> 0 | Z66: =iIndiRank!AX55 ->  | AB66: =iIndiRank!AZ55 -> 0 | AC66: =iIndiRank!BA55 ->  | AE66: =iIndiRank!BC55 -> 0 | AF66: =iIndiRank!BD55 ->  | AH66: =iIndiRank!BF55 -> 0 | AI66: =iIndiRank!BG55 -> 
B67: =IF(uxb_works!$J$21=1,1,IF(OR(V67>0,Y67>0,AB67>0,AE67>0,AH67>0),1,0)) -> 1 | J67: =iIndiRank!L56 -> 1 | K67: =IF(J67=0,4,IF(O67=-100,5,IF(O67<=iIndiRank!$BT$6,0,IF(O67<=iIndiRank!BT$7,1,IF(O67<=iIndiRank!$BT$8,2,3))))) -> 1 | M67: =iIndiRank!P56 -> =51 | N67: =iIndiRank!Q56 -> Argentina | O67: =iIndiRank!T56 -> 6.459822702 | P67: =IF(iIndiRank!R56=-100,"",iIndiRank!R56) -> 6.5 | Q67: ||||| | V67: =iIndiRank!AT56 -> 1 | W67: =iIndiRank!AU56 -> Argentina | Y67: =iIndiRank!AW56 -> 0 | Z67: =iIndiRank!AX56 ->  | AB67: =iIndiRank!AZ56 -> 0 | AC67: =iIndiRank!BA56 ->  | AE67: =iIndiRank!BC56 -> 0 | AF67: =iIndiRank!BD56 ->  | AH67: =iIndiRank!BF56 -> 0 | AI67: =iIndiRank!BG56 -> 
B68: =IF(uxb_works!$J$21=1,1,IF(OR(V68>0,Y68>0,AB68>0,AE68>0,AH68>0),1,0)) -> 1 | J68: =iIndiRank!L57 -> 1 | K68: =IF(J68=0,4,IF(O68=-100,5,IF(O68<=iIndiRank!$BT$6,0,IF(O68<=iIndiRank!BT$7,1,IF(O68<=iIndiRank!$BT$8,2,3))))) -> 1 | M68: =iIndiRank!P57 -> =51 | N68: =iIndiRank!Q57 -> Jordan | O68: =iIndiRank!T57 -> 6.467556232 | P68: =IF(iIndiRank!R57=-100,"",iIndiRank!R57) -> 6.5 | Q68: ||||| | V68: =iIndiRank!AT57 -> 1 | W68: =iIndiRank!AU57 -> Jordan | Y68: =iIndiRank!AW57 -> 0 | Z68: =iIndiRank!AX57 ->  | AB68: =iIndiRank!AZ57 -> 0 | AC68: =iIndiRank!BA57 ->  | AE68: =iIndiRank!BC57 -> 0 | AF68: =iIndiRank!BD57 ->  | AH68: =iIndiRank!BF57 -> 0 | AI68: =iIndiRank!BG57 -> 
B69: =IF(uxb_works!$J$21=1,1,IF(OR(V69>0,Y69>0,AB69>0,AE69>0,AH69>0),1,0)) -> 1 | J69: =iIndiRank!L58 -> 1 | K69: =IF(J69=0,4,IF(O69=-100,5,IF(O69<=iIndiRank!$BT$6,0,IF(O69<=iIndiRank!BT$7,1,IF(O69<=iIndiRank!$BT$8,2,3))))) -> 1 | M69: =iIndiRank!P58 -> 53 | N69: =iIndiRank!Q58 -> Chile | O69: =iIndiRank!T58 -> 6.362586098 | P69: =IF(iIndiRank!R58=-100,"",iIndiRank!R58) -> 6.4 | Q69: ||||| | V69: =iIndiRank!AT58 -> 1 | W69: =iIndiRank!AU58 -> Chile | Y69: =iIndiRank!AW58 -> 0 | Z69: =iIndiRank!AX58 ->  | AB69: =iIndiRank!AZ58 -> 0 | AC69: =iIndiRank!BA58 ->  | AE69: =iIndiRank!BC58 -> 0 | AF69: =iIndiRank!BD58 ->  | AH69: =iIndiRank!BF58 -> 0 | AI69: =iIndiRank!BG58 -> 
B70: =IF(uxb_works!$J$21=1,1,IF(OR(V70>0,Y70>0,AB70>0,AE70>0,AH70>0),1,0)) -> 1 | J70: =iIndiRank!L59 -> 1 | K70: =IF(J70=0,4,IF(O70=-100,5,IF(O70<=iIndiRank!$BT$6,0,IF(O70<=iIndiRank!BT$7,1,IF(O70<=iIndiRank!$BT$8,2,3))))) -> 1 | M70: =iIndiRank!P59 -> 54 | N70: =iIndiRank!Q59 -> Romania | O70: =iIndiRank!T59 -> 6.25416044 | P70: =IF(iIndiRank!R59=-100,"",iIndiRank!R59) -> 6.3 | Q70: ||||| | V70: =iIndiRank!AT59 -> 1 | W70: =iIndiRank!AU59 -> Romania | Y70: =iIndiRank!AW59 -> 0 | Z70: =iIndiRank!AX59 ->  | AB70: =iIndiRank!AZ59 -> 0 | AC70: =iIndiRank!BA59 ->  | AE70: =iIndiRank!BC59 -> 0 | AF70: =iIndiRank!BD59 ->  | AH70: =iIndiRank!BF59 -> 0 | AI70: =iIndiRank!BG59 -> 
B71: =IF(uxb_works!$J$21=1,1,IF(OR(V71>0,Y71>0,AB71>0,AE71>0,AH71>0),1,0)) -> 1 | J71: =iIndiRank!L60 -> 1 | K71: =IF(J71=0,4,IF(O71=-100,5,IF(O71<=iIndiRank!$BT$6,0,IF(O71<=iIndiRank!BT$7,1,IF(O71<=iIndiRank!$BT$8,2,3))))) -> 1 | M71: =iIndiRank!P60 -> 55 | N71: =iIndiRank!Q60 -> Tunisia | O71: =iIndiRank!T60 -> 6.01576752 | P71: =IF(iIndiRank!R60=-100,"",iIndiRank!R60) -> 6 | Q71: |||| | V71: =iIndiRank!AT60 -> 1 | W71: =iIndiRank!AU60 -> Tunisia | Y71: =iIndiRank!AW60 -> 0 | Z71: =iIndiRank!AX60 ->  | AB71: =iIndiRank!AZ60 -> 0 | AC71: =iIndiRank!BA60 ->  | AE71: =iIndiRank!BC60 -> 0 | AF71: =iIndiRank!BD60 ->  | AH71: =iIndiRank!BF60 -> 0 | AI71: =iIndiRank!BG60 -> 
B72: =IF(uxb_works!$J$21=1,1,IF(OR(V72>0,Y72>0,AB72>0,AE72>0,AH72>0),1,0)) -> 1 | J72: =iIndiRank!L61 -> 1 | K72: =IF(J72=0,4,IF(O72=-100,5,IF(O72<=iIndiRank!$BT$6,0,IF(O72<=iIndiRank!BT$7,1,IF(O72<=iIndiRank!$BT$8,2,3))))) -> 1 | M72: =iIndiRank!P61 -> 56 | N72: =iIndiRank!Q61 -> Cyprus | O72: =iIndiRank!T61 -> 5.943734055 | P72: =IF(iIndiRank!R61=-100,"",iIndiRank!R61) -> 5.9 | Q72: |||| | V72: =iIndiRank!AT61 -> 1 | W72: =iIndiRank!AU61 -> Cyprus | Y72: =iIndiRank!AW61 -> 0 | Z72: =iIndiRank!AX61 ->  | AB72: =iIndiRank!AZ61 -> 0 | AC72: =iIndiRank!BA61 ->  | AE72: =iIndiRank!BC61 -> 0 | AF72: =iIndiRank!BD61 ->  | AH72: =iIndiRank!BF61 -> 0 | AI72: =iIndiRank!BG61 -> 
B73: =IF(uxb_works!$J$21=1,1,IF(OR(V73>0,Y73>0,AB73>0,AE73>0,AH73>0),1,0)) -> 1 | J73: =iIndiRank!L62 -> 1 | K73: =IF(J73=0,4,IF(O73=-100,5,IF(O73<=iIndiRank!$BT$6,0,IF(O73<=iIndiRank!BT$7,1,IF(O73<=iIndiRank!$BT$8,2,3))))) -> 1 | M73: =iIndiRank!P62 -> 57 | N73: =iIndiRank!Q62 -> Ukraine | O73: =iIndiRank!T62 -> 5.644683051 | P73: =IF(iIndiRank!R62=-100,"",iIndiRank!R62) -> 5.6 | Q73: |||| | V73: =iIndiRank!AT62 -> 1 | W73: =iIndiRank!AU62 -> Ukraine | Y73: =iIndiRank!AW62 -> 0 | Z73: =iIndiRank!AX62 ->  | AB73: =iIndiRank!AZ62 -> 0 | AC73: =iIndiRank!BA62 ->  | AE73: =iIndiRank!BC62 -> 0 | AF73: =iIndiRank!BD62 ->  | AH73: =iIndiRank!BF62 -> 0 | AI73: =iIndiRank!BG62 -> 
B74: =IF(uxb_works!$J$21=1,1,IF(OR(V74>0,Y74>0,AB74>0,AE74>0,AH74>0),1,0)) -> 1 | J74: =iIndiRank!L63 -> 1 | K74: =IF(J74=0,4,IF(O74=-100,5,IF(O74<=iIndiRank!$BT$6,0,IF(O74<=iIndiRank!BT$7,1,IF(O74<=iIndiRank!$BT$8,2,3))))) -> 1 | M74: =iIndiRank!P63 -> 58 | N74: =iIndiRank!Q63 -> Lebanon | O74: =iIndiRank!T63 -> 5.437479546 | P74: =IF(iIndiRank!R63=-100,"",iIndiRank!R63) -> 5.4 | Q74: |||| | V74: =iIndiRank!AT63 -> 1 | W74: =iIndiRank!AU63 -> Lebanon | Y74: =iIndiRank!AW63 -> 0 | Z74: =iIndiRank!AX63 ->  | AB74: =iIndiRank!AZ63 -> 0 | AC74: =iIndiRank!BA63 ->  | AE74: =iIndiRank!BC63 -> 0 | AF74: =iIndiRank!BD63 ->  | AH74: =iIndiRank!BF63 -> 0 | AI74: =iIndiRank!BG63 -> 
B75: =IF(uxb_works!$J$21=1,1,IF(OR(V75>0,Y75>0,AB75>0,AE75>0,AH75>0),1,0)) -> 1 | J75: =iIndiRank!L64 -> 1 | K75: =IF(J75=0,4,IF(O75=-100,5,IF(O75<=iIndiRank!$BT$6,0,IF(O75<=iIndiRank!BT$7,1,IF(O75<=iIndiRank!$BT$8,2,3))))) -> 1 | M75: =iIndiRank!P64 -> =59 | N75: =iIndiRank!Q64 -> Qatar | O75: =iIndiRank!T64 -> 5.022445655 | P75: =IF(iIndiRank!R64=-100,"",iIndiRank!R64) -> 5 | Q75: |||| | V75: =iIndiRank!AT64 -> 1 | W75: =iIndiRank!AU64 -> Qatar | Y75: =iIndiRank!AW64 -> 0 | Z75: =iIndiRank!AX64 ->  | AB75: =iIndiRank!AZ64 -> 0 | AC75: =iIndiRank!BA64 ->  | AE75: =iIndiRank!BC64 -> 0 | AF75: =iIndiRank!BD64 ->  | AH75: =iIndiRank!BF64 -> 0 | AI75: =iIndiRank!BG64 -> 
B76: =IF(uxb_works!$J$21=1,1,IF(OR(V76>0,Y76>0,AB76>0,AE76>0,AH76>0),1,0)) -> 1 | J76: =iIndiRank!L65 -> 1 | K76: =IF(J76=0,4,IF(O76=-100,5,IF(O76<=iIndiRank!$BT$6,0,IF(O76<=iIndiRank!BT$7,1,IF(O76<=iIndiRank!$BT$8,2,3))))) -> 1 | M76: =iIndiRank!P65 -> =59 | N76: =iIndiRank!Q65 -> Viet Nam | O76: =iIndiRank!T65 -> 5.04801412 | P76: =IF(iIndiRank!R65=-100,"",iIndiRank!R65) -> 5 | Q76: |||| | V76: =iIndiRank!AT65 -> 1 | W76: =iIndiRank!AU65 -> Viet Nam | Y76: =iIndiRank!AW65 -> 0 | Z76: =iIndiRank!AX65 ->  | AB76: =iIndiRank!AZ65 -> 0 | AC76: =iIndiRank!BA65 ->  | AE76: =iIndiRank!BC65 -> 0 | AF76: =iIndiRank!BD65 ->  | AH76: =iIndiRank!BF65 -> 0 | AI76: =iIndiRank!BG65 -> 
B77: =IF(uxb_works!$J$21=1,1,IF(OR(V77>0,Y77>0,AB77>0,AE77>0,AH77>0),1,0)) -> 1 | J77: =iIndiRank!L66 -> 1 | K77: =IF(J77=0,4,IF(O77=-100,5,IF(O77<=iIndiRank!$BT$6,0,IF(O77<=iIndiRank!BT$7,1,IF(O77<=iIndiRank!$BT$8,2,3))))) -> 1 | M77: =iIndiRank!P66 -> 61 | N77: =iIndiRank!Q66 -> Morocco | O77: =iIndiRank!T66 -> 4.570502269 | P77: =IF(iIndiRank!R66=-100,"",iIndiRank!R66) -> 4.6 | Q77: ||| | V77: =iIndiRank!AT66 -> 1 | W77: =iIndiRank!AU66 -> Morocco | Y77: =iIndiRank!AW66 -> 0 | Z77: =iIndiRank!AX66 ->  | AB77: =iIndiRank!AZ66 -> 0 | AC77: =iIndiRank!BA66 ->  | AE77: =iIndiRank!BC66 -> 0 | AF77: =iIndiRank!BD66 ->  | AH77: =iIndiRank!BF66 -> 0 | AI77: =iIndiRank!BG66 -> 
B78: =IF(uxb_works!$J$21=1,1,IF(OR(V78>0,Y78>0,AB78>0,AE78>0,AH78>0),1,0)) -> 1 | J78: =iIndiRank!L67 -> 1 | K78: =IF(J78=0,4,IF(O78=-100,5,IF(O78<=iIndiRank!$BT$6,0,IF(O78<=iIndiRank!BT$7,1,IF(O78<=iIndiRank!$BT$8,2,3))))) -> 1 | M78: =iIndiRank!P67 -> 62 | N78: =iIndiRank!Q67 -> Colombia | O78: =iIndiRank!T67 -> 4.412968494 | P78: =IF(iIndiRank!R67=-100,"",iIndiRank!R67) -> 4.4 | Q78: ||| | V78: =iIndiRank!AT67 -> 1 | W78: =iIndiRank!AU67 -> Colombia | Y78: =iIndiRank!AW67 -> 0 | Z78: =iIndiRank!AX67 ->  | AB78: =iIndiRank!AZ67 -> 0 | AC78: =iIndiRank!BA67 ->  | AE78: =iIndiRank!BC67 -> 0 | AF78: =iIndiRank!BD67 ->  | AH78: =iIndiRank!BF67 -> 0 | AI78: =iIndiRank!BG67 -> 
B79: =IF(uxb_works!$J$21=1,1,IF(OR(V79>0,Y79>0,AB79>0,AE79>0,AH79>0),1,0)) -> 1 | J79: =iIndiRank!L68 -> 1 | K79: =IF(J79=0,4,IF(O79=-100,5,IF(O79<=iIndiRank!$BT$6,0,IF(O79<=iIndiRank!BT$7,1,IF(O79<=iIndiRank!$BT$8,2,3))))) -> 1 | M79: =iIndiRank!P68 -> 63 | N79: =iIndiRank!Q68 -> Latvia | O79: =iIndiRank!T68 -> 4.198788039 | P79: =IF(iIndiRank!R68=-100,"",iIndiRank!R68) -> 4.2 | Q79: ||| | V79: =iIndiRank!AT68 -> 1 | W79: =iIndiRank!AU68 -> Latvia | Y79: =iIndiRank!AW68 -> 0 | Z79: =iIndiRank!AX68 ->  | AB79: =iIndiRank!AZ68 -> 0 | AC79: =iIndiRank!BA68 ->  | AE79: =iIndiRank!BC68 -> 0 | AF79: =iIndiRank!BD68 ->  | AH79: =iIndiRank!BF68 -> 0 | AI79: =iIndiRank!BG68 -> 
B80: =IF(uxb_works!$J$21=1,1,IF(OR(V80>0,Y80>0,AB80>0,AE80>0,AH80>0),1,0)) -> 1 | J80: =iIndiRank!L69 -> 1 | K80: =IF(J80=0,4,IF(O80=-100,5,IF(O80<=iIndiRank!$BT$6,0,IF(O80<=iIndiRank!BT$7,1,IF(O80<=iIndiRank!$BT$8,2,3))))) -> 1 | M80: =iIndiRank!P69 -> 64 | N80: =iIndiRank!Q69 -> Ethiopia | O80: =iIndiRank!T69 -> 3.991693694 | P80: =IF(iIndiRank!R69=-100,"",iIndiRank!R69) -> 4 | Q80: ||| | V80: =iIndiRank!AT69 -> 1 | W80: =iIndiRank!AU69 -> Ethiopia | Y80: =iIndiRank!AW69 -> 0 | Z80: =iIndiRank!AX69 ->  | AB80: =iIndiRank!AZ69 -> 0 | AC80: =iIndiRank!BA69 ->  | AE80: =iIndiRank!BC69 -> 0 | AF80: =iIndiRank!BD69 ->  | AH80: =iIndiRank!BF69 -> 0 | AI80: =iIndiRank!BG69 -> 
B81: =IF(uxb_works!$J$21=1,1,IF(OR(V81>0,Y81>0,AB81>0,AE81>0,AH81>0),1,0)) -> 1 | J81: =iIndiRank!L70 -> 1 | K81: =IF(J81=0,4,IF(O81=-100,5,IF(O81<=iIndiRank!$BT$6,0,IF(O81<=iIndiRank!BT$7,1,IF(O81<=iIndiRank!$BT$8,2,3))))) -> 1 | M81: =iIndiRank!P70 -> =65 | N81: =iIndiRank!Q70 -> Indonesia | O81: =iIndiRank!T70 -> 3.786537978 | P81: =IF(iIndiRank!R70=-100,"",iIndiRank!R70) -> 3.8 | Q81: ||| | V81: =iIndiRank!AT70 -> 1 | W81: =iIndiRank!AU70 -> Indonesia | Y81: =iIndiRank!AW70 -> 0 | Z81: =iIndiRank!AX70 ->  | AB81: =iIndiRank!AZ70 -> 0 | AC81: =iIndiRank!BA70 ->  | AE81: =iIndiRank!BC70 -> 0 | AF81: =iIndiRank!BD70 ->  | AH81: =iIndiRank!BF70 -> 0 | AI81: =iIndiRank!BG70 -> 
B82: =IF(uxb_works!$J$21=1,1,IF(OR(V82>0,Y82>0,AB82>0,AE82>0,AH82>0),1,0)) -> 1 | J82: =iIndiRank!L71 -> 1 | K82: =IF(J82=0,4,IF(O82=-100,5,IF(O82<=iIndiRank!$BT$6,0,IF(O82<=iIndiRank!BT$7,1,IF(O82<=iIndiRank!$BT$8,2,3))))) -> 1 | M82: =iIndiRank!P71 -> =65 | N82: =iIndiRank!Q71 -> Malta | O82: =iIndiRank!T71 -> 3.771188178 | P82: =IF(iIndiRank!R71=-100,"",iIndiRank!R71) -> 3.8 | Q82: =IF(ISNUMBER(P82),REPT("|",P82*0.8),"") -> ||| | V82: =iIndiRank!AT71 -> 1 | W82: =iIndiRank!AU71 -> Malta | Y82: =iIndiRank!AW71 -> 0 | Z82: =iIndiRank!AX71 ->  | AB82: =iIndiRank!AZ71 -> 0 | AC82: =iIndiRank!BA71 ->  | AE82: =iIndiRank!BC71 -> 0 | AF82: =iIndiRank!BD71 ->  | AH82: =iIndiRank!BF71 -> 0 | AI82: =iIndiRank!BG71 -> 
B83: =IF(uxb_works!$J$21=1,1,IF(OR(V83>0,Y83>0,AB83>0,AE83>0,AH83>0),1,0)) -> 1 | J83: =iIndiRank!L72 -> 1 | K83: =IF(J83=0,4,IF(O83=-100,5,IF(O83<=iIndiRank!$BT$6,0,IF(O83<=iIndiRank!BT$7,1,IF(O83<=iIndiRank!$BT$8,2,3))))) -> 1 | M83: =iIndiRank!P72 -> 67 | N83: =iIndiRank!Q72 -> Albania | O83: =iIndiRank!T72 -> 3.689324736 | P83: =IF(iIndiRank!R72=-100,"",iIndiRank!R72) -> 3.7 | Q83: || | V83: =iIndiRank!AT72 -> 1 | W83: =iIndiRank!AU72 -> Albania | Y83: =iIndiRank!AW72 -> 0 | Z83: =iIndiRank!AX72 ->  | AB83: =iIndiRank!AZ72 -> 0 | AC83: =iIndiRank!BA72 ->  | AE83: =iIndiRank!BC72 -> 0 | AF83: =iIndiRank!BD72 ->  | AH83: =iIndiRank!BF72 -> 0 | AI83: =iIndiRank!BG72 -> 
B84: =IF(uxb_works!$J$21=1,1,IF(OR(V84>0,Y84>0,AB84>0,AE84>0,AH84>0),1,0)) -> 1 | J84: =iIndiRank!L73 -> 1 | K84: =IF(J84=0,4,IF(O84=-100,5,IF(O84<=iIndiRank!$BT$6,0,IF(O84<=iIndiRank!BT$7,1,IF(O84<=iIndiRank!$BT$8,2,3))))) -> 1 | M84: =iIndiRank!P73 -> =68 | N84: =iIndiRank!Q73 -> Bangladesh | O84: =iIndiRank!T73 -> 3.633445112 | P84: =IF(iIndiRank!R73=-100,"",iIndiRank!R73) -> 3.6 | Q84: || | V84: =iIndiRank!AT73 -> 1 | W84: =iIndiRank!AU73 -> Bangladesh | Y84: =iIndiRank!AW73 -> 0 | Z84: =iIndiRank!AX73 ->  | AB84: =iIndiRank!AZ73 -> 0 | AC84: =iIndiRank!BA73 ->  | AE84: =iIndiRank!BC73 -> 0 | AF84: =iIndiRank!BD73 ->  | AH84: =iIndiRank!BF73 -> 0 | AI84: =iIndiRank!BG73 -> 
B85: =IF(uxb_works!$J$21=1,1,IF(OR(V85>0,Y85>0,AB85>0,AE85>0,AH85>0),1,0)) -> 1 | J85: =iIndiRank!L74 -> 1 | K85: =IF(J85=0,4,IF(O85=-100,5,IF(O85<=iIndiRank!$BT$6,0,IF(O85<=iIndiRank!BT$7,1,IF(O85<=iIndiRank!$BT$8,2,3))))) -> 1 | M85: =iIndiRank!P74 -> =68 | N85: =iIndiRank!Q74 -> Nigeria | O85: =iIndiRank!T74 -> 3.59177378 | P85: =IF(iIndiRank!R74=-100,"",iIndiRank!R74) -> 3.6 | Q85: || | V85: =iIndiRank!AT74 -> 1 | W85: =iIndiRank!AU74 -> Nigeria | Y85: =iIndiRank!AW74 -> 0 | Z85: =iIndiRank!AX74 ->  | AB85: =iIndiRank!AZ74 -> 0 | AC85: =iIndiRank!BA74 ->  | AE85: =iIndiRank!BC74 -> 0 | AF85: =iIndiRank!BD74 ->  | AH85: =iIndiRank!BF74 -> 0 | AI85: =iIndiRank!BG74 -> 
B86: =IF(uxb_works!$J$21=1,1,IF(OR(V86>0,Y86>0,AB86>0,AE86>0,AH86>0),1,0)) -> 1 | J86: =iIndiRank!L75 -> 1 | K86: =IF(J86=0,4,IF(O86=-100,5,IF(O86<=iIndiRank!$BT$6,0,IF(O86<=iIndiRank!BT$7,1,IF(O86<=iIndiRank!$BT$8,2,3))))) -> 1 | M86: =iIndiRank!P75 -> 70 | N86: =iIndiRank!Q75 -> Dominican Republic | O86: =iIndiRank!T75 -> 3.469423147 | P86: =IF(iIndiRank!R75=-100,"",iIndiRank!R75) -> 3.5 | Q86: || | V86: =iIndiRank!AT75 -> 1 | W86: =iIndiRank!AU75 -> Dominican Republic | Y86: =iIndiRank!AW75 -> 0 | Z86: =iIndiRank!AX75 ->  | AB86: =iIndiRank!AZ75 -> 0 | AC86: =iIndiRank!BA75 ->  | AE86: =iIndiRank!BC75 -> 0 | AF86: =iIndiRank!BD75 ->  | AH86: =iIndiRank!BF75 -> 0 | AI86: =iIndiRank!BG75 -> 
B87: =IF(uxb_works!$J$21=1,1,IF(OR(V87>0,Y87>0,AB87>0,AE87>0,AH87>0),1,0)) -> 1 | J87: =iIndiRank!L76 -> 1 | K87: =IF(J87=0,4,IF(O87=-100,5,IF(O87<=iIndiRank!$BT$6,0,IF(O87<=iIndiRank!BT$7,1,IF(O87<=iIndiRank!$BT$8,2,3))))) -> 1 | M87: =iIndiRank!P76 -> 71 | N87: =iIndiRank!Q76 -> Guyana | O87: =iIndiRank!T76 -> 3.359030837 | P87: =IF(iIndiRank!R76=-100,"",iIndiRank!R76) -> 3.4 | Q87: || | V87: =iIndiRank!AT76 -> 1 | W87: =iIndiRank!AU76 -> Guyana | Y87: =iIndiRank!AW76 -> 0 | Z87: =iIndiRank!AX76 ->  | AB87: =iIndiRank!AZ76 -> 0 | AC87: =iIndiRank!BA76 ->  | AE87: =iIndiRank!BC76 -> 0 | AF87: =iIndiRank!BD76 ->  | AH87: =iIndiRank!BF76 -> 0 | AI87: =iIndiRank!BG76 -> 
B88: =IF(uxb_works!$J$21=1,1,IF(OR(V88>0,Y88>0,AB88>0,AE88>0,AH88>0),1,0)) -> 1 | J88: =iIndiRank!L77 -> 1 | K88: =IF(J88=0,4,IF(O88=-100,5,IF(O88<=iIndiRank!$BT$6,0,IF(O88<=iIndiRank!BT$7,1,IF(O88<=iIndiRank!$BT$8,2,3))))) -> 1 | M88: =iIndiRank!P77 -> =72 | N88: =iIndiRank!Q77 -> Armenia | O88: =iIndiRank!T77 -> 3.248784569 | P88: =IF(iIndiRank!R77=-100,"",iIndiRank!R77) -> 3.2 | Q88: || | V88: =iIndiRank!AT77 -> 1 | W88: =iIndiRank!AU77 -> Armenia | Y88: =iIndiRank!AW77 -> 0 | Z88: =iIndiRank!AX77 ->  | AB88: =iIndiRank!AZ77 -> 0 | AC88: =iIndiRank!BA77 ->  | AE88: =iIndiRank!BC77 -> 0 | AF88: =iIndiRank!BD77 ->  | AH88: =iIndiRank!BF77 -> 0 | AI88: =iIndiRank!BG77 -> 
B89: =IF(uxb_works!$J$21=1,1,IF(OR(V89>0,Y89>0,AB89>0,AE89>0,AH89>0),1,0)) -> 1 | J89: =iIndiRank!L78 -> 1 | K89: =IF(J89=0,4,IF(O89=-100,5,IF(O89<=iIndiRank!$BT$6,0,IF(O89<=iIndiRank!BT$7,1,IF(O89<=iIndiRank!$BT$8,2,3))))) -> 1 | M89: =iIndiRank!P78 -> =72 | N89: =iIndiRank!Q78 -> Costa Rica | O89: =iIndiRank!T78 -> 3.193406316 | P89: =IF(iIndiRank!R78=-100,"",iIndiRank!R78) -> 3.2 | Q89: || | V89: =iIndiRank!AT78 -> 1 | W89: =iIndiRank!AU78 -> Costa Rica | Y89: =iIndiRank!AW78 -> 0 | Z89: =iIndiRank!AX78 ->  | AB89: =iIndiRank!AZ78 -> 0 | AC89: =iIndiRank!BA78 ->  | AE89: =iIndiRank!BC78 -> 0 | AF89: =iIndiRank!BD78 ->  | AH89: =iIndiRank!BF78 -> 0 | AI89: =iIndiRank!BG78 -> 
B90: =IF(uxb_works!$J$21=1,1,IF(OR(V90>0,Y90>0,AB90>0,AE90>0,AH90>0),1,0)) -> 1 | J90: =iIndiRank!L79 -> 1 | K90: =IF(J90=0,4,IF(O90=-100,5,IF(O90<=iIndiRank!$BT$6,0,IF(O90<=iIndiRank!BT$7,1,IF(O90<=iIndiRank!$BT$8,2,3))))) -> 1 | M90: =iIndiRank!P79 -> =72 | N90: =iIndiRank!Q79 -> Uruguay | O90: =iIndiRank!T79 -> 3.165680947 | P90: =IF(iIndiRank!R79=-100,"",iIndiRank!R79) -> 3.2 | Q90: || | V90: =iIndiRank!AT79 -> 1 | W90: =iIndiRank!AU79 -> Uruguay | Y90: =iIndiRank!AW79 -> 0 | Z90: =iIndiRank!AX79 ->  | AB90: =iIndiRank!AZ79 -> 0 | AC90: =iIndiRank!BA79 ->  | AE90: =iIndiRank!BC79 -> 0 | AF90: =iIndiRank!BD79 ->  | AH90: =iIndiRank!BF79 -> 0 | AI90: =iIndiRank!BG79 -> 
B91: =IF(uxb_works!$J$21=1,1,IF(OR(V91>0,Y91>0,AB91>0,AE91>0,AH91>0),1,0)) -> 1 | J91: =iIndiRank!L80 -> 1 | K91: =IF(J91=0,4,IF(O91=-100,5,IF(O91<=iIndiRank!$BT$6,0,IF(O91<=iIndiRank!BT$7,1,IF(O91<=iIndiRank!$BT$8,2,3))))) -> 0 | M91: =iIndiRank!P80 -> =75 | N91: =iIndiRank!Q80 -> Ecuador | O91: =iIndiRank!T80 -> 3.138219451 | P91: =IF(iIndiRank!R80=-100,"",iIndiRank!R80) -> 3.1 | Q91: || | V91: =iIndiRank!AT80 -> 1 | W91: =iIndiRank!AU80 -> Ecuador | Y91: =iIndiRank!AW80 -> 0 | Z91: =iIndiRank!AX80 ->  | AB91: =iIndiRank!AZ80 -> 0 | AC91: =iIndiRank!BA80 ->  | AE91: =iIndiRank!BC80 -> 0 | AF91: =iIndiRank!BD80 ->  | AH91: =iIndiRank!BF80 -> 0 | AI91: =iIndiRank!BG80 -> 
B92: =IF(uxb_works!$J$21=1,1,IF(OR(V92>0,Y92>0,AB92>0,AE92>0,AH92>0),1,0)) -> 1 | J92: =iIndiRank!L81 -> 1 | K92: =IF(J92=0,4,IF(O92=-100,5,IF(O92<=iIndiRank!$BT$6,0,IF(O92<=iIndiRank!BT$7,1,IF(O92<=iIndiRank!$BT$8,2,3))))) -> 0 | M92: =iIndiRank!P81 -> =75 | N92: =iIndiRank!Q81 -> Georgia | O92: =iIndiRank!T81 -> 3.138494835 | P92: =IF(iIndiRank!R81=-100,"",iIndiRank!R81) -> 3.1 | Q92: || | V92: =iIndiRank!AT81 -> 1 | W92: =iIndiRank!AU81 -> Georgia | Y92: =iIndiRank!AW81 -> 0 | Z92: =iIndiRank!AX81 ->  | AB92: =iIndiRank!AZ81 -> 0 | AC92: =iIndiRank!BA81 ->  | AE92: =iIndiRank!BC81 -> 0 | AF92: =iIndiRank!BD81 ->  | AH92: =iIndiRank!BF81 -> 0 | AI92: =iIndiRank!BG81 -> 
B93: =IF(uxb_works!$J$21=1,1,IF(OR(V93>0,Y93>0,AB93>0,AE93>0,AH93>0),1,0)) -> 1 | J93: =iIndiRank!L82 -> 1 | K93: =IF(J93=0,4,IF(O93=-100,5,IF(O93<=iIndiRank!$BT$6,0,IF(O93<=iIndiRank!BT$7,1,IF(O93<=iIndiRank!$BT$8,2,3))))) -> 0 | M93: =iIndiRank!P82 -> =75 | N93: =iIndiRank!Q82 -> Kuwait | O93: =iIndiRank!T82 -> 3.052318152 | P93: =IF(iIndiRank!R82=-100,"",iIndiRank!R82) -> 3.1 | Q93: || | V93: =iIndiRank!AT82 -> 1 | W93: =iIndiRank!AU82 -> Kuwait | Y93: =iIndiRank!AW82 -> 0 | Z93: =iIndiRank!AX82 ->  | AB93: =iIndiRank!AZ82 -> 0 | AC93: =iIndiRank!BA82 ->  | AE93: =iIndiRank!BC82 -> 0 | AF93: =iIndiRank!BD82 ->  | AH93: =iIndiRank!BF82 -> 0 | AI93: =iIndiRank!BG82 -> 
B94: =IF(uxb_works!$J$21=1,1,IF(OR(V94>0,Y94>0,AB94>0,AE94>0,AH94>0),1,0)) -> 1 | J94: =iIndiRank!L83 -> 1 | K94: =IF(J94=0,4,IF(O94=-100,5,IF(O94<=iIndiRank!$BT$6,0,IF(O94<=iIndiRank!BT$7,1,IF(O94<=iIndiRank!$BT$8,2,3))))) -> 0 | M94: =iIndiRank!P83 -> 78 | N94: =iIndiRank!Q83 -> Oman | O94: =iIndiRank!T83 -> 2.985184317 | P94: =IF(iIndiRank!R83=-100,"",iIndiRank!R83) -> 3 | Q94: || | V94: =iIndiRank!AT83 -> 1 | W94: =iIndiRank!AU83 -> Oman | Y94: =iIndiRank!AW83 -> 0 | Z94: =iIndiRank!AX83 ->  | AB94: =iIndiRank!AZ83 -> 0 | AC94: =iIndiRank!BA83 ->  | AE94: =iIndiRank!BC83 -> 0 | AF94: =iIndiRank!BD83 ->  | AH94: =iIndiRank!BF83 -> 0 | AI94: =iIndiRank!BG83 -> 
B95: =IF(uxb_works!$J$21=1,1,IF(OR(V95>0,Y95>0,AB95>0,AE95>0,AH95>0),1,0)) -> 1 | J95: =iIndiRank!L84 -> 1 | K95: =IF(J95=0,4,IF(O95=-100,5,IF(O95<=iIndiRank!$BT$6,0,IF(O95<=iIndiRank!BT$7,1,IF(O95<=iIndiRank!$BT$8,2,3))))) -> 0 | M95: =iIndiRank!P84 -> 79 | N95: =iIndiRank!Q84 -> Ghana | O95: =iIndiRank!T84 -> 2.587417432 | P95: =IF(iIndiRank!R84=-100,"",iIndiRank!R84) -> 2.6 | Q95: || | V95: =iIndiRank!AT84 -> 1 | W95: =iIndiRank!AU84 -> Ghana | Y95: =iIndiRank!AW84 -> 0 | Z95: =iIndiRank!AX84 ->  | AB95: =iIndiRank!AZ84 -> 0 | AC95: =iIndiRank!BA84 ->  | AE95: =iIndiRank!BC84 -> 0 | AF95: =iIndiRank!BD84 ->  | AH95: =iIndiRank!BF84 -> 0 | AI95: =iIndiRank!BG84 -> 
B96: =IF(uxb_works!$J$21=1,1,IF(OR(V96>0,Y96>0,AB96>0,AE96>0,AH96>0),1,0)) -> 1 | J96: =iIndiRank!L85 -> 1 | K96: =IF(J96=0,4,IF(O96=-100,5,IF(O96<=iIndiRank!$BT$6,0,IF(O96<=iIndiRank!BT$7,1,IF(O96<=iIndiRank!$BT$8,2,3))))) -> 0 | M96: =iIndiRank!P85 -> 80 | N96: =iIndiRank!Q85 -> Philippines | O96: =iIndiRank!T85 -> 2.39959609 | P96: =IF(iIndiRank!R85=-100,"",iIndiRank!R85) -> 2.4 | Q96: | | V96: =iIndiRank!AT85 -> 1 | W96: =iIndiRank!AU85 -> Philippines | Y96: =iIndiRank!AW85 -> 0 | Z96: =iIndiRank!AX85 ->  | AB96: =iIndiRank!AZ85 -> 0 | AC96: =iIndiRank!BA85 ->  | AE96: =iIndiRank!BC85 -> 0 | AF96: =iIndiRank!BD85 ->  | AH96: =iIndiRank!BF85 -> 0 | AI96: =iIndiRank!BG85 -> 
B97: =IF(uxb_works!$J$21=1,1,IF(OR(V97>0,Y97>0,AB97>0,AE97>0,AH97>0),1,0)) -> 1 | J97: =iIndiRank!L86 -> 1 | K97: =IF(J97=0,4,IF(O97=-100,5,IF(O97<=iIndiRank!$BT$6,0,IF(O97<=iIndiRank!BT$7,1,IF(O97<=iIndiRank!$BT$8,2,3))))) -> 0 | M97: =iIndiRank!P86 -> =81 | N97: =iIndiRank!Q86 -> Azerbaijan | O97: =iIndiRank!T86 -> 2.341694045 | P97: =IF(iIndiRank!R86=-100,"",iIndiRank!R86) -> 2.3 | Q97: | | V97: =iIndiRank!AT86 -> 1 | W97: =iIndiRank!AU86 -> Azerbaijan | Y97: =iIndiRank!AW86 -> 0 | Z97: =iIndiRank!AX86 ->  | AB97: =iIndiRank!AZ86 -> 0 | AC97: =iIndiRank!BA86 ->  | AE97: =iIndiRank!BC86 -> 0 | AF97: =iIndiRank!BD86 ->  | AH97: =iIndiRank!BF86 -> 0 | AI97: =iIndiRank!BG86 -> 
B98: =IF(uxb_works!$J$21=1,1,IF(OR(V98>0,Y98>0,AB98>0,AE98>0,AH98>0),1,0)) -> 1 | J98: =iIndiRank!L87 -> 1 | K98: =IF(J98=0,4,IF(O98=-100,5,IF(O98<=iIndiRank!$BT$6,0,IF(O98<=iIndiRank!BT$7,1,IF(O98<=iIndiRank!$BT$8,2,3))))) -> 0 | M98: =iIndiRank!P87 -> =81 | N98: =iIndiRank!Q87 -> Mauritius | O98: =iIndiRank!T87 -> 2.339854029 | P98: =IF(iIndiRank!R87=-100,"",iIndiRank!R87) -> 2.3 | Q98: | | V98: =iIndiRank!AT87 -> 1 | W98: =iIndiRank!AU87 -> Mauritius | Y98: =iIndiRank!AW87 -> 0 | Z98: =iIndiRank!AX87 ->  | AB98: =iIndiRank!AZ87 -> 0 | AC98: =iIndiRank!BA87 ->  | AE98: =iIndiRank!BC87 -> 0 | AF98: =iIndiRank!BD87 ->  | AH98: =iIndiRank!BF87 -> 0 | AI98: =iIndiRank!BG87 -> 
B99: =IF(uxb_works!$J$21=1,1,IF(OR(V99>0,Y99>0,AB99>0,AE99>0,AH99>0),1,0)) -> 1 | J99: =iIndiRank!L88 -> 1 | K99: =IF(J99=0,4,IF(O99=-100,5,IF(O99<=iIndiRank!$BT$6,0,IF(O99<=iIndiRank!BT$7,1,IF(O99<=iIndiRank!$BT$8,2,3))))) -> 0 | M99: =iIndiRank!P88 -> =81 | N99: =iIndiRank!Q88 -> Nepal | O99: =iIndiRank!T88 -> 2.312490273 | P99: =IF(iIndiRank!R88=-100,"",iIndiRank!R88) -> 2.3 | Q99: | | V99: =iIndiRank!AT88 -> 1 | W99: =iIndiRank!AU88 -> Nepal | Y99: =iIndiRank!AW88 -> 0 | Z99: =iIndiRank!AX88 ->  | AB99: =iIndiRank!AZ88 -> 0 | AC99: =iIndiRank!BA88 ->  | AE99: =iIndiRank!BC88 -> 0 | AF99: =iIndiRank!BD88 ->  | AH99: =iIndiRank!BF88 -> 0 | AI99: =iIndiRank!BG88 -> 
B100: =IF(uxb_works!$J$21=1,1,IF(OR(V100>0,Y100>0,AB100>0,AE100>0,AH100>0),1,0)) -> 1 | J100: =iIndiRank!L89 -> 1 | K100: =IF(J100=0,4,IF(O100=-100,5,IF(O100<=iIndiRank!$BT$6,0,IF(O100<=iIndiRank!BT$7,1,IF(O100<=iIndiRank!$BT$8,2,3))))) -> 0 | M100: =iIndiRank!P89 -> 84 | N100: =iIndiRank!Q89 -> Benin | O100: =iIndiRank!T89 -> 2.229781334 | P100: =IF(iIndiRank!R89=-100,"",iIndiRank!R89) -> 2.2 | Q100: | | V100: =iIndiRank!AT89 -> 1 | W100: =iIndiRank!AU89 -> Benin | Y100: =iIndiRank!AW89 -> 0 | Z100: =iIndiRank!AX89 ->  | AB100: =iIndiRank!AZ89 -> 0 | AC100: =iIndiRank!BA89 ->  | AE100: =iIndiRank!BC89 -> 0 | AF100: =iIndiRank!BD89 ->  | AH100: =iIndiRank!BF89 -> 0 | AI100: =iIndiRank!BG89 -> 
B101: =IF(uxb_works!$J$21=1,1,IF(OR(V101>0,Y101>0,AB101>0,AE101>0,AH101>0),1,0)) -> 1 | J101: =iIndiRank!L90 -> 1 | K101: =IF(J101=0,4,IF(O101=-100,5,IF(O101<=iIndiRank!$BT$6,0,IF(O101<=iIndiRank!BT$7,1,IF(O101<=iIndiRank!$BT$8,2,3))))) -> 0 | M101: =iIndiRank!P90 -> 85 | N101: =iIndiRank!Q90 -> Mozambique | O101: =iIndiRank!T90 -> 2.064986334 | P101: =IF(iIndiRank!R90=-100,"",iIndiRank!R90) -> 2.1 | Q101: | | V101: =iIndiRank!AT90 -> 1 | W101: =iIndiRank!AU90 -> Mozambique | Y101: =iIndiRank!AW90 -> 0 | Z101: =iIndiRank!AX90 ->  | AB101: =iIndiRank!AZ90 -> 0 | AC101: =iIndiRank!BA90 ->  | AE101: =iIndiRank!BC90 -> 0 | AF101: =iIndiRank!BD90 ->  | AH101: =iIndiRank!BF90 -> 0 | AI101: =iIndiRank!BG90 -> 
B102: =IF(uxb_works!$J$21=1,1,IF(OR(V102>0,Y102>0,AB102>0,AE102>0,AH102>0),1,0)) -> 1 | J102: =iIndiRank!L91 -> 1 | K102: =IF(J102=0,4,IF(O102=-100,5,IF(O102<=iIndiRank!$BT$6,0,IF(O102<=iIndiRank!BT$7,1,IF(O102<=iIndiRank!$BT$8,2,3))))) -> 0 | M102: =iIndiRank!P91 -> 86 | N102: =iIndiRank!Q91 -> Bosnia and Herzegovina | O102: =iIndiRank!T91 -> 1.955572192 | P102: =IF(iIndiRank!R91=-100,"",iIndiRank!R91) -> 2 | Q102: | | V102: =iIndiRank!AT91 -> 1 | W102: =iIndiRank!AU91 -> Bosnia and Herzegovina | Y102: =iIndiRank!AW91 -> 0 | Z102: =iIndiRank!AX91 ->  | AB102: =iIndiRank!AZ91 -> 0 | AC102: =iIndiRank!BA91 ->  | AE102: =iIndiRank!BC91 -> 0 | AF102: =iIndiRank!BD91 ->  | AH102: =iIndiRank!BF91 -> 0 | AI102: =iIndiRank!BG91 -> 
B103: =IF(uxb_works!$J$21=1,1,IF(OR(V103>0,Y103>0,AB103>0,AE103>0,AH103>0),1,0)) -> 1 | J103: =iIndiRank!L92 -> 1 | K103: =IF(J103=0,4,IF(O103=-100,5,IF(O103<=iIndiRank!$BT$6,0,IF(O103<=iIndiRank!BT$7,1,IF(O103<=iIndiRank!$BT$8,2,3))))) -> 0 | M103: =iIndiRank!P92 -> 87 | N103: =iIndiRank!Q92 -> Sri Lanka | O103: =iIndiRank!T92 -> 1.876331825 | P103: =IF(iIndiRank!R92=-100,"",iIndiRank!R92) -> 1.9 | Q103: | | V103: =iIndiRank!AT92 -> 1 | W103: =iIndiRank!AU92 -> Sri Lanka | Y103: =iIndiRank!AW92 -> 0 | Z103: =iIndiRank!AX92 ->  | AB103: =iIndiRank!AZ92 -> 0 | AC103: =iIndiRank!BA92 ->  | AE103: =iIndiRank!BC92 -> 0 | AF103: =iIndiRank!BD92 ->  | AH103: =iIndiRank!BF92 -> 0 | AI103: =iIndiRank!BG92 -> 
B104: =IF(uxb_works!$J$21=1,1,IF(OR(V104>0,Y104>0,AB104>0,AE104>0,AH104>0),1,0)) -> 1 | J104: =iIndiRank!L93 -> 1 | K104: =IF(J104=0,4,IF(O104=-100,5,IF(O104<=iIndiRank!$BT$6,0,IF(O104<=iIndiRank!BT$7,1,IF(O104<=iIndiRank!$BT$8,2,3))))) -> 0 | M104: =iIndiRank!P93 -> =88 | N104: =iIndiRank!Q93 -> Laos | O104: =iIndiRank!T93 -> 1.848547577 | P104: =IF(iIndiRank!R93=-100,"",iIndiRank!R93) -> 1.8 | Q104: | | V104: =iIndiRank!AT93 -> 1 | W104: =iIndiRank!AU93 -> Laos | Y104: =iIndiRank!AW93 -> 0 | Z104: =iIndiRank!AX93 ->  | AB104: =iIndiRank!AZ93 -> 0 | AC104: =iIndiRank!BA93 ->  | AE104: =iIndiRank!BC93 -> 0 | AF104: =iIndiRank!BD93 ->  | AH104: =iIndiRank!BF93 -> 0 | AI104: =iIndiRank!BG93 -> 
B105: =IF(uxb_works!$J$21=1,1,IF(OR(V105>0,Y105>0,AB105>0,AE105>0,AH105>0),1,0)) -> 1 | J105: =iIndiRank!L94 -> 1 | K105: =IF(J105=0,4,IF(O105=-100,5,IF(O105<=iIndiRank!$BT$6,0,IF(O105<=iIndiRank!BT$7,1,IF(O105<=iIndiRank!$BT$8,2,3))))) -> 0 | M105: =iIndiRank!P94 -> =88 | N105: =iIndiRank!Q94 -> Rwanda | O105: =iIndiRank!T94 -> 1.844602347 | P105: =IF(iIndiRank!R94=-100,"",iIndiRank!R94) -> 1.8 | Q105: | | V105: =iIndiRank!AT94 -> 1 | W105: =iIndiRank!AU94 -> Rwanda | Y105: =iIndiRank!AW94 -> 0 | Z105: =iIndiRank!AX94 ->  | AB105: =iIndiRank!AZ94 -> 0 | AC105: =iIndiRank!BA94 ->  | AE105: =iIndiRank!BC94 -> 0 | AF105: =iIndiRank!BD94 ->  | AH105: =iIndiRank!BF94 -> 0 | AI105: =iIndiRank!BG94 -> 
B106: =IF(uxb_works!$J$21=1,1,IF(OR(V106>0,Y106>0,AB106>0,AE106>0,AH106>0),1,0)) -> 1 | J106: =iIndiRank!L95 -> 1 | K106: =IF(J106=0,4,IF(O106=-100,5,IF(O106<=iIndiRank!$BT$6,0,IF(O106<=iIndiRank!BT$7,1,IF(O106<=iIndiRank!$BT$8,2,3))))) -> 0 | M106: =iIndiRank!P95 -> =90 | N106: =iIndiRank!Q95 -> Burundi | O106: =iIndiRank!T95 -> 1.734551208 | P106: =IF(iIndiRank!R95=-100,"",iIndiRank!R95) -> 1.7 | Q106: | | V106: =iIndiRank!AT95 -> 1 | W106: =iIndiRank!AU95 -> Burundi | Y106: =iIndiRank!AW95 -> 0 | Z106: =iIndiRank!AX95 ->  | AB106: =iIndiRank!AZ95 -> 0 | AC106: =iIndiRank!BA95 ->  | AE106: =iIndiRank!BC95 -> 0 | AF106: =iIndiRank!BD95 ->  | AH106: =iIndiRank!BF95 -> 0 | AI106: =iIndiRank!BG95 -> 
B107: =IF(uxb_works!$J$21=1,1,IF(OR(V107>0,Y107>0,AB107>0,AE107>0,AH107>0),1,0)) -> 1 | J107: =iIndiRank!L96 -> 1 | K107: =IF(J107=0,4,IF(O107=-100,5,IF(O107<=iIndiRank!$BT$6,0,IF(O107<=iIndiRank!BT$7,1,IF(O107<=iIndiRank!$BT$8,2,3))))) -> 0 | M107: =iIndiRank!P96 -> =90 | N107: =iIndiRank!Q96 -> Kazakhstan | O107: =iIndiRank!T96 -> 1.672044591 | P107: =IF(iIndiRank!R96=-100,"",iIndiRank!R96) -> 1.7 | Q107: | | V107: =iIndiRank!AT96 -> 1 | W107: =iIndiRank!AU96 -> Kazakhstan | Y107: =iIndiRank!AW96 -> 0 | Z107: =iIndiRank!AX96 ->  | AB107: =iIndiRank!AZ96 -> 0 | AC107: =iIndiRank!BA96 ->  | AE107: =iIndiRank!BC96 -> 0 | AF107: =iIndiRank!BD96 ->  | AH107: =iIndiRank!BF96 -> 0 | AI107: =iIndiRank!BG96 -> 
B108: =IF(uxb_works!$J$21=1,1,IF(OR(V108>0,Y108>0,AB108>0,AE108>0,AH108>0),1,0)) -> 1 | J108: =iIndiRank!L97 -> 1 | K108: =IF(J108=0,4,IF(O108=-100,5,IF(O108<=iIndiRank!$BT$6,0,IF(O108<=iIndiRank!BT$7,1,IF(O108<=iIndiRank!$BT$8,2,3))))) -> 0 | M108: =iIndiRank!P97 -> =90 | N108: =iIndiRank!Q97 -> Peru | O108: =iIndiRank!T97 -> 1.652818205 | P108: =IF(iIndiRank!R97=-100,"",iIndiRank!R97) -> 1.7 | Q108: | | V108: =iIndiRank!AT97 -> 1 | W108: =iIndiRank!AU97 -> Peru | Y108: =iIndiRank!AW97 -> 0 | Z108: =iIndiRank!AX97 ->  | AB108: =iIndiRank!AZ97 -> 0 | AC108: =iIndiRank!BA97 ->  | AE108: =iIndiRank!BC97 -> 0 | AF108: =iIndiRank!BD97 ->  | AH108: =iIndiRank!BF97 -> 0 | AI108: =iIndiRank!BG97 -> 
B109: =IF(uxb_works!$J$21=1,1,IF(OR(V109>0,Y109>0,AB109>0,AE109>0,AH109>0),1,0)) -> 1 | J109: =iIndiRank!L98 -> 1 | K109: =IF(J109=0,4,IF(O109=-100,5,IF(O109<=iIndiRank!$BT$6,0,IF(O109<=iIndiRank!BT$7,1,IF(O109<=iIndiRank!$BT$8,2,3))))) -> 0 | M109: =iIndiRank!P98 -> 93 | N109: =iIndiRank!Q98 -> Bahrain | O109: =iIndiRank!T98 -> 1.568342457 | P109: =IF(iIndiRank!R98=-100,"",iIndiRank!R98) -> 1.6 | Q109: | | V109: =iIndiRank!AT98 -> 1 | W109: =iIndiRank!AU98 -> Bahrain | Y109: =iIndiRank!AW98 -> 0 | Z109: =iIndiRank!AX98 ->  | AB109: =iIndiRank!AZ98 -> 0 | AC109: =iIndiRank!BA98 ->  | AE109: =iIndiRank!BC98 -> 0 | AF109: =iIndiRank!BD98 ->  | AH109: =iIndiRank!BF98 -> 0 | AI109: =iIndiRank!BG98 -> 
B110: =IF(uxb_works!$J$21=1,1,IF(OR(V110>0,Y110>0,AB110>0,AE110>0,AH110>0),1,0)) -> 1 | J110: =iIndiRank!L99 -> 1 | K110: =IF(J110=0,4,IF(O110=-100,5,IF(O110<=iIndiRank!$BT$6,0,IF(O110<=iIndiRank!BT$7,1,IF(O110<=iIndiRank!$BT$8,2,3))))) -> 0 | M110: =iIndiRank!P99 -> 94 | N110: =iIndiRank!Q99 -> Mongolia | O110: =iIndiRank!T99 -> 1.323327434 | P110: =IF(iIndiRank!R99=-100,"",iIndiRank!R99) -> 1.3 | Q110: | | V110: =iIndiRank!AT99 -> 1 | W110: =iIndiRank!AU99 -> Mongolia | Y110: =iIndiRank!AW99 -> 0 | Z110: =iIndiRank!AX99 ->  | AB110: =iIndiRank!AZ99 -> 0 | AC110: =iIndiRank!BA99 ->  | AE110: =iIndiRank!BC99 -> 0 | AF110: =iIndiRank!BD99 ->  | AH110: =iIndiRank!BF99 -> 0 | AI110: =iIndiRank!BG99 -> 
B111: =IF(uxb_works!$J$21=1,1,IF(OR(V111>0,Y111>0,AB111>0,AE111>0,AH111>0),1,0)) -> 1 | J111: =iIndiRank!L100 -> 1 | K111: =IF(J111=0,4,IF(O111=-100,5,IF(O111<=iIndiRank!$BT$6,0,IF(O111<=iIndiRank!BT$7,1,IF(O111<=iIndiRank!$BT$8,2,3))))) -> 0 | M111: =iIndiRank!P100 -> 95 | N111: =iIndiRank!Q100 -> El Salvador | O111: =iIndiRank!T100 -> 0.9910073191 | P111: =IF(iIndiRank!R100=-100,"",iIndiRank!R100) -> 1 | V111: =iIndiRank!AT100 -> 1 | W111: =iIndiRank!AU100 -> El Salvador | Y111: =iIndiRank!AW100 -> 0 | Z111: =iIndiRank!AX100 ->  | AB111: =iIndiRank!AZ100 -> 0 | AC111: =iIndiRank!BA100 ->  | AE111: =iIndiRank!BC100 -> 0 | AF111: =iIndiRank!BD100 ->  | AH111: =iIndiRank!BF100 -> 0 | AI111: =iIndiRank!BG100 -> 
B112: =IF(uxb_works!$J$21=1,1,IF(OR(V112>0,Y112>0,AB112>0,AE112>0,AH112>0),1,0)) -> 1 | J112: =iIndiRank!L101 -> 1 | K112: =IF(J112=0,4,IF(O112=-100,5,IF(O112<=iIndiRank!$BT$6,0,IF(O112<=iIndiRank!BT$7,1,IF(O112<=iIndiRank!$BT$8,2,3))))) -> 0 | M112: =iIndiRank!P101 -> 96 | N112: =iIndiRank!Q101 -> Panama | O112: =iIndiRank!T101 -> 0.6335083551 | P112: =IF(iIndiRank!R101=-100,"",iIndiRank!R101) -> 0.6 | V112: =iIndiRank!AT101 -> 1 | W112: =iIndiRank!AU101 -> Panama | Y112: =iIndiRank!AW101 -> 0 | Z112: =iIndiRank!AX101 ->  | AB112: =iIndiRank!AZ101 -> 0 | AC112: =iIndiRank!BA101 ->  | AE112: =iIndiRank!BC101 -> 0 | AF112: =iIndiRank!BD101 ->  | AH112: =iIndiRank!BF101 -> 0 | AI112: =iIndiRank!BG101 -> 
B113: =IF(uxb_works!$J$21=1,1,IF(OR(V113>0,Y113>0,AB113>0,AE113>0,AH113>0),1,0)) -> 1 | J113: =iIndiRank!L102 -> 1 | K113: =IF(J113=0,4,IF(O113=-100,5,IF(O113<=iIndiRank!$BT$6,0,IF(O113<=iIndiRank!BT$7,1,IF(O113<=iIndiRank!$BT$8,2,3))))) -> 0 | M113: =iIndiRank!P102 -> 97 | N113: =iIndiRank!Q102 -> Myanmar | O113: =iIndiRank!T102 -> 0.3616422784 | P113: =IF(iIndiRank!R102=-100,"",iIndiRank!R102) -> 0.4 | V113: =iIndiRank!AT102 -> 1 | W113: =iIndiRank!AU102 -> Myanmar | Y113: =iIndiRank!AW102 -> 0 | Z113: =iIndiRank!AX102 ->  | AB113: =iIndiRank!AZ102 -> 0 | AC113: =iIndiRank!BA102 ->  | AE113: =iIndiRank!BC102 -> 0 | AF113: =iIndiRank!BD102 ->  | AH113: =iIndiRank!BF102 -> 0 | AI113: =iIndiRank!BG102 -> 
B114: =IF(uxb_works!$J$21=1,1,IF(OR(V114>0,Y114>0,AB114>0,AE114>0,AH114>0),1,0)) -> 1 | J114: =iIndiRank!L103 -> 1 | K114: =IF(J114=0,4,IF(O114=-100,5,IF(O114<=iIndiRank!$BT$6,0,IF(O114<=iIndiRank!BT$7,1,IF(O114<=iIndiRank!$BT$8,2,3))))) -> 0 | M114: =iIndiRank!P103 -> =98 | N114: =iIndiRank!Q103 -> Honduras | O114: =iIndiRank!T103 -> 0.05506570728 | P114: =IF(iIndiRank!R103=-100,"",iIndiRank!R103) -> 0.1 | V114: =iIndiRank!AT103 -> 1 | W114: =iIndiRank!AU103 -> Honduras | Y114: =iIndiRank!AW103 -> 0 | Z114: =iIndiRank!AX103 ->  | AB114: =iIndiRank!AZ103 -> 0 | AC114: =iIndiRank!BA103 ->  | AE114: =iIndiRank!BC103 -> 0 | AF114: =iIndiRank!BD103 ->  | AH114: =iIndiRank!BF103 -> 0 | AI114: =iIndiRank!BG103 -> 
B115: =IF(uxb_works!$J$21=1,1,IF(OR(V115>0,Y115>0,AB115>0,AE115>0,AH115>0),1,0)) -> 1 | J115: =iIndiRank!L104 -> 1 | K115: =IF(J115=0,4,IF(O115=-100,5,IF(O115<=iIndiRank!$BT$6,0,IF(O115<=iIndiRank!BT$7,1,IF(O115<=iIndiRank!$BT$8,2,3))))) -> 0 | M115: =iIndiRank!P104 -> =98 | N115: =iIndiRank!Q104 -> Madagascar | O115: =iIndiRank!T104 -> 0.08266880209 | P115: =IF(iIndiRank!R104=-100,"",iIndiRank!R104) -> 0.1 | V115: =iIndiRank!AT104 -> 1 | W115: =iIndiRank!AU104 -> Madagascar | Y115: =iIndiRank!AW104 -> 0 | Z115: =iIndiRank!AX104 ->  | AB115: =iIndiRank!AZ104 -> 0 | AC115: =iIndiRank!BA104 ->  | AE115: =iIndiRank!BC104 -> 0 | AF115: =iIndiRank!BD104 ->  | AH115: =iIndiRank!BF104 -> 0 | AI115: =iIndiRank!BG104 -> 

Sheet CProfile
A1: =uxb_works!$B$92 -> Engineering Index: 2019 | BA1: 1 | BB1: 3
A6: =uxb_works!$C$5 -> The active weight profile has been changed from its default setting
B12: =(MAX(COUNTIF(B14:B24,">0"),14)) -> 14 | C12: =iCP_Chart!C2 -> Bulgaria
B14: =iCP_Chart!AC41 -> 1 | C14: =iCP_Chart!AD41 -> All Categories | F14: =iCP_Chart!AG41 -> 0
B15: =iCP_Chart!AC42 -> 1 | C15: =iCP_Chart!AD42 -> 1) KNOWLEDGE | F15: =iCP_Chart!AG42 -> 3
B16: =iCP_Chart!AC43 -> 1 | C16: =iCP_Chart!AD43 -> 2) LABOUR FORCE | F16: =iCP_Chart!AG43 -> 2
B17: =iCP_Chart!AC44 -> 1 | C17: =iCP_Chart!AD44 -> 3) ENGINEERING INDUSTRY | F17: =iCP_Chart!AG44 -> 3
B18: =iCP_Chart!AC45 -> 1 | C18: =iCP_Chart!AD45 -> 4) INFRASTRUCTURE | F18: =iCP_Chart!AG45 -> 2
B19: =iCP_Chart!AC46 -> 1 | C19: =iCP_Chart!AD46 -> 5) DIGITAL INFRASTRUCTURE | F19: =iCP_Chart!AG46 -> 3
B20: =iCP_Chart!AC47 -> 1 | C20: =iCP_Chart!AD47 -> 6) SAFETY STANDARDS | F20: =iCP_Chart!AG47 -> 3
B21: =iCP_Chart!AC48 -> 0 | C21: =iCP_Chart!AD48 ->  | F21: =iCP_Chart!AG48 -> 
B22: =iCP_Chart!AC49 -> 0 | C22: =iCP_Chart!AD49 ->  | F22: =iCP_Chart!AG49 -> 
B23: =iCP_Chart!AC50 -> 0 | C23: =iCP_Chart!AD50 ->  | F23: =iCP_Chart!AG50 -> 

Sheet CountryScoreCard
A1: =uxb_works!$B$92 -> Engineering Index: 2019 | L1: 1 | Z1: 1 | AC1: $C$30 | BA1: 1 | BB1: 4 | BC1: 1 | BD1: 2 | BF1: 1 | BG1: 2
BC2: 2 | BD2: 0
A6: =uxb_works!$C$5 -> The active weight profile has been changed from its default setting
C8: =uxb_works!D67 -> <no filter> -I- No. of countries in this group: 99
C13: =uxb_works!C26 -> Bulgaria | I13: Score | J13: ="Rank/"&uxb_works!$B$1 -> Rank/99 | K13: =iCntyScoreCard!C107 -> Global Average
B14: 1
B15: =iCSCtbl!F4 -> 1 | C15: =TRIM(UPPER(iCSCtbl!C4)) -> 1) KNOWLEDGE | I15: =iCSCtbl!D4 -> 6.8 | J15: =iCSCtbl!E4 -> 49 | K15: =iCSCtbl!G4 -> 11.3
B16: =iCSCtbl!F5 -> 2 | C16: =TRIM(iCSCtbl!C5) -> 1.1) H index ranking (# of citations in engineering) | I16: =iCSCtbl!D5 -> 9.8 | J16: =iCSCtbl!E5 -> =50 | K16: =iCSCtbl!G5 -> 15.3
B17: =iCSCtbl!F6 -> 2 | C17: =TRIM(iCSCtbl!C6) -> 1.2) R&D spending (% GDP) | I17: =iCSCtbl!D6 -> 16.7 | J17: =iCSCtbl!E6 -> 45 | K17: =iCSCtbl!G6 -> 21.8
B18: =iCSCtbl!F7 -> 2 | C18: =TRIM(iCSCtbl!C7) -> 1.3) Number of universities in top 500 for engineering | I18: =iCSCtbl!D7 -> 0.7 | J18: =iCSCtbl!E7 -> =54 | K18: =iCSCtbl!G7 -> 6.3
B19: =iCSCtbl!F8 -> 2 | C19: =TRIM(iCSCtbl!C8) -> 1.4) Patent applications, residents | I19: =iCSCtbl!D8 -> 0 | J19: =iCSCtbl!E8 -> =43 | K19: =iCSCtbl!G8 -> 1.8
B20: =iCSCtbl!F9 -> 1 | C20: =TRIM(iCSCtbl!C9) -> 2) LABOUR FORCE | I20: =iCSCtbl!D9 -> 42.3 | J20: =iCSCtbl!E9 -> 51 | K20: =iCSCtbl!G9 -> 51.1
B21: =iCSCtbl!F10 -> 2 | C21: =TRIM(iCSCtbl!C10) -> 2.1) Availability of scientists and engineers | I21: =iCSCtbl!D10 -> 29.4 | J21: =iCSCtbl!E10 -> =77 | K21: =iCSCtbl!G10 -> 47.6
B22: =iCSCtbl!F11 -> 2 | C22: =TRIM(iCSCtbl!C11) -> 2.2) Mean score in science performance among 15 year-olds | I22: =iCSCtbl!D11 -> 50.9 | J22: =iCSCtbl!E11 -> 43 | K22: =iCSCtbl!G11 -> 60.9
B23: =iCSCtbl!F12 -> 2 | C23: =TRIM(iCSCtbl!C12) -> 2.3) Female graduates in engineering disciplines (tertiary education) | I23: =iCSCtbl!D12 -> 41.6 | J23: =iCSCtbl!E12 -> 39 | K23: =iCSCtbl!G12 -> 38.4
B24: =iCSCtbl!F13 -> 2 | C24: =TRIM(iCSCtbl!C13) -> 2.4) Mean score in mathematics performance among 15 year-olds | I24: =iCSCtbl!D13 -> 47.9 | J24: =iCSCtbl!E13 -> 44 | K24: =iCSCtbl!G13 -> 57.5
B25: =iCSCtbl!F14 -> 2 | C25: =TRIM(iCSCtbl!C14) -> 2.5) Graduates in engineering disciplines (tertiary education) | I25: =iCSCtbl!D14 -> 41.8 | J25: =iCSCtbl!E14 -> 51 | K25: =iCSCtbl!G14 -> 40.2
B26: =iCSCtbl!F15 -> 1 | C26: =TRIM(iCSCtbl!C15) -> 3) ENGINEERING INDUSTRY | I26: =iCSCtbl!D15 -> 26.7 | J26: =iCSCtbl!E15 -> 48 | K26: =iCSCtbl!G15 -> 27.8
B27: =iCSCtbl!F16 -> 2 | C27: =TRIM(iCSCtbl!C16) -> 3.1) Ratio of medium to large-sized engineering companies vs all of similar size | I27: =iCSCtbl!D16 -> 16.2 | J27: =iCSCtbl!E16 -> =43 | K27: =iCSCtbl!G16 -> 18.7
B28: =iCSCtbl!F17 -> 2 | C28: =TRIM(iCSCtbl!C17) -> 3.2) Engineering Exports | I28: =iCSCtbl!D17 -> 0.6 | J28: =iCSCtbl!E17 -> 41 | K28: =iCSCtbl!G17 -> 4.5
B29: =iCSCtbl!F18 -> 2 | C29: =TRIM(iCSCtbl!C18) -> 3.3) Medium and high-tech Industry (% manufacturing value added) | I29: =iCSCtbl!D18 -> 36.7 | J29: =iCSCtbl!E18 -> 41 | K29: =iCSCtbl!G18 -> 35.3
B30: =iCSCtbl!F19 -> 2 | C30: =TRIM(iCSCtbl!C19) -> 3.4) Economic complexity index | I30: =iCSCtbl!D19 -> 53.4 | J30: =iCSCtbl!E19 -> 50 | K30: =iCSCtbl!G19 -> 52.5
B31: =iCSCtbl!F20 -> 1 | C31: =TRIM(iCSCtbl!C20) -> 4) INFRASTRUCTURE | I31: =iCSCtbl!D20 -> 51.7 | J31: =iCSCtbl!E20 -> 54 | K31: =iCSCtbl!G20 -> 60.2
B32: =iCSCtbl!F21 -> 2 | C32: =TRIM(iCSCtbl!C21) -> 4.1) Quality of infrastructure | I32: =iCSCtbl!D21 -> 58.5 | J32: =iCSCtbl!E21 -> 67 | K32: =iCSCtbl!G21 -> 64.6
B33: =iCSCtbl!F22 -> 2 | C33: =TRIM(iCSCtbl!C22) -> 4.2) Extent and quality of road network | I33: =iCSCtbl!D22 -> 50 | J33: =iCSCtbl!E22 -> =40 | K33: =iCSCtbl!G22 -> 61.3
B34: =iCSCtbl!F23 -> 2 | C34: =TRIM(iCSCtbl!C23) -> 4.3) Extent and quality of rail network | I34: =iCSCtbl!D23 -> 50 | J34: =iCSCtbl!E23 -> =33 | K34: =iCSCtbl!G23 -> 47.1
B35: =iCSCtbl!F24 -> 2 | C35: =TRIM(iCSCtbl!C24) -> 4.4) Quality of port's infrastructure | I35: =iCSCtbl!D24 -> 50 | J35: =iCSCtbl!E24 -> =44 | K35: =iCSCtbl!G24 -> 63
B36: =iCSCtbl!F25 -> 2 | C36: =TRIM(iCSCtbl!C25) -> 4.5) Quality of air transport infrastructure | I36: =iCSCtbl!D25 -> 50 | J36: =iCSCtbl!E25 -> =46 | K36: =iCSCtbl!G25 -> 63.8
B37: =iCSCtbl!F26 -> 1 | C37: =TRIM(iCSCtbl!C26) -> 5) DIGITAL INFRASTRUCTURE | I37: =iCSCtbl!D26 -> 36.3 | J37: =iCSCtbl!E26 -> 39 | K37: =iCSCtbl!G26 -> 32.6
B38: =iCSCtbl!F27 -> 2 | C38: =TRIM(iCSCtbl!C27) -> 5.1) Digital Adoption Index | I38: =iCSCtbl!D27 -> 63.1 | J38: =iCSCtbl!E27 -> =54 | K38: =iCSCtbl!G27 -> 62.6
B39: =iCSCtbl!F28 -> 2 | C39: =TRIM(iCSCtbl!C28) -> 5.2) Number of Servers | I39: =iCSCtbl!D28 -> 31 | J39: =iCSCtbl!E28 -> 12 | K39: =iCSCtbl!G28 -> 11.3
B40: =iCSCtbl!F29 -> 2 | C40: =TRIM(iCSCtbl!C29) -> 5.3) Internet speed (Mbps) | I40: =iCSCtbl!D29 -> 14.9 | J40: =iCSCtbl!E29 -> 52 | K40: =iCSCtbl!G29 -> 24.1
B41: =iCSCtbl!F30 -> 1 | C41: =TRIM(iCSCtbl!C30) -> 6) SAFETY STANDARDS | I41: =iCSCtbl!D30 -> 88.5 | J41: =iCSCtbl!E30 -> 47 | K41: =iCSCtbl!G30 -> 85.1
B42: =iCSCtbl!F31 -> 2 | C42: =TRIM(iCSCtbl!C31) -> 6.1) Fatal injuries per 100,000 in engineering sectors | I42: =iCSCtbl!D31 -> 99.7 | J42: =iCSCtbl!E31 -> =30 | K42: =iCSCtbl!G31 -> 96.7
B43: =iCSCtbl!F32 -> 2 | C43: =TRIM(iCSCtbl!C32) -> 6.2) Safety outcomes | I43: =iCSCtbl!D32 -> 77.2 | J43: =iCSCtbl!E32 -> 51 | K43: =iCSCtbl!G32 -> 70.3
C50: Score > 75 | G50: Score < 25
B51: =MAX(SUM(B52:B81),1) -> 2 | F51: =MAX(SUM(F52:F81),1) -> 7
B52: =IF(C52="",0,1) -> 1 | C52: =TRIM(iCountryP!V23) -> 6.1) Fatal injuries per 100,000 in engineering sectors | D52: =iCountryP!W23 -> 99.7 | F52: =IF(G52="",0,1) -> 1 | G52: =TRIM(iCountryP!Z23) -> 1.1) H index ranking (# of citations in engineering) | H52: =iCountryP!AA23 -> 9.8 | I52: =iCountryP!AA23 -> 9.8 | W52: =C52 -> 6.1) Fatal injuries per 100,000 in engineering sectors | X52: =G52 -> 1.1) H index ranking (# of citations in engineering)
B53: =IF(C53="",0,1) -> 1 | C53: =TRIM(iCountryP!V24) -> 6.2) Safety outcomes | D53: =iCountryP!W24 -> 77.2 | F53: =IF(G53="",0,1) -> 1 | G53: =TRIM(iCountryP!Z24) -> 1.2) R&D spending (% GDP) | H53: =iCountryP!AA24 -> 16.7 | I53: =iCountryP!AA24 -> 16.7 | W53: =C53 -> 6.2) Safety outcomes | X53: =G53 -> 1.2) R&D spending (% GDP)
B54: =IF(C54="",0,1) -> 0 | C54: =TRIM(iCountryP!V25) ->  | D54: =iCountryP!W25 ->  | F54: =IF(G54="",0,1) -> 1 | G54: =TRIM(iCountryP!Z25) -> 1.3) Number of universities in top 500 for engineering | H54: =iCountryP!AA25 -> 0.7 | I54: =iCountryP!AA25 -> 0.7 | W54: =C54 ->  | X54: =G54 -> 1.3) Number of universities in top 500 for engineering
B55: 0 | C55: =TRIM(iCountryP!V26) ->  | D55: =iCountryP!W26 ->  | F55: 1 | G55: =TRIM(iCountryP!Z26) -> 1.4) Patent applications, residents | H55: =iCountryP!AA26 -> 0 | I55: =iCountryP!AA26 -> 0 | X55: 1.4) Patent applications, residents
B56: 0 | C56: =TRIM(iCountryP!V27) ->  | D56: =iCountryP!W27 ->  | F56: 1 | G56: =TRIM(iCountryP!Z27) -> 3.1) Ratio of medium to large-sized engineering companies vs all of similar size | H56: =iCountryP!AA27 -> 16.2 | I56: =iCountryP!AA27 -> 16.2 | X56: 3.1) Ratio of medium to large-sized engineering companies vs all of similar size
B57: 0 | C57: =TRIM(iCountryP!V28) ->  | D57: =iCountryP!W28 ->  | F57: 1 | G57: =TRIM(iCountryP!Z28) -> 3.2) Engineering Exports | H57: =iCountryP!AA28 -> 0.6 | I57: =iCountryP!AA28 -> 0.6 | X57: 3.2) Engineering Exports
B58: 0 | C58: =TRIM(iCountryP!V29) ->  | D58: =iCountryP!W29 ->  | F58: 1 | G58: =TRIM(iCountryP!Z29) -> 5.3) Internet speed (Mbps) | H58: =iCountryP!AA29 -> 14.9 | I58: =iCountryP!AA29 -> 14.9 | X58: 5.3) Internet speed (Mbps)
B59: 0 | C59: =TRIM(iCountryP!V30) ->  | D59: =iCountryP!W30 ->  | F59: 0 | G59: =TRIM(iCountryP!Z30) ->  | H59: =iCountryP!AA30 ->  | I59: =iCountryP!AA30 -> 
B60: 0 | C60: =TRIM(iCountryP!V31) ->  | D60: =iCountryP!W31 ->  | F60: 0 | G60: =TRIM(iCountryP!Z31) ->  | H60: =iCountryP!AA31 ->  | I60: =iCountryP!AA31 -> 
B61: 0 | C61: =TRIM(iCountryP!V32) ->  | D61: =iCountryP!W32 ->  | F61: 0 | G61: =TRIM(iCountryP!Z32) ->  | H61: =iCountryP!AA32 ->  | I61: =iCountryP!AA32 -> 
B62: 0 | C62: =TRIM(iCountryP!V33) ->  | D62: =iCountryP!W33 ->  | F62: 0 | G62: =TRIM(iCountryP!Z33) ->  | H62: =iCountryP!AA33 ->  | I62: =iCountryP!AA33 -> 
B63: 0 | C63: =TRIM(iCountryP!V34) ->  | D63: =iCountryP!W34 ->  | F63: 0 | G63: =TRIM(iCountryP!Z34) ->  | H63: =iCountryP!AA34 ->  | I63: =iCountryP!AA34 -> 
B64: 0 | C64: =TRIM(iCountryP!V35) ->  | D64: =iCountryP!W35 ->  | F64: 0 | G64: =TRIM(iCountryP!Z35) ->  | H64: =iCountryP!AA35 ->  | I64: =iCountryP!AA35 -> 
B65: 0 | C65: =TRIM(iCountryP!V36) ->  | D65: =iCountryP!W36 ->  | F65: 0 | G65: =TRIM(iCountryP!Z36) ->  | H65: =iCountryP!AA36 ->  | I65: =iCountryP!AA36 -> 
B66: 0 | C66: =TRIM(iCountryP!V37) ->  | D66: =iCountryP!W37 ->  | F66: 0 | G66: =TRIM(iCountryP!Z37) ->  | H66: =iCountryP!AA37 ->  | I66: =iCountryP!AA37 -> 
B67: 0 | C67: =TRIM(iCountryP!V38) ->  | D67: =iCountryP!W38 ->  | F67: 0 | G67: =TRIM(iCountryP!Z38) ->  | H67: =iCountryP!AA38 ->  | I67: =iCountryP!AA38 -> 
B68: 0 | C68: =TRIM(iCountryP!V39) ->  | D68: =iCountryP!W39 ->  | F68: 0 | G68: =TRIM(iCountryP!Z39) ->  | H68: =iCountryP!AA39 ->  | I68: =iCountryP!AA39 -> 
B69: 0 | C69: =TRIM(iCountryP!V40) ->  | D69: =iCountryP!W40 ->  | F69: 0 | G69: =TRIM(iCountryP!Z40) ->  | H69: =iCountryP!AA40 ->  | I69: =iCountryP!AA40 -> 
B70: 0 | C70: =TRIM(iCountryP!V41) ->  | D70: =iCountryP!W41 ->  | F70: 0 | G70: =TRIM(iCountryP!Z41) ->  | H70: =iCountryP!AA41 ->  | I70: =iCountryP!AA41 -> 
B71: 0 | C71: =TRIM(iCountryP!V42) ->  | D71: =iCountryP!W42 ->  | F71: 0 | G71: =TRIM(iCountryP!Z42) ->  | H71: =iCountryP!AA42 ->  | I71: =iCountryP!AA42 -> 
B72: 0 | C72: =TRIM(iCountryP!V43) ->  | D72: =iCountryP!W43 ->  | F72: 0 | G72: =TRIM(iCountryP!Z43) ->  | H72: =iCountryP!AA43 ->  | I72: =iCountryP!AA43 -> 
B73: 0 | C73: =TRIM(iCountryP!V44) ->  | D73: =iCountryP!W44 ->  | F73: 0 | G73: =TRIM(iCountryP!Z44) ->  | H73: =iCountryP!AA44 ->  | I73: =iCountryP!AA44 -> 
B74: 0 | C74: =TRIM(iCountryP!V45) ->  | D74: =iCountryP!W45 ->  | F74: 0 | G74: =TRIM(iCountryP!Z45) ->  | H74: =iCountryP!AA45 ->  | I74: =iCountryP!AA45 -> 
B75: 0 | C75: =TRIM(iCountryP!V46) ->  | D75: =iCountryP!W46 ->  | F75: 0 | G75: =TRIM(iCountryP!Z46) ->  | H75: =iCountryP!AA46 ->  | I75: =iCountryP!AA46 -> 
B76: 0 | C76: =TRIM(iCountryP!V47) ->  | D76: =iCountryP!W47 ->  | F76: 0 | G76: =TRIM(iCountryP!Z47) ->  | H76: =iCountryP!AA47 ->  | I76: =iCountryP!AA47 -> 
B77: =IF(C77="",0,1) -> 0 | C77: =TRIM(iCountryP!V48) ->  | D77: =iCountryP!W48 ->  | F77: =IF(G77="",0,1) -> 0 | G77: =TRIM(iCountryP!Z48) ->  | H77: =iCountryP!AA48 ->  | I77: =iCountryP!AA48 ->  | W77: =C77 ->  | X77: =G77 -> 
B78: 0 | C78: =TRIM(iCountryP!V49) ->  | D78: =iCountryP!W49 ->  | F78: 0 | G78: =TRIM(iCountryP!Z49) ->  | H78: =iCountryP!AA49 ->  | I78: =iCountryP!AA49 -> 
B79: 0 | C79: =TRIM(iCountryP!V50) ->  | D79: =iCountryP!W50 ->  | F79: 0 | G79: =TRIM(iCountryP!Z50) ->  | H79: =iCountryP!AA50 ->  | I79: =iCountryP!AA50 -> 
B80: 0 | C80: =TRIM(iCountryP!V51) ->  | D80: =iCountryP!W51 ->  | F80: 0 | G80: =TRIM(iCountryP!Z51) ->  | H80: =iCountryP!AA51 ->  | I80: =iCountryP!AA51 -> 
B81: 0 | C81: =TRIM(iCountryP!V52) ->  | D81: =iCountryP!W52 ->  | F81: 0 | G81: =TRIM(iCountryP!Z52) ->  | H81: =iCountryP!AA52 ->  | I81: =iCountryP!AA52 -> 

Sheet CountryCompare
B1: s | C1: =uxb_works!$B$92 -> Engineering Index: 2019 | Z1: 1 | AX1: $V$16 | AY1: =INDEX(tblIndicators!$AL$2:$AL$31,MATCH($AX$2,tblIndiSets!$F$13:$F$41,0)) -> CATEGORY | BA1: 1 | BB1: 5
AX2: =TRIM(INDIRECT(AX1)) -> 1) KNOWLEDGE | AY2: =INDEX(tblIndicators!$O$2:$O$31,MATCH($AX$2,tblIndiSets!$F$13:$F$41,0)) -> The overall score is the weighted sum of the following category scores: 1) KNOWLEDGE (16.7%) 2) LABOUR FORCE (16.7%) 3) ENGINEERING INDUSTRY (16.7%) 4) INFRASTRUCTURE (16.7%) 5) DIGITAL INFRASTRUCTURE (16.7%) 6) SAFETY STANDARDS (16.7%)
B4: =uxb_works!C111 -> Show filter options
C6: =uxb_works!$C$5 -> The active weight profile has been changed from its default setting
C8: =uxb_works!D67 -> <no filter> -I- No. of countries in this group: 99
C10: =TRIM(uxb_works!D32) -> ALL CATEGORIES
C12: Country Comparison Overview | X12: 1 | Y12: 2 | Z12: 3 | AA12: 1 | AB12: 2 | AC12: =iCountryComp!AH17 -> 3 | AD12: =iCountryComp!AI17 -> 1 | AE12: =iCountryComp!AJ17 -> 2 | AF12: =iCountryComp!AK17 -> 3 | AG12: =iCountryComp!AL17 -> 0 | AH12: =iCountryComp!AM17 -> 0
B14: =MAX(COUNTIF(S16:S45,"<>0"),11) -> 29 | S14: =COUNTIF(S16:S45,"<>0") -> 29 | T14: =uxb_works!E32 -> 0 | V14: Indicator | X14: =iCountryComp!C2 -> Bulgaria | AA14: =iCountryComp!C3 -> Algeria | AD14: =iCountryComp!C4 -> Argentina | AG14: =iCountryComp!C5 -> <none>
X15: Score | Y15: Rank | AA15: Score | AB15: Rank | AD15: Score | AE15: Rank | AG15: Score | AH15: Rank
S16: =iCountryComp!AB22 -> 2 | T16: =iCountryComp!AC22 -> 2 | V16: =iCountryComp!AD22 -> 1) KNOWLEDGE | X16: =iCountryComp!AE22 -> 6.8 | Y16: =iCountryComp!AF22 -> 49 | AA16: =iCountryComp!AG22 -> 6.6 | AB16: =iCountryComp!AH22 -> 50 | AD16: =iCountryComp!AI22 -> 6.5 | AE16: =iCountryComp!AJ22 -> =51 | AG16: =iCountryComp!AL22 ->  | AH16: =iCountryComp!AM22 ->  | AK16: =MIN(X16,AA16,AD16,AG16) -> 6.5 | AL16: =MAX(X16,AA16,AD16,AG16) -> 6.8 | AN16: =V16 -> 1) KNOWLEDGE
S17: =iCountryComp!AB23 -> 1 | T17: =iCountryComp!AC23 -> 1 | V17: =iCountryComp!AD23 -> 1.1) H index ranking (# of citations in engineering) | X17: =iCountryComp!AE23 -> 9.8 | Y17: =iCountryComp!AF23 -> =50 | AA17: =iCountryComp!AG23 -> 10.8 | AB17: =iCountryComp!AH23 -> =44 | AD17: =iCountryComp!AI23 -> 12.2 | AE17: =iCountryComp!AJ23 -> 43 | AG17: =iCountryComp!AL23 ->  | AH17: =iCountryComp!AM23 ->  | AK17: =MIN(X17,AA17,AD17,AG17) -> 9.8 | AL17: =MAX(X17,AA17,AD17,AG17) -> 12.2 | AN17: =V17 -> 1.1) H index ranking (# of citations in engineering)
S18: =iCountryComp!AB24 -> 1 | T18: =iCountryComp!AC24 -> 1 | V18: =iCountryComp!AD24 -> 1.2) R&D spending (% GDP) | X18: =iCountryComp!AE24 -> 16.7 | Y18: =iCountryComp!AF24 -> 45 | AA18: =iCountryComp!AG24 -> 11.5 | AB18: =iCountryComp!AH24 -> =57 | AD18: =iCountryComp!AI24 -> 11.5 | AE18: =iCountryComp!AJ24 -> =57 | AG18: =iCountryComp!AL24 ->  | AH18: =iCountryComp!AM24 ->  | AK18: =MIN(X18,AA18,AD18,AG18) -> 11.5 | AL18: =MAX(X18,AA18,AD18,AG18) -> 16.7 | AN18: =V18 -> 1.2) R&D spending (% GDP)
S19: =iCountryComp!AB25 -> 1 | T19: =iCountryComp!AC25 -> 1 | V19: =iCountryComp!AD25 -> 1.3) Number of universities in top 500 for engineering | X19: =iCountryComp!AE25 -> 0.7 | Y19: =iCountryComp!AF25 -> =54 | AA19: =iCountryComp!AG25 -> 4.3 | AB19: =iCountryComp!AH25 -> =26 | AD19: =iCountryComp!AI25 -> 2.1 | AE19: =iCountryComp!AJ25 -> =41 | AG19: =iCountryComp!AL25 ->  | AH19: =iCountryComp!AM25 ->  | AK19: 0.7 | AL19: 4.3 | AN19: 1.3) Number of universities in top 500 for engineering
S20: =iCountryComp!AB26 -> 1 | T20: =iCountryComp!AC26 -> 1 | V20: =iCountryComp!AD26 -> 1.4) Patent applications, residents | X20: =iCountryComp!AE26 -> 0 | Y20: =iCountryComp!AF26 -> =43 | AA20: =iCountryComp!AG26 -> 0 | AB20: =iCountryComp!AH26 -> =43 | AD20: =iCountryComp!AI26 -> 0 | AE20: =iCountryComp!AJ26 -> =43 | AG20: =iCountryComp!AL26 ->  | AH20: =iCountryComp!AM26 ->  | AK20: 0 | AL20: 0 | AN20: 1.4) Patent applications, residents
S21: =iCountryComp!AB27 -> 2 | T21: =iCountryComp!AC27 -> 1 | V21: =iCountryComp!AD27 -> 2) LABOUR FORCE | X21: =iCountryComp!AE27 -> 42.3 | Y21: =iCountryComp!AF27 -> 51 | AA21: =iCountryComp!AG27 -> 35.8 | AB21: =iCountryComp!AH27 -> 59 | AD21: =iCountryComp!AI27 -> 47.2 | AE21: =iCountryComp!AJ27 -> 41 | AG21: =iCountryComp!AL27 ->  | AH21: =iCountryComp!AM27 ->  | AK21: 35.8 | AL21: 47.2 | AN21: 2) LABOUR FORCE
S22: =iCountryComp!AB28 -> 2 | T22: =iCountryComp!AC28 -> 1 | V22: =iCountryComp!AD28 -> 2.1) Availability of scientists and engineers | X22: =iCountryComp!AE28 -> 29.4 | Y22: =iCountryComp!AF28 -> =77 | AA22: =iCountryComp!AG28 -> 32.4 | AB22: =iCountryComp!AH28 -> =75 | AD22: =iCountryComp!AI28 -> 38.2 | AE22: =iCountryComp!AJ28 -> =60 | AG22: =iCountryComp!AL28 ->  | AH22: =iCountryComp!AM28 ->  | AK22: 29.4 | AL22: 38.2 | AN22: 2.1) Availability of scientists and engineers
S23: =iCountryComp!AB29 -> 2 | T23: =iCountryComp!AC29 -> 1 | V23: =iCountryComp!AD29 -> 2.2) Mean score in science performance among 15 year-olds | X23: =iCountryComp!AE29 -> 50.9 | Y23: =iCountryComp!AF29 -> 43 | AA23: =iCountryComp!AG29 -> 19.6 | AB23: =iCountryComp!AH29 -> 63 | AD23: =iCountryComp!AI29 -> 63.8 | AE23: =iCountryComp!AJ29 -> =34 | AG23: =iCountryComp!AL29 ->  | AH23: =iCountryComp!AM29 ->  | AK23: 19.6 | AL23: 63.8 | AN23: 2.2) Mean score in science performance among 15 year-olds
S24: =iCountryComp!AB30 -> 2 | T24: =iCountryComp!AC30 -> 1 | V24: =iCountryComp!AD30 -> 2.3) Female graduates in engineering disciplines (tertiary education) | X24: =iCountryComp!AE30 -> 41.6 | Y24: =iCountryComp!AF30 -> 39 | AA24: =iCountryComp!AG30 -> 60 | AB24: =iCountryComp!AH30 -> =8 | AD24: =iCountryComp!AI30 -> 60 | AE24: =iCountryComp!AJ30 -> =8 | AG24: =iCountryComp!AL30 ->  | AH24: =iCountryComp!AM30 ->  | AK24: 41.6 | AL24: 60 | AN24: 2.3) Female graduates in engineering disciplines (tertiary education)
S25: =iCountryComp!AB31 -> 2 | T25: =iCountryComp!AC31 -> 1 | V25: =iCountryComp!AD31 -> 2.4) Mean score in mathematics performance among 15 year-olds | X25: =iCountryComp!AE31 -> 47.9 | Y25: =iCountryComp!AF31 -> 44 | AA25: =iCountryComp!AG31 -> 13.6 | AB25: =iCountryComp!AH31 -> 63 | AD25: =iCountryComp!AI31 -> 54.2 | AE25: =iCountryComp!AJ31 -> 40 | AG25: =iCountryComp!AL31 ->  | AH25: =iCountryComp!AM31 ->  | AK25: 13.6 | AL25: 54.2 | AN25: 2.4) Mean score in mathematics performance among 15 year-olds
S26: =iCountryComp!AB32 -> 2 | T26: =iCountryComp!AC32 -> 1 | V26: =iCountryComp!AD32 -> 2.5) Graduates in engineering disciplines (tertiary education) | X26: =iCountryComp!AE32 -> 41.8 | Y26: =iCountryComp!AF32 -> 51 | AA26: =iCountryComp!AG32 -> 53.6 | AB26: =iCountryComp!AH32 -> 24 | AD26: =iCountryComp!AI32 -> 19.9 | AE26: =iCountryComp!AJ32 -> 81 | AG26: =iCountryComp!AL32 ->  | AH26: =iCountryComp!AM32 ->  | AK26: 19.9 | AL26: 53.6 | AN26: 2.5) Graduates in engineering disciplines (tertiary education)
S27: =iCountryComp!AB33 -> 1 | T27: =iCountryComp!AC33 -> 1 | V27: =iCountryComp!AD33 -> 3) ENGINEERING INDUSTRY | X27: =iCountryComp!AE33 -> 26.7 | Y27: =iCountryComp!AF33 -> 48 | AA27: =iCountryComp!AG33 -> 12.5 | AB27: =iCountryComp!AH33 -> 87 | AD27: =iCountryComp!AI33 -> 24.9 | AE27: =iCountryComp!AJ33 -> 56 | AG27: =iCountryComp!AL33 ->  | AH27: =iCountryComp!AM33 ->  | AK27: 12.5 | AL27: 26.7 | AN27: 3) ENGINEERING INDUSTRY
S28: =iCountryComp!AB34 -> 1 | T28: =iCountryComp!AC34 -> 1 | V28: =iCountryComp!AD34 -> 3.1) Ratio of medium to large-sized engineering companies vs all of similar size | X28: =iCountryComp!AE34 -> 16.2 | Y28: =iCountryComp!AF34 -> =43 | AA28: =iCountryComp!AG34 -> 13.4 | AB28: =iCountryComp!AH34 -> 55 | AD28: =iCountryComp!AI34 -> 17.3 | AE28: =iCountryComp!AJ34 -> 38 | AG28: =iCountryComp!AL34 ->  | AH28: =iCountryComp!AM34 ->  | AK28: 13.4 | AL28: 17.3 | AN28: 3.1) Ratio of medium to large-sized engineering companies vs all of similar size
S29: =iCountryComp!AB35 -> 1 | T29: =iCountryComp!AC35 -> 1 | V29: =iCountryComp!AD35 -> 3.2) Engineering Exports | X29: =iCountryComp!AE35 -> 0.6 | Y29: =iCountryComp!AF35 -> 41 | AA29: =iCountryComp!AG35 -> 0 | AB29: =iCountryComp!AH35 -> =65 | AD29: =iCountryComp!AI35 -> 0.1 | AE29: =iCountryComp!AJ35 -> =55 | AG29: =iCountryComp!AL35 ->  | AH29: =iCountryComp!AM35 ->  | AK29: 0 | AL29: 0.6 | AN29: 3.2) Engineering Exports
S30: =iCountryComp!AB36 -> 1 | T30: =iCountryComp!AC36 -> 1 | V30: =iCountryComp!AD36 -> 3.3) Medium and high-tech Industry (% manufacturing value added) | X30: =iCountryComp!AE36 -> 36.7 | Y30: =iCountryComp!AF36 -> 41 | AA30: =iCountryComp!AG36 -> 10.5 | AB30: =iCountryComp!AH36 -> 85 | AD30: =iCountryComp!AI36 -> 31.7 | AE30: =iCountryComp!AJ36 -> 49 | AG30: =iCountryComp!AL36 ->  | AH30: =iCountryComp!AM36 ->  | AK30: 10.5 | AL30: 36.7 | AN30: 3.3) Medium and high-tech Industry (% manufacturing value added)
S31: =iCountryComp!AB37 -> 1 | T31: =iCountryComp!AC37 -> 1 | V31: =iCountryComp!AD37 -> 3.4) Economic complexity index | X31: =iCountryComp!AE37 -> 53.4 | Y31: =iCountryComp!AF37 -> 50 | AA31: =iCountryComp!AG37 -> 25.9 | AB31: =iCountryComp!AH37 -> 85 | AD31: =iCountryComp!AI37 -> 50.6 | AE31: =iCountryComp!AJ37 -> 54 | AG31: =iCountryComp!AL37 ->  | AH31: =iCountryComp!AM37 ->  | AK31: 25.9 | AL31: 53.4 | AN31: 3.4) Economic complexity index
S32: =iCountryComp!AB38 -> 2 | T32: =iCountryComp!AC38 -> 1 | V32: =iCountryComp!AD38 -> 4) INFRASTRUCTURE | X32: =iCountryComp!AE38 -> 51.7 | Y32: =iCountryComp!AF38 -> 54 | AA32: =iCountryComp!AG38 -> 35.4 | AB32: =iCountryComp!AH38 -> 87 | AD32: =iCountryComp!AI38 -> 49.8 | AE32: =iCountryComp!AJ38 -> =58 | AG32: =iCountryComp!AL38 ->  | AH32: =iCountryComp!AM38 ->  | AK32: 35.4 | AL32: 51.7 | AN32: 4) INFRASTRUCTURE
S33: =iCountryComp!AB39 -> 2 | T33: =iCountryComp!AC39 -> 1 | V33: =iCountryComp!AD39 -> 4.1) Quality of infrastructure | X33: =iCountryComp!AE39 -> 58.5 | Y33: =iCountryComp!AF39 -> 67 | AA33: =iCountryComp!AG39 -> 51.9 | AB33: =iCountryComp!AH39 -> 79 | AD33: =iCountryComp!AI39 -> 48.9 | AE33: =iCountryComp!AJ39 -> 84 | AG33: =iCountryComp!AL39 ->  | AH33: =iCountryComp!AM39 ->  | AK33: 48.9 | AL33: 58.5 | AN33: 4.1) Quality of infrastructure
S34: =iCountryComp!AB40 -> 2 | T34: =iCountryComp!AC40 -> 1 | V34: =iCountryComp!AD40 -> 4.2) Extent and quality of road network | X34: =iCountryComp!AE40 -> 50 | Y34: =iCountryComp!AF40 -> =40 | AA34: =iCountryComp!AG40 -> 50 | AB34: =iCountryComp!AH40 -> =40 | AD34: =iCountryComp!AI40 -> 50 | AE34: =iCountryComp!AJ40 -> =40 | AG34: =iCountryComp!AL40 ->  | AH34: =iCountryComp!AM40 ->  | AK34: 50 | AL34: 50 | AN34: 4.2) Extent and quality of road network
S35: =iCountryComp!AB41 -> 2 | T35: =iCountryComp!AC41 -> 1 | V35: =iCountryComp!AD41 -> 4.3) Extent and quality of rail network | X35: =iCountryComp!AE41 -> 50 | Y35: =iCountryComp!AF41 -> =33 | AA35: =iCountryComp!AG41 -> 25 | AB35: =iCountryComp!AH41 -> =61 | AD35: =iCountryComp!AI41 -> 50 | AE35: =iCountryComp!AJ41 -> =33 | AG35: =iCountryComp!AL41 ->  | AH35: =iCountryComp!AM41 ->  | AK35: 25 | AL35: 50 | AN35: 4.3) Extent and quality of rail network
S36: =iCountryComp!AB42 -> 2 | T36: =iCountryComp!AC42 -> 1 | V36: =iCountryComp!AD42 -> 4.4) Quality of port's infrastructure | X36: =iCountryComp!AE42 -> 50 | Y36: =iCountryComp!AF42 -> =44 | AA36: =iCountryComp!AG42 -> 25 | AB36: =iCountryComp!AH42 -> =87 | AD36: =iCountryComp!AI42 -> 50 | AE36: =iCountryComp!AJ42 -> =44 | AG36: =iCountryComp!AL42 ->  | AH36: =iCountryComp!AM42 ->  | AK36: 25 | AL36: 50 | AN36: 4.4) Quality of port's infrastructure
S37: =iCountryComp!AB43 -> 2 | T37: =iCountryComp!AC43 -> 1 | V37: =iCountryComp!AD43 -> 4.5) Quality of air transport infrastructure | X37: =iCountryComp!AE43 -> 50 | Y37: =iCountryComp!AF43 -> =46 | AA37: =iCountryComp!AG43 -> 25 | AB37: =iCountryComp!AH43 -> =84 | AD37: =iCountryComp!AI43 -> 50 | AE37: =iCountryComp!AJ43 -> =46 | AG37: =iCountryComp!AL43 ->  | AH37: =iCountryComp!AM43 ->  | AK37: 25 | AL37: 50 | AN37: 4.5) Quality of air transport infrastructure
S38: =iCountryComp!AB44 -> 1 | T38: =iCountryComp!AC44 -> 1 | V38: =iCountryComp!AD44 -> 5) DIGITAL INFRASTRUCTURE | X38: =iCountryComp!AE44 -> 36.3 | Y38: =iCountryComp!AF44 -> 39 | AA38: =iCountryComp!AG44 -> 10.8 | AB38: =iCountryComp!AH44 -> 89 | AD38: =iCountryComp!AI44 -> 28.4 | AE38: =iCountryComp!AJ44 -> =52 | AG38: =iCountryComp!AL44 ->  | AH38: =iCountryComp!AM44 ->  | AK38: 10.8 | AL38: 36.3 | AN38: 5) DIGITAL INFRASTRUCTURE
S39: =iCountryComp!AB45 -> 1 | T39: =iCountryComp!AC45 -> 1 | V39: =iCountryComp!AD45 -> 5.1) Digital Adoption Index | X39: =iCountryComp!AE45 -> 63.1 | Y39: =iCountryComp!AF45 -> =54 | AA39: =iCountryComp!AG45 -> 32.3 | AB39: =iCountryComp!AH45 -> =86 | AD39: =iCountryComp!AI45 -> 72.3 | AE39: =iCountryComp!AJ45 -> =36 | AG39: =iCountryComp!AL45 ->  | AH39: =iCountryComp!AM45 ->  | AK39: 32.3 | AL39: 72.3 | AN39: 5.1) Digital Adoption Index
S40: =iCountryComp!AB46 -> 1 | T40: =iCountryComp!AC46 -> 1 | V40: =iCountryComp!AD46 -> 5.2) Number of Servers | X40: =iCountryComp!AE46 -> 31 | Y40: =iCountryComp!AF46 -> 12 | AA40: =iCountryComp!AG46 -> 0.1 | AB40: =iCountryComp!AH46 -> =78 | AD40: =iCountryComp!AI46 -> 1.5 | AE40: =iCountryComp!AJ46 -> =51 | AG40: =iCountryComp!AL46 ->  | AH40: =iCountryComp!AM46 ->  | AK40: 0.1 | AL40: 31 | AN40: 5.2) Number of Servers
S41: =iCountryComp!AB47 -> 1 | T41: =iCountryComp!AC47 -> 1 | V41: =iCountryComp!AD47 -> 5.3) Internet speed (Mbps) | X41: =iCountryComp!AE47 -> 14.9 | Y41: =iCountryComp!AF47 -> 52 | AA41: =iCountryComp!AG47 -> 0 | AB41: =iCountryComp!AH47 -> 99 | AD41: =iCountryComp!AI47 -> 11.3 | AE41: =iCountryComp!AJ47 -> =61 | AG41: =iCountryComp!AL47 ->  | AH41: =iCountryComp!AM47 ->  | AK41: 0 | AL41: 14.9 | AN41: 5.3) Internet speed (Mbps)
S42: =iCountryComp!AB48 -> 2 | T42: =iCountryComp!AC48 -> 1 | V42: =iCountryComp!AD48 -> 6) SAFETY STANDARDS | X42: =iCountryComp!AE48 -> 88.5 | Y42: =iCountryComp!AF48 -> 47 | AA42: =iCountryComp!AG48 -> 80.6 | AB42: =iCountryComp!AH48 -> 69 | AD42: =iCountryComp!AI48 -> 80.7 | AE42: =iCountryComp!AJ48 -> 68 | AG42: =iCountryComp!AL48 ->  | AH42: =iCountryComp!AM48 ->  | AK42: =MIN(X42,AA42,AD42,AG42) -> 80.6 | AL42: =MAX(X42,AA42,AD42,AG42) -> 88.5 | AN42: =V42 -> 6) SAFETY STANDARDS
S43: =iCountryComp!AB49 -> 2 | T43: =iCountryComp!AC49 -> 1 | V43: =iCountryComp!AD49 -> 6.1) Fatal injuries per 100,000 in engineering sectors | X43: =iCountryComp!AE49 -> 99.7 | Y43: =iCountryComp!AF49 -> =30 | AA43: =iCountryComp!AG49 -> 91.4 | AB43: =iCountryComp!AH49 -> =75 | AD43: =iCountryComp!AI49 -> 91.4 | AE43: =iCountryComp!AJ49 -> =75 | AG43: =iCountryComp!AL49 ->  | AH43: =iCountryComp!AM49 ->  | AK43: 91.4 | AL43: 99.7 | AN43: 6.1) Fatal injuries per 100,000 in engineering sectors
S44: =iCountryComp!AB50 -> 2 | T44: =iCountryComp!AC50 -> 1 | V44: =iCountryComp!AD50 -> 6.2) Safety outcomes | X44: =iCountryComp!AE50 -> 77.2 | Y44: =iCountryComp!AF50 -> 51 | AA44: =iCountryComp!AG50 -> 69.8 | AB44: =iCountryComp!AH50 -> =63 | AD44: =iCountryComp!AI50 -> 70.1 | AE44: =iCountryComp!AJ50 -> 62 | AG44: =iCountryComp!AL50 ->  | AH44: =iCountryComp!AM50 ->  | AK44: 69.8 | AL44: 77.2 | AN44: 6.2) Safety outcomes
S45: =iCountryComp!AB51 -> 0 | T45: =iCountryComp!AC51 -> 0 | V45: =iCountryComp!AD51 ->  | X45: =iCountryComp!AE51 ->  | Y45: =iCountryComp!AF51 ->  | AA45: =iCountryComp!AG51 ->  | AB45: =iCountryComp!AH51 ->  | AD45: =iCountryComp!AI51 ->  | AE45: =iCountryComp!AJ51 ->  | AG45: =iCountryComp!AL51 ->  | AH45: =iCountryComp!AM51 ->  | AK45: 0 | AL45: 0

Sheet RegionCompare
A1: =uxb_works!$B$92 -> Engineering Index: 2019 | AK1: =uxb_works!L16 -> 1 | AX1: 1 | AY1: 5 | BA1: 1 | BB1: 6 | BC1: 5 | BE1: 1 | BF1: 5 | BG1: 1 | BH1: 6
AM4: 1600
C6: =uxb_works!$C$5 -> The active weight profile has been changed from its default setting | D6: =uxb_works!$C$5 -> The active weight profile has been changed from its default setting
D8: =uxb_works!D67 -> <no filter> -I- No. of countries in this group: 99
D10: =" "&iRegionComp!$E$2 -> 1) KNOWLEDGE
D11: CATEGORIES | R11: =iRegionComp!AC7 -> All | T11: =iRegionComp!AD7 -> <no filter> | V11: =iRegionComp!AE7 -> High income | W11: =iRegionComp!AF7 -> Upper middle income | X11: =iRegionComp!AG7 -> Lower middle income | Y11: =iRegionComp!AH7 -> Low income | AA11: =iRegionComp!AI7 -> East Asia & Pacific | AB11: =iRegionComp!AJ7 -> Europe & Central Asia | AC11: =iRegionComp!AK7 -> Latin America & Caribbean | AD11: =iRegionComp!AL7 -> Middle East & North Africa | AE11: =iRegionComp!AM7 -> North America | AF11: =iRegionComp!AN7 -> South Asia | AG11: =iRegionComp!AO7 -> Sub-Saharan Africa
C15: =iRegionComp!D9 -> 1 | D15: =iRegionComp!E9 -> 1) KNOWLEDGE | R15: =iRegionComp!G9 -> 11.3 | T15: =iRegionComp!H9 -> 11.3 | V15: =iRegionComp!I9 -> 17.1 | W15: =iRegionComp!J9 -> 8.3 | X15: =iRegionComp!K9 -> 4.3 | Y15: =iRegionComp!L9 -> 2 | AA15: =iRegionComp!M9 -> 17.6 | AB15: =iRegionComp!N9 -> 13.9 | AC15: =iRegionComp!O9 -> 4.5 | AD15: =iRegionComp!P9 -> 5.9 | AE15: =iRegionComp!Q9 -> 47.8 | AF15: =iRegionComp!R9 -> 6.5 | AG15: =iRegionComp!S9 -> 3 | AK15: =MIN(R15,T15,V15:Y15,AA15:AG15) -> 2 | AL15: =MAX(R15,T15,V15:Y15,AA15:AG15) -> 47.8
C16: =iRegionComp!D10 -> 0 | D16: =iRegionComp!E10 -> 2) LABOUR FORCE | R16: =iRegionComp!G10 -> 51.1 | T16: =iRegionComp!H10 -> 51.1 | V16: =iRegionComp!I10 -> 55.7 | W16: =iRegionComp!J10 -> 42.5 | X16: =iRegionComp!K10 -> 45.9 | Y16: =iRegionComp!L10 -> n/a | AA16: =iRegionComp!M10 -> 57.5 | AB16: =iRegionComp!N10 -> 53.3 | AC16: =iRegionComp!O10 -> 38.6 | AD16: =iRegionComp!P10 -> 44.6 | AE16: =iRegionComp!Q10 -> 57.8 | AF16: =iRegionComp!R10 -> n/a | AG16: =iRegionComp!S10 -> n/a | AK16: =MIN(R16,T16,V16:Y16,AA16:AG16) -> 38.6 | AL16: =MAX(R16,T16,V16:Y16,AA16:AG16) -> 57.8
C17: =iRegionComp!D11 -> 0 | D17: =iRegionComp!E11 -> 3) ENGINEERING INDUSTRY | R17: =iRegionComp!G11 -> 27.8 | T17: =iRegionComp!H11 -> 27.8 | V17: =iRegionComp!I11 -> 34.7 | W17: =iRegionComp!J11 -> 25.2 | X17: =iRegionComp!K11 -> 21.1 | Y17: =iRegionComp!L11 -> 8.5 | AA17: =iRegionComp!M11 -> 35.5 | AB17: =iRegionComp!N11 -> 32.3 | AC17: =iRegionComp!O11 -> 21.4 | AD17: =iRegionComp!P11 -> 26.4 | AE17: =iRegionComp!Q11 -> 39.2 | AF17: =iRegionComp!R11 -> 16.2 | AG17: =iRegionComp!S11 -> 11.1 | AK17: 8.5 | AL17: 39.2
C18: =iRegionComp!D12 -> 0 | D18: =iRegionComp!E12 -> 4) INFRASTRUCTURE | R18: =iRegionComp!G12 -> 60.2 | T18: =iRegionComp!H12 -> 60.2 | V18: =iRegionComp!I12 -> 76.4 | W18: =iRegionComp!J12 -> 47.6 | X18: =iRegionComp!K12 -> 37.4 | Y18: =iRegionComp!L12 -> n/a | AA18: =iRegionComp!M12 -> 59 | AB18: =iRegionComp!N12 -> 68.8 | AC18: =iRegionComp!O12 -> 49.2 | AD18: =iRegionComp!P12 -> 54.8 | AE18: =iRegionComp!Q12 -> 91.7 | AF18: =iRegionComp!R12 -> 31.4 | AG18: =iRegionComp!S12 -> 43.1 | AK18: 31.4 | AL18: 91.7
C19: =iRegionComp!D13 -> 0 | D19: =iRegionComp!E13 -> 5) DIGITAL INFRASTRUCTURE | R19: =iRegionComp!G13 -> 32.6 | T19: =iRegionComp!H13 -> 32.6 | V19: =iRegionComp!I13 -> 47.6 | W19: =iRegionComp!J13 -> 25.5 | X19: =iRegionComp!K13 -> 15.2 | Y19: =iRegionComp!L13 -> 5.3 | AA19: =iRegionComp!M13 -> 35.4 | AB19: =iRegionComp!N13 -> 43.2 | AC19: =iRegionComp!O13 -> 23.8 | AD19: =iRegionComp!P13 -> 25.9 | AE19: =iRegionComp!Q13 -> 57.9 | AF19: =iRegionComp!R13 -> 14.1 | AG19: =iRegionComp!S13 -> 10.5 | AK19: 5.3 | AL19: 57.9
C20: =iRegionComp!D14 -> 0 | D20: =iRegionComp!E14 -> 6) SAFETY STANDARDS | R20: =iRegionComp!G14 -> 85.1 | T20: =iRegionComp!H14 -> 85.1 | V20: =iRegionComp!I14 -> 90.1 | W20: =iRegionComp!J14 -> 80.7 | X20: =iRegionComp!K14 -> 79.1 | Y20: =iRegionComp!L14 -> n/a | AA20: =iRegionComp!M14 -> 81.2 | AB20: =iRegionComp!N14 -> 87.4 | AC20: =iRegionComp!O14 -> 85.7 | AD20: =iRegionComp!P14 -> 85.6 | AE20: =iRegionComp!Q14 -> 88.7 | AF20: =iRegionComp!R14 -> 78.5 | AG20: =iRegionComp!S14 -> 77.3 | AK20: 77.3 | AL20: 90.1
Q21: =iRegionComp!F15 -> 1 | R21: =iRegionComp!G15 -> 0 | T21: =iRegionComp!H15 -> 0 | V21: =iRegionComp!I15 -> 0 | W21: =iRegionComp!J15 -> 0 | X21: =iRegionComp!K15 -> 0 | Y21: =iRegionComp!L15 -> 0 | AA21: =iRegionComp!M15 -> 0 | AB21: =iRegionComp!N15 -> 0 | AC21: =iRegionComp!O15 -> 0 | AG21: =iRegionComp!S15 -> 0
E23: Indicators | R23: =iRegionComp!AC7 -> All | T23: =iRegionComp!AD7 -> <no filter> | V23: =iRegionComp!AE7 -> High income | W23: =iRegionComp!AF7 -> Upper middle income | X23: =iRegionComp!AG7 -> Lower middle income | Y23: =iRegionComp!AH7 -> Low income | AA23: =iRegionComp!AI7 -> East Asia & Pacific | AB23: =iRegionComp!AJ7 -> Europe & Central Asia | AC23: =iRegionComp!AK7 -> Latin America & Caribbean | AD23: =iRegionComp!AL7 -> Middle East & North Africa | AE23: =iRegionComp!AM7 -> North America | AF23: =iRegionComp!AN7 -> South Asia | AG23: =iRegionComp!AO7 -> Sub-Saharan Africa
B24: =COUNTIF(B25:B48,"<>0") -> 23
B25: =IF(iRegionComp!Z20="",0,iRegionComp!Z20) -> 2 | C25: =iRegionComp!AA20 -> 2 | E25: =TRIM(iRegionComp!AB20) -> 1.1) H index ranking (# of citations in engineering) | R25: =iRegionComp!AC20 -> 15.3 | T25: =iRegionComp!AD20 -> 15.3 | V25: =iRegionComp!AE20 -> 23.1 | W25: =iRegionComp!AF20 -> 10.9 | X25: =iRegionComp!AG20 -> 7.3 | Y25: =iRegionComp!AH20 -> 1.4 | AA25: =iRegionComp!AI20 -> 20.6 | AB25: =iRegionComp!AJ20 -> 19 | AC25: =iRegionComp!AK20 -> 6.5 | AD25: =iRegionComp!AL20 -> 9.6 | AE25: =iRegionComp!AM20 -> 71.9 | AF25: =iRegionComp!AN20 -> 11.5 | AG25: =iRegionComp!AO20 -> 3.3 | AK25: 1.4 | AL25: 71.9
B26: =IF(iRegionComp!Z21="",0,iRegionComp!Z21) -> 3 | C26: =iRegionComp!AA21 -> 2 | E26: =TRIM(iRegionComp!AB21) -> 1.2) R&D spending (% GDP) | R26: =iRegionComp!AC21 -> 21.8 | T26: =iRegionComp!AD21 -> 21.8 | V26: =iRegionComp!AE21 -> 34.8 | W26: =iRegionComp!AF21 -> 13.3 | X26: =iRegionComp!AG21 -> 6.8 | Y26: =iRegionComp!AH21 -> 6.8 | AA26: =iRegionComp!AI21 -> 29.8 | AB26: =iRegionComp!AJ21 -> 30.8 | AC26: =iRegionComp!AK21 -> 8.9 | AD26: =iRegionComp!AL21 -> 10.6 | AE26: =iRegionComp!AM21 -> 48.2 | AF26: =iRegionComp!AN21 -> 7.3 | AG26: =iRegionComp!AO21 -> 8 | AK26: 6.8 | AL26: 48.2
B27: =IF(iRegionComp!Z22="",0,iRegionComp!Z22) -> 4 | C27: =iRegionComp!AA22 -> 2 | E27: =TRIM(iRegionComp!AB22) -> 1.3) Number of universities in top 500 for engineering | R27: =iRegionComp!AC22 -> 6.3 | T27: =iRegionComp!AD22 -> 6.3 | V27: =iRegionComp!AE22 -> 8.9 | W27: =iRegionComp!AF22 -> 5.3 | X27: =iRegionComp!AG22 -> 3.1 | Y27: =iRegionComp!AH22 -> 0 | AA27: =iRegionComp!AI22 -> 11.1 | AB27: =iRegionComp!AJ22 -> 5.5 | AC27: =iRegionComp!AK22 -> 2.6 | AD27: =iRegionComp!AL22 -> 3.2 | AE27: =iRegionComp!AM22 -> 59.3 | AF27: =iRegionComp!AN22 -> 6.8 | AG27: =iRegionComp!AO22 -> 0.6 | AK27: 0 | AL27: 59.3
B28: =IF(iRegionComp!Z23="",0,iRegionComp!Z23) -> 5 | C28: =iRegionComp!AA23 -> 2 | E28: =TRIM(iRegionComp!AB23) -> 1.4) Patent applications, residents | R28: =iRegionComp!AC23 -> 1.8 | T28: =iRegionComp!AD23 -> 1.8 | V28: =iRegionComp!AE23 -> 1.5 | W28: =iRegionComp!AF23 -> 3.5 | X28: =iRegionComp!AG23 -> 0.1 | Y28: =iRegionComp!AH23 -> 0 | AA28: =iRegionComp!AI23 -> 9 | AB28: =iRegionComp!AJ23 -> 0.3 | AC28: =iRegionComp!AK23 -> 0 | AD28: =iRegionComp!AL23 -> 0.2 | AE28: =iRegionComp!AM23 -> 12 | AF28: =iRegionComp!AN23 -> 0.3 | AG28: =iRegionComp!AO23 -> 0 | AK28: 0 | AL28: 12
B29: =IF(iRegionComp!Z24="",0,iRegionComp!Z24) -> 7 | C29: =iRegionComp!AA24 -> 2 | E29: =TRIM(iRegionComp!AB24) -> 2.1) Availability of scientists and engineers | R29: =iRegionComp!AC24 -> 47.6 | T29: =iRegionComp!AD24 -> 47.6 | V29: =iRegionComp!AE24 -> 57.5 | W29: =iRegionComp!AF24 -> 42.3 | X29: =iRegionComp!AG24 -> 38.8 | Y29: =iRegionComp!AH24 -> 26 | AA29: =iRegionComp!AI24 -> 54.3 | AB29: =iRegionComp!AJ24 -> 50.6 | AC29: =iRegionComp!AK24 -> 35.1 | AD29: =iRegionComp!AL24 -> 53.8 | AE29: =iRegionComp!AM24 -> 86.8 | AF29: =iRegionComp!AN24 -> 42.7 | AG29: =iRegionComp!AO24 -> 28.8 | AK29: 26 | AL29: 86.8
B30: =IF(iRegionComp!Z25="",0,iRegionComp!Z25) -> 8 | C30: =iRegionComp!AA25 -> 2 | E30: =TRIM(iRegionComp!AB25) -> 2.2) Mean score in science performance among 15 year-olds | R30: =iRegionComp!AC25 -> 60.9 | T30: =iRegionComp!AD25 -> 60.9 | V30: =iRegionComp!AE25 -> 71.4 | W30: =iRegionComp!AF25 -> 41.5 | X30: =iRegionComp!AG25 -> 47.3 | Y30: =iRegionComp!AH25 -> n/a | AA30: =iRegionComp!AI25 -> 73.6 | AB30: =iRegionComp!AJ25 -> 67 | AC30: =iRegionComp!AK25 -> 37.2 | AD30: =iRegionComp!AL25 -> 35.3 | AE30: =iRegionComp!AM25 -> 80.4 | AF30: =iRegionComp!AN25 -> n/a | AG30: =iRegionComp!AO25 -> n/a | AK30: 35.3 | AL30: 80.4
B31: =IF(iRegionComp!Z26="",0,iRegionComp!Z26) -> 9 | C31: =iRegionComp!AA26 -> 2 | E31: =TRIM(iRegionComp!AB26) -> 2.3) Female graduates in engineering disciplines (tertiary education) | R31: =iRegionComp!AC26 -> 38.4 | T31: =iRegionComp!AD26 -> 38.4 | V31: =iRegionComp!AE26 -> 36.1 | W31: =iRegionComp!AF26 -> 40.6 | X31: =iRegionComp!AG26 -> 44.3 | Y31: =iRegionComp!AH26 -> 31 | AA31: =iRegionComp!AI26 -> 37.3 | AB31: =iRegionComp!AJ26 -> 37.1 | AC31: =iRegionComp!AK26 -> 44 | AD31: =iRegionComp!AL26 -> 42.3 | AE31: =iRegionComp!AM26 -> 24 | AF31: =iRegionComp!AN26 -> 39.6 | AG31: =iRegionComp!AO26 -> 34.5 | AK31: 24 | AL31: 44.3
B32: =IF(iRegionComp!Z27="",0,iRegionComp!Z27) -> 10 | C32: =iRegionComp!AA27 -> 2 | E32: =TRIM(iRegionComp!AB27) -> 2.4) Mean score in mathematics performance among 15 year-olds | R32: =iRegionComp!AC27 -> 57.5 | T32: =iRegionComp!AD27 -> 57.5 | V32: =iRegionComp!AE27 -> 68.5 | W32: =iRegionComp!AF27 -> 37.9 | X32: =iRegionComp!AG27 -> 37.3 | Y32: =iRegionComp!AH27 -> n/a | AA32: =iRegionComp!AI27 -> 70.2 | AB32: =iRegionComp!AJ27 -> 65.1 | AC32: =iRegionComp!AK27 -> 29.9 | AD32: =iRegionComp!AL27 -> 31.2 | AE32: =iRegionComp!AM27 -> 70 | AF32: =iRegionComp!AN27 -> n/a | AG32: =iRegionComp!AO27 -> n/a | AK32: 29.9 | AL32: 70.2
B33: =IF(iRegionComp!Z28="",0,iRegionComp!Z28) -> 11 | C33: =iRegionComp!AA28 -> 2 | E33: =TRIM(iRegionComp!AB28) -> 2.5) Graduates in engineering disciplines (tertiary education) | R33: =iRegionComp!AC28 -> 40.2 | T33: =iRegionComp!AD28 -> 40.2 | V33: =iRegionComp!AE28 -> 43.2 | W33: =iRegionComp!AF28 -> 45.3 | X33: =iRegionComp!AG28 -> 33 | Y33: =iRegionComp!AH28 -> 15.6 | AA33: =iRegionComp!AI28 -> 45.3 | AB33: =iRegionComp!AJ28 -> 45.6 | AC33: =iRegionComp!AK28 -> 34.6 | AD33: =iRegionComp!AL28 -> 44.6 | AE33: =iRegionComp!AM28 -> 28 | AF33: =iRegionComp!AN28 -> 24.8 | AG33: =iRegionComp!AO28 -> 21.5 | AK33: 15.6 | AL33: 45.6
B34: =IF(iRegionComp!Z29="",0,iRegionComp!Z29) -> 13 | C34: =iRegionComp!AA29 -> 2 | E34: =TRIM(iRegionComp!AB29) -> 3.1) Ratio of medium to large-sized engineering companies vs all of similar size | R34: =iRegionComp!AC29 -> 18.7 | T34: =iRegionComp!AD29 -> 18.7 | V34: =iRegionComp!AE29 -> 16.5 | W34: =iRegionComp!AF29 -> 20.4 | X34: =iRegionComp!AG29 -> 25.2 | Y34: =iRegionComp!AH29 -> 11.5 | AA34: =iRegionComp!AI29 -> 25 | AB34: =iRegionComp!AJ29 -> 16.1 | AC34: =iRegionComp!AK29 -> 15.5 | AD34: =iRegionComp!AL29 -> 26.8 | AE34: =iRegionComp!AM29 -> 14.1 | AF34: =iRegionComp!AN29 -> 21.6 | AG34: =iRegionComp!AO29 -> 12.8 | AK34: 11.5 | AL34: 26.8
B35: =IF(iRegionComp!Z30="",0,iRegionComp!Z30) -> 14 | C35: =iRegionComp!AA30 -> 2 | E35: =TRIM(iRegionComp!AB30) -> 3.2) Engineering Exports | R35: =iRegionComp!AC30 -> 4.5 | T35: =iRegionComp!AD30 -> 4.5 | V35: =iRegionComp!AE30 -> 6.1 | W35: =iRegionComp!AF30 -> 4.7 | X35: =iRegionComp!AG30 -> 1.3 | Y35: =iRegionComp!AH30 -> 0 | AA35: =iRegionComp!AI30 -> 15.6 | AB35: =iRegionComp!AJ30 -> 3.6 | AC35: =iRegionComp!AK30 -> 1.2 | AD35: =iRegionComp!AL30 -> 0.1 | AE35: =iRegionComp!AM30 -> 20 | AF35: =iRegionComp!AN30 -> 0.8 | AG35: =iRegionComp!AO30 -> 0.1 | AK35: 0 | AL35: 20
B36: =IF(iRegionComp!Z31="",0,iRegionComp!Z31) -> 15 | C36: =iRegionComp!AA31 -> 2 | E36: =TRIM(iRegionComp!AB31) -> 3.3) Medium and high-tech Industry (% manufacturing value added) | R36: =iRegionComp!AC31 -> 35.3 | T36: =iRegionComp!AD31 -> 35.3 | V36: =iRegionComp!AE31 -> 46.7 | W36: =iRegionComp!AF31 -> 28.3 | X36: =iRegionComp!AG31 -> 27 | Y36: =iRegionComp!AH31 -> 9.1 | AA36: =iRegionComp!AI31 -> 46.1 | AB36: =iRegionComp!AJ31 -> 43.1 | AC36: =iRegionComp!AK31 -> 24.1 | AD36: =iRegionComp!AL31 -> 31.6 | AE36: =iRegionComp!AM31 -> 44.1 | AF36: =iRegionComp!AN31 -> 18.7 | AG36: =iRegionComp!AO31 -> 13.4 | AK36: 9.1 | AL36: 46.7
B37: =IF(iRegionComp!Z32="",0,iRegionComp!Z32) -> 16 | C37: =iRegionComp!AA32 -> 2 | E37: =TRIM(iRegionComp!AB32) -> 3.4) Economic complexity index | R37: =iRegionComp!AC32 -> 52.5 | T37: =iRegionComp!AD32 -> 52.5 | V37: =iRegionComp!AE32 -> 69.4 | W37: =iRegionComp!AF32 -> 47.2 | X37: =iRegionComp!AG32 -> 30.9 | Y37: =iRegionComp!AH32 -> 13.6 | AA37: =iRegionComp!AI32 -> 55.1 | AB37: =iRegionComp!AJ32 -> 66.3 | AC37: =iRegionComp!AK32 -> 44.9 | AD37: =iRegionComp!AL32 -> 47 | AE37: =iRegionComp!AM32 -> 78.6 | AF37: =iRegionComp!AN32 -> 23.9 | AG37: =iRegionComp!AO32 -> 18.2 | AK37: 13.6 | AL37: 78.6
B38: =IF(iRegionComp!Z33="",0,iRegionComp!Z33) -> 18 | C38: =iRegionComp!AA33 -> 2 | E38: =TRIM(iRegionComp!AB33) -> 4.1) Quality of infrastructure | R38: =iRegionComp!AC33 -> 64.6 | T38: =iRegionComp!AD33 -> 64.6 | V38: =iRegionComp!AE33 -> 77.7 | W38: =iRegionComp!AF33 -> 56.4 | X38: =iRegionComp!AG33 -> 50.8 | Y38: =iRegionComp!AH33 -> 45.1 | AA38: =iRegionComp!AI33 -> 65.9 | AB38: =iRegionComp!AJ33 -> 72.5 | AC38: =iRegionComp!AK33 -> 51.3 | AD38: =iRegionComp!AL33 -> 65.6 | AE38: =iRegionComp!AM33 -> 83.2 | AF38: =iRegionComp!AN33 -> 53.5 | AG38: =iRegionComp!AO33 -> 49.1 | AK38: 45.1 | AL38: 83.2
B39: =IF(iRegionComp!Z34="",0,iRegionComp!Z34) -> 19 | C39: =iRegionComp!AA34 -> 2 | E39: =TRIM(iRegionComp!AB34) -> 4.2) Extent and quality of road network | R39: =iRegionComp!AC34 -> 61.3 | T39: =iRegionComp!AD34 -> 61.3 | V39: =iRegionComp!AE34 -> 78.8 | W39: =iRegionComp!AF34 -> 47.8 | X39: =iRegionComp!AG34 -> 36.3 | Y39: =iRegionComp!AH34 -> n/a | AA39: =iRegionComp!AI34 -> 60.6 | AB39: =iRegionComp!AJ34 -> 71.2 | AC39: =iRegionComp!AK34 -> 49.4 | AD39: =iRegionComp!AL34 -> 52.2 | AE39: =iRegionComp!AM34 -> 100 | AF39: =iRegionComp!AN34 -> 33.3 | AG39: =iRegionComp!AO34 -> 39.8 | AK39: 33.3 | AL39: 100
B40: =IF(iRegionComp!Z35="",0,iRegionComp!Z35) -> 20 | C40: =iRegionComp!AA35 -> 2 | E40: =TRIM(iRegionComp!AB35) -> 4.3) Extent and quality of rail network | R40: =iRegionComp!AC35 -> 47.1 | T40: =iRegionComp!AD35 -> 47.1 | V40: =iRegionComp!AE35 -> 65 | W40: =iRegionComp!AF35 -> 33.7 | X40: =iRegionComp!AG35 -> 20.5 | Y40: =iRegionComp!AH35 -> n/a | AA40: =iRegionComp!AI35 -> 40.8 | AB40: =iRegionComp!AJ35 -> 62.3 | AC40: =iRegionComp!AK35 -> 34.6 | AD40: =iRegionComp!AL35 -> 27.8 | AE40: =iRegionComp!AM35 -> 100 | AF40: =iRegionComp!AN35 -> 8.3 | AG40: =iRegionComp!AO35 -> 32.3 | AK40: 8.3 | AL40: 100
B41: =IF(iRegionComp!Z36="",0,iRegionComp!Z36) -> 21 | C41: =iRegionComp!AA36 -> 2 | E41: =TRIM(iRegionComp!AB36) -> 4.4) Quality of port's infrastructure | R41: =iRegionComp!AC36 -> 63 | T41: =iRegionComp!AD36 -> 63 | V41: =iRegionComp!AE36 -> 77.5 | W41: =iRegionComp!AF36 -> 50 | X41: =iRegionComp!AG36 -> 45.5 | Y41: =iRegionComp!AH36 -> n/a | AA41: =iRegionComp!AI36 -> 64.1 | AB41: =iRegionComp!AJ36 -> 68.3 | AC41: =iRegionComp!AK36 -> 53.6 | AD41: =iRegionComp!AL36 -> 64.6 | AE41: =iRegionComp!AM36 -> 75 | AF41: =iRegionComp!AN36 -> 41.7 | AG41: =iRegionComp!AO36 -> 42.6 | AK41: 41.7 | AL41: 77.5
B42: =IF(iRegionComp!Z37="",0,iRegionComp!Z37) -> 22 | C42: =iRegionComp!AA37 -> 2 | E42: =TRIM(iRegionComp!AB37) -> 4.5) Quality of air transport infrastructure | R42: =iRegionComp!AC37 -> 63.8 | T42: =iRegionComp!AD37 -> 63.8 | V42: =iRegionComp!AE37 -> 83.1 | W42: =iRegionComp!AF37 -> 50 | X42: =iRegionComp!AG37 -> 34.1 | Y42: =iRegionComp!AH37 -> n/a | AA42: =iRegionComp!AI37 -> 63.5 | AB42: =iRegionComp!AJ37 -> 69.8 | AC42: =iRegionComp!AK37 -> 57.2 | AD42: =iRegionComp!AL37 -> 63.7 | AE42: =iRegionComp!AM37 -> 100 | AF42: =iRegionComp!AN37 -> 16.7 | AG42: =iRegionComp!AO37 -> 46 | AK42: 16.7 | AL42: 100
B43: =IF(iRegionComp!Z38="",0,iRegionComp!Z38) -> 24 | C43: =iRegionComp!AA38 -> 2 | E43: =TRIM(iRegionComp!AB38) -> 5.1) Digital Adoption Index | R43: =iRegionComp!AC38 -> 62.6 | T43: =iRegionComp!AD38 -> 62.6 | V43: =iRegionComp!AE38 -> 82 | W43: =iRegionComp!AF38 -> 58.3 | X43: =iRegionComp!AG38 -> 37.3 | Y43: =iRegionComp!AH38 -> 11.2 | AA43: =iRegionComp!AI38 -> 60.1 | AB43: =iRegionComp!AJ38 -> 77 | AC43: =iRegionComp!AK38 -> 57 | AD43: =iRegionComp!AL38 -> 63.3 | AE43: =iRegionComp!AM38 -> 76.9 | AF43: =iRegionComp!AN38 -> 32.7 | AG43: =iRegionComp!AO38 -> 24.8 | AK43: 11.2 | AL43: 82
B44: =IF(iRegionComp!Z39="",0,iRegionComp!Z39) -> 25 | C44: =iRegionComp!AA39 -> 2 | E44: =TRIM(iRegionComp!AB39) -> 5.2) Number of Servers | R44: =iRegionComp!AC39 -> 11.3 | T44: =iRegionComp!AD39 -> 11.3 | V44: =iRegionComp!AE39 -> 22 | W44: =iRegionComp!AF39 -> 3 | X44: =iRegionComp!AG39 -> 0.6 | Y44: =iRegionComp!AH39 -> 0 | AA44: =iRegionComp!AI39 -> 9.7 | AB44: =iRegionComp!AJ39 -> 21.1 | AC44: =iRegionComp!AK39 -> 1.1 | AD44: =iRegionComp!AL39 -> 1.1 | AE44: =iRegionComp!AM39 -> 39.2 | AF44: =iRegionComp!AN39 -> 0.2 | AG44: =iRegionComp!AO39 -> 1.6 | AK44: 0 | AL44: 39.2
B45: =IF(iRegionComp!Z40="",0,iRegionComp!Z40) -> 26 | C45: =iRegionComp!AA40 -> 2 | E45: =TRIM(iRegionComp!AB40) -> 5.3) Internet speed (Mbps) | R45: =iRegionComp!AC40 -> 24.1 | T45: =iRegionComp!AD40 -> 24.1 | V45: =iRegionComp!AE40 -> 38.6 | W45: =iRegionComp!AF40 -> 15 | X45: =iRegionComp!AG40 -> 7.8 | Y45: =iRegionComp!AH40 -> 4.6 | AA45: =iRegionComp!AI40 -> 36.4 | AB45: =iRegionComp!AJ40 -> 31.4 | AC45: =iRegionComp!AK40 -> 13.3 | AD45: =iRegionComp!AL40 -> 13.4 | AE45: =iRegionComp!AM40 -> 57.5 | AF45: =iRegionComp!AN40 -> 9.5 | AG45: =iRegionComp!AO40 -> 5.2 | AK45: =MIN(R45,T45,V45:Y45,AA45:AG45) -> 4.6 | AL45: =MAX(R45,T45,V45:Y45,AA45:AG45) -> 57.5
B46: =IF(iRegionComp!Z41="",0,iRegionComp!Z41) -> 28 | C46: =iRegionComp!AA41 -> 2 | E46: =TRIM(iRegionComp!AB41) -> 6.1) Fatal injuries per 100,000 in engineering sectors | R46: =iRegionComp!AC41 -> 96.7 | T46: =iRegionComp!AD41 -> 96.7 | V46: =iRegionComp!AE41 -> 99.3 | W46: =iRegionComp!AF41 -> 91.4 | X46: =iRegionComp!AG41 -> 99.5 | Y46: =iRegionComp!AH41 -> n/a | AA46: =iRegionComp!AI41 -> 91.7 | AB46: =iRegionComp!AJ41 -> 98.5 | AC46: =iRegionComp!AK41 -> 95.7 | AD46: =iRegionComp!AL41 -> 97.1 | AE46: =iRegionComp!AM41 -> 94.2 | AF46: =iRegionComp!AN41 -> 99.5 | AG46: =iRegionComp!AO41 -> 99.7 | AK46: 91.4 | AL46: 99.7
B47: =IF(iRegionComp!Z42="",0,iRegionComp!Z42) -> 29 | C47: =iRegionComp!AA42 -> 2 | E47: =TRIM(iRegionComp!AB42) -> 6.2) Safety outcomes | R47: =iRegionComp!AC42 -> 70.3 | T47: =iRegionComp!AD42 -> 70.3 | V47: =iRegionComp!AE42 -> 81 | W47: =iRegionComp!AF42 -> 70.1 | X47: =iRegionComp!AG42 -> 58.7 | Y47: =iRegionComp!AH42 -> 28.1 | AA47: =iRegionComp!AI42 -> 70.7 | AB47: =iRegionComp!AJ42 -> 76.2 | AC47: =iRegionComp!AK42 -> 75.7 | AD47: =iRegionComp!AL42 -> 74.1 | AE47: =iRegionComp!AM42 -> 83.2 | AF47: =iRegionComp!AN42 -> 52.6 | AG47: =iRegionComp!AO42 -> 37.9 | AK47: 28.1 | AL47: 83.2
B48: =IF(iRegionComp!Z43="",0,iRegionComp!Z43) -> 0 | C48: =iRegionComp!AA43 -> 0 | E48: =TRIM(iRegionComp!AB43) ->  | R48: =iRegionComp!AC43 ->  | T48: =iRegionComp!AD43 ->  | V48: =iRegionComp!AE43 ->  | W48: =iRegionComp!AF43 ->  | X48: =iRegionComp!AG43 ->  | Y48: =iRegionComp!AH43 ->  | AA48: =iRegionComp!AI43 ->  | AB48: =iRegionComp!AJ43 ->  | AC48: =iRegionComp!AK43 ->  | AD48: =iRegionComp!AL43 ->  | AE48: =iRegionComp!AM43 ->  | AF48: =iRegionComp!AN43 ->  | AG48: =iRegionComp!AO43 ->  | AK48: 0 | AL48: 0
C49: 0

Sheet Scatter
A1: =uxb_works!$B$92 -> Engineering Index: 2019 | BA1: 1 | BB1: 7
B6: =uxb_works!$C$5 -> The active weight profile has been changed from its default setting
B8: =uxb_works!D67 -> <no filter> -I- No. of countries in this group: 99
B11: =iScatter!G1 -> CATEGORY | H11: =iScatter!G2 -> 1) KNOWLEDGE
B12: =IF(iScatter!B1=1,"",iScatter!F1) -> 1) KNOWLEDGE | H12: =IF(iScatter!B2=1,"",iScatter!F2) -> 1.1) H index ranking (# of citations in engineering)
S26: CORRELATION(X,Y)
R27: =IF(ISERROR(iScatter!B14),"n/a",iScatter!B14) -> 0.9401867839

Sheet Correlations
A1: =uxb_works!B92 -> Engineering Index: 2019 | BA1: 1 | BB1: 8
A4: =uxb_works!B111 -> 1
D6: =uxb_works!$C$5 -> The active weight profile has been changed from its default setting
D8: =uxb_works!D67 -> <no filter> -I- No. of countries in this group: 99
H22: Compare *
H23: =UPPER(iCorrel1!C6) -> 1) KNOWLEDGE
H24: with
F25: Most postive correlations | K25: Most negative correlations
E26: =MAX(G26,L26) -> 26 | G26: =MAX(COUNT(G27:G59),1) -> 26 | L26: =MAX(COUNT(L27:L59),1) -> 2
E27: =iCorrel1!N8 -> 4 | F27: =TRIM(iCorrel1!O8) -> 1.1) H index ranking (# of citations in engineering) | G27: =iCorrel1!P8 -> 0.94 | J27: =iCorrel1!T8 -> 1 | K27: =TRIM(iCorrel1!U8) -> 2.3) Female graduates in engineering disciplines (tertiary education) | L27: =iCorrel1!V8 -> -0.23
E28: =iCorrel1!N9 -> 3 | F28: =TRIM(iCorrel1!O9) -> 1.3) Number of universities in top 500 for engineering | G28: =iCorrel1!P9 -> 0.84 | J28: =iCorrel1!T9 -> 1 | K28: =TRIM(iCorrel1!U9) -> 6.1) Fatal injuries per 100,000 in engineering sectors | L28: =iCorrel1!V9 -> -0.03
E29: =iCorrel1!N10 -> 3 | F29: =TRIM(iCorrel1!O10) -> 1.2) R&D spending (% GDP) | G29: =iCorrel1!P10 -> 0.83 | J29: =iCorrel1!T10 -> 0 | K29: =TRIM(iCorrel1!U10) ->  | L29: =iCorrel1!V10 -> 
E30: =iCorrel1!N11 -> 2 | F30: =TRIM(iCorrel1!O11) -> 3.2) Engineering Exports | G30: =iCorrel1!P11 -> 0.73 | J30: =iCorrel1!T11 -> 0 | K30: =TRIM(iCorrel1!U11) ->  | L30: =iCorrel1!V11 -> 
E31: =iCorrel1!N12 -> 2 | F31: =TRIM(iCorrel1!O12) -> 3) ENGINEERING INDUSTRY | G31: =iCorrel1!P12 -> 0.72 | J31: =iCorrel1!T12 -> 0 | K31: =TRIM(iCorrel1!U12) ->  | L31: =iCorrel1!V12 -> 
E32: =iCorrel1!N13 -> 1 | F32: =TRIM(iCorrel1!O13) -> 3.4) Economic complexity index | G32: =iCorrel1!P13 -> 0.65 | J32: =iCorrel1!T13 -> 0 | K32: =TRIM(iCorrel1!U13) ->  | L32: =iCorrel1!V13 -> 
E33: =iCorrel1!N14 -> 1 | F33: =TRIM(iCorrel1!O14) -> 3.3) Medium and high-tech Industry (% manufacturing value added) | G33: =iCorrel1!P14 -> 0.61 | J33: =iCorrel1!T14 -> 0 | K33: =TRIM(iCorrel1!U14) ->  | L33: =iCorrel1!V14 -> 
E34: =iCorrel1!N15 -> 1 | F34: =TRIM(iCorrel1!O15) -> 5) DIGITAL INFRASTRUCTURE | G34: =iCorrel1!P15 -> 0.61 | J34: =iCorrel1!T15 -> 0 | K34: =TRIM(iCorrel1!U15) ->  | L34: =iCorrel1!V15 -> 
E35: =iCorrel1!N16 -> 1 | F35: =TRIM(iCorrel1!O16) -> 1.4) Patent applications, residents | G35: =iCorrel1!P16 -> 0.6 | J35: =iCorrel1!T16 -> 0 | K35: =TRIM(iCorrel1!U16) ->  | L35: =iCorrel1!V16 -> 
E36: =iCorrel1!N17 -> 1 | F36: =TRIM(iCorrel1!O17) -> 5.3) Internet speed (Mbps) | G36: =iCorrel1!P17 -> 0.59 | J36: =iCorrel1!T17 -> 0 | K36: =TRIM(iCorrel1!U17) ->  | L36: =iCorrel1!V17 -> 
E37: =iCorrel1!N18 -> 1 | F37: =TRIM(iCorrel1!O18) -> 2.1) Availability of scientists and engineers | G37: =iCorrel1!P18 -> 0.58 | J37: =iCorrel1!T18 -> 0 | K37: =TRIM(iCorrel1!U18) ->  | L37: =iCorrel1!V18 -> 
E38: =iCorrel1!N19 -> 1 | F38: =TRIM(iCorrel1!O19) -> 4) INFRASTRUCTURE | G38: =iCorrel1!P19 -> 0.58 | J38: =iCorrel1!T19 -> 0 | K38: =TRIM(iCorrel1!U19) ->  | L38: =iCorrel1!V19 -> 
E39: =iCorrel1!N20 -> 1 | F39: =TRIM(iCorrel1!O20) -> 2.2) Mean score in science performance among 15 year-olds | G39: =iCorrel1!P20 -> 0.56 | J39: =iCorrel1!T20 -> 0 | K39: =TRIM(iCorrel1!U20) ->  | L39: =iCorrel1!V20 -> 
E40: =iCorrel1!N21 -> 1 | F40: =TRIM(iCorrel1!O21) -> 4.1) Quality of infrastructure | G40: =iCorrel1!P21 -> 0.55 | J40: =iCorrel1!T21 -> 0 | K40: =TRIM(iCorrel1!U21) ->  | L40: =iCorrel1!V21 -> 
E41: =iCorrel1!N22 -> 1 | F41: =TRIM(iCorrel1!O22) -> 2) LABOUR FORCE | G41: =iCorrel1!P22 -> 0.54 | J41: =iCorrel1!T22 -> 0 | K41: =TRIM(iCorrel1!U22) ->  | L41: =iCorrel1!V22 -> 
E42: =iCorrel1!N23 -> 1 | F42: =TRIM(iCorrel1!O23) -> 2.4) Mean score in mathematics performance among 15 year-olds | G42: =iCorrel1!P23 -> 0.54 | J42: =iCorrel1!T23 -> 0 | K42: =TRIM(iCorrel1!U23) ->  | L42: =iCorrel1!V23 -> 
E43: =iCorrel1!N24 -> 1 | F43: =TRIM(iCorrel1!O24) -> 4.3) Extent and quality of rail network | G43: =iCorrel1!P24 -> 0.54 | J43: =iCorrel1!T24 -> 0 | K43: =TRIM(iCorrel1!U24) ->  | L43: =iCorrel1!V24 -> 
E44: =iCorrel1!N25 -> 1 | F44: =TRIM(iCorrel1!O25) -> 4.5) Quality of air transport infrastructure | G44: =iCorrel1!P25 -> 0.51 | J44: =iCorrel1!T25 -> 0 | K44: =TRIM(iCorrel1!U25) ->  | L44: =iCorrel1!V25 -> 
E45: =iCorrel1!N26 -> 1 | F45: =TRIM(iCorrel1!O26) -> 5.1) Digital Adoption Index | G45: =iCorrel1!P26 -> 0.5 | J45: =iCorrel1!T26 -> 0 | K45: =TRIM(iCorrel1!U26) ->  | L45: =iCorrel1!V26 -> 
E46: =iCorrel1!N27 -> 1 | F46: =TRIM(iCorrel1!O27) -> 4.2) Extent and quality of road network | G46: =iCorrel1!P27 -> 0.49 | J46: =iCorrel1!T27 -> 0 | K46: =TRIM(iCorrel1!U27) ->  | L46: =iCorrel1!V27 -> 
E47: =iCorrel1!N28 -> 1 | F47: =TRIM(iCorrel1!O28) -> 5.2) Number of Servers | G47: =iCorrel1!P28 -> 0.46 | J47: =iCorrel1!T28 -> 0 | K47: =TRIM(iCorrel1!U28) ->  | L47: =iCorrel1!V28 -> 
E48: =iCorrel1!N29 -> 1 | F48: =TRIM(iCorrel1!O29) -> 4.4) Quality of port's infrastructure | G48: =iCorrel1!P29 -> 0.4 | J48: =iCorrel1!T29 -> 0 | K48: =TRIM(iCorrel1!U29) ->  | L48: =iCorrel1!V29 -> 
E49: =iCorrel1!N30 -> 1 | F49: =TRIM(iCorrel1!O30) -> 6.2) Safety outcomes | G49: =iCorrel1!P30 -> 0.32 | J49: =iCorrel1!T30 -> 0 | K49: =TRIM(iCorrel1!U30) ->  | L49: =iCorrel1!V30 -> 
E50: =iCorrel1!N31 -> 1 | F50: =TRIM(iCorrel1!O31) -> 2.5) Graduates in engineering disciplines (tertiary education) | G50: =iCorrel1!P31 -> 0.2 | J50: =iCorrel1!T31 -> 0 | K50: =TRIM(iCorrel1!U31) ->  | L50: =iCorrel1!V31 -> 
E51: =iCorrel1!N32 -> 1 | F51: =TRIM(iCorrel1!O32) -> 6) SAFETY STANDARDS | G51: =iCorrel1!P32 -> 0.2 | J51: =iCorrel1!T32 -> 0 | K51: =TRIM(iCorrel1!U32) ->  | L51: =iCorrel1!V32 -> 
E52: =iCorrel1!N33 -> 1 | F52: =TRIM(iCorrel1!O33) -> 3.1) Ratio of medium to large-sized engineering companies vs all of similar size | G52: =iCorrel1!P33 -> 0.08 | J52: =iCorrel1!T33 -> 0 | K52: =TRIM(iCorrel1!U33) ->  | L52: =iCorrel1!V33 -> 
E53: =iCorrel1!N34 -> 0 | F53: =TRIM(iCorrel1!O34) ->  | G53: =iCorrel1!P34 ->  | J53: =iCorrel1!T34 -> 0 | K53: =TRIM(iCorrel1!U34) ->  | L53: =iCorrel1!V34 -> 
E54: =iCorrel1!N35 -> 0 | F54: =TRIM(iCorrel1!O35) ->  | G54: =iCorrel1!P35 ->  | J54: =iCorrel1!T35 -> 0 | K54: =TRIM(iCorrel1!U35) ->  | L54: =iCorrel1!V35 -> 
E55: =iCorrel1!N36 -> 0 | F55: =TRIM(iCorrel1!O36) ->  | G55: =iCorrel1!P36 ->  | J55: =iCorrel1!T36 -> 0 | K55: =TRIM(iCorrel1!U36) ->  | L55: =iCorrel1!V36 -> 
E56: =iCorrel1!N37 -> 0 | F56: =TRIM(iCorrel1!O37) ->  | G56: =iCorrel1!P37 ->  | J56: =iCorrel1!T37 -> 0 | K56: =TRIM(iCorrel1!U37) ->  | L56: =iCorrel1!V37 -> 

Sheet Scores
N1: =uxb_works!$B$92 -> Engineering Index: 2019 | Z1: 1 | BA1: 1 | BB1: 9
Q3: 1 | R3: =Q3+1 -> 2 | S3: =R3+1 -> 3 | T3: 4 | U3: 5 | V3: 6 | W3: =V3+1 -> 7 | X3: =W3+1 -> 8 | Y3: =X3+1 -> 9 | Z3: =Y3+1 -> 10 | AA3: =Z3+1 -> 11 | AB3: =AA3+1 -> 12 | AC3: =AB3+1 -> 13 | AD3: =AC3+1 -> 14 | AE3: =AD3+1 -> 15 | AF3: =AE3+1 -> 16 | AG3: =AF3+1 -> 17 | AH3: =AG3+1 -> 18 | AI3: =AH3+1 -> 19 | AJ3: =AI3+1 -> 20 | AK3: =AJ3+1 -> 21 | AL3: =AK3+1 -> 22 | AM3: =AL3+1 -> 23 | AN3: =AM3+1 -> 24 | AO3: =AN3+1 -> 25 | AP3: =AO3+1 -> 26 | AQ3: =AP3+1 -> 27 | AR3: =AQ3+1 -> 28 | AS3: =AR3+1 -> 29 | AT3: =AS3+1 -> 30 | AU3: =AT3+1 -> 31 | AV3: =AU3+1 -> 32 | AW3: =AV3+1 -> 33 | AX3: =AW3+1 -> 34 | AY3: =AX3+1 -> 35 | AZ3: =AY3+1 -> 36 | BA3: =AZ3+1 -> 37 | BB3: =BA3+1 -> 38 | BC3: =BB3+1 -> 39 | BD3: =BC3+1 -> 40 | BE3: =BD3+1 -> 41 | BF3: =BE3+1 -> 42 | BG3: =BF3+1 -> 43 | BH3: =BG3+1 -> 44 | BI3: =BH3+1 -> 45 | BJ3: =BI3+1 -> 46 | BK3: =BJ3+1 -> 47 | BL3: =BK3+1 -> 48 | BM3: =BL3+1 -> 49 | BN3: =BM3+1 -> 50 | BO3: =BN3+1 -> 51 | BP3: =BO3+1 -> 52 | BQ3: =BP3+1 -> 53 | BR3: =BQ3+1 -> 54 | BS3: =BR3+1 -> 55 | BT3: =BS3+1 -> 56 | BU3: =BT3+1 -> 57 | BV3: =BU3+1 -> 58 | BW3: =BV3+1 -> 59 | BX3: =BW3+1 -> 60 | BY3: =BX3+1 -> 61 | BZ3: =BY3+1 -> 62 | CA3: =BZ3+1 -> 63 | CB3: =CA3+1 -> 64 | CC3: =CB3+1 -> 65 | CD3: =CC3+1 -> 66 | CE3: =CD3+1 -> 67 | CF3: =CE3+1 -> 68 | CG3: =CF3+1 -> 69 | CH3: =CG3+1 -> 70 | CI3: =CH3+1 -> 71 | CJ3: =CI3+1 -> 72 | CK3: =CJ3+1 -> 73 | CL3: =CK3+1 -> 74 | CM3: =CL3+1 -> 75 | CN3: =CM3+1 -> 76 | CO3: =CN3+1 -> 77 | CP3: =CO3+1 -> 78 | CQ3: =CP3+1 -> 79 | CR3: =CQ3+1 -> 80 | CS3: =CR3+1 -> 81 | CT3: =CS3+1 -> 82 | CU3: =CT3+1 -> 83 | CV3: =CU3+1 -> 84 | CW3: =CV3+1 -> 85 | CX3: =CW3+1 -> 86 | CY3: =CX3+1 -> 87 | CZ3: =CY3+1 -> 88 | DA3: =CZ3+1 -> 89 | DB3: =DA3+1 -> 90 | DC3: =DB3+1 -> 91 | DD3: =DC3+1 -> 92 | DE3: =DD3+1 -> 93 | DF3: =DE3+1 -> 94 | DG3: =DF3+1 -> 95 | DH3: =DG3+1 -> 96 | DI3: =DH3+1 -> 97 | DJ3: =DI3+1 -> 98 | DK3: =DJ3+1 -> 99
A4: =uxb_works!B111 -> 1 | N4: =uxb_works!O111 -> 0 | P4: 0 | Q4: =INDEX(tblTerritories!$V$3:$V$101,Scores!Q3) -> 1 | R4: =INDEX(tblTerritories!$V$3:$V$101,Scores!R3) -> 2 | S4: =INDEX(tblTerritories!$V$3:$V$101,Scores!S3) -> 3 | T4: =INDEX(tblTerritories!$V$3:$V$101,Scores!T3) -> 4 | U4: =INDEX(tblTerritories!$V$3:$V$101,Scores!U3) -> 5 | V4: =INDEX(tblTerritories!$V$3:$V$101,Scores!V3) -> 6 | W4: =INDEX(tblTerritories!$V$3:$V$101,Scores!W3) -> 7 | X4: =INDEX(tblTerritories!$V$3:$V$101,Scores!X3) -> 8 | Y4: =INDEX(tblTerritories!$V$3:$V$101,Scores!Y3) -> 9 | Z4: =INDEX(tblTerritories!$V$3:$V$101,Scores!Z3) -> 10 | AA4: =INDEX(tblTerritories!$V$3:$V$101,Scores!AA3) -> 11 | AB4: =INDEX(tblTerritories!$V$3:$V$101,Scores!AB3) -> 12 | AC4: =INDEX(tblTerritories!$V$3:$V$101,Scores!AC3) -> 13 | AD4: =INDEX(tblTerritories!$V$3:$V$101,Scores!AD3) -> 14 | AE4: =INDEX(tblTerritories!$V$3:$V$101,Scores!AE3) -> 15 | AF4: =INDEX(tblTerritories!$V$3:$V$101,Scores!AF3) -> 16 | AG4: =INDEX(tblTerritories!$V$3:$V$101,Scores!AG3) -> 17 | AH4: =INDEX(tblTerritories!$V$3:$V$101,Scores!AH3) -> 18 | AI4: =INDEX(tblTerritories!$V$3:$V$101,Scores!AI3) -> 19 | AJ4: =INDEX(tblTerritories!$V$3:$V$101,Scores!AJ3) -> 20 | AK4: =INDEX(tblTerritories!$V$3:$V$101,Scores!AK3) -> 21 | AL4: =INDEX(tblTerritories!$V$3:$V$101,Scores!AL3) -> 22 | AM4: =INDEX(tblTerritories!$V$3:$V$101,Scores!AM3) -> 23 | AN4: =INDEX(tblTerritories!$V$3:$V$101,Scores!AN3) -> 24 | AO4: =INDEX(tblTerritories!$V$3:$V$101,Scores!AO3) -> 25 | AP4: =INDEX(tblTerritories!$V$3:$V$101,Scores!AP3) -> 26 | AQ4: =INDEX(tblTerritories!$V$3:$V$101,Scores!AQ3) -> 27 | AR4: =INDEX(tblTerritories!$V$3:$V$101,Scores!AR3) -> 28 | AS4: =INDEX(tblTerritories!$V$3:$V$101,Scores!AS3) -> 29 | AT4: =INDEX(tblTerritories!$V$3:$V$101,Scores!AT3) -> 30 | AU4: =INDEX(tblTerritories!$V$3:$V$101,Scores!AU3) -> 31 | AV4: =INDEX(tblTerritories!$V$3:$V$101,Scores!AV3) -> 32 | AW4: =INDEX(tblTerritories!$V$3:$V$101,Scores!AW3) -> 33 | AX4: =INDEX(tblTerritories!$V$3:$V$101,Scores!AX3) -> 34 | AY4: =INDEX(tblTerritories!$V$3:$V$101,Scores!AY3) -> 35 | AZ4: =INDEX(tblTerritories!$V$3:$V$101,Scores!AZ3) -> 36 | BA4: =INDEX(tblTerritories!$V$3:$V$101,Scores!BA3) -> 37 | BB4: =INDEX(tblTerritories!$V$3:$V$101,Scores!BB3) -> 38 | BC4: =INDEX(tblTerritories!$V$3:$V$101,Scores!BC3) -> 39 | BD4: =INDEX(tblTerritories!$V$3:$V$101,Scores!BD3) -> 40 | BE4: =INDEX(tblTerritories!$V$3:$V$101,Scores!BE3) -> 41 | BF4: =INDEX(tblTerritories!$V$3:$V$101,Scores!BF3) -> 42 | BG4: =INDEX(tblTerritories!$V$3:$V$101,Scores!BG3) -> 43 | BH4: =INDEX(tblTerritories!$V$3:$V$101,Scores!BH3) -> 44 | BI4: =INDEX(tblTerritories!$V$3:$V$101,Scores!BI3) -> 45 | BJ4: =INDEX(tblTerritories!$V$3:$V$101,Scores!BJ3) -> 46 | BK4: =INDEX(tblTerritories!$V$3:$V$101,Scores!BK3) -> 47 | BL4: =INDEX(tblTerritories!$V$3:$V$101,Scores!BL3) -> 48 | BM4: =INDEX(tblTerritories!$V$3:$V$101,Scores!BM3) -> 49 | BN4: =INDEX(tblTerritories!$V$3:$V$101,Scores!BN3) -> 50 | BO4: =INDEX(tblTerritories!$V$3:$V$101,Scores!BO3) -> 51 | BP4: =INDEX(tblTerritories!$V$3:$V$101,Scores!BP3) -> 52 | BQ4: =INDEX(tblTerritories!$V$3:$V$101,Scores!BQ3) -> 53 | BR4: =INDEX(tblTerritories!$V$3:$V$101,Scores!BR3) -> 54 | BS4: =INDEX(tblTerritories!$V$3:$V$101,Scores!BS3) -> 55 | BT4: =INDEX(tblTerritories!$V$3:$V$101,Scores!BT3) -> 56 | BU4: =INDEX(tblTerritories!$V$3:$V$101,Scores!BU3) -> 57 | BV4: =INDEX(tblTerritories!$V$3:$V$101,Scores!BV3) -> 58 | BW4: =INDEX(tblTerritories!$V$3:$V$101,Scores!BW3) -> 59 | BX4: =INDEX(tblTerritories!$V$3:$V$101,Scores!BX3) -> 60 | BY4: =INDEX(tblTerritories!$V$3:$V$101,Scores!BY3) -> 61 | BZ4: =INDEX(tblTerritories!$V$3:$V$101,Scores!BZ3) -> 62 | CA4: =INDEX(tblTerritories!$V$3:$V$101,Scores!CA3) -> 63 | CB4: =INDEX(tblTerritories!$V$3:$V$101,Scores!CB3) -> 64 | CC4: =INDEX(tblTerritories!$V$3:$V$101,Scores!CC3) -> 65 | CD4: =INDEX(tblTerritories!$V$3:$V$101,Scores!CD3) -> 66 | CE4: =INDEX(tblTerritories!$V$3:$V$101,Scores!CE3) -> 67 | CF4: =INDEX(tblTerritories!$V$3:$V$101,Scores!CF3) -> 68 | CG4: =INDEX(tblTerritories!$V$3:$V$101,Scores!CG3) -> 69 | CH4: =INDEX(tblTerritories!$V$3:$V$101,Scores!CH3) -> 70 | CI4: =INDEX(tblTerritories!$V$3:$V$101,Scores!CI3) -> 71 | CJ4: =INDEX(tblTerritories!$V$3:$V$101,Scores!CJ3) -> 72 | CK4: =INDEX(tblTerritories!$V$3:$V$101,Scores!CK3) -> 73 | CL4: =INDEX(tblTerritories!$V$3:$V$101,Scores!CL3) -> 74 | CM4: =INDEX(tblTerritories!$V$3:$V$101,Scores!CM3) -> 75 | CN4: =INDEX(tblTerritories!$V$3:$V$101,Scores!CN3) -> 76 | CO4: =INDEX(tblTerritories!$V$3:$V$101,Scores!CO3) -> 77 | CP4: =INDEX(tblTerritories!$V$3:$V$101,Scores!CP3) -> 78 | CQ4: =INDEX(tblTerritories!$V$3:$V$101,Scores!CQ3) -> 79 | CR4: =INDEX(tblTerritories!$V$3:$V$101,Scores!CR3) -> 80 | CS4: =INDEX(tblTerritories!$V$3:$V$101,Scores!CS3) -> 81 | CT4: =INDEX(tblTerritories!$V$3:$V$101,Scores!CT3) -> 82 | CU4: =INDEX(tblTerritories!$V$3:$V$101,Scores!CU3) -> 83 | CV4: =INDEX(tblTerritories!$V$3:$V$101,Scores!CV3) -> 84 | CW4: =INDEX(tblTerritories!$V$3:$V$101,Scores!CW3) -> 85 | CX4: =INDEX(tblTerritories!$V$3:$V$101,Scores!CX3) -> 86 | CY4: =INDEX(tblTerritories!$V$3:$V$101,Scores!CY3) -> 87 | CZ4: =INDEX(tblTerritories!$V$3:$V$101,Scores!CZ3) -> 88 | DA4: =INDEX(tblTerritories!$V$3:$V$101,Scores!DA3) -> 89 | DB4: =INDEX(tblTerritories!$V$3:$V$101,Scores!DB3) -> 90 | DC4: =INDEX(tblTerritories!$V$3:$V$101,Scores!DC3) -> 91 | DD4: =INDEX(tblTerritories!$V$3:$V$101,Scores!DD3) -> 92 | DE4: =INDEX(tblTerritories!$V$3:$V$101,Scores!DE3) -> 93 | DF4: =INDEX(tblTerritories!$V$3:$V$101,Scores!DF3) -> 94 | DG4: =INDEX(tblTerritories!$V$3:$V$101,Scores!DG3) -> 95 | DH4: =INDEX(tblTerritories!$V$3:$V$101,Scores!DH3) -> 96 | DI4: =INDEX(tblTerritories!$V$3:$V$101,Scores!DI3) -> 97 | DJ4: =INDEX(tblTerritories!$V$3:$V$101,Scores!DJ3) -> 98 | DK4: =INDEX(tblTerritories!$V$3:$V$101,Scores!DK3) -> 99
C6: =iWeights1!#REF! ->  | N6: =uxb_works!C5 -> The active weight profile has been changed from its default setting
N8: =uxb_works!D67 -> <no filter> -I- No. of countries in this group: 99
B10: =tblIndicators!A1 -> line | F10: =tblIndicators!G1 -> DEPTH | H10: =tblIndicators!AC1 -> Format | K10: =SUM(K11:K40) -> 30 | N10: Indicators | O10: =CHOOSE(uxb_works!$B$47,"Unit","Weight") -> Weight | P10: Source | Q10: =IF(Q$4="","",INDEX(tblTerritories!$C$3:$C$101,Q$4)) -> Albania | R10: =IF(R$4="","",INDEX(tblTerritories!$C$3:$C$101,R$4)) -> Algeria | S10: =IF(S$4="","",INDEX(tblTerritories!$C$3:$C$101,S$4)) -> Argentina | T10: =IF(T$4="","",INDEX(tblTerritories!$C$3:$C$101,T$4)) -> Armenia | U10: =IF(U$4="","",INDEX(tblTerritories!$C$3:$C$101,U$4)) -> Australia | V10: =IF(V$4="","",INDEX(tblTerritories!$C$3:$C$101,V$4)) -> Austria | W10: =IF(W$4="","",INDEX(tblTerritories!$C$3:$C$101,W$4)) -> Azerbaijan | X10: =IF(X$4="","",INDEX(tblTerritories!$C$3:$C$101,X$4)) -> Bahrain | Y10: =IF(Y$4="","",INDEX(tblTerritories!$C$3:$C$101,Y$4)) -> Bangladesh | Z10: =IF(Z$4="","",INDEX(tblTerritories!$C$3:$C$101,Z$4)) -> Belgium | AA10: =IF(AA$4="","",INDEX(tblTerritories!$C$3:$C$101,AA$4)) -> Benin | AB10: =IF(AB$4="","",INDEX(tblTerritories!$C$3:$C$101,AB$4)) -> Bosnia and Herzegovina | AC10: =IF(AC$4="","",INDEX(tblTerritories!$C$3:$C$101,AC$4)) -> Brazil | AD10: =IF(AD$4="","",INDEX(tblTerritories!$C$3:$C$101,AD$4)) -> Bulgaria | AE10: =IF(AE$4="","",INDEX(tblTerritories!$C$3:$C$101,AE$4)) -> Burundi | AF10: =IF(AF$4="","",INDEX(tblTerritories!$C$3:$C$101,AF$4)) -> Canada | AG10: =IF(AG$4="","",INDEX(tblTerritories!$C$3:$C$101,AG$4)) -> Chile | AH10: =IF(AH$4="","",INDEX(tblTerritories!$C$3:$C$101,AH$4)) -> China | AI10: =IF(AI$4="","",INDEX(tblTerritories!$C$3:$C$101,AI$4)) -> Colombia | AJ10: =IF(AJ$4="","",INDEX(tblTerritories!$C$3:$C$101,AJ$4)) -> Costa Rica | AK10: =IF(AK$4="","",INDEX(tblTerritories!$C$3:$C$101,AK$4)) -> Croatia | AL10: =IF(AL$4="","",INDEX(tblTerritories!$C$3:$C$101,AL$4)) -> Cyprus | AM10: =IF(AM$4="","",INDEX(tblTerritories!$C$3:$C$101,AM$4)) -> Czech Republic | AN10: =IF(AN$4="","",INDEX(tblTerritories!$C$3:$C$101,AN$4)) -> Denmark | AO10: =IF(AO$4="","",INDEX(tblTerritories!$C$3:$C$101,AO$4)) -> Dominican Republic | AP10: =IF(AP$4="","",INDEX(tblTerritories!$C$3:$C$101,AP$4)) -> Ecuador | AQ10: =IF(AQ$4="","",INDEX(tblTerritories!$C$3:$C$101,AQ$4)) -> Egypt | AR10: =IF(AR$4="","",INDEX(tblTerritories!$C$3:$C$101,AR$4)) -> El Salvador | AS10: =IF(AS$4="","",INDEX(tblTerritories!$C$3:$C$101,AS$4)) -> Estonia | AT10: =IF(AT$4="","",INDEX(tblTerritories!$C$3:$C$101,AT$4)) -> Ethiopia | AU10: =IF(AU$4="","",INDEX(tblTerritories!$C$3:$C$101,AU$4)) -> Finland | AV10: =IF(AV$4="","",INDEX(tblTerritories!$C$3:$C$101,AV$4)) -> France | AW10: =IF(AW$4="","",INDEX(tblTerritories!$C$3:$C$101,AW$4)) -> Georgia | AX10: =IF(AX$4="","",INDEX(tblTerritories!$C$3:$C$101,AX$4)) -> Germany | AY10: =IF(AY$4="","",INDEX(tblTerritories!$C$3:$C$101,AY$4)) -> Ghana | AZ10: =IF(AZ$4="","",INDEX(tblTerritories!$C$3:$C$101,AZ$4)) -> Greece | BA10: =IF(BA$4="","",INDEX(tblTerritories!$C$3:$C$101,BA$4)) -> Guyana | BB10: =IF(BB$4="","",INDEX(tblTerritories!$C$3:$C$101,BB$4)) -> Honduras | BC10: =IF(BC$4="","",INDEX(tblTerritories!$C$3:$C$101,BC$4)) -> Hong Kong | BD10: =IF(BD$4="","",INDEX(tblTerritories!$C$3:$C$101,BD$4)) -> Hungary | BE10: =IF(BE$4="","",INDEX(tblTerritories!$C$3:$C$101,BE$4)) -> Iceland | BF10: =IF(BF$4="","",INDEX(tblTerritories!$C$3:$C$101,BF$4)) -> India | BG10: =IF(BG$4="","",INDEX(tblTerritories!$C$3:$C$101,BG$4)) -> Indonesia | BH10: =IF(BH$4="","",INDEX(tblTerritories!$C$3:$C$101,BH$4)) -> Iran | BI10: =IF(BI$4="","",INDEX(tblTerritories!$C$3:$C$101,BI$4)) -> Ireland | BJ10: =IF(BJ$4="","",INDEX(tblTerritories!$C$3:$C$101,BJ$4)) -> Italy | BK10: =IF(BK$4="","",INDEX(tblTerritories!$C$3:$C$101,BK$4)) -> Japan | BL10: =IF(BL$4="","",INDEX(tblTerritories!$C$3:$C$101,BL$4)) -> Jordan | BM10: =IF(BM$4="","",INDEX(tblTerritories!$C$3:$C$101,BM$4)) -> Kazakhstan | BN10: =IF(BN$4="","",INDEX(tblTerritories!$C$3:$C$101,BN$4)) -> Kuwait | BO10: =IF(BO$4="","",INDEX(tblTerritories!$C$3:$C$101,BO$4)) -> Laos | BP10: =IF(BP$4="","",INDEX(tblTerritories!$C$3:$C$101,BP$4)) -> Latvia | BQ10: =IF(BQ$4="","",INDEX(tblTerritories!$C$3:$C$101,BQ$4)) -> Lebanon | BR10: =IF(BR$4="","",INDEX(tblTerritories!$C$3:$C$101,BR$4)) -> Lithuania | BS10: =IF(BS$4="","",INDEX(tblTerritories!$C$3:$C$101,BS$4)) -> Luxembourg | BT10: =IF(BT$4="","",INDEX(tblTerritories!$C$3:$C$101,BT$4)) -> Madagascar | BU10: =IF(BU$4="","",INDEX(tblTerritories!$C$3:$C$101,BU$4)) -> Malaysia | BV10: =IF(BV$4="","",INDEX(tblTerritories!$C$3:$C$101,BV$4)) -> Malta | BW10: =IF(BW$4="","",INDEX(tblTerritories!$C$3:$C$101,BW$4)) -> Mauritius | BX10: =IF(BX$4="","",INDEX(tblTerritories!$C$3:$C$101,BX$4)) -> Mexico | BY10: =IF(BY$4="","",INDEX(tblTerritories!$C$3:$C$101,BY$4)) -> Mongolia | BZ10: =IF(BZ$4="","",INDEX(tblTerritories!$C$3:$C$101,BZ$4)) -> Morocco | CA10: =IF(CA$4="","",INDEX(tblTerritories!$C$3:$C$101,CA$4)) -> Mozambique | CB10: =IF(CB$4="","",INDEX(tblTerritories!$C$3:$C$101,CB$4)) -> Myanmar | CC10: =IF(CC$4="","",INDEX(tblTerritories!$C$3:$C$101,CC$4)) -> Nepal | CD10: =IF(CD$4="","",INDEX(tblTerritories!$C$3:$C$101,CD$4)) -> Netherlands | CE10: =IF(CE$4="","",INDEX(tblTerritories!$C$3:$C$101,CE$4)) -> New Zealand | CF10: =IF(CF$4="","",INDEX(tblTerritories!$C$3:$C$101,CF$4)) -> Nigeria | CG10: =IF(CG$4="","",INDEX(tblTerritories!$C$3:$C$101,CG$4)) -> Norway | CH10: =IF(CH$4="","",INDEX(tblTerritories!$C$3:$C$101,CH$4)) -> Oman | CI10: =IF(CI$4="","",INDEX(tblTerritories!$C$3:$C$101,CI$4)) -> Panama | CJ10: =IF(CJ$4="","",INDEX(tblTerritories!$C$3:$C$101,CJ$4)) -> Peru | CK10: =IF(CK$4="","",INDEX(tblTerritories!$C$3:$C$101,CK$4)) -> Philippines | CL10: =IF(CL$4="","",INDEX(tblTerritories!$C$3:$C$101,CL$4)) -> Poland | CM10: =IF(CM$4="","",INDEX(tblTerritories!$C$3:$C$101,CM$4)) -> Portugal | CN10: =IF(CN$4="","",INDEX(tblTerritories!$C$3:$C$101,CN$4)) -> Qatar | CO10: =IF(CO$4="","",INDEX(tblTerritories!$C$3:$C$101,CO$4)) -> Republic of Korea | CP10: =IF(CP$4="","",INDEX(tblTerritories!$C$3:$C$101,CP$4)) -> Romania | CQ10: =IF(CQ$4="","",INDEX(tblTerritories!$C$3:$C$101,CQ$4)) -> Russian Federation | CR10: =IF(CR$4="","",INDEX(tblTerritories!$C$3:$C$101,CR$4)) -> Rwanda | CS10: =IF(CS$4="","",INDEX(tblTerritories!$C$3:$C$101,CS$4)) -> Saudi Arabia | CT10: =IF(CT$4="","",INDEX(tblTerritories!$C$3:$C$101,CT$4)) -> Serbia | CU10: =IF(CU$4="","",INDEX(tblTerritories!$C$3:$C$101,CU$4)) -> Singapore | CV10: =IF(CV$4="","",INDEX(tblTerritories!$C$3:$C$101,CV$4)) -> Slovakia | CW10: =IF(CW$4="","",INDEX(tblTerritories!$C$3:$C$101,CW$4)) -> Slovenia | CX10: =IF(CX$4="","",INDEX(tblTerritories!$C$3:$C$101,CX$4)) -> South Africa | CY10: =IF(CY$4="","",INDEX(tblTerritories!$C$3:$C$101,CY$4)) -> Spain | CZ10: =IF(CZ$4="","",INDEX(tblTerritories!$C$3:$C$101,CZ$4)) -> Sri Lanka | DA10: =IF(DA$4="","",INDEX(tblTerritories!$C$3:$C$101,DA$4)) -> Sweden | DB10: =IF(DB$4="","",INDEX(tblTerritories!$C$3:$C$101,DB$4)) -> Switzerland | DC10: =IF(DC$4="","",INDEX(tblTerritories!$C$3:$C$101,DC$4)) -> Thailand | DD10: =IF(DD$4="","",INDEX(tblTerritories!$C$3:$C$101,DD$4)) -> Tunisia | DE10: =IF(DE$4="","",INDEX(tblTerritories!$C$3:$C$101,DE$4)) -> Turkey | DF10: =IF(DF$4="","",INDEX(tblTerritories!$C$3:$C$101,DF$4)) -> Ukraine | DG10: =IF(DG$4="","",INDEX(tblTerritories!$C$3:$C$101,DG$4)) -> UAE | DH10: =IF(DH$4="","",INDEX(tblTerritories!$C$3:$C$101,DH$4)) -> United Kingdom | DI10: =IF(DI$4="","",INDEX(tblTerritories!$C$3:$C$101,DI$4)) -> United States | DJ10: =IF(DJ$4="","",INDEX(tblTerritories!$C$3:$C$101,DJ$4)) -> Uruguay | DK10: =IF(DK$4="","",INDEX(tblTerritories!$C$3:$C$101,DK$4)) -> Viet Nam
B11: =tblIndicators!A2 -> 1 | F11: 5 | H11: =tblIndicators!AC2 -> #,##0.0 | K11: =IF(uxb_works!$B$46>=L11,1,0) -> 1 | L11: =tblIndicators!G2 -> 0 | N11: =iScores!N6 -> CATEGORY | P11: =IF(tblIndicators!T2="","",IF(AND(uxb_works!$B$47=1,OR(F11=5,Scores!F11<=2)),"",tblIndicators!T2)) ->  | Q11: =IF(Q$4="","",CHOOSE(uxb_works!$B$47,IF(INDEX(aData,$B11,Q$4)="","-",TEXT(INDEX(aData,$B11,Q$4),$H11)),INDEX(aScoresRounded,$B11,Q$4))) -> 0 | R11: =IF(R$4="","",CHOOSE(uxb_works!$B$47,IF(INDEX(aData,$B11,R$4)="","-",TEXT(INDEX(aData,$B11,R$4),$H11)),INDEX(aScoresRounded,$B11,R$4))) -> 0 | S11: =IF(S$4="","",CHOOSE(uxb_works!$B$47,IF(INDEX(aData,$B11,S$4)="","-",TEXT(INDEX(aData,$B11,S$4),$H11)),INDEX(aScoresRounded,$B11,S$4))) -> 0 | T11: =IF(T$4="","",CHOOSE(uxb_works!$B$47,IF(INDEX(aData,$B11,T$4)="","-",TEXT(INDEX(aData,$B11,T$4),$H11)),INDEX(aScoresRounded,$B11,T$4))) -> 0 | U11: =IF(U$4="","",CHOOSE(uxb_works!$B$47,IF(INDEX(aData,$B11,U$4)="","-",TEXT(INDEX(aData,$B11,U$4),$H11)),INDEX(aScoresRounded,$B11,U$4))) -> 0 | V11: =IF(V$4="","",CHOOSE(uxb_works!$B$47,IF(INDEX(aData,$B11,V$4)="","-",TEXT(INDEX(aData,$B11,V$4),$H11)),INDEX(aScoresRounded,$B11,V$4))) -> 0 | W11: =IF(W$4="","",CHOOSE(uxb_works!$B$47,IF(INDEX(aData,$B11,W$4)="","-",TEXT(INDEX(aData,$B11,W$4),$H11)),INDEX(aScoresRounded,$B11,W$4))) -> 0 | X11: =IF(X$4="","",CHOOSE(uxb_works!$B$47,IF(INDEX(aData,$B11,X$4)="","-",TEXT(INDEX(aData,$B11,X$4),$H11)),INDEX(aScoresRounded,$B11,X$4))) -> 0 | Y11: =IF(Y$4="","",CHOOSE(uxb_works!$B$47,IF(INDEX(aData,$B11,Y$4)="","-",TEXT(INDEX(aData,$B11,Y$4),$H11)),INDEX(aScoresRounded,$B11,Y$4))) -> 0 | Z11: =IF(Z$4="","",CHOOSE(uxb_works!$B$47,IF(INDEX(aData,$B11,Z$4)="","-",TEXT(INDEX(aData,$B11,Z$4),$H11)),INDEX(aScoresRounded,$B11,Z$4))) -> 0 | AA11: =IF(AA$4="","",CHOOSE(uxb_works!$B$47,IF(INDEX(aData,$B11,AA$4)="","-",TEXT(INDEX(aData,$B11,AA$4),$H11)),INDEX(aScoresRounded,$B11,AA$4))) -> 0 | AB11: =IF(AB$4="","",CHOOSE(uxb_works!$B$47,IF(INDEX(aData,$B11,AB$4)="","-",TEXT(INDEX(aData,$B11,AB$4),$H11)),INDEX(aScoresRounded,$B11,AB$4))) -> 0 | AC11: =IF(AC$4="","",CHOOSE(uxb_works!$B$47,IF(INDEX(aData,$B11,AC$4)="","-",TEXT(INDEX(aData,$B11,AC$4),$H11)),INDEX(aScoresRounded,$B11,AC$4))) -> 0 | AD11: =IF(AD$4="","",CHOOSE(uxb_works!$B$47,IF(INDEX(aData,$B11,AD$4)="","-",TEXT(INDEX(aData,$B11,AD$4),$H11)),INDEX(aScoresRounded,$B11,AD$4))) -> 0 | AE11: =IF(AE$4="","",CHOOSE(uxb_works!$B$47,IF(INDEX(aData,$B11,AE$4)="","-",TEXT(INDEX(aData,$B11,AE$4),$H11)),INDEX(aScoresRounded,$B11,AE$4))) -> 0 | AF11: =IF(AF$4="","",CHOOSE(uxb_works!$B$47,IF(INDEX(aData,$B11,AF$4)="","-",TEXT(INDEX(aData,$B11,AF$4),$H11)),INDEX(aScoresRounded,$B11,AF$4))) -> 0 | AG11: =IF(AG$4="","",CHOOSE(uxb_works!$B$47,IF(INDEX(aData,$B11,AG$4)="","-",TEXT(INDEX(aData,$B11,AG$4),$H11)),INDEX(aScoresRounded,$B11,AG$4))) -> 0 | AH11: =IF(AH$4="","",CHOOSE(uxb_works!$B$47,IF(INDEX(aData,$B11,AH$4)="","-",TEXT(INDEX(aData,$B11,AH$4),$H11)),INDEX(aScoresRounded,$B11,AH$4))) -> 0 | AI11: =IF(AI$4="","",CHOOSE(uxb_works!$B$47,IF(INDEX(aData,$B11,AI$4)="","-",TEXT(INDEX(aData,$B11,AI$4),$H11)),INDEX(aScoresRounded,$B11,AI$4))) -> 0 | AJ11: =IF(AJ$4="","",CHOOSE(uxb_works!$B$47,IF(INDEX(aData,$B11,AJ$4)="","-",TEXT(INDEX(aData,$B11,AJ$4),$H11)),INDEX(aScoresRounded,$B11,AJ$4))) -> 0 | AK11: =IF(AK$4="","",CHOOSE(uxb_works!$B$47,IF(INDEX(aData,$B11,AK$4)="","-",TEXT(INDEX(aData,$B11,AK$4),$H11)),INDEX(aScoresRounded,$B11,AK$4))) -> 0 | AL11: =IF(AL$4="","",CHOOSE(uxb_works!$B$47,IF(INDEX(aData,$B11,AL$4)="","-",TEXT(INDEX(aData,$B11,AL$4),$H11)),INDEX(aScoresRounded,$B11,AL$4))) -> 0 | AM11: =IF(AM$4="","",CHOOSE(uxb_works!$B$47,IF(INDEX(aData,$B11,AM$4)="","-",TEXT(INDEX(aData,$B11,AM$4),$H11)),INDEX(aScoresRounded,$B11,AM$4))) -> 0 | AN11: =IF(AN$4="","",CHOOSE(uxb_works!$B$47,IF(INDEX(aData,$B11,AN$4)="","-",TEXT(INDEX(aData,$B11,AN$4),$H11)),INDEX(aScoresRounded,$B11,AN$4))) -> 0 | AO11: =IF(AO$4="","",CHOOSE(uxb_works!$B$47,IF(INDEX(aData,$B11,AO$4)="","-",TEXT(INDEX(aData,$B11,AO$4),$H11)),INDEX(aScoresRounded,$B11,AO$4))) -> 0 | AP11: =IF(AP$4="","",CHOOSE(uxb_works!$B$47,IF(INDEX(aData,$B11,AP$4)="","-",TEXT(INDEX(aData,$B11,AP$4),$H11)),INDEX(aScoresRounded,$B11,AP$4))) -> 0 | AQ11: =IF(AQ$4="","",CHOOSE(uxb_works!$B$47,IF(INDEX(aData,$B11,AQ$4)="","-",TEXT(INDEX(aData,$B11,AQ$4),$H11)),INDEX(aScoresRounded,$B11,AQ$4))) -> 0 | AR11: =IF(AR$4="","",CHOOSE(uxb_works!$B$47,IF(INDEX(aData,$B11,AR$4)="","-",TEXT(INDEX(aData,$B11,AR$4),$H11)),INDEX(aScoresRounded,$B11,AR$4))) -> 0 | AS11: =IF(AS$4="","",CHOOSE(uxb_works!$B$47,IF(INDEX(aData,$B11,AS$4)="","-",TEXT(INDEX(aData,$B11,AS$4),$H11)),INDEX(aScoresRounded,$B11,AS$4))) -> 0 | AT11: =IF(AT$4="","",CHOOSE(uxb_works!$B$47,IF(INDEX(aData,$B11,AT$4)="","-",TEXT(INDEX(aData,$B11,AT$4),$H11)),INDEX(aScoresRounded,$B11,AT$4))) -> 0 | AU11: =IF(AU$4="","",CHOOSE(uxb_works!$B$47,IF(INDEX(aData,$B11,AU$4)="","-",TEXT(INDEX(aData,$B11,AU$4),$H11)),INDEX(aScoresRounded,$B11,AU$4))) -> 0 | AV11: =IF(AV$4="","",CHOOSE(uxb_works!$B$47,IF(INDEX(aData,$B11,AV$4)="","-",TEXT(INDEX(aData,$B11,AV$4),$H11)),INDEX(aScoresRounded,$B11,AV$4))) -> 0 | AW11: =IF(AW$4="","",CHOOSE(uxb_works!$B$47,IF(INDEX(aData,$B11,AW$4)="","-",TEXT(INDEX(aData,$B11,AW$4),$H11)),INDEX(aScoresRounded,$B11,AW$4))) -> 0 | AX11: =IF(AX$4="","",CHOOSE(uxb_works!$B$47,IF(INDEX(aData,$B11,AX$4)="","-",TEXT(INDEX(aData,$B11,AX$4),$H11)),INDEX(aScoresRounded,$B11,AX$4))) -> 0 | AY11: =IF(AY$4="","",CHOOSE(uxb_works!$B$47,IF(INDEX(aData,$B11,AY$4)="","-",TEXT(INDEX(aData,$B11,AY$4),$H11)),INDEX(aScoresRounded,$B11,AY$4))) -> 0 | AZ11: =IF(AZ$4="","",CHOOSE(uxb_works!$B$47,IF(INDEX(aData,$B11,AZ$4)="","-",TEXT(INDEX(aData,$B11,AZ$4),$H11)),INDEX(aScoresRounded,$B11,AZ$4))) -> 0 | BA11: =IF(BA$4="","",CHOOSE(uxb_works!$B$47,IF(INDEX(aData,$B11,BA$4)="","-",TEXT(INDEX(aData,$B11,BA$4),$H11)),INDEX(aScoresRounded,$B11,BA$4))) -> 0 | BB11: =IF(BB$4="","",CHOOSE(uxb_works!$B$47,IF(INDEX(aData,$B11,BB$4)="","-",TEXT(INDEX(aData,$B11,BB$4),$H11)),INDEX(aScoresRounded,$B11,BB$4))) -> 0 | BC11: =IF(BC$4="","",CHOOSE(uxb_works!$B$47,IF(INDEX(aData,$B11,BC$4)="","-",TEXT(INDEX(aData,$B11,BC$4),$H11)),INDEX(aScoresRounded,$B11,BC$4))) -> 0 | BD11: =IF(BD$4="","",CHOOSE(uxb_works!$B$47,IF(INDEX(aData,$B11,BD$4)="","-",TEXT(INDEX(aData,$B11,BD$4),$H11)),INDEX(aScoresRounded,$B11,BD$4))) -> 0 | BE11: =IF(BE$4="","",CHOOSE(uxb_works!$B$47,IF(INDEX(aData,$B11,BE$4)="","-",TEXT(INDEX(aData,$B11,BE$4),$H11)),INDEX(aScoresRounded,$B11,BE$4))) -> 0 | BF11: =IF(BF$4="","",CHOOSE(uxb_works!$B$47,IF(INDEX(aData,$B11,BF$4)="","-",TEXT(INDEX(aData,$B11,BF$4),$H11)),INDEX(aScoresRounded,$B11,BF$4))) -> 0 | BG11: =IF(BG$4="","",CHOOSE(uxb_works!$B$47,IF(INDEX(aData,$B11,BG$4)="","-",TEXT(INDEX(aData,$B11,BG$4),$H11)),INDEX(aScoresRounded,$B11,BG$4))) -> 0 | BH11: =IF(BH$4="","",CHOOSE(uxb_works!$B$47,IF(INDEX(aData,$B11,BH$4)="","-",TEXT(INDEX(aData,$B11,BH$4),$H11)),INDEX(aScoresRounded,$B11,BH$4))) -> 0 | BI11: =IF(BI$4="","",CHOOSE(uxb_works!$B$47,IF(INDEX(aData,$B11,BI$4)="","-",TEXT(INDEX(aData,$B11,BI$4),$H11)),INDEX(aScoresRounded,$B11,BI$4))) -> 0 | BJ11: =IF(BJ$4="","",CHOOSE(uxb_works!$B$47,IF(INDEX(aData,$B11,BJ$4)="","-",TEXT(INDEX(aData,$B11,BJ$4),$H11)),INDEX(aScoresRounded,$B11,BJ$4))) -> 0 | BK11: =IF(BK$4="","",CHOOSE(uxb_works!$B$47,IF(INDEX(aData,$B11,BK$4)="","-",TEXT(INDEX(aData,$B11,BK$4),$H11)),INDEX(aScoresRounded,$B11,BK$4))) -> 0 | BL11: =IF(BL$4="","",CHOOSE(uxb_works!$B$47,IF(INDEX(aData,$B11,BL$4)="","-",TEXT(INDEX(aData,$B11,BL$4),$H11)),INDEX(aScoresRounded,$B11,BL$4))) -> 0 | BM11: =IF(BM$4="","",CHOOSE(uxb_works!$B$47,IF(INDEX(aData,$B11,BM$4)="","-",TEXT(INDEX(aData,$B11,BM$4),$H11)),INDEX(aScoresRounded,$B11,BM$4))) -> 0 | BN11: =IF(BN$4="","",CHOOSE(uxb_works!$B$47,IF(INDEX(aData,$B11,BN$4)="","-",TEXT(INDEX(aData,$B11,BN$4),$H11)),INDEX(aScoresRounded,$B11,BN$4))) -> 0 | BO11: =IF(BO$4="","",CHOOSE(uxb_works!$B$47,IF(INDEX(aData,$B11,BO$4)="","-",TEXT(INDEX(aData,$B11,BO$4),$H11)),INDEX(aScoresRounded,$B11,BO$4))) -> 0 | BP11: =IF(BP$4="","",CHOOSE(uxb_works!$B$47,IF(INDEX(aData,$B11,BP$4)="","-",TEXT(INDEX(aData,$B11,BP$4),$H11)),INDEX(aScoresRounded,$B11,BP$4))) -> 0 | BQ11: =IF(BQ$4="","",CHOOSE(uxb_works!$B$47,IF(INDEX(aData,$B11,BQ$4)="","-",TEXT(INDEX(aData,$B11,BQ$4),$H11)),INDEX(aScoresRounded,$B11,BQ$4))) -> 0 | BR11: =IF(BR$4="","",CHOOSE(uxb_works!$B$47,IF(INDEX(aData,$B11,BR$4)="","-",TEXT(INDEX(aData,$B11,BR$4),$H11)),INDEX(aScoresRounded,$B11,BR$4))) -> 0 | BS11: =IF(BS$4="","",CHOOSE(uxb_works!$B$47,IF(INDEX(aData,$B11,BS$4)="","-",TEXT(INDEX(aData,$B11,BS$4),$H11)),INDEX(aScoresRounded,$B11,BS$4))) -> 0 | BT11: =IF(BT$4="","",CHOOSE(uxb_works!$B$47,IF(INDEX(aData,$B11,BT$4)="","-",TEXT(INDEX(aData,$B11,BT$4),$H11)),INDEX(aScoresRounded,$B11,BT$4))) -> 0 | BU11: =IF(BU$4="","",CHOOSE(uxb_works!$B$47,IF(INDEX(aData,$B11,BU$4)="","-",TEXT(INDEX(aData,$B11,BU$4),$H11)),INDEX(aScoresRounded,$B11,BU$4))) -> 0 | BV11: =IF(BV$4="","",CHOOSE(uxb_works!$B$47,IF(INDEX(aData,$B11,BV$4)="","-",TEXT(INDEX(aData,$B11,BV$4),$H11)),INDEX(aScoresRounded,$B11,BV$4))) -> 0 | BW11: =IF(BW$4="","",CHOOSE(uxb_works!$B$47,IF(INDEX(aData,$B11,BW$4)="","-",TEXT(INDEX(aData,$B11,BW$4),$H11)),INDEX(aScoresRounded,$B11,BW$4))) -> 0 | BX11: =IF(BX$4="","",CHOOSE(uxb_works!$B$47,IF(INDEX(aData,$B11,BX$4)="","-",TEXT(INDEX(aData,$B11,BX$4),$H11)),INDEX(aScoresRounded,$B11,BX$4))) -> 0 | BY11: =IF(BY$4="","",CHOOSE(uxb_works!$B$47,IF(INDEX(aData,$B11,BY$4)="","-",TEXT(INDEX(aData,$B11,BY$4),$H11)),INDEX(aScoresRounded,$B11,BY$4))) -> 0 | BZ11: =IF(BZ$4="","",CHOOSE(uxb_works!$B$47,IF(INDEX(aData,$B11,BZ$4)="","-",TEXT(INDEX(aData,$B11,BZ$4),$H11)),INDEX(aScoresRounded,$B11,BZ$4))) -> 0 | CA11: =IF(CA$4="","",CHOOSE(uxb_works!$B$47,IF(INDEX(aData,$B11,CA$4)="","-",TEXT(INDEX(aData,$B11,CA$4),$H11)),INDEX(aScoresRounded,$B11,CA$4))) -> 0 | CB11: =IF(CB$4="","",CHOOSE(uxb_works!$B$47,IF(INDEX(aData,$B11,CB$4)="","-",TEXT(INDEX(aData,$B11,CB$4),$H11)),INDEX(aScoresRounded,$B11,CB$4))) -> 0 | CC11: =IF(CC$4="","",CHOOSE(uxb_works!$B$47,IF(INDEX(aData,$B11,CC$4)="","-",TEXT(INDEX(aData,$B11,CC$4),$H11)),INDEX(aScoresRounded,$B11,CC$4))) -> 0 | CD11: =IF(CD$4="","",CHOOSE(uxb_works!$B$47,IF(INDEX(aData,$B11,CD$4)="","-",TEXT(INDEX(aData,$B11,CD$4),$H11)),INDEX(aScoresRounded,$B11,CD$4))) -> 0 | CE11: =IF(CE$4="","",CHOOSE(uxb_works!$B$47,IF(INDEX(aData,$B11,CE$4)="","-",TEXT(INDEX(aData,$B11,CE$4),$H11)),INDEX(aScoresRounded,$B11,CE$4))) -> 0 | CF11: =IF(CF$4="","",CHOOSE(uxb_works!$B$47,IF(INDEX(aData,$B11,CF$4)="","-",TEXT(INDEX(aData,$B11,CF$4),$H11)),INDEX(aScoresRounded,$B11,CF$4))) -> 0 | CG11: =IF(CG$4="","",CHOOSE(uxb_works!$B$47,IF(INDEX(aData,$B11,CG$4)="","-",TEXT(INDEX(aData,$B11,CG$4),$H11)),INDEX(aScoresRounded,$B11,CG$4))) -> 0 | CH11: =IF(CH$4="","",CHOOSE(uxb_works!$B$47,IF(INDEX(aData,$B11,CH$4)="","-",TEXT(INDEX(aData,$B11,CH$4),$H11)),INDEX(aScoresRounded,$B11,CH$4))) -> 0 | CI11: =IF(CI$4="","",CHOOSE(uxb_works!$B$47,IF(INDEX(aData,$B11,CI$4)="","-",TEXT(INDEX(aData,$B11,CI$4),$H11)),INDEX(aScoresRounded,$B11,CI$4))) -> 0 | CJ11: =IF(CJ$4="","",CHOOSE(uxb_works!$B$47,IF(INDEX(aData,$B11,CJ$4)="","-",TEXT(INDEX(aData,$B11,CJ$4),$H11)),INDEX(aScoresRounded,$B11,CJ$4))) -> 0 | CK11: =IF(CK$4="","",CHOOSE(uxb_works!$B$47,IF(INDEX(aData,$B11,CK$4)="","-",TEXT(INDEX(aData,$B11,CK$4),$H11)),INDEX(aScoresRounded,$B11,CK$4))) -> 0 | CL11: =IF(CL$4="","",CHOOSE(uxb_works!$B$47,IF(INDEX(aData,$B11,CL$4)="","-",TEXT(INDEX(aData,$B11,CL$4),$H11)),INDEX(aScoresRounded,$B11,CL$4))) -> 0 | CM11: =IF(CM$4="","",CHOOSE(uxb_works!$B$47,IF(INDEX(aData,$B11,CM$4)="","-",TEXT(INDEX(aData,$B11,CM$4),$H11)),INDEX(aScoresRounded,$B11,CM$4))) -> 0 | CN11: =IF(CN$4="","",CHOOSE(uxb_works!$B$47,IF(INDEX(aData,$B11,CN$4)="","-",TEXT(INDEX(aData,$B11,CN$4),$H11)),INDEX(aScoresRounded,$B11,CN$4))) -> 0 | CO11: =IF(CO$4="","",CHOOSE(uxb_works!$B$47,IF(INDEX(aData,$B11,CO$4)="","-",TEXT(INDEX(aData,$B11,CO$4),$H11)),INDEX(aScoresRounded,$B11,CO$4))) -> 0 | CP11: =IF(CP$4="","",CHOOSE(uxb_works!$B$47,IF(INDEX(aData,$B11,CP$4)="","-",TEXT(INDEX(aData,$B11,CP$4),$H11)),INDEX(aScoresRounded,$B11,CP$4))) -> 0 | CQ11: =IF(CQ$4="","",CHOOSE(uxb_works!$B$47,IF(INDEX(aData,$B11,CQ$4)="","-",TEXT(INDEX(aData,$B11,CQ$4),$H11)),INDEX(aScoresRounded,$B11,CQ$4))) -> 0 | CR11: =IF(CR$4="","",CHOOSE(uxb_works!$B$47,IF(INDEX(aData,$B11,CR$4)="","-",TEXT(INDEX(aData,$B11,CR$4),$H11)),INDEX(aScoresRounded,$B11,CR$4))) -> 0 | CS11: =IF(CS$4="","",CHOOSE(uxb_works!$B$47,IF(INDEX(aData,$B11,CS$4)="","-",TEXT(INDEX(aData,$B11,CS$4),$H11)),INDEX(aScoresRounded,$B11,CS$4))) -> 0 | CT11: =IF(CT$4="","",CHOOSE(uxb_works!$B$47,IF(INDEX(aData,$B11,CT$4)="","-",TEXT(INDEX(aData,$B11,CT$4),$H11)),INDEX(aScoresRounded,$B11,CT$4))) -> 0 | CU11: =IF(CU$4="","",CHOOSE(uxb_works!$B$47,IF(INDEX(aData,$B11,CU$4)="","-",TEXT(INDEX(aData,$B11,CU$4),$H11)),INDEX(aScoresRounded,$B11,CU$4))) -> 0 | CV11: =IF(CV$4="","",CHOOSE(uxb_works!$B$47,IF(INDEX(aData,$B11,CV$4)="","-",TEXT(INDEX(aData,$B11,CV$4),$H11)),INDEX(aScoresRounded,$B11,CV$4))) -> 0 | CW11: =IF(CW$4="","",CHOOSE(uxb_works!$B$47,IF(INDEX(aData,$B11,CW$4)="","-",TEXT(INDEX(aData,$B11,CW$4),$H11)),INDEX(aScoresRounded,$B11,CW$4))) -> 0 | CX11: =IF(CX$4="","",CHOOSE(uxb_works!$B$47,IF(INDEX(aData,$B11,CX$4)="","-",TEXT(INDEX(aData,$B11,CX$4),$H11)),INDEX(aScoresRounded,$B11,CX$4))) -> 0 | CY11: =IF(CY$4="","",CHOOSE(uxb_works!$B$47,IF(INDEX(aData,$B11,CY$4)="","-",TEXT(INDEX(aData,$B11,CY$4),$H11)),INDEX(aScoresRounded,$B11,CY$4))) -> 0 | CZ11: =IF(CZ$4="","",CHOOSE(uxb_works!$B$47,IF(INDEX(aData,$B11,CZ$4)="","-",TEXT(INDEX(aData,$B11,CZ$4),$H11)),INDEX(aScoresRounded,$B11,CZ$4))) -> 0 | DA11: =IF(DA$4="","",CHOOSE(uxb_works!$B$47,IF(INDEX(aData,$B11,DA$4)="","-",TEXT(INDEX(aData,$B11,DA$4),$H11)),INDEX(aScoresRounded,$B11,DA$4))) -> 0 | DB11: =IF(DB$4="","",CHOOSE(uxb_works!$B$47,IF(INDEX(aData,$B11,DB$4)="","-",TEXT(INDEX(aData,$B11,DB$4),$H11)),INDEX(aScoresRounded,$B11,DB$4))) -> 0 | DC11: =IF(DC$4="","",CHOOSE(uxb_works!$B$47,IF(INDEX(aData,$B11,DC$4)="","-",TEXT(INDEX(aData,$B11,DC$4),$H11)),INDEX(aScoresRounded,$B11,DC$4))) -> 0 | DD11: =IF(DD$4="","",CHOOSE(uxb_works!$B$47,IF(INDEX(aData,$B11,DD$4)="","-",TEXT(INDEX(aData,$B11,DD$4),$H11)),INDEX(aScoresRounded,$B11,DD$4))) -> 0 | DE11: =IF(DE$4="","",CHOOSE(uxb_works!$B$47,IF(INDEX(aData,$B11,DE$4)="","-",TEXT(INDEX(aData,$B11,DE$4),$H11)),INDEX(aScoresRounded,$B11,DE$4))) -> 0 | DF11: =IF(DF$4="","",CHOOSE(uxb_works!$B$47,IF(INDEX(aData,$B11,DF$4)="","-",TEXT(INDEX(aData,$B11,DF$4),$H11)),INDEX(aScoresRounded,$B11,DF$4))) -> 0 | DG11: =IF(DG$4="","",CHOOSE(uxb_works!$B$47,IF(INDEX(aData,$B11,DG$4)="","-",TEXT(INDEX(aData,$B11,DG$4),$H11)),INDEX(aScoresRounded,$B11,DG$4))) -> 0 | DH11: =IF(DH$4="","",CHOOSE(uxb_works!$B$47,IF(INDEX(aData,$B11,DH$4)="","-",TEXT(INDEX(aData,$B11,DH$4),$H11)),INDEX(aScoresRounded,$B11,DH$4))) -> 0 | DI11: =IF(DI$4="","",CHOOSE(uxb_works!$B$47,IF(INDEX(aData,$B11,DI$4)="","-",TEXT(INDEX(aData,$B11,DI$4),$H11)),INDEX(aScoresRounded,$B11,DI$4))) -> 0 | DJ11: =IF(DJ$4="","",CHOOSE(uxb_works!$B$47,IF(INDEX(aData,$B11,DJ$4)="","-",TEXT(INDEX(aData,$B11,DJ$4),$H11)),INDEX(aScoresRounded,$B11,DJ$4))) -> 0 | DK11: =IF(DK$4="","",CHOOSE(uxb_works!$B$47,IF(INDEX(aData,$B11,DK$4)="","-",TEXT(INDEX(aData,$B11,DK$4),$H11)),INDEX(aScoresRounded,$B11,DK$4))) -> 0
B12: =tblIndicators!A3 -> 2 | F12: =iScores!F7 -> 1 | H12: =tblIndicators!AC3 -> #,##0.0 | K12: =IF(uxb_works!$B$46>=L12,1,0) -> 1 | L12: =tblIndicators!G3 -> 1 | N12: =iScores!N7 -> 1) KNOWLEDGE | O12: =CHOOSE(uxb_works!$B$47,iData!I7,iScores!O7) -> 0.1666666667 | P12: =IF(tblIndicators!T3="","",IF(AND(uxb_works!$B$47=1,OR(F12=5,Scores!F12<=2)),"",tblIndicators!T3)) ->  | Q12: =IF(Q$4="","",IF(INDEX(aScoresRounded,$B12,Q$4)=-100,"",INDEX(aScoresRounded,$B12,Q$4))) -> 3.7 | R12: 6.6 | S12: 6.5 | T12: 3.2 | U12: 24.4 | V12: 24 | W12: 2.3 | X12: 1.6 | Y12: 3.6 | Z12: 23.2 | AA12: =IF(AA$4="","",IF(INDEX(aScoresRounded,$B12,AA$4)=-100,"",INDEX(aScoresRounded,$B12,AA$4))) -> 2.2 | AB12: 2 | AC12: 17.5 | AD12: 6.8 | AE12: 1.7 | AF12: 24.3 | AG12: 6.4 | AH12: 61.5 | AI12: 4.4 | AJ12: 3.2 | AK12: =IF(AK$4="","",IF(INDEX(aScoresRounded,$B12,AK$4)=-100,"",INDEX(aScoresRounded,$B12,AK$4))) -> 7.6 | AL12: 5.9 | AM12: 15.4 | AN12: 24.7 | AO12: 3.5 | AP12: 3.1 | AQ12: 9.3 | AR12: 1 | AS12: 9.3 | AT12: 4 | AU12: =IF(AU$4="","",IF(INDEX(aScoresRounded,$B12,AU$4)=-100,"",INDEX(aScoresRounded,$B12,AU$4))) -> 21.4 | AV12: 28.1 | AW12: 3.1 | AX12: 34.6 | AY12: 2.6 | AZ12: 12.8 | BA12: 3.4 | BB12: 0.1 | BC12: 17.4 | BD12: 11.7 | BE12: =IF(BE$4="","",IF(INDEX(aScoresRounded,$B12,BE$4)=-100,"",INDEX(aScoresRounded,$B12,BE$4))) -> 14.1 | BF12: 18.1 | BG12: 3.8 | BH12: 10.4 | BI12: 12.1 | BJ12: 23.2 | BK12: 47 | BL12: 6.5 | BM12: 1.7 | BN12: 3.1 | BO12: =IF(BO$4="","",IF(INDEX(aScoresRounded,$B12,BO$4)=-100,"",INDEX(aScoresRounded,$B12,BO$4))) -> 1.8 | BP12: 4.2 | BQ12: 5.4 | BR12: 7.2 | BS12: 8.9 | BT12: 0.1 | BU12: 13.9 | BV12: 3.8 | BW12: 2.3 | BX12: 8.8 | BY12: =IF(BY$4="","",IF(INDEX(aScoresRounded,$B12,BY$4)=-100,"",INDEX(aScoresRounded,$B12,BY$4))) -> 1.3 | BZ12: 4.6 | CA12: 2.1 | CB12: 0.4 | CC12: 2.3 | CD12: 21.1 | CE12: 12.1 | CF12: 3.6 | CG12: 16.9 | CH12: 3 | CI12: =IF(CI$4="","",IF(INDEX(aScoresRounded,$B12,CI$4)=-100,"",INDEX(aScoresRounded,$B12,CI$4))) -> 0.6 | CJ12: 1.7 | CK12: 2.4 | CL12: 11.3 | CM12: 14.1 | CN12: 5 | CO12: 42.5 | CP12: 6.3 | CQ12: 16.7 | CR12: 1.8 | CS12: =IF(CS$4="","",IF(INDEX(aScoresRounded,$B12,CS$4)=-100,"",INDEX(aScoresRounded,$B12,CS$4))) -> 9.2 | CT12: 7.9 | CU12: 21.1 | CV12: 7.8 | CW12: 13.8 | CX12: 9.4 | CY12: 20.9 | CZ12: 1.9 | DA12: 27.3 | DB12: 28.1 | DC12: =IF(DC$4="","",IF(INDEX(aScoresRounded,$B12,DC$4)=-100,"",INDEX(aScoresRounded,$B12,DC$4))) -> 9.9 | DD12: 6 | DE12: 14.3 | DF12: 5.6 | DG12: 8.4 | DH12: 31.8 | DI12: 71.3 | DJ12: 3.2 | DK12: 5
B13: =tblIndicators!A4 -> 3 | F13: =iScores!F8 -> 2 | H13: =tblIndicators!AC4 -> #,##0 | K13: =IF(uxb_works!$B$46>=L13,1,0) -> 1 | L13: =tblIndicators!G4 -> 2 | N13: =iScores!N8 -> 1.1) H index ranking (# of citations in engineering) | O13: =CHOOSE(uxb_works!$B$47,iData!I8,iScores!O8) -> 0.25 | P13: =IF(tblIndicators!T4="","",IF(AND(uxb_works!$B$47=1,OR(F13=5,Scores!F13<=2)),"",tblIndicators!T4)) -> https://www.scimagojr.com/countryrank.php?area=2200&order=h&ord=desc | Q13: 1.3 | R13: 10.8 | S13: 12.2 | T13: 8.1 | U13: 36.7 | V13: 22.8 | W13: 5.4 | X13: 4.3 | Y13: 7.7 | Z13: 29.7 | AA13: 2.1 | AB13: 3.6 | AC13: 21.9 | AD13: 9.8 | AE13: 0.1 | AF13: 43.7 | AG13: 13.4 | AH13: 51.6 | AI13: 9.7 | AJ13: 2.9 | AK13: 9.9 | AL13: 10 | AM13: 16.1 | AN13: 27.7 | AO13: 0.4 | AP13: 3.1 | AQ13: 13.9 | AR13: 0.9 | AS13: 7.5 | AT13: 3 | AU13: 21.9 | AV13: 42.5 | AW13: 6.4 | AX13: 50.5 | AY13: 3.5 | AZ13: 22.9 | BA13: 0 | BB13: 0.2 | BC13: 31.1 | BD13: 15 | BE13: 7.9 | BF13: 30.6 | BG13: 7 | BH13: 18.6 | BI13: 21.2 | BJ13: 38.6 | BK13: 45.2 | BL13: 8.8 | BM13: 4 | BN13: 8.5 | BO13: 0.4 | BP13: 5.1 | BQ13: 7.6 | BR13: 8.6 | BS13: 7.4 | BT13: 0.3 | BU13: 16.9 | BV13: 3.2 | BW13: 1.7 | BX13: 17.4 | BY13: 2.6 | BZ13: 8.6 | CA13: 1 | CB13: 0.9 | CC13: 2.4 | CD13: 37.5 | CE13: 17.8 | CF13: 6.8 | CG13: 20.7 | CH13: 6.6 | CI13: 1.4 | CJ13: 4.2 | CK13: 5.3 | CL13: 18.8 | CM13: 20.8 | CN13: 8.4 | CO13: 37.4 | CP13: 13.4 | CQ13: 20.6 | CR13: 0.6 | CS13: 16.9 | CT13: 10.8 | CU13: 34 | CV13: 10.5 | CW13: 13.3 | CX13: 13.9 | CY13: 34.1 | CZ13: 5.3 | DA13: 30.7 | DB13: 36.9 | DC13: 13.9 | DD13: 8.9 | DE13: 22 | DF13: 10.6 | DG13: 9.8 | DH13: 53.7 | DI13: 100 | DJ13: 3.9 | DK13: 8.7
B14: =tblIndicators!A5 -> 4 | F14: =iScores!F9 -> 2 | H14: =tblIndicators!AC5 -> #,##0.00 | K14: =IF(uxb_works!$B$46>=L14,1,0) -> 1 | L14: =tblIndicators!G5 -> 2 | N14: =iScores!N9 -> 1.2) R&D spending (% GDP) | O14: =CHOOSE(uxb_works!$B$47,iData!I9,iScores!O9) -> 0.25 | P14: =IF(tblIndicators!T5="","",IF(AND(uxb_works!$B$47=1,OR(F14=5,Scores!F14<=2)),"",tblIndicators!T5)) -> http://data.uis.unesco.org/ | Q14: 13.4 | R14: 11.5 | S14: 11.5 | T14: 4.8 | U14: 42.1 | V14: 69.4 | W14: 4 | X14: 2 | Y14: 6.8 | Z14: 57.3 | AA14: 6.8 | AB14: 4.2 | AC14: 27.8 | AD14: 16.7 | AE14: 6.8 | AF14: 34.8 | AG14: 7.7 | AH14: 46.7 | AI14: 5.1 | AJ14: 9.9 | AK14: 18.9 | AL14: 12.3 | AM14: 39.2 | AN14: 68.1 | AO14: 13.4 | AP14: 9.5 | AQ14: 13.2 | AR14: 3.1 | AS14: 28.9 | AT14: 13 | AU14: 60.6 | AV14: 48 | AW14: 6.2 | AX14: 66.7 | AY14: 6.8 | AZ14: 24.9 | BA14: 13.4 | BB14: 0 | BC14: 34.8 | BD14: 29.5 | BE14: 47.8 | BF14: 13.4 | BG14: 5.1 | BH14: 5.3 | BI14: 22.7 | BJ14: 29.7 | BK14: 70.3 | BL14: 15.6 | BM14: 2.6 | BN14: 1.5 | BO14: 6.8 | BP14: 11 | BQ14: 13.4 | BR14: 19.4 | BS14: 27.3 | BT14: 0 | BU14: 31.5 | BV14: 11.9 | BW14: 7.7 | BX14: 10.6 | BY14: 2.6 | BZ14: 6.8 | CA14: 7.3 | CB14: 0.4 | CC14: 6.8 | CD14: 43.8 | CE14: 26.9 | CF14: 6.8 | CG14: 46.3 | CH14: 4.6 | CI14: 1.1 | CJ14: 2.4 | CK14: 2.9 | CL14: 22.7 | CM14: 29.1 | CN14: 11 | CO14: 100 | CP14: 10.8 | CQ14: 24.2 | CR14: 6.8 | CS14: 17.8 | CT14: 20.3 | CU14: 48.7 | CV14: 19.2 | CW14: 40.5 | CX14: 17.8 | CY14: 26.4 | CZ14: 2.2 | DA14: 72.7 | DB14: 74 | DC14: 17 | DD14: 13 | DE14: 20.9 | DF14: 9.7 | DG14: 20.9 | DH14: 36.6 | DI14: 61.5 | DJ14: 8.8 | DK14: 11.5
B15: =tblIndicators!A6 -> 5 | F15: =iScores!F10 -> 2 | H15: =tblIndicators!AC6 -> #,##0 | K15: =IF(uxb_works!$B$46>=L15,1,0) -> 1 | L15: =tblIndicators!G6 -> 2 | N15: =iScores!N10 -> 1.3) Number of universities in top 500 for engineering | O15: =CHOOSE(uxb_works!$B$47,iData!I10,iScores!O10) -> 0.25 | P15: =IF(tblIndicators!T6="","",IF(AND(uxb_works!$B$47=1,OR(F15=5,Scores!F15<=2)),"",tblIndicators!T6)) -> https://www.timeshighereducation.com/world-university-rankings/by-subject | Q15: 0 | R15: 4.3 | S15: 2.1 | T15: 0 | U15: 18.6 | V15: 3.6 | W15: 0 | X15: 0 | Y15: 0 | Z15: 5.7 | AA15: 0 | AB15: 0 | AC15: 20 | AD15: 0.7 | AE15: 0 | AF15: 18.6 | AG15: 4.3 | AH15: 47.9 | AI15: 2.9 | AJ15: 0 | AK15: 1.4 | AL15: 1.4 | AM15: 6.4 | AN15: 2.9 | AO15: 0 | AP15: 0 | AQ15: 10 | AR15: 0 | AS15: 0.7 | AT15: 0 | AU15: 2.9 | AV15: 20.7 | AW15: 0 | AX15: 17.1 | AY15: 0 | AZ15: 3.6 | BA15: 0 | BB15: 0 | BC15: 3.6 | BD15: 2.1 | BE15: 0.7 | BF15: 27.1 | BG15: 2.9 | BH15: 16.4 | BI15: 4.3 | BJ15: 23.6 | BK15: 51.4 | BL15: 1.4 | BM15: 0 | BN15: 0.7 | BO15: 0 | BP15: 0.7 | BQ15: 0.7 | BR15: 0.7 | BS15: 0.7 | BT15: 0 | BU15: 7.1 | BV15: 0 | BW15: 0 | BX15: 7.1 | BY15: 0 | BZ15: 2.9 | CA15: 0 | CB15: 0 | CC15: 0 | CD15: 2.9 | CE15: 3.6 | CF15: 0.7 | CG15: 0.7 | CH15: 0.7 | CI15: 0 | CJ15: 0 | CK15: 1.4 | CL15: 3.6 | CM15: 6.4 | CN15: 0.7 | CO15: 20 | CP15: 0.7 | CQ15: 20 | CR15: 0 | CS15: 2.1 | CT15: 0.7 | CU15: 1.4 | CV15: 1.4 | CW15: 1.4 | CX15: 5.7 | CY15: 22.9 | CZ15: 0 | DA15: 5.7 | DB15: 1.4 | DC15: 8.6 | DD15: 2.1 | DE15: 13.6 | DF15: 2.1 | DG15: 2.9 | DH15: 35.7 | DI15: 100 | DJ15: 0 | DK15: 0
B16: =tblIndicators!A7 -> 6 | F16: =iScores!F11 -> 2 | H16: =tblIndicators!AC7 -> #,##0 | K16: =IF(uxb_works!$B$46>=L16,1,0) -> 1 | L16: =tblIndicators!G7 -> 2 | N16: =iScores!N11 -> 1.4) Patent applications, residents | O16: =CHOOSE(uxb_works!$B$47,iData!I11,iScores!O11) -> 0.25 | P16: =IF(tblIndicators!T7="","",IF(AND(uxb_works!$B$47=1,OR(F16=5,Scores!F16<=2)),"",tblIndicators!T7)) -> https://data.worldbank.org/indicator/IP.PAT.RESD?view=chart | Q16: 0 | R16: 0 | S16: 0 | T16: 0 | U16: 0.2 | V16: 0.2 | W16: 0 | X16: 0 | Y16: 0 | Z16: 0.1 | AA16: 0 | AB16: 0 | AC16: 0.4 | AD16: 0 | AE16: 0 | AF16: 0.3 | AG16: 0 | AH16: 100 | AI16: 0 | AJ16: 0 | AK16: 0 | AL16: 0 | AM16: 0.1 | AN16: 0.1 | AO16: 0 | AP16: 0 | AQ16: 0.1 | AR16: 0 | AS16: 0 | AT16: 0 | AU16: 0.1 | AV16: 1.2 | AW16: 0 | AX16: 3.8 | AY16: 0 | AZ16: 0 | BA16: 0 | BB16: 0 | BC16: 0 | BD16: 0 | BE16: 0 | BF16: 1.2 | BG16: 0.2 | BH16: 1.2 | BI16: 0 | BJ16: 0.7 | BK16: 20.9 | BL16: 0 | BM16: 0.1 | BN16: 1.5 | BO16: 0.1 | BP16: 0 | BQ16: 0 | BR16: 0 | BS16: 0 | BT16: 0 | BU16: 0.1 | BV16: 0 | BW16: 0 | BX16: 0.1 | BY16: 0 | BZ16: 0 | CA16: 0 | CB16: 0.1 | CC16: 0 | CD16: 0.2 | CE16: 0.1 | CF16: 0 | CG16: 0.1 | CH16: 0 | CI16: 0 | CJ16: 0 | CK16: 0 | CL16: 0.3 | CM16: 0.1 | CN16: 0 | CO16: 12.8 | CP16: 0.1 | CQ16: 1.8 | CR16: 0 | CS16: 0.1 | CT16: 0 | CU16: 0.1 | CV16: 0 | CW16: 0 | CX16: 0.1 | CY16: 0.2 | CZ16: 0 | DA16: 0.2 | DB16: 0.1 | DC16: 0.1 | DD16: 0 | DE16: 0.7 | DF16: 0.2 | DG16: 0 | DH16: 1.1 | DI16: 23.6 | DJ16: 0 | DK16: 0
B17: =tblIndicators!A8 -> 7 | F17: =iScores!F12 -> 1 | H17: =tblIndicators!AC8 -> #,##0.0 | K17: =IF(uxb_works!$B$46>=L17,1,0) -> 1 | L17: =tblIndicators!G8 -> 1 | N17: =iScores!N12 -> 2) LABOUR FORCE | O17: =CHOOSE(uxb_works!$B$47,iData!I12,iScores!O12) -> 0.1666666667 | P17: =IF(tblIndicators!T8="","",IF(AND(uxb_works!$B$47=1,OR(F17=5,Scores!F17<=2)),"",tblIndicators!T8)) ->  | Q17: 36.1 | R17: 35.8 | S17: 47.2 | U17: 53.6 | V17: 58.7 | Z17: 55 | AC17: 34 | AD17: 42.3 | AF17: 61.9 | AG17: 45.7 | AH17: 63.4 | AI17: 41.4 | AJ17: 40.2 | AK17: 50.1 | AL17: 45.2 | AM17: 53.6 | AN17: 55.8 | AO17: 19.6 | AS17: 62.2 | AU17: 70.2 | AV17: 56.6 | AW17: 24.2 | AX17: 65.6 | AZ17: 57 | BC17: 64.5 | BD17: 48.4 | BE17: 57.4 | BG17: 32.4 | BI17: 53.3 | BJ17: 56.5 | BK17: 62.8 | BL17: 44.4 | BM17: 51.6 | BP17: 46.7 | BQ17: 41.9 | BR17: 51.9 | BS17: 43.4 | BU17: 59.1 | BV17: 43.9 | BX17: 45.3 | CD17: 55.8 | CE17: 55.1 | CG17: 58 | CJ17: 33.4 | CL17: 61.6 | CM17: 64.5 | CN17: 49.8 | CO17: 64 | CP17: 47.8 | CQ17: 61 | CU17: 75.8 | CV17: 44.7 | CW17: 56.2 | CY17: 55.3 | DA17: 62 | DB17: 59.7 | DC17: 40.2 | DD17: 43.3 | DE17: 41.8 | DG17: 53.1 | DH17: 54.6 | DI17: 53.7 | DJ17: 40.2 | DK17: 62
B18: =tblIndicators!A9 -> 8 | F18: =iScores!F13 -> 2 | H18: =tblIndicators!AC9 -> #,##0.0 | K18: =IF(uxb_works!$B$46>=L18,1,0) -> 1 | L18: =tblIndicators!G9 -> 2 | N18: =iScores!N13 -> 2.1) Availability of scientists and engineers | O18: =CHOOSE(uxb_works!$B$47,iData!I13,iScores!O13) -> 0.2 | P18: =IF(tblIndicators!T9="","",IF(AND(uxb_works!$B$47=1,OR(F18=5,Scores!F18<=2)),"",tblIndicators!T9)) -> http://reports.weforum.org/pdf/gci-2017-2018-scorecard/WEF_GCI_2017_2018_Scorecard_EOSQ133.pdf | Q18: 20.6 | R18: 32.4 | S18: 38.2 | T18: 50 | U18: 67.6 | V18: 55.9 | W18: 61.8 | X18: 52.9 | Y18: 35.3 | Z18: 55.9 | AA18: 17.6 | AB18: 23.5 | AC18: 29.4 | AD18: 29.4 | AE18: 14.7 | AF18: 82.4 | AG18: 64.7 | AH18: 61.8 | AI18: 38.2 | AJ18: 61.8 | AK18: 29.4 | AL18: 58.8 | AM18: 35.3 | AN18: 52.9 | AO18: 23.5 | AP18: 23.5 | AQ18: 44.1 | AR18: 0 | AS18: 50 | AT18: 29.4 | AU18: 100 | AV18: 58.8 | AW18: 11.8 | AX18: 76.5 | AY18: 35.3 | AZ18: 76.5 | BA18: 41.2 | BB18: 29.4 | BC18: 64.7 | BD18: 29.4 | BE18: 67.6 | BF18: 58.8 | BG18: 55.9 | BH18: 55.9 | BI18: 64.7 | BJ18: 55.9 | BK18: 79.4 | BL18: 73.5 | BM18: 38.2 | BN18: 26.5 | BO18: 17.6 | BP18: 23.5 | BQ18: 70.6 | BR18: 44.1 | BS18: 41.2 | BT18: 32.4 | BU18: 79.4 | BV18: 41.2 | BW18: 38.2 | BX18: 47.1 | BY18: 41.2 | BZ18: 44.1 | CA18: 14.7 | CB18: 38.2 | CC18: 29.4 | CD18: 67.6 | CE18: 61.8 | CF18: 35.3 | CG18: 73.5 | CH18: 35.3 | CI18: 41.2 | CJ18: 26.5 | CK18: 35.3 | CL18: 47.1 | CM18: 61.8 | CN18: 82.4 | CO18: 55.9 | CP18: 35.3 | CQ18: 50 | CR18: 44.1 | CS18: 58.8 | CT18: 38.2 | CU18: 76.5 | CV18: 26.5 | CW18: 38.2 | CX18: 26.5 | CY18: 55.9 | CZ18: 47.1 | DA18: 64.7 | DB18: 73.5 | DC18: 44.1 | DD18: 52.9 | DE18: 50 | DF18: 61.8 | DG18: 82.4 | DH18: 67.6 | DI18: 91.2 | DJ18: 26.5 | DK18: 35.3
B19: =tblIndicators!A10 -> 9 | F19: =iScores!F14 -> 2 | H19: =tblIndicators!AC10 -> #,##0 | K19: =IF(uxb_works!$B$46>=L19,1,0) -> 1 | L19: =tblIndicators!G10 -> 2 | N19: =iScores!N14 -> 2.2) Mean score in science performance among 15 year-olds | O19: =CHOOSE(uxb_works!$B$47,iData!I14,iScores!O14) -> 0.2 | P19: =IF(tblIndicators!T10="","",IF(AND(uxb_works!$B$47=1,OR(F19=5,Scores!F19<=2)),"",tblIndicators!T10)) -> http://gpseducation.oecd.org/ | Q19: 42.4 | R19: 19.6 | S19: 63.8 | U19: 79.5 | V19: 72.8 | Z19: 75.9 | AC19: 30.8 | AD19: 50.9 | AF19: 87.5 | AG19: 51.3 | AH19: 83 | AI19: 37.5 | AJ19: 39.3 | AK19: 63.8 | AL19: 45.1 | AM19: 71.9 | AN19: 75.9 | AO19: 0 | AS19: 90.2 | AU19: 88.8 | AV19: 72.8 | AW19: 35.3 | AX19: 79 | AZ19: 54.9 | BC19: 85.3 | BD19: 64.7 | BE19: 62.9 | BG19: 31.7 | BI19: 76.3 | BJ19: 66.5 | BK19: 92 | BL19: 34.4 | BM19: 55.4 | BP19: 70.5 | BQ19: 24.1 | BR19: 63.8 | BS19: 67.4 | BU19: 49.6 | BV19: 59.4 | BX19: 37.5 | CD19: 79 | CE19: 80.8 | CG19: 74.1 | CJ19: 29 | CL19: 75.4 | CM19: 75.4 | CN19: 38.4 | CO19: 82.1 | CP19: 46 | CQ19: 69.2 | CU19: 100 | CV19: 57.6 | CW19: 80.8 | CY19: 71.9 | DA19: 71.9 | DB19: 77.7 | DC19: 39.7 | DD19: 24.1 | DE19: 41.5 | DG19: 46.9 | DH19: 79 | DI19: 73.2 | DJ19: 46 | DK19: 86.2
